Workbook

Sheet ConfOnly
A1: =Roster!B1&" "&Roster!B2 -> Upton Bobcats | N1: =CONCATENATE("* ",Roster!$D$1," ",PROPER(RIGHT(Roster!$D$2,4))," Opponents Only") -> * 2A East Opponents Only | S1: Overall Record * | V1: =CONCATENATE(SUMPRODUCT(SUMIF(INDIRECT("'"&gamesheets&"'!a2"),"R",INDIRECT("'"&gamesheets&"'!g4")))," - ",SUMPRODUCT(SUMIF(INDIRECT("'"&gamesheets&"'!a2"),"R",INDIRECT("'"&gamesheets&"'!i4")))) -> 7 - 3 | X1: Conference Record | AB1: =CONCATENATE(SUMPRODUCT(SUMIF(INDIRECT("'"&gamesheets&"'!a2"),"R",INDIRECT("'"&gamesheets&"'!h4")))," - ",SUMPRODUCT(SUMIF(INDIRECT("'"&gamesheets&"'!a2"),"R",INDIRECT("'"&gamesheets&"'!j4")))) -> 7 - 3 | AE1: =COUNT('game1 (1):game1 (40)'!$G$4)+COUNT('game1 (1):game1 (40)'!$I$4) -> 28
R5: =COUNTA('game1 (1):game1 (40)'!$C$2) -> 28 | V5: =SUM('game1 (1):game1 (40)'!$G$4) -> 20 | W5: =SUM('game1 (1):game1 (40)'!$I$4) -> 8 | AB5: =SUM('game1 (1):game1 (40)'!$H$4) -> 7 | AC5: =SUM('game1 (1):game1 (40)'!$J$4) -> 3
A6: PLAYER,# | B6: GP | C6: 3FGM | D6: 3FGA | E6: 3FG % | F6: 2FGM | G6: 2FGA | H6: 2FG % | I6: FTM | J6: FTA | K6: FT % | L6: PTS | M6: OFF REB | N6: DEF REB | O6: REB | P6: AST | Q6: STL | R6: BLK | S6: TO'S | T6: FOUL | U6: PTS / GM | V6: O REB /GM | W6: D REB /GM | X6: REB / GM | Y6: AST / GM | Z6: STL / GM | AA6: BLK / GM | AB6: TO'S / GM | AC6: FOUL / GM | AD6: School | AE6: 3 FGA/Gm | AF6: FTA / GM | AG6: FG % | AH6: FGA / GM | AI6: Conf | AJ6: Team GP
A7: =IF(OR(Roster!A7<>"",Roster!B7<>""),PROPER(Roster!B7)&", "&Roster!A7,"") -> Payton Watt, 24 | B7: =SUMPRODUCT(SUMIF(INDIRECT("'"&gamesheets&"'!A2"),"R",INDIRECT("'"&gamesheets&"'!c"&ROW(C7)))) -> 10 | C7: =SUMPRODUCT(SUMIF(INDIRECT("'"&gamesheets&"'!A2"),"R",INDIRECT("'"&gamesheets&"'!d"&ROW(D7)))) -> 20 | D7: =SUMPRODUCT(SUMIF(INDIRECT("'"&gamesheets&"'!A2"),"R",INDIRECT("'"&gamesheets&"'!e"&ROW(E7)))) -> 61 | E7: =IF(D7>0,C7/D7,"") -> 33% | F7: =SUMPRODUCT(SUMIF(INDIRECT("'"&gamesheets&"'!A2"),"R",INDIRECT("'"&gamesheets&"'!f"&ROW(F7)))) -> 51 | G7: =SUMPRODUCT(SUMIF(INDIRECT("'"&gamesheets&"'!A2"),"R",INDIRECT("'"&gamesheets&"'!g"&ROW(G7)))) -> 84 | H7: =IF(G7>0,F7/G7,"") -> 61% | I7: =SUMPRODUCT(SUMIF(INDIRECT("'"&gamesheets&"'!A2"),"R",INDIRECT("'"&gamesheets&"'!h"&ROW(H7)))) -> 23 | J7: =SUMPRODUCT(SUMIF(INDIRECT("'"&gamesheets&"'!A2"),"R",INDIRECT("'"&gamesheets&"'!i"&ROW(I7)))) -> 36 | K7: =IF(J7>0,I7/J7,"") -> 64% | L7: =SUMPRODUCT(SUMIF(INDIRECT("'"&gamesheets&"'!A2"),"R",INDIRECT("'"&gamesheets&"'!q"&ROW(Q7)))) -> 185 | M7: =SUMPRODUCT(SUMIF(INDIRECT("'"&gamesheets&"'!A2"),"R",INDIRECT("'"&gamesheets&"'!j"&ROW(J7)))) -> 29 | N7: =SUMPRODUCT(SUMIF(INDIRECT("'"&gamesheets&"'!A2"),"R",INDIRECT("'"&gamesheets&"'!k"&ROW(K7)))) -> 54 | O7: =SUMPRODUCT(SUMIF(INDIRECT("'"&gamesheets&"'!A2"),"R",INDIRECT("'"&gamesheets&"'!w"&ROW(W7)))) -> 83 | P7: =SUMPRODUCT(SUMIF(INDIRECT("'"&gamesheets&"'!A2"),"R",INDIRECT("'"&gamesheets&"'!l"&ROW(L7)))) -> 23 | Q7: =SUMPRODUCT(SUMIF(INDIRECT("'"&gamesheets&"'!A2"),"R",INDIRECT("'"&gamesheets&"'!m"&ROW(M7)))) -> 9 | R7: =SUMPRODUCT(SUMIF(INDIRECT("'"&gamesheets&"'!A2"),"R",INDIRECT("'"&gamesheets&"'!n"&ROW(N7)))) -> 6 | S7: =SUMPRODUCT(SUMIF(INDIRECT("'"&gamesheets&"'!A2"),"R",INDIRECT("'"&gamesheets&"'!o"&ROW(O7)))) -> 22 | T7: =SUMPRODUCT(SUMIF(INDIRECT("'"&gamesheets&"'!A2"),"R",INDIRECT("'"&gamesheets&"'!p"&ROW(P7)))) -> 16 | U7: =IF($B7>0,L7/$B7,"") -> 18.5 | V7: =IF($B7>0,M7/$B7,0) -> 2.9 | W7: =IF($B7>0,N7/$B7,0) -> 5.4 | X7: =IF($B7>0,O7/$B7,0) -> 8.3 | Y7: 2.3 | Z7: 0.9 | AA7: 0.6 | AB7: 2.2 | AC7: 1.6 | AD7: =Roster!$B$1 -> Upton | AE7: =IF($B7>0,$D7/$B7,0) -> 6.1 | AF7: =IF($B7>0,$J7/$B7,0) -> 3.6 | AG7: =IF($D7+$G7>0,($C7+$F7)/($D7+$G7),0) -> 49% | AH7: =IF($B7>0,($D7+$G7)/$B7,0) -> 14.5 | AI7: =Roster!$D$2 -> Northeast | AJ7: =SUMPRODUCT(SUMIF(INDIRECT("'"&gamesheets&"'!a2"),"R",INDIRECT("'"&gamesheets&"'!g4")))+SUMPRODUCT(SUMIF(INDIRECT("'"&gamesheets&"'!a2"),"R",INDIRECT("'"&gamesheets&"'!i4"))) -> 10
A8: =IF(OR(Roster!A8<>"",Roster!B8<>""),PROPER(Roster!B8)&", "&Roster!A8,"") -> Dillon Barritt, 20 | B8: 10 | C8: 26 | D8: 81 | E8: =IF(D8>0,C8/D8,"") -> 32% | F8: 15 | G8: 35 | H8: =IF(G8>0,F8/G8,"") -> 43% | I8: 7 | J8: 9 | K8: =IF(J8>0,I8/J8,"") -> 78% | L8: 115 | M8: 13 | N8: 22 | O8: 35 | P8: 25 | Q8: 21 | R8: 1 | S8: 19 | T8: 20 | U8: =IF($B8>0,L8/$B8,"") -> 11.5 | V8: =IF($B8>0,M8/$B8,0) -> 1.3 | W8: 2.2 | X8: 3.5 | Y8: 2.5 | Z8: 2.1 | AA8: 0.1 | AB8: 1.9 | AC8: 2.0 | AD8: =Roster!$B$1 -> Upton | AE8: =IF($B8>0,$D8/$B8,0) -> 8.1 | AF8: =IF($B8>0,$J8/$B8,0) -> 0.9 | AG8: =IF($D8+$G8>0,($C8+$F8)/($D8+$G8),0) -> 35% | AH8: =IF($B8>0,($D8+$G8)/$B8,0) -> 11.6 | AI8: =Roster!$D$2 -> Northeast | AJ8: 10
A9: =IF(OR(Roster!A9<>"",Roster!B9<>""),PROPER(Roster!B9)&", "&Roster!A9,"") -> Dawson Butts, 14 | B9: 10 | C9: 1 | D9: 5 | E9: 20% | F9: 17 | G9: 36 | H9: 47% | I9: 7 | J9: 23 | K9: 30% | L9: 44 | M9: 17 | N9: 32 | O9: 49 | P9: 39 | Q9: 20 | R9: 2 | S9: 16 | T9: 12 | U9: 4.4 | V9: 1.7 | W9: 3.2 | X9: 4.9 | Y9: 3.9 | Z9: 2.0 | AA9: 0.2 | AB9: 1.6 | AC9: 1.2 | AD9: =Roster!$B$1 -> Upton | AE9: 0.5 | AF9: 2.3 | AG9: 44% | AH9: 4.1 | AI9: =Roster!$D$2 -> Northeast | AJ9: 10
A10: =IF(OR(Roster!A10<>"",Roster!B10<>""),PROPER(Roster!B10)&", "&Roster!A10,"") -> Jayden Caylor, 12 | B10: 5 | C10: 3 | D10: 4 | E10: 75% | F10: 12 | G10: 19 | H10: 63% | I10: 3 | J10: 4 | K10: 75% | L10: 36 | M10: 7 | N10: 16 | O10: 23 | P10: 8 | Q10: 8 | R10: 1 | S10: 9 | T10: 13 | U10: 7.2 | V10: 1.4 | W10: 3.2 | X10: 4.6 | Y10: 1.6 | Z10: 1.6 | AA10: 0.2 | AB10: 1.8 | AC10: 2.6 | AD10: =Roster!$B$1 -> Upton | AE10: 0.8 | AF10: 0.8 | AG10: 65% | AH10: 4.6 | AI10: =Roster!$D$2 -> Northeast | AJ10: 10
A11: =IF(OR(Roster!A11<>"",Roster!B11<>""),PROPER(Roster!B11)&", "&Roster!A11,"") -> Clayton Louderback, 23 | B11: 8 | C11: 6 | D11: 20 | E11: 30% | F11: 53 | G11: 103 | H11: 51% | I11: 31 | J11: 46 | K11: 67% | L11: 155 | M11: 30 | N11: 41 | O11: 71 | P11: 25 | Q11: 24 | R11: 3 | S11: 30 | T11: 21 | U11: 19.4 | V11: 3.8 | W11: 5.1 | X11: 8.9 | Y11: 3.1 | Z11: 3.0 | AA11: 0.4 | AB11: 3.8 | AC11: 2.6 | AD11: =Roster!$B$1 -> Upton | AE11: 2.5 | AF11: 5.8 | AG11: 48% | AH11: 15.4 | AI11: =Roster!$D$2 -> Northeast | AJ11: 10
A12: =IF(OR(Roster!A12<>"",Roster!B12<>""),PROPER(Roster!B12)&", "&Roster!A12,"") -> Jess Claycomb, 10 | B12: 10 | C12: 3 | D12: 19 | E12: 16% | F12: 34 | G12: 54 | H12: 63% | I12: 17 | J12: 22 | K12: 77% | L12: 94 | M12: 15 | N12: 24 | O12: 39 | P12: 29 | Q12: 8 | R12: 0 | S12: 13 | T12: 22 | U12: 9.4 | V12: 1.5 | W12: 2.4 | X12: 3.9 | Y12: 2.9 | Z12: 0.8 | AA12: 0.0 | AB12: 1.3 | AC12: 2.2 | AD12: =Roster!$B$1 -> Upton | AE12: 1.9 | AF12: 2.2 | AG12: 51% | AH12: 7.3 | AI12: =Roster!$D$2 -> Northeast | AJ12: 10
A13: =IF(OR(Roster!A13<>"",Roster!B13<>""),PROPER(Roster!B13)&", "&Roster!A13,"") -> Maxx Cowger, 4 | B13: 1 | C13: 0 | D13: 0 | F13: 0 | G13: 0 | I13: 0 | J13: 0 | L13: 0 | M13: 0 | N13: 0 | O13: 0 | P13: 0 | Q13: 0 | R13: 0 | S13: 0 | T13: 0 | U13: 0.0 | V13: 0.0 | W13: 0.0 | X13: 0.0 | Y13: 0.0 | Z13: 0.0 | AA13: 0.0 | AB13: 0.0 | AC13: 0.0 | AD13: =Roster!$B$1 -> Upton | AE13: 0.0 | AF13: 0.0 | AG13: 0% | AH13: 0.0 | AI13: =Roster!$D$2 -> Northeast | AJ13: 10
A14: =IF(OR(Roster!A14<>"",Roster!B14<>""),PROPER(Roster!B14)&", "&Roster!A14,"") -> Brayden Bruce, 22 | B14: 10 | C14: 6 | D14: 24 | E14: 25% | F14: 5 | G14: 14 | H14: 36% | I14: 2 | J14: 4 | K14: 50% | L14: 30 | M14: 8 | N14: 6 | O14: 14 | P14: 29 | Q14: 6 | R14: 0 | S14: 15 | T14: 16 | U14: 3.0 | V14: 0.8 | W14: 0.6 | X14: 1.4 | Y14: 2.9 | Z14: 0.6 | AA14: 0.0 | AB14: 1.5 | AC14: 1.6 | AD14: =Roster!$B$1 -> Upton | AE14: 2.4 | AF14: 0.4 | AG14: 29% | AH14: 3.8 | AI14: =Roster!$D$2 -> Northeast | AJ14: 10
A15: =IF(OR(Roster!A15<>"",Roster!B15<>""),PROPER(Roster!B15)&", "&Roster!A15,"") -> Jo Bishop, 30 | B15: 7 | C15: 0 | D15: 0 | F15: 1 | G15: 3 | H15: 33% | I15: 2 | J15: 2 | K15: 100% | L15: 4 | M15: 3 | N15: 5 | O15: 8 | P15: 1 | Q15: 2 | R15: 0 | S15: 3 | T15: 5 | U15: 0.6 | V15: 0.4 | W15: 0.7 | X15: 1.1 | Y15: 0.1 | Z15: 0.3 | AA15: 0.0 | AB15: 0.4 | AC15: 0.7 | AD15: =Roster!$B$1 -> Upton | AE15: 0.0 | AF15: 0.3 | AG15: 33% | AH15: 0.4 | AI15: =Roster!$D$2 -> Northeast | AJ15: 10
A16: =IF(OR(Roster!A16<>"",Roster!B16<>""),PROPER(Roster!B16)&", "&Roster!A16,"") -> Nolan Turner, 33 | B16: 7 | C16: 0 | D16: 1 | E16: 0% | F16: 0 | G16: 4 | H16: 0% | I16: 0 | J16: 1 | K16: 0% | L16: 0 | M16: 2 | N16: 8 | O16: 10 | P16: 2 | Q16: 1 | R16: 1 | S16: 2 | T16: 11 | U16: 0.0 | V16: 0.3 | W16: 1.1 | X16: 1.4 | Y16: 0.3 | Z16: 0.1 | AA16: 0.1 | AB16: 0.3 | AC16: 1.6 | AD16: =Roster!$B$1 -> Upton | AE16: 0.1 | AF16: 0.1 | AG16: 0% | AH16: 0.7 | AI16: =Roster!$D$2 -> Northeast | AJ16: 10
A17: =IF(OR(Roster!A17<>"",Roster!B17<>""),PROPER(Roster!B17)&", "&Roster!A17,"") -> Robert Crawford, 32 | B17: 6 | C17: 0 | D17: 2 | E17: 0% | F17: 3 | G17: 6 | H17: 50% | I17: 0 | J17: 2 | K17: 0% | L17: 6 | M17: 1 | N17: 4 | O17: 5 | P17: 2 | Q17: 0 | R17: 0 | S17: 7 | T17: 4 | U17: 1.0 | V17: 0.2 | W17: 0.7 | X17: 0.8 | Y17: 0.3 | Z17: 0.0 | AA17: 0.0 | AB17: 1.2 | AC17: 0.7 | AD17: =Roster!$B$1 -> Upton | AE17: 0.3 | AF17: 0.3 | AG17: 38% | AH17: 1.3 | AI17: =Roster!$D$2 -> Northeast | AJ17: 10
A18: =IF(OR(Roster!A18<>"",Roster!B18<>""),PROPER(Roster!B18)&", "&Roster!A18,"") -> Jace Bruce, 40 | B18: 5 | C18: 0 | D18: 5 | E18: 0% | F18: 1 | G18: 2 | H18: 50% | I18: 0 | J18: 0 | L18: 2 | M18: 0 | N18: 1 | O18: 1 | P18: 2 | Q18: 2 | R18: 0 | S18: 1 | T18: 1 | U18: 0.4 | V18: 0.0 | W18: 0.2 | X18: 0.2 | Y18: 0.4 | Z18: 0.4 | AA18: 0.0 | AB18: 0.2 | AC18: 0.2 | AD18: =Roster!$B$1 -> Upton | AE18: 1.0 | AF18: 0.0 | AG18: 14% | AH18: 1.4 | AI18: =Roster!$D$2 -> Northeast | AJ18: 10
A19: =IF(OR(Roster!A19<>"",Roster!B19<>""),PROPER(Roster!B19)&", "&Roster!A19,"") -> Ethan Mills, 2 | B19: 5 | C19: 0 | D19: 1 | E19: 0% | F19: 1 | G19: 1 | H19: 100% | I19: 0 | J19: 0 | L19: 2 | M19: 1 | N19: 0 | O19: 1 | P19: 0 | Q19: 0 | R19: 0 | S19: 1 | T19: 0 | U19: 0.4 | V19: 0.2 | W19: 0.0 | X19: 0.2 | Y19: 0.0 | Z19: 0.0 | AA19: 0.0 | AB19: 0.2 | AC19: 0.0 | AD19: =Roster!$B$1 -> Upton | AE19: 0.2 | AF19: 0.0 | AG19: 50% | AH19: 0.4 | AI19: =Roster!$D$2 -> Northeast | AJ19: 10
A20: =IF(OR(Roster!A20<>"",Roster!B20<>""),PROPER(Roster!B20)&", "&Roster!A20,"") -> Bridger Alishouse, 2 | B20: 1 | C20: 0 | D20: 0 | F20: 0 | G20: 1 | H20: 0% | I20: 0 | J20: 0 | L20: 0 | M20: 0 | N20: 1 | O20: 1 | P20: 1 | Q20: 0 | R20: 0 | S20: 0 | T20: 0 | U20: 0.0 | V20: 0.0 | W20: 1.0 | X20: 1.0 | Y20: 1.0 | Z20: 0.0 | AA20: 0.0 | AB20: 0.0 | AC20: 0.0 | AD20: =Roster!$B$1 -> Upton | AE20: 0.0 | AF20: 0.0 | AG20: 0% | AH20: 1.0 | AI20: =Roster!$D$2 -> Northeast | AJ20: 10
A21: =IF(OR(Roster!A21<>"",Roster!B21<>""),PROPER(Roster!B21)&", "&Roster!A21,"") -> Landon Keever, 4 | B21: 1 | C21: 1 | D21: 2 | E21: 50% | F21: 0 | G21: 1 | H21: 0% | I21: 0 | J21: 0 | L21: 3 | M21: 0 | N21: 0 | O21: 0 | P21: 0 | Q21: 0 | R21: 0 | S21: 0 | T21: 0 | U21: 3.0 | V21: 0.0 | W21: 0.0 | X21: 0.0 | Y21: 0.0 | Z21: 0.0 | AA21: 0.0 | AB21: 0.0 | AC21: 0.0 | AD21: =Roster!$B$1 -> Upton | AE21: 2.0 | AF21: 0.0 | AG21: 33% | AH21: 3.0 | AI21: =Roster!$D$2 -> Northeast | AJ21: 10
A22: =IF(OR(Roster!A22<>"",Roster!B22<>""),PROPER(Roster!B22)&", "&Roster!A22,"") -> Dj Till, 4 | B22: 4 | C22: 0 | D22: 3 | E22: 0% | F22: 1 | G22: 3 | H22: 33% | I22: 0 | J22: 0 | L22: 2 | M22: 2 | N22: 1 | O22: 3 | P22: 0 | Q22: 1 | R22: 0 | S22: 0 | T22: 0 | U22: 0.5 | V22: 0.5 | W22: 0.3 | X22: 0.8 | Y22: 0.0 | Z22: 0.3 | AA22: 0.0 | AB22: 0.0 | AC22: 0.0 | AD22: =Roster!$B$1 -> Upton | AE22: 0.8 | AF22: 0.0 | AG22: 17% | AH22: 1.5 | AI22: =Roster!$D$2 -> Northeast | AJ22: 10
A23: =IF(OR(Roster!A23<>"",Roster!B23<>""),PROPER(Roster!B23)&", "&Roster!A23,"") ->  | B23: 0 | C23: 0 | D23: 0 | F23: 0 | G23: 0 | I23: 0 | J23: 0 | L23: 0 | M23: 0 | N23: 0 | O23: 0 | P23: 0 | Q23: 0 | R23: 0 | S23: 0 | T23: 0 | V23: 0.0 | W23: 0.0 | X23: 0.0 | Y23: 0.0 | Z23: 0.0 | AA23: 0.0 | AB23: 0.0 | AC23: 0.0 | AD23: =Roster!$B$1 -> Upton | AE23: 0.0 | AF23: 0.0 | AG23: 0% | AH23: 0.0 | AI23: =Roster!$D$2 -> Northeast | AJ23: 10
A24: =IF(OR(Roster!A24<>"",Roster!B24<>""),PROPER(Roster!B24)&", "&Roster!A24,"") ->  | B24: 0 | C24: 0 | D24: 0 | F24: 0 | G24: 0 | I24: 0 | J24: 0 | L24: 0 | M24: 0 | N24: 0 | O24: 0 | P24: 0 | Q24: 0 | R24: 0 | S24: 0 | T24: 0 | V24: 0.0 | W24: 0.0 | X24: 0.0 | Y24: 0.0 | Z24: 0.0 | AA24: 0.0 | AB24: 0.0 | AC24: 0.0 | AD24: =Roster!$B$1 -> Upton | AE24: 0.0 | AF24: 0.0 | AG24: 0% | AH24: 0.0 | AI24: =Roster!$D$2 -> Northeast | AJ24: 10
A25: =IF(OR(Roster!A25<>"",Roster!B25<>""),PROPER(Roster!B25)&", "&Roster!A25,"") ->  | B25: 0 | C25: 0 | D25: 0 | F25: 0 | G25: 0 | I25: 0 | J25: 0 | L25: 0 | M25: 0 | N25: 0 | O25: 0 | P25: 0 | Q25: 0 | R25: 0 | S25: 0 | T25: 0 | V25: 0.0 | W25: 0.0 | X25: 0.0 | Y25: 0.0 | Z25: 0.0 | AA25: 0.0 | AB25: 0.0 | AC25: 0.0 | AD25: =Roster!$B$1 -> Upton | AE25: 0.0 | AF25: 0.0 | AG25: 0% | AH25: 0.0 | AI25: =Roster!$D$2 -> Northeast | AJ25: 10
A26: =IF(OR(Roster!A26<>"",Roster!B26<>""),PROPER(Roster!B26)&", "&Roster!A26,"") ->  | B26: 0 | C26: 0 | D26: 0 | F26: 0 | G26: 0 | I26: 0 | J26: 0 | L26: 0 | M26: 0 | N26: 0 | O26: 0 | P26: 0 | Q26: 0 | R26: 0 | S26: 0 | T26: 0 | V26: 0.0 | W26: 0.0 | X26: 0.0 | Y26: 0.0 | Z26: 0.0 | AA26: 0.0 | AB26: 0.0 | AC26: 0.0 | AD26: =Roster!$B$1 -> Upton | AE26: 0.0 | AF26: 0.0 | AG26: 0% | AH26: 0.0 | AI26: =Roster!$D$2 -> Northeast | AJ26: 10
A27: =IF(OR(Roster!A27<>"",Roster!B27<>""),PROPER(Roster!B27)&", "&Roster!A27,"") ->  | B27: 0 | C27: 0 | D27: 0 | F27: 0 | G27: 0 | I27: 0 | J27: 0 | L27: 0 | M27: 0 | N27: 0 | O27: 0 | P27: 0 | Q27: 0 | R27: 0 | S27: 0 | T27: 0 | V27: 0.0 | W27: 0.0 | X27: 0.0 | Y27: 0.0 | Z27: 0.0 | AA27: 0.0 | AB27: 0.0 | AC27: 0.0 | AD27: =Roster!$B$1 -> Upton | AE27: 0.0 | AF27: 0.0 | AG27: 0% | AH27: 0.0 | AI27: =Roster!$D$2 -> Northeast | AJ27: 10
A28: =IF(OR(Roster!A28<>"",Roster!B28<>""),PROPER(Roster!B28)&", "&Roster!A28,"") ->  | B28: 0 | C28: 0 | D28: 0 | F28: 0 | G28: 0 | I28: 0 | J28: 0 | L28: 0 | M28: 0 | N28: 0 | O28: 0 | P28: 0 | Q28: 0 | R28: 0 | S28: 0 | T28: 0 | V28: 0.0 | W28: 0.0 | X28: 0.0 | Y28: 0.0 | Z28: 0.0 | AA28: 0.0 | AB28: 0.0 | AC28: 0.0 | AD28: =Roster!$B$1 -> Upton | AE28: 0.0 | AF28: 0.0 | AG28: 0% | AH28: 0.0 | AI28: =Roster!$D$2 -> Northeast | AJ28: 10
A29: =IF(OR(Roster!A29<>"",Roster!B29<>""),PROPER(Roster!B29)&", "&Roster!A29,"") ->  | B29: 0 | C29: 0 | D29: 0 | F29: 0 | G29: 0 | I29: 0 | J29: 0 | L29: 0 | M29: 0 | N29: 0 | O29: 0 | P29: 0 | Q29: 0 | R29: 0 | S29: 0 | T29: 0 | V29: 0.0 | W29: 0.0 | X29: 0.0 | Y29: 0.0 | Z29: 0.0 | AA29: 0.0 | AB29: 0.0 | AC29: 0.0 | AD29: =Roster!$B$1 -> Upton | AE29: 0.0 | AF29: 0.0 | AG29: 0% | AH29: 0.0 | AI29: =Roster!$D$2 -> Northeast | AJ29: 10
A30: =IF(OR(Roster!A30<>"",Roster!B30<>""),PROPER(Roster!B30)&", "&Roster!A30,"") -> Team, | B30: 10 | C30: 0 | D30: 0 | F30: 0 | G30: 0 | I30: 0 | J30: 0 | L30: 0 | M30: 17 | N30: 18 | O30: 35 | P30: 0 | Q30: 0 | R30: 0 | S30: 0 | T30: 0 | U30: 0.0 | V30: 1.7 | W30: 1.8 | X30: 3.5 | Y30: 0.0 | Z30: 0.0 | AA30: 0.0 | AB30: 0.0 | AC30: 0.0 | AD30: =Roster!$B$1 -> Upton | AE30: 0.0 | AF30: 0.0 | AG30: 0% | AH30: 0.0 | AI30: =Roster!$D$2 -> Northeast | AJ30: 10
A31: Team Totals | B31: 10 | C31: 66 | D31: 228 | E31: 29% | F31: 194 | G31: 366 | H31: 53% | I31: 92 | J31: 149 | K31: 62% | L31: =SUMPRODUCT(SUMIF(INDIRECT("'"&gamesheets&"'!A2"),"R",INDIRECT("'"&gamesheets&"'!q"&ROW(Q31)))) -> 678 | M31: 145 | N31: 233 | O31: 378 | P31: 186 | Q31: 102 | R31: 14 | S31: 138 | T31: 141 | U31: =SUMPRODUCT(SUMIF(INDIRECT("'"&gamesheets&"'!A2"),"R",INDIRECT("'"&gamesheets&"'!q"&ROW(Q31))))/SUMPRODUCT(COUNTIF(INDIRECT("'"&gamesheets&"'!A2"),"R")) -> 67.8 | V31: =IF($B31>0,M31/$B31,0) -> 14.5 | W31: 23.3 | X31: 37.8 | Y31: 18.6 | Z31: 10.2 | AA31: 1.4 | AB31: 13.8 | AC31: 14.1
A32: Opponent Totals | B32: 10 | C32: 52 | D32: 162 | E32: 32% | F32: 161 | G32: 365 | H32: 44% | I32: 70 | J32: 131 | K32: 53% | L32: =SUMPRODUCT(SUMIF(INDIRECT("'"&gamesheets&"'!A2"),"R",INDIRECT("'"&gamesheets&"'!q"&ROW(Q32)))) -> 548 | M32: 101 | N32: 215 | O32: 316 | P32: 97 | Q32: 60 | R32: 13 | S32: 181 | T32: 136 | U32: =SUMPRODUCT(SUMIF(INDIRECT("'"&gamesheets&"'!A2"),"R",INDIRECT("'"&gamesheets&"'!q"&ROW(Q32))))/SUMPRODUCT(COUNTIF(INDIRECT("'"&gamesheets&"'!A2"),"R")) -> 54.8 | V32: =IF($B32>0,M32/$B32,0) -> 10.1 | W32: =IF($B32>0,N32/$B32,0) -> 21.5 | X32: =IF($B32>0,O32/$B32,0) -> 31.6 | Y32: =IF($B32>0,P32/$B32,0) -> 9.7 | Z32: =IF($B32>0,Q32/$B32,0) -> 6.0 | AA32: =IF($B32>0,R32/$B32,0) -> 1.3 | AB32: =IF($B32>0,S32/$B32,0) -> 18.1 | AC32: =IF($B32>0,T32/$B32,0) -> 13.6
A34: Top 5 Performances - Team | AC34: =CONCATENATE("* minimum of ",TeamGameSummary!$D$2," attempts") -> * minimum of 5 attempts
A35: Opponent | B35: Date | D35: Off. Points | G35: Opponent | J35: Date | L35: Def. Points | O35: Opponent | R35: Date | T35: Score Margin | W35: Opponent | Z35: Date | AB35: Assists
A36: =TeamGameSummary!$C201 -> Tongue River | B36: =TeamGameSummary!$D201 -> 2018-02-02 | D36: =TeamGameSummary!$E201 -> 83 | G36: =TeamGameSummary!$U201 -> Moorcroft | J36: =TeamGameSummary!$V201 -> 2018-01-18 | L36: =TeamGameSummary!$W201 -> 38 | O36: =TeamGameSummary!$AA201 -> Moorcroft | R36: =TeamGameSummary!$AB201 -> 2018-01-18 | T36: =TeamGameSummary!$AC201 -> 36 | W36: =TeamGameSummary!$EK201 -> Tongue River | Z36: =TeamGameSummary!$EL201 -> 2018-02-02 | AB36: =TeamGameSummary!$EM201 -> 28
A37: =TeamGameSummary!$C202 -> Tongue River | B37: =TeamGameSummary!$D202 -> 2018-02-17 | D37: =TeamGameSummary!$E202 -> 81 | G37: =TeamGameSummary!$U202 -> Moorcroft | J37: =TeamGameSummary!$V202 -> 2018-02-01 | L37: =TeamGameSummary!$W202 -> 41 | O37: =TeamGameSummary!$AA202 -> Sundance | R37: =TeamGameSummary!$AB202 -> 2018-01-25 | T37: =TeamGameSummary!$AC202 -> 29 | W37: =TeamGameSummary!$EK202 -> Tongue River | Z37: =TeamGameSummary!$EL202 -> 2018-02-17 | AB37: =TeamGameSummary!$EM202 -> 24
A38: =TeamGameSummary!$C203 -> Sundance | B38: =TeamGameSummary!$D203 -> 2018-01-25 | D38: =TeamGameSummary!$E203 -> 76 | G38: =TeamGameSummary!$U203 -> Sundance | J38: =TeamGameSummary!$V203 -> 2018-01-25 | L38: =TeamGameSummary!$W203 -> 47 | O38: =TeamGameSummary!$AA203 -> Tongue River | R38: =TeamGameSummary!$AB203 -> 2018-02-17 | T38: =TeamGameSummary!$AC203 -> 24 | W38: =TeamGameSummary!$EK203 -> Moorcroft | Z38: =TeamGameSummary!$EL203 -> 2018-01-18 | AB38: =TeamGameSummary!$EM203 -> 24
A39: =TeamGameSummary!$C204 -> Moorcroft | B39: =TeamGameSummary!$D204 -> 2018-01-18 | D39: =TeamGameSummary!$E204 -> 74 | G39: =TeamGameSummary!$U204 -> Sundance | J39: =TeamGameSummary!$V204 -> 2018-02-06 | L39: =TeamGameSummary!$W204 -> 49 | O39: =TeamGameSummary!$AA204 -> Moorcroft | R39: =TeamGameSummary!$AB204 -> 2018-02-01 | T39: =TeamGameSummary!$AC204 -> 23 | W39: =TeamGameSummary!$EK204 -> Sundance | Z39: =TeamGameSummary!$EL204 -> 2018-01-25 | AB39: =TeamGameSummary!$EM204 -> 21
A40: =TeamGameSummary!$C205 -> Sundance | B40: =TeamGameSummary!$D205 -> 2018-02-06 | D40: =TeamGameSummary!$E205 -> 69 | G40: =TeamGameSummary!$U205 -> Big Horn | J40: =TeamGameSummary!$V205 -> 2018-02-16 | L40: =TeamGameSummary!$W205 -> 52 | O40: =TeamGameSummary!$AA205 -> Sundance | R40: =TeamGameSummary!$AB205 -> 2018-02-06 | T40: =TeamGameSummary!$AC205 -> 20 | W40: =TeamGameSummary!$EK205 -> Big Horn | Z40: =TeamGameSummary!$EL205 -> 2018-01-27 | AB40: =TeamGameSummary!$EM205 -> 20
A42: Opponent | B42: Date | D42: FG%* | G42: Opponent | J42: Date | L42: Def. FG%* | O42: Opponent | R42: Date | T42: Rebounds | W42: Opponent | Z42: Date | AB42: Off. Rebs
A43: =TeamGameSummary!$GN201 -> Tongue River | B43: =TeamGameSummary!$GO201 -> 2018-02-02 | D43: =TeamGameSummary!$GP201 -> 56% | G43: =TeamGameSummary!$GT201 -> Moorcroft | J43: =TeamGameSummary!$GU201 -> 2018-01-18 | L43: =TeamGameSummary!$GV201 -> 29% | O43: =TeamGameSummary!$AG201 -> Tongue River | R43: =TeamGameSummary!$AH201 -> 2018-02-17 | T43: =TeamGameSummary!$AI201 -> 45 | W43: =TeamGameSummary!$BE201 -> Wright | Z43: =TeamGameSummary!$BF201 -> 2018-02-08 | AB43: =TeamGameSummary!$BG201 -> 20
A44: =TeamGameSummary!$GN202 -> Moorcroft | B44: =TeamGameSummary!$GO202 -> 2018-01-18 | D44: =TeamGameSummary!$GP202 -> 49% | G44: =TeamGameSummary!$GT202 -> Moorcroft | J44: =TeamGameSummary!$GU202 -> 2018-02-01 | L44: =TeamGameSummary!$GV202 -> 34% | O44: =TeamGameSummary!$AG202 -> Sundance | R44: =TeamGameSummary!$AH202 -> 2018-02-06 | T44: =TeamGameSummary!$AI202 -> 44 | W44: =TeamGameSummary!$BE202 -> Sundance | Z44: =TeamGameSummary!$BF202 -> 2018-02-06 | AB44: =TeamGameSummary!$BG202 -> 20
A45: =TeamGameSummary!$GN203 -> Tongue River | B45: =TeamGameSummary!$GO203 -> 2018-02-17 | D45: =TeamGameSummary!$GP203 -> 48% | G45: =TeamGameSummary!$GT203 -> Tongue River | J45: =TeamGameSummary!$GU203 -> 2018-02-17 | L45: =TeamGameSummary!$GV203 -> 35% | O45: =TeamGameSummary!$AG203 -> Moorcroft | R45: =TeamGameSummary!$AH203 -> 2018-01-18 | T45: =TeamGameSummary!$AI203 -> 43 | W45: =TeamGameSummary!$BE203 -> Wright | Z45: =TeamGameSummary!$BF203 -> 2018-01-20 | AB45: =TeamGameSummary!$BG203 -> 18
A46: =TeamGameSummary!$GN204 -> Sundance | B46: =TeamGameSummary!$GO204 -> 2018-01-25 | D46: =TeamGameSummary!$GP204 -> 47% | G46: =TeamGameSummary!$GT204 -> Sundance | J46: =TeamGameSummary!$GU204 -> 2018-01-25 | L46: =TeamGameSummary!$GV204 -> 37% | O46: =TeamGameSummary!$AG204 -> Big Horn | R46: =TeamGameSummary!$AH204 -> 2018-01-27 | T46: =TeamGameSummary!$AI204 -> 41 | W46: =TeamGameSummary!$BE204 -> Tongue River | Z46: =TeamGameSummary!$BF204 -> 2018-02-17 | AB46: =TeamGameSummary!$BG204 -> 15
A47: =TeamGameSummary!$GN205 -> Moorcroft | B47: =TeamGameSummary!$GO205 -> 2018-02-01 | D47: =TeamGameSummary!$GP205 -> 47% | G47: =TeamGameSummary!$GT205 -> Big Horn | J47: =TeamGameSummary!$GU205 -> 2018-01-27 | L47: =TeamGameSummary!$GV205 -> 37% | O47: =TeamGameSummary!$AG205 -> Moorcroft | R47: =TeamGameSummary!$AH205 -> 2018-02-01 | T47: =TeamGameSummary!$AI205 -> 39 | W47: =TeamGameSummary!$BE205 -> Big Horn | Z47: =TeamGameSummary!$BF205 -> 2018-01-27 | AB47: =TeamGameSummary!$BG205 -> 15
A49: Opponent | B49: Date | D49: FT%* | G49: Opponent | J49: Date | L49: 3FG%* | O49: Opponent | R49: Date | T49: Def. Rebs | W49: Opponent | Z49: Date | AB49: Reb Margin
A50: =TeamGameSummary!$HL201 -> Sundance | B50: =TeamGameSummary!$HM201 -> 2018-01-25 | D50: =TeamGameSummary!$HN201 -> 77% | G50: =TeamGameSummary!$ID201 -> Big Horn | J50: =TeamGameSummary!$IE201 -> 2018-01-27 | L50: =TeamGameSummary!$IF201 -> 46% | O50: =TeamGameSummary!$CC201 -> Tongue River | R50: =TeamGameSummary!$CD201 -> 2018-02-17 | T50: =TeamGameSummary!$CE201 -> 30 | W50: =TeamGameSummary!$DA201 -> Sundance | Z50: =TeamGameSummary!$DB201 -> 2018-02-06 | AB50: =TeamGameSummary!$DC201 -> 19
A51: =TeamGameSummary!$HL202 -> Wright | B51: =TeamGameSummary!$HM202 -> 2018-01-20 | D51: =TeamGameSummary!$HN202 -> 76% | G51: =TeamGameSummary!$ID202 -> Moorcroft | J51: =TeamGameSummary!$IE202 -> 2018-01-18 | L51: =TeamGameSummary!$IF202 -> 42% | O51: =TeamGameSummary!$CC202 -> Moorcroft | R51: =TeamGameSummary!$CD202 -> 2018-01-18 | T51: =TeamGameSummary!$CE202 -> 29 | W51: =TeamGameSummary!$DA202 -> Moorcroft | Z51: =TeamGameSummary!$DB202 -> 2018-01-18 | AB51: =TeamGameSummary!$DC202 -> 14
A52: =TeamGameSummary!$HL203 -> Big Horn | B52: =TeamGameSummary!$HM203 -> 2018-02-16 | D52: =TeamGameSummary!$HN203 -> 72% | G52: =TeamGameSummary!$ID203 -> Sundance | J52: =TeamGameSummary!$IE203 -> 2018-01-25 | L52: =TeamGameSummary!$IF203 -> 34% | O52: =TeamGameSummary!$CC203 -> Big Horn | R52: =TeamGameSummary!$CD203 -> 2018-01-27 | T52: =TeamGameSummary!$CE203 -> 26 | W52: =TeamGameSummary!$DA203 -> Tongue River | Z52: =TeamGameSummary!$DB203 -> 2018-02-17 | AB52: =TeamGameSummary!$DC203 -> 13
A53: =TeamGameSummary!$HL204 -> Wright | B53: =TeamGameSummary!$HM204 -> 2018-02-08 | D53: =TeamGameSummary!$HN204 -> 69% | G53: =TeamGameSummary!$ID204 -> Tongue River | J53: =TeamGameSummary!$IE204 -> 2018-02-02 | L53: =TeamGameSummary!$IF204 -> 33% | O53: =TeamGameSummary!$CC204 -> Sundance | R53: =TeamGameSummary!$CD204 -> 2018-01-25 | T53: =TeamGameSummary!$CE204 -> 25 | W53: =TeamGameSummary!$DA204 -> Moorcroft | Z53: =TeamGameSummary!$DB204 -> 2018-02-01 | AB53: =TeamGameSummary!$DC204 -> 10
A54: =TeamGameSummary!$HL205 -> Moorcroft | B54: =TeamGameSummary!$HM205 -> 2018-02-01 | D54: =TeamGameSummary!$HN205 -> 64% | G54: =TeamGameSummary!$ID205 -> Big Horn | J54: =TeamGameSummary!$IE205 -> 2018-02-16 | L54: =TeamGameSummary!$IF205 -> 31% | O54: =TeamGameSummary!$CC205 -> Moorcroft | R54: =TeamGameSummary!$CD205 -> 2018-02-01 | T54: =TeamGameSummary!$CE205 -> 25 | W54: =TeamGameSummary!$DA205 -> Big Horn | Z54: =TeamGameSummary!$DB205 -> 2018-02-16 | AB54: =TeamGameSummary!$DC205 -> 5
A56: Opponent | B56: Date | D56: FTM | G56: Opponent | J56: Date | L56: 3FGM | O56: Opponent | R56: Date | T56: Steals | W56: Opponent | Z56: Date | AB56: Blocks
A57: =TeamGameSummary!$GZ201 -> Wright | B57: =TeamGameSummary!$HA201 -> 2018-02-08 | D57: =TeamGameSummary!$HB201 -> 20 | G57: =TeamGameSummary!$HR201 -> Big Horn | J57: =TeamGameSummary!$HS201 -> 2018-01-27 | L57: =TeamGameSummary!$HT201 -> 11 | O57: =TeamGameSummary!$EQ201 -> Sundance | R57: =TeamGameSummary!$ER201 -> 2018-01-25 | T57: =TeamGameSummary!$ES201 -> 16 | W57: =TeamGameSummary!$EW201 -> Moorcroft | Z57: =TeamGameSummary!$EX201 -> 2018-02-01 | AB57: =TeamGameSummary!$EY201 -> 5
A58: =TeamGameSummary!$GZ202 -> Big Horn | B58: =TeamGameSummary!$HA202 -> 2018-02-16 | D58: =TeamGameSummary!$HB202 -> 13 | G58: =TeamGameSummary!$HR202 -> Sundance | J58: =TeamGameSummary!$HS202 -> 2018-01-25 | L58: =TeamGameSummary!$HT202 -> 10 | O58: =TeamGameSummary!$EQ202 -> Moorcroft | R58: =TeamGameSummary!$ER202 -> 2018-01-18 | T58: =TeamGameSummary!$ES202 -> 13 | W58: =TeamGameSummary!$EW202 -> Wright | Z58: =TeamGameSummary!$EX202 -> 2018-02-08 | AB58: =TeamGameSummary!$EY202 -> 3
A59: =TeamGameSummary!$GZ203 -> Wright | B59: =TeamGameSummary!$HA203 -> 2018-01-20 | D59: =TeamGameSummary!$HB203 -> 13 | G59: =TeamGameSummary!$HR203 -> Tongue River | J59: =TeamGameSummary!$HS203 -> 2018-02-02 | L59: =TeamGameSummary!$HT203 -> 8 | O59: =TeamGameSummary!$EQ203 -> Tongue River | R59: =TeamGameSummary!$ER203 -> 2018-02-02 | T59: =TeamGameSummary!$ES203 -> 13 | W59: =TeamGameSummary!$EW203 -> Big Horn | Z59: =TeamGameSummary!$EX203 -> 2018-01-27 | AB59: =TeamGameSummary!$EY203 -> 3
A60: =TeamGameSummary!$GZ204 -> Sundance | B60: =TeamGameSummary!$HA204 -> 2018-01-25 | D60: =TeamGameSummary!$HB204 -> 10 | G60: =TeamGameSummary!$HR204 -> Moorcroft | J60: =TeamGameSummary!$HS204 -> 2018-01-18 | L60: =TeamGameSummary!$HT204 -> 8 | O60: =TeamGameSummary!$EQ204 -> Moorcroft | R60: =TeamGameSummary!$ER204 -> 2018-02-01 | T60: =TeamGameSummary!$ES204 -> 13 | W60: =TeamGameSummary!$EW204 -> Big Horn | Z60: =TeamGameSummary!$EX204 -> 2018-02-16 | AB60: =TeamGameSummary!$EY204 -> 1
A61: =TeamGameSummary!$GZ205 -> Tongue River | B61: =TeamGameSummary!$HA205 -> 2018-02-17 | D61: =TeamGameSummary!$HB205 -> 9 | G61: =TeamGameSummary!$HR205 -> Wright | J61: =TeamGameSummary!$HS205 -> 2018-02-08 | L61: =TeamGameSummary!$HT205 -> 6 | O61: =TeamGameSummary!$EQ205 -> Wright | R61: =TeamGameSummary!$ER205 -> 2018-02-08 | T61: =TeamGameSummary!$ES205 -> 12 | W61: =TeamGameSummary!$EW205 -> Wright | Z61: =TeamGameSummary!$EX205 -> 2018-01-20 | AB61: =TeamGameSummary!$EY205 -> 1
A64: Top 5 Performances - Player | AC64: =CONCATENATE("* minimum of ",PlayerGameSummary!$D$2," attempts") -> * minimum of 5 attempts
A65: Player | B65: Opponent | E65: Date | G65: Points | J65: Player | M65: Opponent | P65: Date | R65: Assists | U65: Player | X65: Opponent | AA65: Date | AC65: Steals
A66: =PlayerGameSummary!$B2001 -> Payton Watt, 24 | B66: =PlayerGameSummary!$D2001 -> Sundance | C66: =PlayerGameSummary!$B1001 -> Clayton Louderback, 23 | D66: =PlayerGameSummary!$B1001 -> Clayton Louderback, 23 | E66: =PlayerGameSummary!$E2001 -> 2018-01-25 | F66: =PlayerGameSummary!$B1001 -> Clayton Louderback, 23 | G66: =PlayerGameSummary!$F2001 -> 29 | H66: =PlayerGameSummary!$B1001 -> Clayton Louderback, 23 | J66: =PlayerGameSummary!$W2001 -> Dillon Barritt, 20 | K66: =PlayerGameSummary!$B1001 -> Clayton Louderback, 23 | L66: =PlayerGameSummary!$B1001 -> Clayton Louderback, 23 | M66: =PlayerGameSummary!$Y2001 -> Moorcroft | N66: =PlayerGameSummary!$B1001 -> Clayton Louderback, 23 | O66: =PlayerGameSummary!$B1001 -> Clayton Louderback, 23 | P66: =PlayerGameSummary!$Z2001 -> 2018-02-01 | Q66: =PlayerGameSummary!$B1001 -> Clayton Louderback, 23 | R66: =PlayerGameSummary!$AA2001 -> 7 | S66: =PlayerGameSummary!$B1001 -> Clayton Louderback, 23 | U66: =PlayerGameSummary!$AD2001 -> Dillon Barritt, 20 | V66: =PlayerGameSummary!$B1001 -> Clayton Louderback, 23 | W66: =PlayerGameSummary!$B1001 -> Clayton Louderback, 23 | X66: =PlayerGameSummary!$AF2001 -> Sundance | Y66: =PlayerGameSummary!$B1001 -> Clayton Louderback, 23 | Z66: =PlayerGameSummary!$B1001 -> Clayton Louderback, 23 | AA66: =PlayerGameSummary!$AG2001 -> 2018-01-25 | AB66: =PlayerGameSummary!$B1001 -> Clayton Louderback, 23 | AC66: =PlayerGameSummary!$AH2001 -> 6
A67: =PlayerGameSummary!$B2002 -> Clayton Louderback, 23 | B67: =PlayerGameSummary!$D2002 -> Moorcroft | C67: =PlayerGameSummary!$B1002 -> Payton Watt, 24 | D67: =PlayerGameSummary!$B1002 -> Payton Watt, 24 | E67: =PlayerGameSummary!$E2002 -> 2018-02-01 | F67: =PlayerGameSummary!$B1002 -> Payton Watt, 24 | G67: =PlayerGameSummary!$F2002 -> 27 | H67: =PlayerGameSummary!$B1002 -> Payton Watt, 24 | J67: =PlayerGameSummary!$W2002 -> Dawson Butts, 14 | K67: =PlayerGameSummary!$B1002 -> Payton Watt, 24 | L67: =PlayerGameSummary!$B1002 -> Payton Watt, 24 | M67: =PlayerGameSummary!$Y2002 -> Big Horn | N67: =PlayerGameSummary!$B1002 -> Payton Watt, 24 | O67: =PlayerGameSummary!$B1002 -> Payton Watt, 24 | P67: =PlayerGameSummary!$Z2002 -> 2018-01-27 | Q67: =PlayerGameSummary!$B1002 -> Payton Watt, 24 | R67: =PlayerGameSummary!$AA2002 -> 7 | S67: =PlayerGameSummary!$B1002 -> Payton Watt, 24 | U67: =PlayerGameSummary!$AD2002 -> Clayton Louderback, 23 | V67: =PlayerGameSummary!$B1002 -> Payton Watt, 24 | W67: =PlayerGameSummary!$B1002 -> Payton Watt, 24 | X67: =PlayerGameSummary!$AF2002 -> Tongue River | Y67: =PlayerGameSummary!$B1002 -> Payton Watt, 24 | Z67: =PlayerGameSummary!$B1002 -> Payton Watt, 24 | AA67: =PlayerGameSummary!$AG2002 -> 2018-02-02 | AB67: =PlayerGameSummary!$B1002 -> Payton Watt, 24 | AC67: =PlayerGameSummary!$AH2002 -> 5
A68: =PlayerGameSummary!$B2003 -> Clayton Louderback, 23 | B68: =PlayerGameSummary!$D2003 -> Tongue River | C68: =PlayerGameSummary!$B1003 -> Payton Watt, 24 | D68: =PlayerGameSummary!$B1003 -> Payton Watt, 24 | E68: =PlayerGameSummary!$E2003 -> 2018-02-02 | F68: =PlayerGameSummary!$B1003 -> Payton Watt, 24 | G68: =PlayerGameSummary!$F2003 -> 25 | H68: =PlayerGameSummary!$B1003 -> Payton Watt, 24 | J68: =PlayerGameSummary!$W2003 -> Dawson Butts, 14 | K68: =PlayerGameSummary!$B1003 -> Payton Watt, 24 | L68: =PlayerGameSummary!$B1003 -> Payton Watt, 24 | M68: =PlayerGameSummary!$Y2003 -> Tongue River | N68: =PlayerGameSummary!$B1003 -> Payton Watt, 24 | O68: =PlayerGameSummary!$B1003 -> Payton Watt, 24 | P68: =PlayerGameSummary!$Z2003 -> 2018-02-17 | Q68: =PlayerGameSummary!$B1003 -> Payton Watt, 24 | R68: =PlayerGameSummary!$AA2003 -> 7 | S68: =PlayerGameSummary!$B1003 -> Payton Watt, 24 | U68: =PlayerGameSummary!$AD2003 -> Clayton Louderback, 23 | V68: =PlayerGameSummary!$B1003 -> Payton Watt, 24 | W68: =PlayerGameSummary!$B1003 -> Payton Watt, 24 | X68: =PlayerGameSummary!$AF2003 -> Sundance | Y68: =PlayerGameSummary!$B1003 -> Payton Watt, 24 | Z68: =PlayerGameSummary!$B1003 -> Payton Watt, 24 | AA68: =PlayerGameSummary!$AG2003 -> 2018-01-25 | AB68: =PlayerGameSummary!$B1003 -> Payton Watt, 24 | AC68: =PlayerGameSummary!$AH2003 -> 5
A69: =PlayerGameSummary!$B2004 -> Payton Watt, 24 | B69: =PlayerGameSummary!$D2004 -> Tongue River | C69: =PlayerGameSummary!$B1004 -> Payton Watt, 24 | D69: =PlayerGameSummary!$B1004 -> Payton Watt, 24 | E69: =PlayerGameSummary!$E2004 -> 2018-02-17 | F69: =PlayerGameSummary!$B1004 -> Payton Watt, 24 | G69: =PlayerGameSummary!$F2004 -> 24 | H69: =PlayerGameSummary!$B1004 -> Payton Watt, 24 | J69: =PlayerGameSummary!$W2004 -> Jess Claycomb, 10 | K69: =PlayerGameSummary!$B1004 -> Payton Watt, 24 | L69: =PlayerGameSummary!$B1004 -> Payton Watt, 24 | M69: =PlayerGameSummary!$Y2004 -> Moorcroft | N69: =PlayerGameSummary!$B1004 -> Payton Watt, 24 | O69: =PlayerGameSummary!$B1004 -> Payton Watt, 24 | P69: =PlayerGameSummary!$Z2004 -> 2018-01-18 | Q69: =PlayerGameSummary!$B1004 -> Payton Watt, 24 | R69: =PlayerGameSummary!$AA2004 -> 7 | S69: =PlayerGameSummary!$B1004 -> Payton Watt, 24 | U69: =PlayerGameSummary!$AD2004 -> Clayton Louderback, 23 | V69: =PlayerGameSummary!$B1004 -> Payton Watt, 24 | W69: =PlayerGameSummary!$B1004 -> Payton Watt, 24 | X69: =PlayerGameSummary!$AF2004 -> Sundance | Y69: =PlayerGameSummary!$B1004 -> Payton Watt, 24 | Z69: =PlayerGameSummary!$B1004 -> Payton Watt, 24 | AA69: =PlayerGameSummary!$AG2004 -> 2018-02-06 | AB69: =PlayerGameSummary!$B1004 -> Payton Watt, 24 | AC69: =PlayerGameSummary!$AH2004 -> 4
A70: =PlayerGameSummary!$B2005 -> Payton Watt, 24 | B70: =PlayerGameSummary!$D2005 -> Wright | C70: =PlayerGameSummary!$B1005 -> Clayton Louderback, 23 | D70: =PlayerGameSummary!$B1005 -> Clayton Louderback, 23 | E70: =PlayerGameSummary!$E2005 -> 2018-02-08 | F70: =PlayerGameSummary!$B1005 -> Clayton Louderback, 23 | G70: =PlayerGameSummary!$F2005 -> 23 | H70: =PlayerGameSummary!$B1005 -> Clayton Louderback, 23 | J70: =PlayerGameSummary!$W2005 -> Dawson Butts, 14 | K70: =PlayerGameSummary!$B1005 -> Clayton Louderback, 23 | L70: =PlayerGameSummary!$B1005 -> Clayton Louderback, 23 | M70: =PlayerGameSummary!$Y2005 -> Tongue River | N70: =PlayerGameSummary!$B1005 -> Clayton Louderback, 23 | O70: =PlayerGameSummary!$B1005 -> Clayton Louderback, 23 | P70: =PlayerGameSummary!$Z2005 -> 2018-02-02 | Q70: =PlayerGameSummary!$B1005 -> Clayton Louderback, 23 | R70: =PlayerGameSummary!$AA2005 -> 7 | S70: =PlayerGameSummary!$B1005 -> Clayton Louderback, 23 | U70: =PlayerGameSummary!$AD2005 -> Dawson Butts, 14 | V70: =PlayerGameSummary!$B1005 -> Clayton Louderback, 23 | W70: =PlayerGameSummary!$B1005 -> Clayton Louderback, 23 | X70: =PlayerGameSummary!$AF2005 -> Tongue River | Y70: =PlayerGameSummary!$B1005 -> Clayton Louderback, 23 | Z70: =PlayerGameSummary!$B1005 -> Clayton Louderback, 23 | AA70: =PlayerGameSummary!$AG2005 -> 2018-02-02 | AB70: =PlayerGameSummary!$B1005 -> Clayton Louderback, 23 | AC70: =PlayerGameSummary!$AH2005 -> 4
A72: Player | B72: Opponent | E72: Date | G72: Rebs | J72: Player | M72: Opponent | P72: Date | R72: Off. Rebs | U72: Player | X72: Opponent | AA72: Date | AC72: Block
A73: =PlayerGameSummary!$I2001 -> Payton Watt, 24 | B73: =PlayerGameSummary!$K2001 -> Tongue River | C73: =PlayerGameSummary!$B1008 -> Payton Watt, 24 | D73: =PlayerGameSummary!$B1008 -> Payton Watt, 24 | E73: =PlayerGameSummary!$L2001 -> 2018-02-17 | F73: =PlayerGameSummary!$B1008 -> Payton Watt, 24 | G73: =PlayerGameSummary!$M2001 -> 17 | H73: =PlayerGameSummary!$B1008 -> Payton Watt, 24 | J73: =PlayerGameSummary!$P2001 -> Clayton Louderback, 23 | K73: =PlayerGameSummary!$B1008 -> Payton Watt, 24 | L73: =PlayerGameSummary!$B1008 -> Payton Watt, 24 | M73: =PlayerGameSummary!$R2001 -> Wright | N73: =PlayerGameSummary!$B1008 -> Payton Watt, 24 | O73: =PlayerGameSummary!$B1008 -> Payton Watt, 24 | P73: =PlayerGameSummary!$S2001 -> 2018-02-08 | Q73: =PlayerGameSummary!$B1008 -> Payton Watt, 24 | R73: =PlayerGameSummary!$T2001 -> 7 | S73: =PlayerGameSummary!$B1008 -> Payton Watt, 24 | U73: =PlayerGameSummary!$AK2001 -> Payton Watt, 24 | V73: =PlayerGameSummary!$B1008 -> Payton Watt, 24 | W73: =PlayerGameSummary!$B1008 -> Payton Watt, 24 | X73: =PlayerGameSummary!$AM2001 -> Moorcroft | Y73: =PlayerGameSummary!$B1008 -> Payton Watt, 24 | Z73: =PlayerGameSummary!$B1008 -> Payton Watt, 24 | AA73: =PlayerGameSummary!$AN2001 -> 2018-02-01 | AB73: =PlayerGameSummary!$B1008 -> Payton Watt, 24 | AC73: =PlayerGameSummary!$AO2001 -> 3
A74: =PlayerGameSummary!$I2002 -> Clayton Louderback, 23 | B74: =PlayerGameSummary!$K2002 -> Big Horn | C74: =PlayerGameSummary!$B1009 -> Payton Watt, 24 | D74: =PlayerGameSummary!$B1009 -> Payton Watt, 24 | E74: =PlayerGameSummary!$L2002 -> 2018-01-27 | F74: =PlayerGameSummary!$B1009 -> Payton Watt, 24 | G74: =PlayerGameSummary!$M2002 -> 13 | H74: =PlayerGameSummary!$B1009 -> Payton Watt, 24 | J74: =PlayerGameSummary!$P2002 -> Payton Watt, 24 | K74: =PlayerGameSummary!$B1009 -> Payton Watt, 24 | L74: =PlayerGameSummary!$B1009 -> Payton Watt, 24 | M74: =PlayerGameSummary!$R2002 -> Sundance | N74: =PlayerGameSummary!$B1009 -> Payton Watt, 24 | O74: =PlayerGameSummary!$B1009 -> Payton Watt, 24 | P74: =PlayerGameSummary!$S2002 -> 2018-02-06 | Q74: =PlayerGameSummary!$B1009 -> Payton Watt, 24 | R74: =PlayerGameSummary!$T2002 -> 6 | S74: =PlayerGameSummary!$B1009 -> Payton Watt, 24 | U74: =PlayerGameSummary!$AK2002 -> Payton Watt, 24 | V74: =PlayerGameSummary!$B1009 -> Payton Watt, 24 | W74: =PlayerGameSummary!$B1009 -> Payton Watt, 24 | X74: =PlayerGameSummary!$AM2002 -> Big Horn | Y74: =PlayerGameSummary!$B1009 -> Payton Watt, 24 | Z74: =PlayerGameSummary!$B1009 -> Payton Watt, 24 | AA74: =PlayerGameSummary!$AN2002 -> 2018-01-27 | AB74: =PlayerGameSummary!$B1009 -> Payton Watt, 24 | AC74: =PlayerGameSummary!$AO2002 -> 2
A75: =PlayerGameSummary!$I2003 -> Payton Watt, 24 | B75: =PlayerGameSummary!$K2003 -> Wright | C75: =PlayerGameSummary!$B1010 -> Dillon Barritt, 20 | D75: =PlayerGameSummary!$B1010 -> Dillon Barritt, 20 | E75: =PlayerGameSummary!$L2003 -> 2018-02-08 | F75: =PlayerGameSummary!$B1010 -> Dillon Barritt, 20 | G75: =PlayerGameSummary!$M2003 -> 11 | H75: =PlayerGameSummary!$B1010 -> Dillon Barritt, 20 | J75: =PlayerGameSummary!$P2003 -> Payton Watt, 24 | K75: =PlayerGameSummary!$B1010 -> Dillon Barritt, 20 | L75: =PlayerGameSummary!$B1010 -> Dillon Barritt, 20 | M75: =PlayerGameSummary!$R2003 -> Tongue River | N75: =PlayerGameSummary!$B1010 -> Dillon Barritt, 20 | O75: =PlayerGameSummary!$B1010 -> Dillon Barritt, 20 | P75: =PlayerGameSummary!$S2003 -> 2018-02-17 | Q75: =PlayerGameSummary!$B1010 -> Dillon Barritt, 20 | R75: =PlayerGameSummary!$T2003 -> 6 | S75: =PlayerGameSummary!$B1010 -> Dillon Barritt, 20 | U75: =PlayerGameSummary!$AK2003 -> Clayton Louderback, 23 | V75: =PlayerGameSummary!$B1010 -> Dillon Barritt, 20 | W75: =PlayerGameSummary!$B1010 -> Dillon Barritt, 20 | X75: =PlayerGameSummary!$AM2003 -> Tongue River | Y75: =PlayerGameSummary!$B1010 -> Dillon Barritt, 20 | Z75: =PlayerGameSummary!$B1010 -> Dillon Barritt, 20 | AA75: =PlayerGameSummary!$AN2003 -> 2018-02-02 | AB75: =PlayerGameSummary!$B1010 -> Dillon Barritt, 20 | AC75: =PlayerGameSummary!$AO2003 -> 1
A76: =PlayerGameSummary!$I2004 -> Payton Watt, 24 | B76: =PlayerGameSummary!$K2004 -> Sundance | C76: =PlayerGameSummary!$B1011 -> Clayton Louderback, 23 | D76: =PlayerGameSummary!$B1011 -> Clayton Louderback, 23 | E76: =PlayerGameSummary!$L2004 -> 2018-02-06 | F76: =PlayerGameSummary!$B1011 -> Clayton Louderback, 23 | G76: =PlayerGameSummary!$M2004 -> 11 | H76: =PlayerGameSummary!$B1011 -> Clayton Louderback, 23 | J76: =PlayerGameSummary!$P2004 -> Clayton Louderback, 23 | K76: =PlayerGameSummary!$B1011 -> Clayton Louderback, 23 | L76: =PlayerGameSummary!$B1011 -> Clayton Louderback, 23 | M76: =PlayerGameSummary!$R2004 -> Sundance | N76: =PlayerGameSummary!$B1011 -> Clayton Louderback, 23 | O76: =PlayerGameSummary!$B1011 -> Clayton Louderback, 23 | P76: =PlayerGameSummary!$S2004 -> 2018-02-06 | Q76: =PlayerGameSummary!$B1011 -> Clayton Louderback, 23 | R76: =PlayerGameSummary!$T2004 -> 5 | S76: =PlayerGameSummary!$B1011 -> Clayton Louderback, 23 | U76: =PlayerGameSummary!$AK2004 -> Nolan Turner, 33 | V76: =PlayerGameSummary!$B1011 -> Clayton Louderback, 23 | W76: =PlayerGameSummary!$B1011 -> Clayton Louderback, 23 | X76: =PlayerGameSummary!$AM2004 -> Wright | Y76: =PlayerGameSummary!$B1011 -> Clayton Louderback, 23 | Z76: =PlayerGameSummary!$B1011 -> Clayton Louderback, 23 | AA76: =PlayerGameSummary!$AN2004 -> 2018-01-20 | AB76: =PlayerGameSummary!$B1011 -> Clayton Louderback, 23 | AC76: =PlayerGameSummary!$AO2004 -> 1
A77: =PlayerGameSummary!$I2005 -> Clayton Louderback, 23 | B77: =PlayerGameSummary!$K2005 -> Wright | C77: =PlayerGameSummary!$B1012 -> 0 | D77: =PlayerGameSummary!$B1012 -> 0 | E77: =PlayerGameSummary!$L2005 -> 2018-02-08 | F77: =PlayerGameSummary!$B1012 -> 00:00:00 | G77: =PlayerGameSummary!$M2005 -> 10 | H77: =PlayerGameSummary!$B1012 -> 0 | J77: =PlayerGameSummary!$P2005 -> Team, | K77: =PlayerGameSummary!$B1012 -> 0 | L77: =PlayerGameSummary!$B1012 -> 0 | M77: =PlayerGameSummary!$R2005 -> Wright | N77: =PlayerGameSummary!$B1012 -> 0 | O77: =PlayerGameSummary!$B1012 -> 0 | P77: =PlayerGameSummary!$S2005 -> 2018-01-20 | Q77: =PlayerGameSummary!$B1012 -> 00:00:00 | R77: =PlayerGameSummary!$T2005 -> 5 | S77: =PlayerGameSummary!$B1012 -> 0 | U77: =PlayerGameSummary!$AK2005 -> Dawson Butts, 14 | V77: =PlayerGameSummary!$B1012 -> 0 | W77: =PlayerGameSummary!$B1012 -> 0 | X77: =PlayerGameSummary!$AM2005 -> Big Horn | Y77: =PlayerGameSummary!$B1012 -> 0 | Z77: =PlayerGameSummary!$B1012 -> 0 | AA77: =PlayerGameSummary!$AN2005 -> 2018-01-27 | AB77: =PlayerGameSummary!$B1012 -> 00:00:00 | AC77: =PlayerGameSummary!$AO2005 -> 1
A79: Player | B79: Opponent | E79: Date | G79: 3FG%* | J79: Player | M79: Opponent | P79: Date | R79: FT%* | U79: Player | X79: Opponent | AA79: Date | AC79: FG%*
A80: =PlayerGameSummary!$DG2001 -> Payton Watt, 24 | B80: =PlayerGameSummary!$DI2001 -> Big Horn | C80: =PlayerGameSummary!$B1015 -> 0 | D80: =PlayerGameSummary!$B1015 -> 0 | E80: =PlayerGameSummary!$DJ2001 -> 2018-01-27 | F80: =PlayerGameSummary!$B1015 -> 00:00:00 | G80: =PlayerGameSummary!$DK2001 -> 75% | H80: =PlayerGameSummary!$B1015 -> 0% | J80: =PlayerGameSummary!$CJ2001 -> Clayton Louderback, 23 | K80: =PlayerGameSummary!$B1015 -> 0 | L80: =PlayerGameSummary!$B1015 -> 0 | M80: =PlayerGameSummary!$CL2001 -> Sundance | N80: =PlayerGameSummary!$B1015 -> 0 | O80: =PlayerGameSummary!$B1015 -> 0 | P80: =PlayerGameSummary!$CM2001 -> 2018-01-25 | Q80: =PlayerGameSummary!$B1015 -> 00:00:00 | R80: =PlayerGameSummary!$CN2001 -> 100% | S80: =PlayerGameSummary!$B1015 -> 0% | U80: =PlayerGameSummary!$BM2001 -> Jess Claycomb, 10 | V80: =PlayerGameSummary!$B1015 -> 0 | W80: =PlayerGameSummary!$B1015 -> 0 | X80: =PlayerGameSummary!$BO2001 -> Tongue River | Y80: =PlayerGameSummary!$B1015 -> 0 | Z80: =PlayerGameSummary!$B1015 -> 0 | AA80: =PlayerGameSummary!$BP2001 -> 2018-02-02 | AB80: =PlayerGameSummary!$B1015 -> 00:00:00 | AC80: =PlayerGameSummary!$BQ2001 -> 80%
A81: =PlayerGameSummary!$DG2002 -> Payton Watt, 24 | B81: =PlayerGameSummary!$DI2002 -> Sundance | C81: =PlayerGameSummary!$B1016 -> 0 | D81: =PlayerGameSummary!$B1016 -> 0 | E81: =PlayerGameSummary!$DJ2002 -> 2018-01-25 | F81: =PlayerGameSummary!$B1016 -> 00:00:00 | G81: =PlayerGameSummary!$DK2002 -> 70% | H81: =PlayerGameSummary!$B1016 -> 0% | J81: =PlayerGameSummary!$CJ2002 -> Payton Watt, 24 | K81: =PlayerGameSummary!$B1016 -> 0 | L81: =PlayerGameSummary!$B1016 -> 0 | M81: =PlayerGameSummary!$CL2002 -> Wright | N81: =PlayerGameSummary!$B1016 -> 0 | O81: =PlayerGameSummary!$B1016 -> 0 | P81: =PlayerGameSummary!$CM2002 -> 2018-02-08 | Q81: =PlayerGameSummary!$B1016 -> 00:00:00 | R81: =PlayerGameSummary!$CN2002 -> 83% | S81: =PlayerGameSummary!$B1016 -> 0% | U81: =PlayerGameSummary!$BM2002 -> Jayden Caylor, 12 | V81: =PlayerGameSummary!$B1016 -> 0 | W81: =PlayerGameSummary!$B1016 -> 0 | X81: =PlayerGameSummary!$BO2002 -> Moorcroft | Y81: =PlayerGameSummary!$B1016 -> 0 | Z81: =PlayerGameSummary!$B1016 -> 0 | AA81: =PlayerGameSummary!$BP2002 -> 2018-01-18 | AB81: =PlayerGameSummary!$B1016 -> 00:00:00 | AC81: =PlayerGameSummary!$BQ2002 -> 73%
A82: =PlayerGameSummary!$DG2003 -> Dillon Barritt, 20 | B82: =PlayerGameSummary!$DI2003 -> Tongue River | C82: =PlayerGameSummary!$B1017 -> 0 | D82: =PlayerGameSummary!$B1017 -> 0 | E82: =PlayerGameSummary!$DJ2003 -> 2018-02-17 | F82: =PlayerGameSummary!$B1017 -> 00:00:00 | G82: =PlayerGameSummary!$DK2003 -> 56% | H82: =PlayerGameSummary!$B1017 -> 0% | J82: =PlayerGameSummary!$CJ2003 -> Clayton Louderback, 23 | K82: =PlayerGameSummary!$B1017 -> 0 | L82: =PlayerGameSummary!$B1017 -> 0 | M82: =PlayerGameSummary!$CL2003 -> Big Horn | N82: =PlayerGameSummary!$B1017 -> 0 | O82: =PlayerGameSummary!$B1017 -> 0 | P82: =PlayerGameSummary!$CM2003 -> 2018-02-16 | Q82: =PlayerGameSummary!$B1017 -> 00:00:00 | R82: =PlayerGameSummary!$CN2003 -> 80% | S82: =PlayerGameSummary!$B1017 -> 0% | U82: =PlayerGameSummary!$BM2003 -> Clayton Louderback, 23 | V82: =PlayerGameSummary!$B1017 -> 0 | W82: =PlayerGameSummary!$B1017 -> 0 | X82: =PlayerGameSummary!$BO2003 -> Tongue River | Y82: =PlayerGameSummary!$B1017 -> 0 | Z82: =PlayerGameSummary!$B1017 -> 0 | AA82: =PlayerGameSummary!$BP2003 -> 2018-02-02 | AB82: =PlayerGameSummary!$B1017 -> 00:00:00 | AC82: =PlayerGameSummary!$BQ2003 -> 69%
A83: =PlayerGameSummary!$DG2004 -> Dillon Barritt, 20 | B83: =PlayerGameSummary!$DI2004 -> Moorcroft | C83: =PlayerGameSummary!$B1018 -> 0 | D83: =PlayerGameSummary!$B1018 -> 0 | E83: =PlayerGameSummary!$DJ2004 -> 2018-01-18 | F83: =PlayerGameSummary!$B1018 -> 00:00:00 | G83: =PlayerGameSummary!$DK2004 -> 43% | H83: =PlayerGameSummary!$B1018 -> 0% | J83: =PlayerGameSummary!$CJ2004 -> Payton Watt, 24 | K83: =PlayerGameSummary!$B1018 -> 0 | L83: =PlayerGameSummary!$B1018 -> 0 | M83: =PlayerGameSummary!$CL2004 -> Wright | N83: =PlayerGameSummary!$B1018 -> 0 | O83: =PlayerGameSummary!$B1018 -> 0 | P83: =PlayerGameSummary!$CM2004 -> 2018-01-20 | Q83: =PlayerGameSummary!$B1018 -> 00:00:00 | R83: =PlayerGameSummary!$CN2004 -> 73% | S83: =PlayerGameSummary!$B1018 -> 0% | U83: =PlayerGameSummary!$BM2004 -> Clayton Louderback, 23 | V83: =PlayerGameSummary!$B1018 -> 0 | W83: =PlayerGameSummary!$B1018 -> 0 | X83: =PlayerGameSummary!$BO2004 -> Moorcroft | Y83: =PlayerGameSummary!$B1018 -> 0 | Z83: =PlayerGameSummary!$B1018 -> 0 | AA83: =PlayerGameSummary!$BP2004 -> 2018-02-01 | AB83: =PlayerGameSummary!$B1018 -> 00:00:00 | AC83: =PlayerGameSummary!$BQ2004 -> 67%
A84: =PlayerGameSummary!$DG2005 -> Dillon Barritt, 20 | B84: =PlayerGameSummary!$DI2005 -> Sundance | C84: =PlayerGameSummary!$B1019 -> 0 | D84: =PlayerGameSummary!$B1019 -> 0 | E84: =PlayerGameSummary!$DJ2005 -> 2018-02-06 | F84: =PlayerGameSummary!$B1019 -> 00:00:00 | G84: =PlayerGameSummary!$DK2005 -> 42% | H84: =PlayerGameSummary!$B1019 -> 0% | J84: =PlayerGameSummary!$CJ2005 -> Payton Watt, 24 | K84: =PlayerGameSummary!$B1019 -> 0 | L84: =PlayerGameSummary!$B1019 -> 0 | M84: =PlayerGameSummary!$CL2005 -> Tongue River | N84: =PlayerGameSummary!$B1019 -> 0 | O84: =PlayerGameSummary!$B1019 -> 0 | P84: =PlayerGameSummary!$CM2005 -> 2018-02-17 | Q84: =PlayerGameSummary!$B1019 -> 00:00:00 | R84: =PlayerGameSummary!$CN2005 -> 67% | S84: =PlayerGameSummary!$B1019 -> 0% | U84: =PlayerGameSummary!$BM2005 -> Jess Claycomb, 10 | V84: =PlayerGameSummary!$B1019 -> 0 | W84: =PlayerGameSummary!$B1019 -> 0 | X84: =PlayerGameSummary!$BO2005 -> Sundance | Y84: =PlayerGameSummary!$B1019 -> 0 | Z84: =PlayerGameSummary!$B1019 -> 0 | AA84: =PlayerGameSummary!$BP2005 -> 2018-02-06 | AB84: =PlayerGameSummary!$B1019 -> 00:00:00 | AC84: =PlayerGameSummary!$BQ2005 -> 64%
A86: Player | B86: Opponent | E86: Date | G86: 3FGM | J86: Player | M86: Opponent | P86: Date | R86: FTM | U86: Player | X86: Opponent | AA86: Date | AC86: FGM
A87: =PlayerGameSummary!$CZ2001 -> Payton Watt, 24 | B87: =PlayerGameSummary!$DB2001 -> Sundance | C87: =PlayerGameSummary!$B1022 -> 0 | D87: =PlayerGameSummary!$B1022 -> 0 | E87: =PlayerGameSummary!$DC2001 -> 2018-01-25 | F87: =PlayerGameSummary!$B1022 -> 00:00:00 | G87: =PlayerGameSummary!$DD2001 -> 7 | H87: =PlayerGameSummary!$B1022 -> 0 | J87: =PlayerGameSummary!$CC2001 -> Clayton Louderback, 23 | K87: =PlayerGameSummary!$B1022 -> 0 | L87: =PlayerGameSummary!$B1022 -> 0 | M87: =PlayerGameSummary!$CE2001 -> Big Horn | N87: =PlayerGameSummary!$B1022 -> 0 | O87: =PlayerGameSummary!$B1022 -> 0 | P87: =PlayerGameSummary!$CF2001 -> 2018-02-16 | Q87: =PlayerGameSummary!$B1022 -> 00:00:00 | R87: =PlayerGameSummary!$CG2001 -> 8 | S87: =PlayerGameSummary!$B1022 -> 0 | U87: =PlayerGameSummary!$BF2001 -> Clayton Louderback, 23 | V87: =PlayerGameSummary!$B1022 -> 0 | W87: =PlayerGameSummary!$B1022 -> 0 | X87: =PlayerGameSummary!$BH2001 -> Moorcroft | Y87: =PlayerGameSummary!$B1022 -> 0 | Z87: =PlayerGameSummary!$B1022 -> 0 | AA87: =PlayerGameSummary!$BI2001 -> 2018-02-01 | AB87: =PlayerGameSummary!$B1022 -> 00:00:00 | AC87: =PlayerGameSummary!$BJ2001 -> 12
A88: =PlayerGameSummary!$CZ2002 -> Payton Watt, 24 | B88: =PlayerGameSummary!$DB2002 -> Big Horn | C88: =PlayerGameSummary!$B1023 -> 0 | D88: =PlayerGameSummary!$B1023 -> 0 | E88: =PlayerGameSummary!$DC2002 -> 2018-01-27 | F88: =PlayerGameSummary!$B1023 -> 00:00:00 | G88: =PlayerGameSummary!$DD2002 -> 6 | H88: =PlayerGameSummary!$B1023 -> 0 | J88: =PlayerGameSummary!$CC2002 -> Payton Watt, 24 | K88: =PlayerGameSummary!$B1023 -> 0 | L88: =PlayerGameSummary!$B1023 -> 0 | M88: =PlayerGameSummary!$CE2002 -> Wright | N88: =PlayerGameSummary!$B1023 -> 0 | O88: =PlayerGameSummary!$B1023 -> 0 | P88: =PlayerGameSummary!$CF2002 -> 2018-01-20 | Q88: =PlayerGameSummary!$B1023 -> 00:00:00 | R88: =PlayerGameSummary!$CG2002 -> 8 | S88: =PlayerGameSummary!$B1023 -> 0 | U88: =PlayerGameSummary!$BF2002 -> Clayton Louderback, 23 | V88: =PlayerGameSummary!$B1023 -> 0 | W88: =PlayerGameSummary!$B1023 -> 0 | X88: =PlayerGameSummary!$BH2002 -> Tongue River | Y88: =PlayerGameSummary!$B1023 -> 0 | Z88: =PlayerGameSummary!$B1023 -> 0 | AA88: =PlayerGameSummary!$BI2002 -> 2018-02-02 | AB88: =PlayerGameSummary!$B1023 -> 00:00:00 | AC88: =PlayerGameSummary!$BJ2002 -> 11
A89: =PlayerGameSummary!$CZ2003 -> Dillon Barritt, 20 | B89: =PlayerGameSummary!$DB2003 -> Sundance | C89: =PlayerGameSummary!$B1024 -> 0 | D89: =PlayerGameSummary!$B1024 -> 0 | E89: =PlayerGameSummary!$DC2003 -> 2018-02-06 | F89: =PlayerGameSummary!$B1024 -> 00:00:00 | G89: =PlayerGameSummary!$DD2003 -> 5 | H89: =PlayerGameSummary!$B1024 -> 0 | J89: =PlayerGameSummary!$CC2003 -> Clayton Louderback, 23 | K89: =PlayerGameSummary!$B1024 -> 0 | L89: =PlayerGameSummary!$B1024 -> 0 | M89: =PlayerGameSummary!$CE2003 -> Sundance | N89: =PlayerGameSummary!$B1024 -> 0 | O89: =PlayerGameSummary!$B1024 -> 0 | P89: =PlayerGameSummary!$CF2003 -> 2018-01-25 | Q89: =PlayerGameSummary!$B1024 -> 00:00:00 | R89: =PlayerGameSummary!$CG2003 -> 6 | S89: =PlayerGameSummary!$B1024 -> 0 | U89: =PlayerGameSummary!$BF2003 -> Payton Watt, 24 | V89: =PlayerGameSummary!$B1024 -> 0 | W89: =PlayerGameSummary!$B1024 -> 0 | X89: =PlayerGameSummary!$BH2003 -> Sundance | Y89: =PlayerGameSummary!$B1024 -> 0 | Z89: =PlayerGameSummary!$B1024 -> 0 | AA89: =PlayerGameSummary!$BI2003 -> 2018-01-25 | AB89: =PlayerGameSummary!$B1024 -> 00:00:00 | AC89: =PlayerGameSummary!$BJ2003 -> 10
A90: =PlayerGameSummary!$CZ2004 -> Dillon Barritt, 20 | B90: =PlayerGameSummary!$DB2004 -> Tongue River | C90: =PlayerGameSummary!$B1025 -> 0 | D90: =PlayerGameSummary!$B1025 -> 0 | E90: =PlayerGameSummary!$DC2004 -> 2018-02-17 | F90: =PlayerGameSummary!$B1025 -> 00:00:00 | G90: =PlayerGameSummary!$DD2004 -> 5 | H90: =PlayerGameSummary!$B1025 -> 0 | J90: =PlayerGameSummary!$CC2004 -> Payton Watt, 24 | K90: =PlayerGameSummary!$B1025 -> 0 | L90: =PlayerGameSummary!$B1025 -> 0 | M90: =PlayerGameSummary!$CE2004 -> Wright | N90: =PlayerGameSummary!$B1025 -> 0 | O90: =PlayerGameSummary!$B1025 -> 0 | P90: =PlayerGameSummary!$CF2004 -> 2018-02-08 | Q90: =PlayerGameSummary!$B1025 -> 00:00:00 | R90: =PlayerGameSummary!$CG2004 -> 5 | S90: =PlayerGameSummary!$B1025 -> 0 | U90: =PlayerGameSummary!$BF2004 -> Payton Watt, 24 | V90: =PlayerGameSummary!$B1025 -> 0 | W90: =PlayerGameSummary!$B1025 -> 0 | X90: =PlayerGameSummary!$BH2004 -> Tongue River | Y90: =PlayerGameSummary!$B1025 -> 0 | Z90: =PlayerGameSummary!$B1025 -> 0 | AA90: =PlayerGameSummary!$BI2004 -> 2018-02-17 | AB90: =PlayerGameSummary!$B1025 -> 00:00:00 | AC90: =PlayerGameSummary!$BJ2004 -> 10
A91: =PlayerGameSummary!$CZ2005 -> Payton Watt, 24 | B91: =PlayerGameSummary!$DB2005 -> Tongue River | C91: =PlayerGameSummary!$B1026 -> 0 | D91: =PlayerGameSummary!$B1026 -> 0 | E91: =PlayerGameSummary!$DC2005 -> 2018-02-02 | F91: =PlayerGameSummary!$B1026 -> 00:00:00 | G91: =PlayerGameSummary!$DD2005 -> 4 | H91: =PlayerGameSummary!$B1026 -> 0 | J91: =PlayerGameSummary!$CC2005 -> Clayton Louderback, 23 | K91: =PlayerGameSummary!$B1026 -> 0 | L91: =PlayerGameSummary!$B1026 -> 0 | M91: =PlayerGameSummary!$CE2005 -> Wright | N91: =PlayerGameSummary!$B1026 -> 0 | O91: =PlayerGameSummary!$B1026 -> 0 | P91: =PlayerGameSummary!$CF2005 -> 2018-02-08 | Q91: =PlayerGameSummary!$B1026 -> 00:00:00 | R91: =PlayerGameSummary!$CG2005 -> 4 | S91: =PlayerGameSummary!$B1026 -> 0 | U91: =PlayerGameSummary!$BF2005 -> Clayton Louderback, 23 | V91: =PlayerGameSummary!$B1026 -> 0 | W91: =PlayerGameSummary!$B1026 -> 0 | X91: =PlayerGameSummary!$BH2005 -> Sundance | Y91: =PlayerGameSummary!$B1026 -> 0 | Z91: =PlayerGameSummary!$B1026 -> 0 | AA91: =PlayerGameSummary!$BI2005 -> 2018-02-06 | AB91: =PlayerGameSummary!$B1026 -> 00:00:00 | AC91: =PlayerGameSummary!$BJ2005 -> 9
A93: Player | B93: Opponent | E93: Date | G93: 3FGA | J93: Player | M93: Opponent | P93: Date | R93: FTA | U93: Player | X93: Opponent | AA93: Date | AC93: FGA
A94: =PlayerGameSummary!$DO2001 -> Dillon Barritt, 20 | B94: =PlayerGameSummary!$DQ2001 -> Sundance | C94: =PlayerGameSummary!$B1029 -> 0 | D94: =PlayerGameSummary!$B1029 -> 0 | E94: =PlayerGameSummary!$DR2001 -> 2018-02-06 | F94: =PlayerGameSummary!$B1029 -> 00:00:00 | G94: =PlayerGameSummary!$DS2001 -> 12 | H94: =PlayerGameSummary!$B1029 -> 0 | J94: =PlayerGameSummary!$CR2001 -> Payton Watt, 24 | K94: =PlayerGameSummary!$B1029 -> 0 | L94: =PlayerGameSummary!$B1029 -> 0 | M94: =PlayerGameSummary!$CT2001 -> Wright | N94: =PlayerGameSummary!$B1029 -> 0 | O94: =PlayerGameSummary!$B1029 -> 0 | P94: =PlayerGameSummary!$CU2001 -> 2018-01-20 | Q94: =PlayerGameSummary!$B1029 -> 00:00:00 | R94: =PlayerGameSummary!$CV2001 -> 11 | S94: =PlayerGameSummary!$B1029 -> 0 | U94: =PlayerGameSummary!$BU2001 -> Clayton Louderback, 23 | V94: =PlayerGameSummary!$B1029 -> 0 | W94: =PlayerGameSummary!$B1029 -> 0 | X94: =PlayerGameSummary!$BW2001 -> Big Horn | Y94: =PlayerGameSummary!$B1029 -> 0 | Z94: =PlayerGameSummary!$B1029 -> 0 | AA94: =PlayerGameSummary!$BX2001 -> 2018-01-27 | AB94: =PlayerGameSummary!$B1029 -> 00:00:00 | AC94: =PlayerGameSummary!$BY2001 -> 22
A95: =PlayerGameSummary!$DO2002 -> Payton Watt, 24 | B95: =PlayerGameSummary!$DQ2002 -> Tongue River | C95: =PlayerGameSummary!$B1030 -> 0 | D95: =PlayerGameSummary!$B1030 -> 0 | E95: =PlayerGameSummary!$DR2002 -> 2018-02-02 | F95: =PlayerGameSummary!$B1030 -> 00:00:00 | G95: =PlayerGameSummary!$DS2002 -> 11 | H95: =PlayerGameSummary!$B1030 -> 0 | J95: =PlayerGameSummary!$CR2002 -> Clayton Louderback, 23 | K95: =PlayerGameSummary!$B1030 -> 0 | L95: =PlayerGameSummary!$B1030 -> 0 | M95: =PlayerGameSummary!$CT2002 -> Big Horn | N95: =PlayerGameSummary!$B1030 -> 0 | O95: =PlayerGameSummary!$B1030 -> 0 | P95: =PlayerGameSummary!$CU2002 -> 2018-02-16 | Q95: =PlayerGameSummary!$B1030 -> 00:00:00 | R95: =PlayerGameSummary!$CV2002 -> 10 | S95: =PlayerGameSummary!$B1030 -> 0 | U95: =PlayerGameSummary!$BU2002 -> Payton Watt, 24 | V95: =PlayerGameSummary!$B1030 -> 0 | W95: =PlayerGameSummary!$B1030 -> 0 | X95: =PlayerGameSummary!$BW2002 -> Tongue River | Y95: =PlayerGameSummary!$B1030 -> 0 | Z95: =PlayerGameSummary!$B1030 -> 0 | AA95: =PlayerGameSummary!$BX2002 -> 2018-02-17 | AB95: =PlayerGameSummary!$B1030 -> 00:00:00 | AC95: =PlayerGameSummary!$BY2002 -> 19
A96: =PlayerGameSummary!$DO2003 -> Dillon Barritt, 20 | B96: =PlayerGameSummary!$DQ2003 -> Wright | C96: =PlayerGameSummary!$B1031 -> 0 | D96: =PlayerGameSummary!$B1031 -> 0 | E96: =PlayerGameSummary!$DR2003 -> 2018-02-08 | F96: =PlayerGameSummary!$B1031 -> 00:00:00 | G96: =PlayerGameSummary!$DS2003 -> 11 | H96: =PlayerGameSummary!$B1031 -> 0 | J96: =PlayerGameSummary!$CR2003 -> Dawson Butts, 14 | K96: =PlayerGameSummary!$B1031 -> 0 | L96: =PlayerGameSummary!$B1031 -> 0 | M96: =PlayerGameSummary!$CT2003 -> Wright | N96: =PlayerGameSummary!$B1031 -> 0 | O96: =PlayerGameSummary!$B1031 -> 0 | P96: =PlayerGameSummary!$CU2003 -> 2018-02-08 | Q96: =PlayerGameSummary!$B1031 -> 00:00:00 | R96: =PlayerGameSummary!$CV2003 -> 9 | S96: =PlayerGameSummary!$B1031 -> 0 | U96: =PlayerGameSummary!$BU2003 -> Payton Watt, 24 | V96: =PlayerGameSummary!$B1031 -> 0 | W96: =PlayerGameSummary!$B1031 -> 0 | X96: =PlayerGameSummary!$BW2003 -> Wright | Y96: =PlayerGameSummary!$B1031 -> 0 | Z96: =PlayerGameSummary!$B1031 -> 0 | AA96: =PlayerGameSummary!$BX2003 -> 2018-02-08 | AB96: =PlayerGameSummary!$B1031 -> 00:00:00 | AC96: =PlayerGameSummary!$BY2003 -> 19
A97: =PlayerGameSummary!$DO2004 -> Dillon Barritt, 20 | B97: =PlayerGameSummary!$DQ2004 -> Wright | C97: =PlayerGameSummary!$B1032 -> 0 | D97: =PlayerGameSummary!$B1032 -> 0 | E97: =PlayerGameSummary!$DR2004 -> 2018-01-20 | F97: =PlayerGameSummary!$B1032 -> 00:00:00 | G97: =PlayerGameSummary!$DS2004 -> 11 | H97: =PlayerGameSummary!$B1032 -> 0 | J97: =PlayerGameSummary!$CR2004 -> Clayton Louderback, 23 | K97: =PlayerGameSummary!$B1032 -> 0 | L97: =PlayerGameSummary!$B1032 -> 0 | M97: =PlayerGameSummary!$CT2004 -> Big Horn | N97: =PlayerGameSummary!$B1032 -> 0 | O97: =PlayerGameSummary!$B1032 -> 0 | P97: =PlayerGameSummary!$CU2004 -> 2018-01-27 | Q97: =PlayerGameSummary!$B1032 -> 00:00:00 | R97: =PlayerGameSummary!$CV2004 -> 8 | S97: =PlayerGameSummary!$B1032 -> 0 | U97: =PlayerGameSummary!$BU2004 -> Clayton Louderback, 23 | V97: =PlayerGameSummary!$B1032 -> 0 | W97: =PlayerGameSummary!$B1032 -> 0 | X97: =PlayerGameSummary!$BW2004 -> Sundance | Y97: =PlayerGameSummary!$B1032 -> 0 | Z97: =PlayerGameSummary!$B1032 -> 0 | AA97: =PlayerGameSummary!$BX2004 -> 2018-02-06 | AB97: =PlayerGameSummary!$B1032 -> 00:00:00 | AC97: =PlayerGameSummary!$BY2004 -> 19
A98: =PlayerGameSummary!$DO2005 -> Payton Watt, 24 | B98: =PlayerGameSummary!$DQ2005 -> Sundance | C98: =PlayerGameSummary!$B1033 -> 0 | D98: =PlayerGameSummary!$B1033 -> 0 | E98: =PlayerGameSummary!$DR2005 -> 2018-01-25 | F98: =PlayerGameSummary!$B1033 -> 00:00:00 | G98: =PlayerGameSummary!$DS2005 -> 10 | H98: =PlayerGameSummary!$B1033 -> 0 | J98: =PlayerGameSummary!$CR2005 -> Clayton Louderback, 23 | K98: =PlayerGameSummary!$B1033 -> 0 | L98: =PlayerGameSummary!$B1033 -> 0 | M98: =PlayerGameSummary!$CT2005 -> Tongue River | N98: =PlayerGameSummary!$B1033 -> 0 | O98: =PlayerGameSummary!$B1033 -> 0 | P98: =PlayerGameSummary!$CU2005 -> 2018-02-17 | Q98: =PlayerGameSummary!$B1033 -> 00:00:00 | R98: =PlayerGameSummary!$CV2005 -> 7 | S98: =PlayerGameSummary!$B1033 -> 0 | U98: =PlayerGameSummary!$BU2005 -> Clayton Louderback, 23 | V98: =PlayerGameSummary!$B1033 -> 0 | W98: =PlayerGameSummary!$B1033 -> 0 | X98: =PlayerGameSummary!$BW2005 -> Moorcroft | Y98: =PlayerGameSummary!$B1033 -> 0 | Z98: =PlayerGameSummary!$B1033 -> 0 | AA98: =PlayerGameSummary!$BX2005 -> 2018-02-01 | AB98: =PlayerGameSummary!$B1033 -> 00:00:00 | AC98: =PlayerGameSummary!$BY2005 -> 18
A101: Season Recap | B101: Defensive Stats | F101: ** Indicates game counted toward conference record | N101: Only Region Opponents Shown | T101: PEAK PERFORMERS
A102: Opponent: Score | B102: 3FG | C102: 3FGA | D102: 3FG % | E102: 2FG | F102: 2FGA | G102: 2FG % | H102: FT | I102: FTA | J102: FT % | K102: FG % | L102: O REB | M102: D REB | N102: REB | O102: AST | P102: STL | Q102: BLK | R102: TO'S | S102: FOUL | T102: POINTS | W102: REB | Z102: AST
A103: =IFERROR(IF(INDIRECT("'game1 ("&$AD103&")'!$a$2")="R",Season_Summary!A103,""),"") ->  | B103: =IFERROR(IF(INDIRECT("'game1 ("&$AD103&")'!$a$2")="R",Season_Summary!B103,""),"") ->  | C103: =IFERROR(IF(INDIRECT("'game1 ("&$AD103&")'!$a$2")="R",Season_Summary!C103,""),"") ->  | D103: =IFERROR(IF(INDIRECT("'game1 ("&$AD103&")'!$a$2")="R",Season_Summary!D103,""),"") ->  | E103: =IFERROR(IF(INDIRECT("'game1 ("&$AD103&")'!$a$2")="R",Season_Summary!E103,""),"") ->  | F103: =IFERROR(IF(INDIRECT("'game1 ("&$AD103&")'!$a$2")="R",Season_Summary!F103,""),"") ->  | G103: =IFERROR(IF(INDIRECT("'game1 ("&$AD103&")'!$a$2")="R",Season_Summary!G103,""),"") ->  | H103: =IFERROR(IF(INDIRECT("'game1 ("&$AD103&")'!$a$2")="R",Season_Summary!H103,""),"") ->  | I103: =IFERROR(IF(INDIRECT("'game1 ("&$AD103&")'!$a$2")="R",Season_Summary!I103,""),"") ->  | J103: =IFERROR(IF(INDIRECT("'game1 ("&$AD103&")'!$a$2")="R",Season_Summary!J103,""),"") ->  | K103: =IFERROR(IF(INDIRECT("'game1 ("&$AD103&")'!$a$2")="R",Season_Summary!K103,""),"") ->  | L103: =IFERROR(IF(INDIRECT("'game1 ("&$AD103&")'!$a$2")="R",Season_Summary!L103,""),"") ->  | M103: =IFERROR(IF(INDIRECT("'game1 ("&$AD103&")'!$a$2")="R",Season_Summary!M103,""),"") ->  | N103: =IFERROR(IF(INDIRECT("'game1 ("&$AD103&")'!$a$2")="R",Season_Summary!N103,""),"") ->  | O103: =IFERROR(IF(INDIRECT("'game1 ("&$AD103&")'!$a$2")="R",Season_Summary!O103,""),"") ->  | P103: =IFERROR(IF(INDIRECT("'game1 ("&$AD103&")'!$a$2")="R",Season_Summary!P103,""),"") ->  | Q103: =IFERROR(IF(INDIRECT("'game1 ("&$AD103&")'!$a$2")="R",Season_Summary!Q103,""),"") ->  | R103: =IFERROR(IF(INDIRECT("'game1 ("&$AD103&")'!$a$2")="R",Season_Summary!R103,""),"") ->  | S103: =IFERROR(IF(INDIRECT("'game1 ("&$AD103&")'!$a$2")="R",Season_Summary!S103,""),"") ->  | T103: =IFERROR(IF(INDIRECT("'game1 ("&$AD103&")'!$a$2")="R",Season_Summary!T103,""),"") ->  | U103: =IFERROR(IF(INDIRECT("'game1 ("&$AD103&")'!$a$2")="R",Season_Summary!U103,""),"") ->  | V103: =IFERROR(IF(INDIRECT("'game1 ("&$AD103&")'!$a$2")="R",Season_Summary!V103,""),"") ->  | W103: =IFERROR(IF(INDIRECT("'game1 ("&$AD103&")'!$a$2")="R",Season_Summary!W103,""),"") ->  | X103: =IFERROR(IF(INDIRECT("'game1 ("&$AD103&")'!$a$2")="R",Season_Summary!X103,""),"") ->  | Y103: =IFERROR(IF(INDIRECT("'game1 ("&$AD103&")'!$a$2")="R",Season_Summary!Y103,""),"") ->  | Z103: =IFERROR(IF(INDIRECT("'game1 ("&$AD103&")'!$a$2")="R",Season_Summary!Z103,""),"") ->  | AA103: =IFERROR(IF(INDIRECT("'game1 ("&$AD103&")'!$a$2")="R",Season_Summary!AA103,""),"") ->  | AB103: =IFERROR(IF(INDIRECT("'game1 ("&$AD103&")'!$a$2")="R",Season_Summary!AB103,""),"") ->  | AC103: =IFERROR(IF(INDIRECT("'game1 ("&$AD103&")'!$a$2")="R",Season_Summary!AC103,""),"") ->  | AD103: 1
A104: =IFERROR(IF(INDIRECT("'game1 ("&$AD104&")'!$a$2")="R",Season_Summary!A104,""),"") ->  | B104: =IFERROR(IF(INDIRECT("'game1 ("&$AD104&")'!$a$2")="R",Season_Summary!B104,""),"") ->  | C104: =IFERROR(IF(INDIRECT("'game1 ("&$AD104&")'!$a$2")="R",Season_Summary!C104,""),"") ->  | D104: =IFERROR(IF(INDIRECT("'game1 ("&$AD104&")'!$a$2")="R",Season_Summary!D104,""),"") ->  | E104: =IFERROR(IF(INDIRECT("'game1 ("&$AD104&")'!$a$2")="R",Season_Summary!E104,""),"") ->  | F104: =IFERROR(IF(INDIRECT("'game1 ("&$AD104&")'!$a$2")="R",Season_Summary!F104,""),"") ->  | G104: =IFERROR(IF(INDIRECT("'game1 ("&$AD104&")'!$a$2")="R",Season_Summary!G104,""),"") ->  | H104: =IFERROR(IF(INDIRECT("'game1 ("&$AD104&")'!$a$2")="R",Season_Summary!H104,""),"") ->  | I104: =IFERROR(IF(INDIRECT("'game1 ("&$AD104&")'!$a$2")="R",Season_Summary!I104,""),"") ->  | J104: =IFERROR(IF(INDIRECT("'game1 ("&$AD104&")'!$a$2")="R",Season_Summary!J104,""),"") ->  | K104: =IFERROR(IF(INDIRECT("'game1 ("&$AD104&")'!$a$2")="R",Season_Summary!K104,""),"") ->  | L104: =IFERROR(IF(INDIRECT("'game1 ("&$AD104&")'!$a$2")="R",Season_Summary!L104,""),"") ->  | M104: =IFERROR(IF(INDIRECT("'game1 ("&$AD104&")'!$a$2")="R",Season_Summary!M104,""),"") ->  | N104: =IFERROR(IF(INDIRECT("'game1 ("&$AD104&")'!$a$2")="R",Season_Summary!N104,""),"") ->  | O104: =IFERROR(IF(INDIRECT("'game1 ("&$AD104&")'!$a$2")="R",Season_Summary!O104,""),"") ->  | P104: =IFERROR(IF(INDIRECT("'game1 ("&$AD104&")'!$a$2")="R",Season_Summary!P104,""),"") ->  | Q104: =IFERROR(IF(INDIRECT("'game1 ("&$AD104&")'!$a$2")="R",Season_Summary!Q104,""),"") ->  | R104: =IFERROR(IF(INDIRECT("'game1 ("&$AD104&")'!$a$2")="R",Season_Summary!R104,""),"") ->  | S104: =IFERROR(IF(INDIRECT("'game1 ("&$AD104&")'!$a$2")="R",Season_Summary!S104,""),"") ->  | T104: =IFERROR(IF(INDIRECT("'game1 ("&$AD104&")'!$a$2")="R",Season_Summary!T104,""),"") ->  | U104: =IFERROR(IF(INDIRECT("'game1 ("&$AD104&")'!$a$2")="R",Season_Summary!U104,""),"") ->  | V104: =IFERROR(IF(INDIRECT("'game1 ("&$AD104&")'!$a$2")="R",Season_Summary!V104,""),"") ->  | W104: =IFERROR(IF(INDIRECT("'game1 ("&$AD104&")'!$a$2")="R",Season_Summary!W104,""),"") ->  | X104: =IFERROR(IF(INDIRECT("'game1 ("&$AD104&")'!$a$2")="R",Season_Summary!X104,""),"") ->  | Y104: =IFERROR(IF(INDIRECT("'game1 ("&$AD104&")'!$a$2")="R",Season_Summary!Y104,""),"") ->  | Z104: =IFERROR(IF(INDIRECT("'game1 ("&$AD104&")'!$a$2")="R",Season_Summary!Z104,""),"") ->  | AA104: =IFERROR(IF(INDIRECT("'game1 ("&$AD104&")'!$a$2")="R",Season_Summary!AA104,""),"") ->  | AB104: =IFERROR(IF(INDIRECT("'game1 ("&$AD104&")'!$a$2")="R",Season_Summary!AB104,""),"") ->  | AC104: =IFERROR(IF(INDIRECT("'game1 ("&$AD104&")'!$a$2")="R",Season_Summary!AC104,""),"") ->  | AD104: 1
A105: =IFERROR(IF(INDIRECT("'game1 ("&$AD105&")'!$a$2")="R",Season_Summary!A105,""),"") ->  | B105: =IFERROR(IF(INDIRECT("'game1 ("&$AD105&")'!$a$2")="R",Season_Summary!B105,""),"") ->  | C105: =IFERROR(IF(INDIRECT("'game1 ("&$AD105&")'!$a$2")="R",Season_Summary!C105,""),"") ->  | D105: =IFERROR(IF(INDIRECT("'game1 ("&$AD105&")'!$a$2")="R",Season_Summary!D105,""),"") ->  | E105: =IFERROR(IF(INDIRECT("'game1 ("&$AD105&")'!$a$2")="R",Season_Summary!E105,""),"") ->  | F105: =IFERROR(IF(INDIRECT("'game1 ("&$AD105&")'!$a$2")="R",Season_Summary!F105,""),"") ->  | G105: =IFERROR(IF(INDIRECT("'game1 ("&$AD105&")'!$a$2")="R",Season_Summary!G105,""),"") ->  | H105: =IFERROR(IF(INDIRECT("'game1 ("&$AD105&")'!$a$2")="R",Season_Summary!H105,""),"") ->  | I105: =IFERROR(IF(INDIRECT("'game1 ("&$AD105&")'!$a$2")="R",Season_Summary!I105,""),"") ->  | J105: =IFERROR(IF(INDIRECT("'game1 ("&$AD105&")'!$a$2")="R",Season_Summary!J105,""),"") ->  | K105: =IFERROR(IF(INDIRECT("'game1 ("&$AD105&")'!$a$2")="R",Season_Summary!K105,""),"") ->  | L105: =IFERROR(IF(INDIRECT("'game1 ("&$AD105&")'!$a$2")="R",Season_Summary!L105,""),"") ->  | M105: =IFERROR(IF(INDIRECT("'game1 ("&$AD105&")'!$a$2")="R",Season_Summary!M105,""),"") ->  | N105: =IFERROR(IF(INDIRECT("'game1 ("&$AD105&")'!$a$2")="R",Season_Summary!N105,""),"") ->  | O105: =IFERROR(IF(INDIRECT("'game1 ("&$AD105&")'!$a$2")="R",Season_Summary!O105,""),"") ->  | P105: =IFERROR(IF(INDIRECT("'game1 ("&$AD105&")'!$a$2")="R",Season_Summary!P105,""),"") ->  | Q105: =IFERROR(IF(INDIRECT("'game1 ("&$AD105&")'!$a$2")="R",Season_Summary!Q105,""),"") ->  | R105: =IFERROR(IF(INDIRECT("'game1 ("&$AD105&")'!$a$2")="R",Season_Summary!R105,""),"") ->  | S105: =IFERROR(IF(INDIRECT("'game1 ("&$AD105&")'!$a$2")="R",Season_Summary!S105,""),"") ->  | T105: =IFERROR(IF(INDIRECT("'game1 ("&$AD105&")'!$a$2")="R",Season_Summary!T105,""),"") ->  | U105: =IFERROR(IF(INDIRECT("'game1 ("&$AD105&")'!$a$2")="R",Season_Summary!U105,""),"") ->  | V105: =IFERROR(IF(INDIRECT("'game1 ("&$AD105&")'!$a$2")="R",Season_Summary!V105,""),"") ->  | W105: =IFERROR(IF(INDIRECT("'game1 ("&$AD105&")'!$a$2")="R",Season_Summary!W105,""),"") ->  | X105: =IFERROR(IF(INDIRECT("'game1 ("&$AD105&")'!$a$2")="R",Season_Summary!X105,""),"") ->  | Y105: =IFERROR(IF(INDIRECT("'game1 ("&$AD105&")'!$a$2")="R",Season_Summary!Y105,""),"") ->  | Z105: =IFERROR(IF(INDIRECT("'game1 ("&$AD105&")'!$a$2")="R",Season_Summary!Z105,""),"") ->  | AA105: =IFERROR(IF(INDIRECT("'game1 ("&$AD105&")'!$a$2")="R",Season_Summary!AA105,""),"") ->  | AB105: =IFERROR(IF(INDIRECT("'game1 ("&$AD105&")'!$a$2")="R",Season_Summary!AB105,""),"") ->  | AC105: =IFERROR(IF(INDIRECT("'game1 ("&$AD105&")'!$a$2")="R",Season_Summary!AC105,""),"") ->  | AD105: =AD103+1 -> 2
A106: =IFERROR(IF(INDIRECT("'game1 ("&$AD106&")'!$a$2")="R",Season_Summary!A106,""),"") ->  | B106: =IFERROR(IF(INDIRECT("'game1 ("&$AD106&")'!$a$2")="R",Season_Summary!B106,""),"") ->  | C106: =IFERROR(IF(INDIRECT("'game1 ("&$AD106&")'!$a$2")="R",Season_Summary!C106,""),"") ->  | D106: =IFERROR(IF(INDIRECT("'game1 ("&$AD106&")'!$a$2")="R",Season_Summary!D106,""),"") ->  | E106: =IFERROR(IF(INDIRECT("'game1 ("&$AD106&")'!$a$2")="R",Season_Summary!E106,""),"") ->  | F106: =IFERROR(IF(INDIRECT("'game1 ("&$AD106&")'!$a$2")="R",Season_Summary!F106,""),"") ->  | G106: =IFERROR(IF(INDIRECT("'game1 ("&$AD106&")'!$a$2")="R",Season_Summary!G106,""),"") ->  | H106: =IFERROR(IF(INDIRECT("'game1 ("&$AD106&")'!$a$2")="R",Season_Summary!H106,""),"") ->  | I106: =IFERROR(IF(INDIRECT("'game1 ("&$AD106&")'!$a$2")="R",Season_Summary!I106,""),"") ->  | J106: =IFERROR(IF(INDIRECT("'game1 ("&$AD106&")'!$a$2")="R",Season_Summary!J106,""),"") ->  | K106: =IFERROR(IF(INDIRECT("'game1 ("&$AD106&")'!$a$2")="R",Season_Summary!K106,""),"") ->  | L106: =IFERROR(IF(INDIRECT("'game1 ("&$AD106&")'!$a$2")="R",Season_Summary!L106,""),"") ->  | M106: =IFERROR(IF(INDIRECT("'game1 ("&$AD106&")'!$a$2")="R",Season_Summary!M106,""),"") ->  | N106: =IFERROR(IF(INDIRECT("'game1 ("&$AD106&")'!$a$2")="R",Season_Summary!N106,""),"") ->  | O106: =IFERROR(IF(INDIRECT("'game1 ("&$AD106&")'!$a$2")="R",Season_Summary!O106,""),"") ->  | P106: =IFERROR(IF(INDIRECT("'game1 ("&$AD106&")'!$a$2")="R",Season_Summary!P106,""),"") ->  | Q106: =IFERROR(IF(INDIRECT("'game1 ("&$AD106&")'!$a$2")="R",Season_Summary!Q106,""),"") ->  | R106: =IFERROR(IF(INDIRECT("'game1 ("&$AD106&")'!$a$2")="R",Season_Summary!R106,""),"") ->  | S106: =IFERROR(IF(INDIRECT("'game1 ("&$AD106&")'!$a$2")="R",Season_Summary!S106,""),"") ->  | T106: =IFERROR(IF(INDIRECT("'game1 ("&$AD106&")'!$a$2")="R",Season_Summary!T106,""),"") ->  | U106: =IFERROR(IF(INDIRECT("'game1 ("&$AD106&")'!$a$2")="R",Season_Summary!U106,""),"") ->  | V106: =IFERROR(IF(INDIRECT("'game1 ("&$AD106&")'!$a$2")="R",Season_Summary!V106,""),"") ->  | W106: =IFERROR(IF(INDIRECT("'game1 ("&$AD106&")'!$a$2")="R",Season_Summary!W106,""),"") ->  | X106: =IFERROR(IF(INDIRECT("'game1 ("&$AD106&")'!$a$2")="R",Season_Summary!X106,""),"") ->  | Y106: =IFERROR(IF(INDIRECT("'game1 ("&$AD106&")'!$a$2")="R",Season_Summary!Y106,""),"") ->  | Z106: =IFERROR(IF(INDIRECT("'game1 ("&$AD106&")'!$a$2")="R",Season_Summary!Z106,""),"") ->  | AA106: =IFERROR(IF(INDIRECT("'game1 ("&$AD106&")'!$a$2")="R",Season_Summary!AA106,""),"") ->  | AB106: =IFERROR(IF(INDIRECT("'game1 ("&$AD106&")'!$a$2")="R",Season_Summary!AB106,""),"") ->  | AC106: =IFERROR(IF(INDIRECT("'game1 ("&$AD106&")'!$a$2")="R",Season_Summary!AC106,""),"") ->  | AD106: =AD104+1 -> 2
A107: =IFERROR(IF(INDIRECT("'game1 ("&$AD107&")'!$a$2")="R",Season_Summary!A107,""),"") ->  | B107: =IFERROR(IF(INDIRECT("'game1 ("&$AD107&")'!$a$2")="R",Season_Summary!B107,""),"") ->  | C107: =IFERROR(IF(INDIRECT("'game1 ("&$AD107&")'!$a$2")="R",Season_Summary!C107,""),"") ->  | D107: =IFERROR(IF(INDIRECT("'game1 ("&$AD107&")'!$a$2")="R",Season_Summary!D107,""),"") ->  | E107: =IFERROR(IF(INDIRECT("'game1 ("&$AD107&")'!$a$2")="R",Season_Summary!E107,""),"") ->  | F107: =IFERROR(IF(INDIRECT("'game1 ("&$AD107&")'!$a$2")="R",Season_Summary!F107,""),"") ->  | G107: =IFERROR(IF(INDIRECT("'game1 ("&$AD107&")'!$a$2")="R",Season_Summary!G107,""),"") ->  | H107: =IFERROR(IF(INDIRECT("'game1 ("&$AD107&")'!$a$2")="R",Season_Summary!H107,""),"") ->  | I107: =IFERROR(IF(INDIRECT("'game1 ("&$AD107&")'!$a$2")="R",Season_Summary!I107,""),"") ->  | J107: =IFERROR(IF(INDIRECT("'game1 ("&$AD107&")'!$a$2")="R",Season_Summary!J107,""),"") ->  | K107: =IFERROR(IF(INDIRECT("'game1 ("&$AD107&")'!$a$2")="R",Season_Summary!K107,""),"") ->  | L107: =IFERROR(IF(INDIRECT("'game1 ("&$AD107&")'!$a$2")="R",Season_Summary!L107,""),"") ->  | M107: =IFERROR(IF(INDIRECT("'game1 ("&$AD107&")'!$a$2")="R",Season_Summary!M107,""),"") ->  | N107: =IFERROR(IF(INDIRECT("'game1 ("&$AD107&")'!$a$2")="R",Season_Summary!N107,""),"") ->  | O107: =IFERROR(IF(INDIRECT("'game1 ("&$AD107&")'!$a$2")="R",Season_Summary!O107,""),"") ->  | P107: =IFERROR(IF(INDIRECT("'game1 ("&$AD107&")'!$a$2")="R",Season_Summary!P107,""),"") ->  | Q107: =IFERROR(IF(INDIRECT("'game1 ("&$AD107&")'!$a$2")="R",Season_Summary!Q107,""),"") ->  | R107: =IFERROR(IF(INDIRECT("'game1 ("&$AD107&")'!$a$2")="R",Season_Summary!R107,""),"") ->  | S107: =IFERROR(IF(INDIRECT("'game1 ("&$AD107&")'!$a$2")="R",Season_Summary!S107,""),"") ->  | T107: =IFERROR(IF(INDIRECT("'game1 ("&$AD107&")'!$a$2")="R",Season_Summary!T107,""),"") ->  | U107: =IFERROR(IF(INDIRECT("'game1 ("&$AD107&")'!$a$2")="R",Season_Summary!U107,""),"") ->  | V107: =IFERROR(IF(INDIRECT("'game1 ("&$AD107&")'!$a$2")="R",Season_Summary!V107,""),"") ->  | W107: =IFERROR(IF(INDIRECT("'game1 ("&$AD107&")'!$a$2")="R",Season_Summary!W107,""),"") ->  | X107: =IFERROR(IF(INDIRECT("'game1 ("&$AD107&")'!$a$2")="R",Season_Summary!X107,""),"") ->  | Y107: =IFERROR(IF(INDIRECT("'game1 ("&$AD107&")'!$a$2")="R",Season_Summary!Y107,""),"") ->  | Z107: =IFERROR(IF(INDIRECT("'game1 ("&$AD107&")'!$a$2")="R",Season_Summary!Z107,""),"") ->  | AA107: =IFERROR(IF(INDIRECT("'game1 ("&$AD107&")'!$a$2")="R",Season_Summary!AA107,""),"") ->  | AB107: =IFERROR(IF(INDIRECT("'game1 ("&$AD107&")'!$a$2")="R",Season_Summary!AB107,""),"") ->  | AC107: =IFERROR(IF(INDIRECT("'game1 ("&$AD107&")'!$a$2")="R",Season_Summary!AC107,""),"") ->  | AD107: 3
A108: =IFERROR(IF(INDIRECT("'game1 ("&$AD108&")'!$a$2")="R",Season_Summary!A108,""),"") ->  | B108: =IFERROR(IF(INDIRECT("'game1 ("&$AD108&")'!$a$2")="R",Season_Summary!B108,""),"") ->  | C108: =IFERROR(IF(INDIRECT("'game1 ("&$AD108&")'!$a$2")="R",Season_Summary!C108,""),"") ->  | D108: =IFERROR(IF(INDIRECT("'game1 ("&$AD108&")'!$a$2")="R",Season_Summary!D108,""),"") ->  | E108: =IFERROR(IF(INDIRECT("'game1 ("&$AD108&")'!$a$2")="R",Season_Summary!E108,""),"") ->  | F108: =IFERROR(IF(INDIRECT("'game1 ("&$AD108&")'!$a$2")="R",Season_Summary!F108,""),"") ->  | G108: =IFERROR(IF(INDIRECT("'game1 ("&$AD108&")'!$a$2")="R",Season_Summary!G108,""),"") ->  | H108: =IFERROR(IF(INDIRECT("'game1 ("&$AD108&")'!$a$2")="R",Season_Summary!H108,""),"") ->  | I108: =IFERROR(IF(INDIRECT("'game1 ("&$AD108&")'!$a$2")="R",Season_Summary!I108,""),"") ->  | J108: =IFERROR(IF(INDIRECT("'game1 ("&$AD108&")'!$a$2")="R",Season_Summary!J108,""),"") ->  | K108: =IFERROR(IF(INDIRECT("'game1 ("&$AD108&")'!$a$2")="R",Season_Summary!K108,""),"") ->  | L108: =IFERROR(IF(INDIRECT("'game1 ("&$AD108&")'!$a$2")="R",Season_Summary!L108,""),"") ->  | M108: =IFERROR(IF(INDIRECT("'game1 ("&$AD108&")'!$a$2")="R",Season_Summary!M108,""),"") ->  | N108: =IFERROR(IF(INDIRECT("'game1 ("&$AD108&")'!$a$2")="R",Season_Summary!N108,""),"") ->  | O108: =IFERROR(IF(INDIRECT("'game1 ("&$AD108&")'!$a$2")="R",Season_Summary!O108,""),"") ->  | P108: =IFERROR(IF(INDIRECT("'game1 ("&$AD108&")'!$a$2")="R",Season_Summary!P108,""),"") ->  | Q108: =IFERROR(IF(INDIRECT("'game1 ("&$AD108&")'!$a$2")="R",Season_Summary!Q108,""),"") ->  | R108: =IFERROR(IF(INDIRECT("'game1 ("&$AD108&")'!$a$2")="R",Season_Summary!R108,""),"") ->  | S108: =IFERROR(IF(INDIRECT("'game1 ("&$AD108&")'!$a$2")="R",Season_Summary!S108,""),"") ->  | T108: =IFERROR(IF(INDIRECT("'game1 ("&$AD108&")'!$a$2")="R",Season_Summary!T108,""),"") ->  | U108: =IFERROR(IF(INDIRECT("'game1 ("&$AD108&")'!$a$2")="R",Season_Summary!U108,""),"") ->  | V108: =IFERROR(IF(INDIRECT("'game1 ("&$AD108&")'!$a$2")="R",Season_Summary!V108,""),"") ->  | W108: =IFERROR(IF(INDIRECT("'game1 ("&$AD108&")'!$a$2")="R",Season_Summary!W108,""),"") ->  | X108: =IFERROR(IF(INDIRECT("'game1 ("&$AD108&")'!$a$2")="R",Season_Summary!X108,""),"") ->  | Y108: =IFERROR(IF(INDIRECT("'game1 ("&$AD108&")'!$a$2")="R",Season_Summary!Y108,""),"") ->  | Z108: =IFERROR(IF(INDIRECT("'game1 ("&$AD108&")'!$a$2")="R",Season_Summary!Z108,""),"") ->  | AA108: =IFERROR(IF(INDIRECT("'game1 ("&$AD108&")'!$a$2")="R",Season_Summary!AA108,""),"") ->  | AB108: =IFERROR(IF(INDIRECT("'game1 ("&$AD108&")'!$a$2")="R",Season_Summary!AB108,""),"") ->  | AC108: =IFERROR(IF(INDIRECT("'game1 ("&$AD108&")'!$a$2")="R",Season_Summary!AC108,""),"") ->  | AD108: 3
A109: =IFERROR(IF(INDIRECT("'game1 ("&$AD109&")'!$a$2")="R",Season_Summary!A109,""),"") ->  | B109: =IFERROR(IF(INDIRECT("'game1 ("&$AD109&")'!$a$2")="R",Season_Summary!B109,""),"") ->  | C109: =IFERROR(IF(INDIRECT("'game1 ("&$AD109&")'!$a$2")="R",Season_Summary!C109,""),"") ->  | D109: =IFERROR(IF(INDIRECT("'game1 ("&$AD109&")'!$a$2")="R",Season_Summary!D109,""),"") ->  | E109: =IFERROR(IF(INDIRECT("'game1 ("&$AD109&")'!$a$2")="R",Season_Summary!E109,""),"") ->  | F109: =IFERROR(IF(INDIRECT("'game1 ("&$AD109&")'!$a$2")="R",Season_Summary!F109,""),"") ->  | G109: =IFERROR(IF(INDIRECT("'game1 ("&$AD109&")'!$a$2")="R",Season_Summary!G109,""),"") ->  | H109: =IFERROR(IF(INDIRECT("'game1 ("&$AD109&")'!$a$2")="R",Season_Summary!H109,""),"") ->  | I109: =IFERROR(IF(INDIRECT("'game1 ("&$AD109&")'!$a$2")="R",Season_Summary!I109,""),"") ->  | J109: =IFERROR(IF(INDIRECT("'game1 ("&$AD109&")'!$a$2")="R",Season_Summary!J109,""),"") ->  | K109: =IFERROR(IF(INDIRECT("'game1 ("&$AD109&")'!$a$2")="R",Season_Summary!K109,""),"") ->  | L109: =IFERROR(IF(INDIRECT("'game1 ("&$AD109&")'!$a$2")="R",Season_Summary!L109,""),"") ->  | M109: =IFERROR(IF(INDIRECT("'game1 ("&$AD109&")'!$a$2")="R",Season_Summary!M109,""),"") ->  | N109: =IFERROR(IF(INDIRECT("'game1 ("&$AD109&")'!$a$2")="R",Season_Summary!N109,""),"") ->  | O109: =IFERROR(IF(INDIRECT("'game1 ("&$AD109&")'!$a$2")="R",Season_Summary!O109,""),"") ->  | P109: =IFERROR(IF(INDIRECT("'game1 ("&$AD109&")'!$a$2")="R",Season_Summary!P109,""),"") ->  | Q109: =IFERROR(IF(INDIRECT("'game1 ("&$AD109&")'!$a$2")="R",Season_Summary!Q109,""),"") ->  | R109: =IFERROR(IF(INDIRECT("'game1 ("&$AD109&")'!$a$2")="R",Season_Summary!R109,""),"") ->  | S109: =IFERROR(IF(INDIRECT("'game1 ("&$AD109&")'!$a$2")="R",Season_Summary!S109,""),"") ->  | T109: =IFERROR(IF(INDIRECT("'game1 ("&$AD109&")'!$a$2")="R",Season_Summary!T109,""),"") ->  | U109: =IFERROR(IF(INDIRECT("'game1 ("&$AD109&")'!$a$2")="R",Season_Summary!U109,""),"") ->  | V109: =IFERROR(IF(INDIRECT("'game1 ("&$AD109&")'!$a$2")="R",Season_Summary!V109,""),"") ->  | W109: =IFERROR(IF(INDIRECT("'game1 ("&$AD109&")'!$a$2")="R",Season_Summary!W109,""),"") ->  | X109: =IFERROR(IF(INDIRECT("'game1 ("&$AD109&")'!$a$2")="R",Season_Summary!X109,""),"") ->  | Y109: =IFERROR(IF(INDIRECT("'game1 ("&$AD109&")'!$a$2")="R",Season_Summary!Y109,""),"") ->  | Z109: =IFERROR(IF(INDIRECT("'game1 ("&$AD109&")'!$a$2")="R",Season_Summary!Z109,""),"") ->  | AA109: =IFERROR(IF(INDIRECT("'game1 ("&$AD109&")'!$a$2")="R",Season_Summary!AA109,""),"") ->  | AB109: =IFERROR(IF(INDIRECT("'game1 ("&$AD109&")'!$a$2")="R",Season_Summary!AB109,""),"") ->  | AC109: =IFERROR(IF(INDIRECT("'game1 ("&$AD109&")'!$a$2")="R",Season_Summary!AC109,""),"") ->  | AD109: 4
A110: =IFERROR(IF(INDIRECT("'game1 ("&$AD110&")'!$a$2")="R",Season_Summary!A110,""),"") ->  | B110: =IFERROR(IF(INDIRECT("'game1 ("&$AD110&")'!$a$2")="R",Season_Summary!B110,""),"") ->  | C110: =IFERROR(IF(INDIRECT("'game1 ("&$AD110&")'!$a$2")="R",Season_Summary!C110,""),"") ->  | D110: =IFERROR(IF(INDIRECT("'game1 ("&$AD110&")'!$a$2")="R",Season_Summary!D110,""),"") ->  | E110: =IFERROR(IF(INDIRECT("'game1 ("&$AD110&")'!$a$2")="R",Season_Summary!E110,""),"") ->  | F110: =IFERROR(IF(INDIRECT("'game1 ("&$AD110&")'!$a$2")="R",Season_Summary!F110,""),"") ->  | G110: =IFERROR(IF(INDIRECT("'game1 ("&$AD110&")'!$a$2")="R",Season_Summary!G110,""),"") ->  | H110: =IFERROR(IF(INDIRECT("'game1 ("&$AD110&")'!$a$2")="R",Season_Summary!H110,""),"") ->  | I110: =IFERROR(IF(INDIRECT("'game1 ("&$AD110&")'!$a$2")="R",Season_Summary!I110,""),"") ->  | J110: =IFERROR(IF(INDIRECT("'game1 ("&$AD110&")'!$a$2")="R",Season_Summary!J110,""),"") ->  | K110: =IFERROR(IF(INDIRECT("'game1 ("&$AD110&")'!$a$2")="R",Season_Summary!K110,""),"") ->  | L110: =IFERROR(IF(INDIRECT("'game1 ("&$AD110&")'!$a$2")="R",Season_Summary!L110,""),"") ->  | M110: =IFERROR(IF(INDIRECT("'game1 ("&$AD110&")'!$a$2")="R",Season_Summary!M110,""),"") ->  | N110: =IFERROR(IF(INDIRECT("'game1 ("&$AD110&")'!$a$2")="R",Season_Summary!N110,""),"") ->  | O110: =IFERROR(IF(INDIRECT("'game1 ("&$AD110&")'!$a$2")="R",Season_Summary!O110,""),"") ->  | P110: =IFERROR(IF(INDIRECT("'game1 ("&$AD110&")'!$a$2")="R",Season_Summary!P110,""),"") ->  | Q110: =IFERROR(IF(INDIRECT("'game1 ("&$AD110&")'!$a$2")="R",Season_Summary!Q110,""),"") ->  | R110: =IFERROR(IF(INDIRECT("'game1 ("&$AD110&")'!$a$2")="R",Season_Summary!R110,""),"") ->  | S110: =IFERROR(IF(INDIRECT("'game1 ("&$AD110&")'!$a$2")="R",Season_Summary!S110,""),"") ->  | T110: =IFERROR(IF(INDIRECT("'game1 ("&$AD110&")'!$a$2")="R",Season_Summary!T110,""),"") ->  | U110: =IFERROR(IF(INDIRECT("'game1 ("&$AD110&")'!$a$2")="R",Season_Summary!U110,""),"") ->  | V110: =IFERROR(IF(INDIRECT("'game1 ("&$AD110&")'!$a$2")="R",Season_Summary!V110,""),"") ->  | W110: =IFERROR(IF(INDIRECT("'game1 ("&$AD110&")'!$a$2")="R",Season_Summary!W110,""),"") ->  | X110: =IFERROR(IF(INDIRECT("'game1 ("&$AD110&")'!$a$2")="R",Season_Summary!X110,""),"") ->  | Y110: =IFERROR(IF(INDIRECT("'game1 ("&$AD110&")'!$a$2")="R",Season_Summary!Y110,""),"") ->  | Z110: =IFERROR(IF(INDIRECT("'game1 ("&$AD110&")'!$a$2")="R",Season_Summary!Z110,""),"") ->  | AA110: =IFERROR(IF(INDIRECT("'game1 ("&$AD110&")'!$a$2")="R",Season_Summary!AA110,""),"") ->  | AB110: =IFERROR(IF(INDIRECT("'game1 ("&$AD110&")'!$a$2")="R",Season_Summary!AB110,""),"") ->  | AC110: =IFERROR(IF(INDIRECT("'game1 ("&$AD110&")'!$a$2")="R",Season_Summary!AC110,""),"") ->  | AD110: 4
A111: =IFERROR(IF(INDIRECT("'game1 ("&$AD111&")'!$a$2")="R",Season_Summary!A111,""),"") ->  | B111: =IFERROR(IF(INDIRECT("'game1 ("&$AD111&")'!$a$2")="R",Season_Summary!B111,""),"") ->  | C111: =IFERROR(IF(INDIRECT("'game1 ("&$AD111&")'!$a$2")="R",Season_Summary!C111,""),"") ->  | D111: =IFERROR(IF(INDIRECT("'game1 ("&$AD111&")'!$a$2")="R",Season_Summary!D111,""),"") ->  | E111: =IFERROR(IF(INDIRECT("'game1 ("&$AD111&")'!$a$2")="R",Season_Summary!E111,""),"") ->  | F111: =IFERROR(IF(INDIRECT("'game1 ("&$AD111&")'!$a$2")="R",Season_Summary!F111,""),"") ->  | G111: =IFERROR(IF(INDIRECT("'game1 ("&$AD111&")'!$a$2")="R",Season_Summary!G111,""),"") ->  | H111: =IFERROR(IF(INDIRECT("'game1 ("&$AD111&")'!$a$2")="R",Season_Summary!H111,""),"") ->  | I111: =IFERROR(IF(INDIRECT("'game1 ("&$AD111&")'!$a$2")="R",Season_Summary!I111,""),"") ->  | J111: =IFERROR(IF(INDIRECT("'game1 ("&$AD111&")'!$a$2")="R",Season_Summary!J111,""),"") ->  | K111: =IFERROR(IF(INDIRECT("'game1 ("&$AD111&")'!$a$2")="R",Season_Summary!K111,""),"") ->  | L111: =IFERROR(IF(INDIRECT("'game1 ("&$AD111&")'!$a$2")="R",Season_Summary!L111,""),"") ->  | M111: =IFERROR(IF(INDIRECT("'game1 ("&$AD111&")'!$a$2")="R",Season_Summary!M111,""),"") ->  | N111: =IFERROR(IF(INDIRECT("'game1 ("&$AD111&")'!$a$2")="R",Season_Summary!N111,""),"") ->  | O111: =IFERROR(IF(INDIRECT("'game1 ("&$AD111&")'!$a$2")="R",Season_Summary!O111,""),"") ->  | P111: =IFERROR(IF(INDIRECT("'game1 ("&$AD111&")'!$a$2")="R",Season_Summary!P111,""),"") ->  | Q111: =IFERROR(IF(INDIRECT("'game1 ("&$AD111&")'!$a$2")="R",Season_Summary!Q111,""),"") ->  | R111: =IFERROR(IF(INDIRECT("'game1 ("&$AD111&")'!$a$2")="R",Season_Summary!R111,""),"") ->  | S111: =IFERROR(IF(INDIRECT("'game1 ("&$AD111&")'!$a$2")="R",Season_Summary!S111,""),"") ->  | T111: =IFERROR(IF(INDIRECT("'game1 ("&$AD111&")'!$a$2")="R",Season_Summary!T111,""),"") ->  | U111: =IFERROR(IF(INDIRECT("'game1 ("&$AD111&")'!$a$2")="R",Season_Summary!U111,""),"") ->  | V111: =IFERROR(IF(INDIRECT("'game1 ("&$AD111&")'!$a$2")="R",Season_Summary!V111,""),"") ->  | W111: =IFERROR(IF(INDIRECT("'game1 ("&$AD111&")'!$a$2")="R",Season_Summary!W111,""),"") ->  | X111: =IFERROR(IF(INDIRECT("'game1 ("&$AD111&")'!$a$2")="R",Season_Summary!X111,""),"") ->  | Y111: =IFERROR(IF(INDIRECT("'game1 ("&$AD111&")'!$a$2")="R",Season_Summary!Y111,""),"") ->  | Z111: =IFERROR(IF(INDIRECT("'game1 ("&$AD111&")'!$a$2")="R",Season_Summary!Z111,""),"") ->  | AA111: =IFERROR(IF(INDIRECT("'game1 ("&$AD111&")'!$a$2")="R",Season_Summary!AA111,""),"") ->  | AB111: =IFERROR(IF(INDIRECT("'game1 ("&$AD111&")'!$a$2")="R",Season_Summary!AB111,""),"") ->  | AC111: =IFERROR(IF(INDIRECT("'game1 ("&$AD111&")'!$a$2")="R",Season_Summary!AC111,""),"") ->  | AD111: 5
A112: =IFERROR(IF(INDIRECT("'game1 ("&$AD112&")'!$a$2")="R",Season_Summary!A112,""),"") ->  | B112: =IFERROR(IF(INDIRECT("'game1 ("&$AD112&")'!$a$2")="R",Season_Summary!B112,""),"") ->  | C112: =IFERROR(IF(INDIRECT("'game1 ("&$AD112&")'!$a$2")="R",Season_Summary!C112,""),"") ->  | D112: =IFERROR(IF(INDIRECT("'game1 ("&$AD112&")'!$a$2")="R",Season_Summary!D112,""),"") ->  | E112: =IFERROR(IF(INDIRECT("'game1 ("&$AD112&")'!$a$2")="R",Season_Summary!E112,""),"") ->  | F112: =IFERROR(IF(INDIRECT("'game1 ("&$AD112&")'!$a$2")="R",Season_Summary!F112,""),"") ->  | G112: =IFERROR(IF(INDIRECT("'game1 ("&$AD112&")'!$a$2")="R",Season_Summary!G112,""),"") ->  | H112: =IFERROR(IF(INDIRECT("'game1 ("&$AD112&")'!$a$2")="R",Season_Summary!H112,""),"") ->  | I112: =IFERROR(IF(INDIRECT("'game1 ("&$AD112&")'!$a$2")="R",Season_Summary!I112,""),"") ->  | J112: =IFERROR(IF(INDIRECT("'game1 ("&$AD112&")'!$a$2")="R",Season_Summary!J112,""),"") ->  | K112: =IFERROR(IF(INDIRECT("'game1 ("&$AD112&")'!$a$2")="R",Season_Summary!K112,""),"") ->  | L112: =IFERROR(IF(INDIRECT("'game1 ("&$AD112&")'!$a$2")="R",Season_Summary!L112,""),"") ->  | M112: =IFERROR(IF(INDIRECT("'game1 ("&$AD112&")'!$a$2")="R",Season_Summary!M112,""),"") ->  | N112: =IFERROR(IF(INDIRECT("'game1 ("&$AD112&")'!$a$2")="R",Season_Summary!N112,""),"") ->  | O112: =IFERROR(IF(INDIRECT("'game1 ("&$AD112&")'!$a$2")="R",Season_Summary!O112,""),"") ->  | P112: =IFERROR(IF(INDIRECT("'game1 ("&$AD112&")'!$a$2")="R",Season_Summary!P112,""),"") ->  | Q112: =IFERROR(IF(INDIRECT("'game1 ("&$AD112&")'!$a$2")="R",Season_Summary!Q112,""),"") ->  | R112: =IFERROR(IF(INDIRECT("'game1 ("&$AD112&")'!$a$2")="R",Season_Summary!R112,""),"") ->  | S112: =IFERROR(IF(INDIRECT("'game1 ("&$AD112&")'!$a$2")="R",Season_Summary!S112,""),"") ->  | T112: =IFERROR(IF(INDIRECT("'game1 ("&$AD112&")'!$a$2")="R",Season_Summary!T112,""),"") ->  | U112: =IFERROR(IF(INDIRECT("'game1 ("&$AD112&")'!$a$2")="R",Season_Summary!U112,""),"") ->  | V112: =IFERROR(IF(INDIRECT("'game1 ("&$AD112&")'!$a$2")="R",Season_Summary!V112,""),"") ->  | W112: =IFERROR(IF(INDIRECT("'game1 ("&$AD112&")'!$a$2")="R",Season_Summary!W112,""),"") ->  | X112: =IFERROR(IF(INDIRECT("'game1 ("&$AD112&")'!$a$2")="R",Season_Summary!X112,""),"") ->  | Y112: =IFERROR(IF(INDIRECT("'game1 ("&$AD112&")'!$a$2")="R",Season_Summary!Y112,""),"") ->  | Z112: =IFERROR(IF(INDIRECT("'game1 ("&$AD112&")'!$a$2")="R",Season_Summary!Z112,""),"") ->  | AA112: =IFERROR(IF(INDIRECT("'game1 ("&$AD112&")'!$a$2")="R",Season_Summary!AA112,""),"") ->  | AB112: =IFERROR(IF(INDIRECT("'game1 ("&$AD112&")'!$a$2")="R",Season_Summary!AB112,""),"") ->  | AC112: =IFERROR(IF(INDIRECT("'game1 ("&$AD112&")'!$a$2")="R",Season_Summary!AC112,""),"") ->  | AD112: 5
A113: =IFERROR(IF(INDIRECT("'game1 ("&$AD113&")'!$a$2")="R",Season_Summary!A113,""),"") ->  | B113: =IFERROR(IF(INDIRECT("'game1 ("&$AD113&")'!$a$2")="R",Season_Summary!B113,""),"") ->  | C113: =IFERROR(IF(INDIRECT("'game1 ("&$AD113&")'!$a$2")="R",Season_Summary!C113,""),"") ->  | D113: =IFERROR(IF(INDIRECT("'game1 ("&$AD113&")'!$a$2")="R",Season_Summary!D113,""),"") ->  | E113: =IFERROR(IF(INDIRECT("'game1 ("&$AD113&")'!$a$2")="R",Season_Summary!E113,""),"") ->  | F113: =IFERROR(IF(INDIRECT("'game1 ("&$AD113&")'!$a$2")="R",Season_Summary!F113,""),"") ->  | G113: =IFERROR(IF(INDIRECT("'game1 ("&$AD113&")'!$a$2")="R",Season_Summary!G113,""),"") ->  | H113: =IFERROR(IF(INDIRECT("'game1 ("&$AD113&")'!$a$2")="R",Season_Summary!H113,""),"") ->  | I113: =IFERROR(IF(INDIRECT("'game1 ("&$AD113&")'!$a$2")="R",Season_Summary!I113,""),"") ->  | J113: =IFERROR(IF(INDIRECT("'game1 ("&$AD113&")'!$a$2")="R",Season_Summary!J113,""),"") ->  | K113: =IFERROR(IF(INDIRECT("'game1 ("&$AD113&")'!$a$2")="R",Season_Summary!K113,""),"") ->  | L113: =IFERROR(IF(INDIRECT("'game1 ("&$AD113&")'!$a$2")="R",Season_Summary!L113,""),"") ->  | M113: =IFERROR(IF(INDIRECT("'game1 ("&$AD113&")'!$a$2")="R",Season_Summary!M113,""),"") ->  | N113: =IFERROR(IF(INDIRECT("'game1 ("&$AD113&")'!$a$2")="R",Season_Summary!N113,""),"") ->  | O113: =IFERROR(IF(INDIRECT("'game1 ("&$AD113&")'!$a$2")="R",Season_Summary!O113,""),"") ->  | P113: =IFERROR(IF(INDIRECT("'game1 ("&$AD113&")'!$a$2")="R",Season_Summary!P113,""),"") ->  | Q113: =IFERROR(IF(INDIRECT("'game1 ("&$AD113&")'!$a$2")="R",Season_Summary!Q113,""),"") ->  | R113: =IFERROR(IF(INDIRECT("'game1 ("&$AD113&")'!$a$2")="R",Season_Summary!R113,""),"") ->  | S113: =IFERROR(IF(INDIRECT("'game1 ("&$AD113&")'!$a$2")="R",Season_Summary!S113,""),"") ->  | T113: =IFERROR(IF(INDIRECT("'game1 ("&$AD113&")'!$a$2")="R",Season_Summary!T113,""),"") ->  | U113: =IFERROR(IF(INDIRECT("'game1 ("&$AD113&")'!$a$2")="R",Season_Summary!U113,""),"") ->  | V113: =IFERROR(IF(INDIRECT("'game1 ("&$AD113&")'!$a$2")="R",Season_Summary!V113,""),"") ->  | W113: =IFERROR(IF(INDIRECT("'game1 ("&$AD113&")'!$a$2")="R",Season_Summary!W113,""),"") ->  | X113: =IFERROR(IF(INDIRECT("'game1 ("&$AD113&")'!$a$2")="R",Season_Summary!X113,""),"") ->  | Y113: =IFERROR(IF(INDIRECT("'game1 ("&$AD113&")'!$a$2")="R",Season_Summary!Y113,""),"") ->  | Z113: =IFERROR(IF(INDIRECT("'game1 ("&$AD113&")'!$a$2")="R",Season_Summary!Z113,""),"") ->  | AA113: =IFERROR(IF(INDIRECT("'game1 ("&$AD113&")'!$a$2")="R",Season_Summary!AA113,""),"") ->  | AB113: =IFERROR(IF(INDIRECT("'game1 ("&$AD113&")'!$a$2")="R",Season_Summary!AB113,""),"") ->  | AC113: =IFERROR(IF(INDIRECT("'game1 ("&$AD113&")'!$a$2")="R",Season_Summary!AC113,""),"") ->  | AD113: 6
A114: =IFERROR(IF(INDIRECT("'game1 ("&$AD114&")'!$a$2")="R",Season_Summary!A114,""),"") ->  | B114: =IFERROR(IF(INDIRECT("'game1 ("&$AD114&")'!$a$2")="R",Season_Summary!B114,""),"") ->  | C114: =IFERROR(IF(INDIRECT("'game1 ("&$AD114&")'!$a$2")="R",Season_Summary!C114,""),"") ->  | D114: =IFERROR(IF(INDIRECT("'game1 ("&$AD114&")'!$a$2")="R",Season_Summary!D114,""),"") ->  | E114: =IFERROR(IF(INDIRECT("'game1 ("&$AD114&")'!$a$2")="R",Season_Summary!E114,""),"") ->  | F114: =IFERROR(IF(INDIRECT("'game1 ("&$AD114&")'!$a$2")="R",Season_Summary!F114,""),"") ->  | G114: =IFERROR(IF(INDIRECT("'game1 ("&$AD114&")'!$a$2")="R",Season_Summary!G114,""),"") ->  | H114: =IFERROR(IF(INDIRECT("'game1 ("&$AD114&")'!$a$2")="R",Season_Summary!H114,""),"") ->  | I114: =IFERROR(IF(INDIRECT("'game1 ("&$AD114&")'!$a$2")="R",Season_Summary!I114,""),"") ->  | J114: =IFERROR(IF(INDIRECT("'game1 ("&$AD114&")'!$a$2")="R",Season_Summary!J114,""),"") ->  | K114: =IFERROR(IF(INDIRECT("'game1 ("&$AD114&")'!$a$2")="R",Season_Summary!K114,""),"") ->  | L114: =IFERROR(IF(INDIRECT("'game1 ("&$AD114&")'!$a$2")="R",Season_Summary!L114,""),"") ->  | M114: =IFERROR(IF(INDIRECT("'game1 ("&$AD114&")'!$a$2")="R",Season_Summary!M114,""),"") ->  | N114: =IFERROR(IF(INDIRECT("'game1 ("&$AD114&")'!$a$2")="R",Season_Summary!N114,""),"") ->  | O114: =IFERROR(IF(INDIRECT("'game1 ("&$AD114&")'!$a$2")="R",Season_Summary!O114,""),"") ->  | P114: =IFERROR(IF(INDIRECT("'game1 ("&$AD114&")'!$a$2")="R",Season_Summary!P114,""),"") ->  | Q114: =IFERROR(IF(INDIRECT("'game1 ("&$AD114&")'!$a$2")="R",Season_Summary!Q114,""),"") ->  | R114: =IFERROR(IF(INDIRECT("'game1 ("&$AD114&")'!$a$2")="R",Season_Summary!R114,""),"") ->  | S114: =IFERROR(IF(INDIRECT("'game1 ("&$AD114&")'!$a$2")="R",Season_Summary!S114,""),"") ->  | T114: =IFERROR(IF(INDIRECT("'game1 ("&$AD114&")'!$a$2")="R",Season_Summary!T114,""),"") ->  | U114: =IFERROR(IF(INDIRECT("'game1 ("&$AD114&")'!$a$2")="R",Season_Summary!U114,""),"") ->  | V114: =IFERROR(IF(INDIRECT("'game1 ("&$AD114&")'!$a$2")="R",Season_Summary!V114,""),"") ->  | W114: =IFERROR(IF(INDIRECT("'game1 ("&$AD114&")'!$a$2")="R",Season_Summary!W114,""),"") ->  | X114: =IFERROR(IF(INDIRECT("'game1 ("&$AD114&")'!$a$2")="R",Season_Summary!X114,""),"") ->  | Y114: =IFERROR(IF(INDIRECT("'game1 ("&$AD114&")'!$a$2")="R",Season_Summary!Y114,""),"") ->  | Z114: =IFERROR(IF(INDIRECT("'game1 ("&$AD114&")'!$a$2")="R",Season_Summary!Z114,""),"") ->  | AA114: =IFERROR(IF(INDIRECT("'game1 ("&$AD114&")'!$a$2")="R",Season_Summary!AA114,""),"") ->  | AB114: =IFERROR(IF(INDIRECT("'game1 ("&$AD114&")'!$a$2")="R",Season_Summary!AB114,""),"") ->  | AC114: =IFERROR(IF(INDIRECT("'game1 ("&$AD114&")'!$a$2")="R",Season_Summary!AC114,""),"") ->  | AD114: 6
A115: =IFERROR(IF(INDIRECT("'game1 ("&$AD115&")'!$a$2")="R",Season_Summary!A115,""),"") ->  | B115: =IFERROR(IF(INDIRECT("'game1 ("&$AD115&")'!$a$2")="R",Season_Summary!B115,""),"") ->  | C115: =IFERROR(IF(INDIRECT("'game1 ("&$AD115&")'!$a$2")="R",Season_Summary!C115,""),"") ->  | D115: =IFERROR(IF(INDIRECT("'game1 ("&$AD115&")'!$a$2")="R",Season_Summary!D115,""),"") ->  | E115: =IFERROR(IF(INDIRECT("'game1 ("&$AD115&")'!$a$2")="R",Season_Summary!E115,""),"") ->  | F115: =IFERROR(IF(INDIRECT("'game1 ("&$AD115&")'!$a$2")="R",Season_Summary!F115,""),"") ->  | G115: =IFERROR(IF(INDIRECT("'game1 ("&$AD115&")'!$a$2")="R",Season_Summary!G115,""),"") ->  | H115: =IFERROR(IF(INDIRECT("'game1 ("&$AD115&")'!$a$2")="R",Season_Summary!H115,""),"") ->  | I115: =IFERROR(IF(INDIRECT("'game1 ("&$AD115&")'!$a$2")="R",Season_Summary!I115,""),"") ->  | J115: =IFERROR(IF(INDIRECT("'game1 ("&$AD115&")'!$a$2")="R",Season_Summary!J115,""),"") ->  | K115: =IFERROR(IF(INDIRECT("'game1 ("&$AD115&")'!$a$2")="R",Season_Summary!K115,""),"") ->  | L115: =IFERROR(IF(INDIRECT("'game1 ("&$AD115&")'!$a$2")="R",Season_Summary!L115,""),"") ->  | M115: =IFERROR(IF(INDIRECT("'game1 ("&$AD115&")'!$a$2")="R",Season_Summary!M115,""),"") ->  | N115: =IFERROR(IF(INDIRECT("'game1 ("&$AD115&")'!$a$2")="R",Season_Summary!N115,""),"") ->  | O115: =IFERROR(IF(INDIRECT("'game1 ("&$AD115&")'!$a$2")="R",Season_Summary!O115,""),"") ->  | P115: =IFERROR(IF(INDIRECT("'game1 ("&$AD115&")'!$a$2")="R",Season_Summary!P115,""),"") ->  | Q115: =IFERROR(IF(INDIRECT("'game1 ("&$AD115&")'!$a$2")="R",Season_Summary!Q115,""),"") ->  | R115: =IFERROR(IF(INDIRECT("'game1 ("&$AD115&")'!$a$2")="R",Season_Summary!R115,""),"") ->  | S115: =IFERROR(IF(INDIRECT("'game1 ("&$AD115&")'!$a$2")="R",Season_Summary!S115,""),"") ->  | T115: =IFERROR(IF(INDIRECT("'game1 ("&$AD115&")'!$a$2")="R",Season_Summary!T115,""),"") ->  | U115: =IFERROR(IF(INDIRECT("'game1 ("&$AD115&")'!$a$2")="R",Season_Summary!U115,""),"") ->  | V115: =IFERROR(IF(INDIRECT("'game1 ("&$AD115&")'!$a$2")="R",Season_Summary!V115,""),"") ->  | W115: =IFERROR(IF(INDIRECT("'game1 ("&$AD115&")'!$a$2")="R",Season_Summary!W115,""),"") ->  | X115: =IFERROR(IF(INDIRECT("'game1 ("&$AD115&")'!$a$2")="R",Season_Summary!X115,""),"") ->  | Y115: =IFERROR(IF(INDIRECT("'game1 ("&$AD115&")'!$a$2")="R",Season_Summary!Y115,""),"") ->  | Z115: =IFERROR(IF(INDIRECT("'game1 ("&$AD115&")'!$a$2")="R",Season_Summary!Z115,""),"") ->  | AA115: =IFERROR(IF(INDIRECT("'game1 ("&$AD115&")'!$a$2")="R",Season_Summary!AA115,""),"") ->  | AB115: =IFERROR(IF(INDIRECT("'game1 ("&$AD115&")'!$a$2")="R",Season_Summary!AB115,""),"") ->  | AC115: =IFERROR(IF(INDIRECT("'game1 ("&$AD115&")'!$a$2")="R",Season_Summary!AC115,""),"") ->  | AD115: 7
A116: =IFERROR(IF(INDIRECT("'game1 ("&$AD116&")'!$a$2")="R",Season_Summary!A116,""),"") ->  | B116: =IFERROR(IF(INDIRECT("'game1 ("&$AD116&")'!$a$2")="R",Season_Summary!B116,""),"") ->  | C116: =IFERROR(IF(INDIRECT("'game1 ("&$AD116&")'!$a$2")="R",Season_Summary!C116,""),"") ->  | D116: =IFERROR(IF(INDIRECT("'game1 ("&$AD116&")'!$a$2")="R",Season_Summary!D116,""),"") ->  | E116: =IFERROR(IF(INDIRECT("'game1 ("&$AD116&")'!$a$2")="R",Season_Summary!E116,""),"") ->  | F116: =IFERROR(IF(INDIRECT("'game1 ("&$AD116&")'!$a$2")="R",Season_Summary!F116,""),"") ->  | G116: =IFERROR(IF(INDIRECT("'game1 ("&$AD116&")'!$a$2")="R",Season_Summary!G116,""),"") ->  | H116: =IFERROR(IF(INDIRECT("'game1 ("&$AD116&")'!$a$2")="R",Season_Summary!H116,""),"") ->  | I116: =IFERROR(IF(INDIRECT("'game1 ("&$AD116&")'!$a$2")="R",Season_Summary!I116,""),"") ->  | J116: =IFERROR(IF(INDIRECT("'game1 ("&$AD116&")'!$a$2")="R",Season_Summary!J116,""),"") ->  | K116: =IFERROR(IF(INDIRECT("'game1 ("&$AD116&")'!$a$2")="R",Season_Summary!K116,""),"") ->  | L116: =IFERROR(IF(INDIRECT("'game1 ("&$AD116&")'!$a$2")="R",Season_Summary!L116,""),"") ->  | M116: =IFERROR(IF(INDIRECT("'game1 ("&$AD116&")'!$a$2")="R",Season_Summary!M116,""),"") ->  | N116: =IFERROR(IF(INDIRECT("'game1 ("&$AD116&")'!$a$2")="R",Season_Summary!N116,""),"") ->  | O116: =IFERROR(IF(INDIRECT("'game1 ("&$AD116&")'!$a$2")="R",Season_Summary!O116,""),"") ->  | P116: =IFERROR(IF(INDIRECT("'game1 ("&$AD116&")'!$a$2")="R",Season_Summary!P116,""),"") ->  | Q116: =IFERROR(IF(INDIRECT("'game1 ("&$AD116&")'!$a$2")="R",Season_Summary!Q116,""),"") ->  | R116: =IFERROR(IF(INDIRECT("'game1 ("&$AD116&")'!$a$2")="R",Season_Summary!R116,""),"") ->  | S116: =IFERROR(IF(INDIRECT("'game1 ("&$AD116&")'!$a$2")="R",Season_Summary!S116,""),"") ->  | T116: =IFERROR(IF(INDIRECT("'game1 ("&$AD116&")'!$a$2")="R",Season_Summary!T116,""),"") ->  | U116: =IFERROR(IF(INDIRECT("'game1 ("&$AD116&")'!$a$2")="R",Season_Summary!U116,""),"") ->  | V116: =IFERROR(IF(INDIRECT("'game1 ("&$AD116&")'!$a$2")="R",Season_Summary!V116,""),"") ->  | W116: =IFERROR(IF(INDIRECT("'game1 ("&$AD116&")'!$a$2")="R",Season_Summary!W116,""),"") ->  | X116: =IFERROR(IF(INDIRECT("'game1 ("&$AD116&")'!$a$2")="R",Season_Summary!X116,""),"") ->  | Y116: =IFERROR(IF(INDIRECT("'game1 ("&$AD116&")'!$a$2")="R",Season_Summary!Y116,""),"") ->  | Z116: =IFERROR(IF(INDIRECT("'game1 ("&$AD116&")'!$a$2")="R",Season_Summary!Z116,""),"") ->  | AA116: =IFERROR(IF(INDIRECT("'game1 ("&$AD116&")'!$a$2")="R",Season_Summary!AA116,""),"") ->  | AB116: =IFERROR(IF(INDIRECT("'game1 ("&$AD116&")'!$a$2")="R",Season_Summary!AB116,""),"") ->  | AC116: =IFERROR(IF(INDIRECT("'game1 ("&$AD116&")'!$a$2")="R",Season_Summary!AC116,""),"") ->  | AD116: 7
A117: =IFERROR(IF(INDIRECT("'game1 ("&$AD117&")'!$a$2")="R",Season_Summary!A117,""),"") ->  | B117: =IFERROR(IF(INDIRECT("'game1 ("&$AD117&")'!$a$2")="R",Season_Summary!B117,""),"") ->  | C117: =IFERROR(IF(INDIRECT("'game1 ("&$AD117&")'!$a$2")="R",Season_Summary!C117,""),"") ->  | D117: =IFERROR(IF(INDIRECT("'game1 ("&$AD117&")'!$a$2")="R",Season_Summary!D117,""),"") ->  | E117: =IFERROR(IF(INDIRECT("'game1 ("&$AD117&")'!$a$2")="R",Season_Summary!E117,""),"") ->  | F117: =IFERROR(IF(INDIRECT("'game1 ("&$AD117&")'!$a$2")="R",Season_Summary!F117,""),"") ->  | G117: =IFERROR(IF(INDIRECT("'game1 ("&$AD117&")'!$a$2")="R",Season_Summary!G117,""),"") ->  | H117: =IFERROR(IF(INDIRECT("'game1 ("&$AD117&")'!$a$2")="R",Season_Summary!H117,""),"") ->  | I117: =IFERROR(IF(INDIRECT("'game1 ("&$AD117&")'!$a$2")="R",Season_Summary!I117,""),"") ->  | J117: =IFERROR(IF(INDIRECT("'game1 ("&$AD117&")'!$a$2")="R",Season_Summary!J117,""),"") ->  | K117: =IFERROR(IF(INDIRECT("'game1 ("&$AD117&")'!$a$2")="R",Season_Summary!K117,""),"") ->  | L117: =IFERROR(IF(INDIRECT("'game1 ("&$AD117&")'!$a$2")="R",Season_Summary!L117,""),"") ->  | M117: =IFERROR(IF(INDIRECT("'game1 ("&$AD117&")'!$a$2")="R",Season_Summary!M117,""),"") ->  | N117: =IFERROR(IF(INDIRECT("'game1 ("&$AD117&")'!$a$2")="R",Season_Summary!N117,""),"") ->  | O117: =IFERROR(IF(INDIRECT("'game1 ("&$AD117&")'!$a$2")="R",Season_Summary!O117,""),"") ->  | P117: =IFERROR(IF(INDIRECT("'game1 ("&$AD117&")'!$a$2")="R",Season_Summary!P117,""),"") ->  | Q117: =IFERROR(IF(INDIRECT("'game1 ("&$AD117&")'!$a$2")="R",Season_Summary!Q117,""),"") ->  | R117: =IFERROR(IF(INDIRECT("'game1 ("&$AD117&")'!$a$2")="R",Season_Summary!R117,""),"") ->  | S117: =IFERROR(IF(INDIRECT("'game1 ("&$AD117&")'!$a$2")="R",Season_Summary!S117,""),"") ->  | T117: =IFERROR(IF(INDIRECT("'game1 ("&$AD117&")'!$a$2")="R",Season_Summary!T117,""),"") ->  | U117: =IFERROR(IF(INDIRECT("'game1 ("&$AD117&")'!$a$2")="R",Season_Summary!U117,""),"") ->  | V117: =IFERROR(IF(INDIRECT("'game1 ("&$AD117&")'!$a$2")="R",Season_Summary!V117,""),"") ->  | W117: =IFERROR(IF(INDIRECT("'game1 ("&$AD117&")'!$a$2")="R",Season_Summary!W117,""),"") ->  | X117: =IFERROR(IF(INDIRECT("'game1 ("&$AD117&")'!$a$2")="R",Season_Summary!X117,""),"") ->  | Y117: =IFERROR(IF(INDIRECT("'game1 ("&$AD117&")'!$a$2")="R",Season_Summary!Y117,""),"") ->  | Z117: =IFERROR(IF(INDIRECT("'game1 ("&$AD117&")'!$a$2")="R",Season_Summary!Z117,""),"") ->  | AA117: =IFERROR(IF(INDIRECT("'game1 ("&$AD117&")'!$a$2")="R",Season_Summary!AA117,""),"") ->  | AB117: =IFERROR(IF(INDIRECT("'game1 ("&$AD117&")'!$a$2")="R",Season_Summary!AB117,""),"") ->  | AC117: =IFERROR(IF(INDIRECT("'game1 ("&$AD117&")'!$a$2")="R",Season_Summary!AC117,""),"") ->  | AD117: 8
A118: =IFERROR(IF(INDIRECT("'game1 ("&$AD118&")'!$a$2")="R",Season_Summary!A118,""),"") ->  | B118: =IFERROR(IF(INDIRECT("'game1 ("&$AD118&")'!$a$2")="R",Season_Summary!B118,""),"") ->  | C118: =IFERROR(IF(INDIRECT("'game1 ("&$AD118&")'!$a$2")="R",Season_Summary!C118,""),"") ->  | D118: =IFERROR(IF(INDIRECT("'game1 ("&$AD118&")'!$a$2")="R",Season_Summary!D118,""),"") ->  | E118: =IFERROR(IF(INDIRECT("'game1 ("&$AD118&")'!$a$2")="R",Season_Summary!E118,""),"") ->  | F118: =IFERROR(IF(INDIRECT("'game1 ("&$AD118&")'!$a$2")="R",Season_Summary!F118,""),"") ->  | G118: =IFERROR(IF(INDIRECT("'game1 ("&$AD118&")'!$a$2")="R",Season_Summary!G118,""),"") ->  | H118: =IFERROR(IF(INDIRECT("'game1 ("&$AD118&")'!$a$2")="R",Season_Summary!H118,""),"") ->  | I118: =IFERROR(IF(INDIRECT("'game1 ("&$AD118&")'!$a$2")="R",Season_Summary!I118,""),"") ->  | J118: =IFERROR(IF(INDIRECT("'game1 ("&$AD118&")'!$a$2")="R",Season_Summary!J118,""),"") ->  | K118: =IFERROR(IF(INDIRECT("'game1 ("&$AD118&")'!$a$2")="R",Season_Summary!K118,""),"") ->  | L118: =IFERROR(IF(INDIRECT("'game1 ("&$AD118&")'!$a$2")="R",Season_Summary!L118,""),"") ->  | M118: =IFERROR(IF(INDIRECT("'game1 ("&$AD118&")'!$a$2")="R",Season_Summary!M118,""),"") ->  | N118: =IFERROR(IF(INDIRECT("'game1 ("&$AD118&")'!$a$2")="R",Season_Summary!N118,""),"") ->  | O118: =IFERROR(IF(INDIRECT("'game1 ("&$AD118&")'!$a$2")="R",Season_Summary!O118,""),"") ->  | P118: =IFERROR(IF(INDIRECT("'game1 ("&$AD118&")'!$a$2")="R",Season_Summary!P118,""),"") ->  | Q118: =IFERROR(IF(INDIRECT("'game1 ("&$AD118&")'!$a$2")="R",Season_Summary!Q118,""),"") ->  | R118: =IFERROR(IF(INDIRECT("'game1 ("&$AD118&")'!$a$2")="R",Season_Summary!R118,""),"") ->  | S118: =IFERROR(IF(INDIRECT("'game1 ("&$AD118&")'!$a$2")="R",Season_Summary!S118,""),"") ->  | T118: =IFERROR(IF(INDIRECT("'game1 ("&$AD118&")'!$a$2")="R",Season_Summary!T118,""),"") ->  | U118: =IFERROR(IF(INDIRECT("'game1 ("&$AD118&")'!$a$2")="R",Season_Summary!U118,""),"") ->  | V118: =IFERROR(IF(INDIRECT("'game1 ("&$AD118&")'!$a$2")="R",Season_Summary!V118,""),"") ->  | W118: =IFERROR(IF(INDIRECT("'game1 ("&$AD118&")'!$a$2")="R",Season_Summary!W118,""),"") ->  | X118: =IFERROR(IF(INDIRECT("'game1 ("&$AD118&")'!$a$2")="R",Season_Summary!X118,""),"") ->  | Y118: =IFERROR(IF(INDIRECT("'game1 ("&$AD118&")'!$a$2")="R",Season_Summary!Y118,""),"") ->  | Z118: =IFERROR(IF(INDIRECT("'game1 ("&$AD118&")'!$a$2")="R",Season_Summary!Z118,""),"") ->  | AA118: =IFERROR(IF(INDIRECT("'game1 ("&$AD118&")'!$a$2")="R",Season_Summary!AA118,""),"") ->  | AB118: =IFERROR(IF(INDIRECT("'game1 ("&$AD118&")'!$a$2")="R",Season_Summary!AB118,""),"") ->  | AC118: =IFERROR(IF(INDIRECT("'game1 ("&$AD118&")'!$a$2")="R",Season_Summary!AC118,""),"") ->  | AD118: 8
A119: =IFERROR(IF(INDIRECT("'game1 ("&$AD119&")'!$a$2")="R",Season_Summary!A119,""),"") ->  | B119: =IFERROR(IF(INDIRECT("'game1 ("&$AD119&")'!$a$2")="R",Season_Summary!B119,""),"") ->  | C119: =IFERROR(IF(INDIRECT("'game1 ("&$AD119&")'!$a$2")="R",Season_Summary!C119,""),"") ->  | D119: =IFERROR(IF(INDIRECT("'game1 ("&$AD119&")'!$a$2")="R",Season_Summary!D119,""),"") ->  | E119: =IFERROR(IF(INDIRECT("'game1 ("&$AD119&")'!$a$2")="R",Season_Summary!E119,""),"") ->  | F119: =IFERROR(IF(INDIRECT("'game1 ("&$AD119&")'!$a$2")="R",Season_Summary!F119,""),"") ->  | G119: =IFERROR(IF(INDIRECT("'game1 ("&$AD119&")'!$a$2")="R",Season_Summary!G119,""),"") ->  | H119: =IFERROR(IF(INDIRECT("'game1 ("&$AD119&")'!$a$2")="R",Season_Summary!H119,""),"") ->  | I119: =IFERROR(IF(INDIRECT("'game1 ("&$AD119&")'!$a$2")="R",Season_Summary!I119,""),"") ->  | J119: =IFERROR(IF(INDIRECT("'game1 ("&$AD119&")'!$a$2")="R",Season_Summary!J119,""),"") ->  | K119: =IFERROR(IF(INDIRECT("'game1 ("&$AD119&")'!$a$2")="R",Season_Summary!K119,""),"") ->  | L119: =IFERROR(IF(INDIRECT("'game1 ("&$AD119&")'!$a$2")="R",Season_Summary!L119,""),"") ->  | M119: =IFERROR(IF(INDIRECT("'game1 ("&$AD119&")'!$a$2")="R",Season_Summary!M119,""),"") ->  | N119: =IFERROR(IF(INDIRECT("'game1 ("&$AD119&")'!$a$2")="R",Season_Summary!N119,""),"") ->  | O119: =IFERROR(IF(INDIRECT("'game1 ("&$AD119&")'!$a$2")="R",Season_Summary!O119,""),"") ->  | P119: =IFERROR(IF(INDIRECT("'game1 ("&$AD119&")'!$a$2")="R",Season_Summary!P119,""),"") ->  | Q119: =IFERROR(IF(INDIRECT("'game1 ("&$AD119&")'!$a$2")="R",Season_Summary!Q119,""),"") ->  | R119: =IFERROR(IF(INDIRECT("'game1 ("&$AD119&")'!$a$2")="R",Season_Summary!R119,""),"") ->  | S119: =IFERROR(IF(INDIRECT("'game1 ("&$AD119&")'!$a$2")="R",Season_Summary!S119,""),"") ->  | T119: =IFERROR(IF(INDIRECT("'game1 ("&$AD119&")'!$a$2")="R",Season_Summary!T119,""),"") ->  | U119: =IFERROR(IF(INDIRECT("'game1 ("&$AD119&")'!$a$2")="R",Season_Summary!U119,""),"") ->  | V119: =IFERROR(IF(INDIRECT("'game1 ("&$AD119&")'!$a$2")="R",Season_Summary!V119,""),"") ->  | W119: =IFERROR(IF(INDIRECT("'game1 ("&$AD119&")'!$a$2")="R",Season_Summary!W119,""),"") ->  | X119: =IFERROR(IF(INDIRECT("'game1 ("&$AD119&")'!$a$2")="R",Season_Summary!X119,""),"") ->  | Y119: =IFERROR(IF(INDIRECT("'game1 ("&$AD119&")'!$a$2")="R",Season_Summary!Y119,""),"") ->  | Z119: =IFERROR(IF(INDIRECT("'game1 ("&$AD119&")'!$a$2")="R",Season_Summary!Z119,""),"") ->  | AA119: =IFERROR(IF(INDIRECT("'game1 ("&$AD119&")'!$a$2")="R",Season_Summary!AA119,""),"") ->  | AB119: =IFERROR(IF(INDIRECT("'game1 ("&$AD119&")'!$a$2")="R",Season_Summary!AB119,""),"") ->  | AC119: =IFERROR(IF(INDIRECT("'game1 ("&$AD119&")'!$a$2")="R",Season_Summary!AC119,""),"") ->  | AD119: 9
A120: =IFERROR(IF(INDIRECT("'game1 ("&$AD120&")'!$a$2")="R",Season_Summary!A120,""),"") ->  | B120: =IFERROR(IF(INDIRECT("'game1 ("&$AD120&")'!$a$2")="R",Season_Summary!B120,""),"") ->  | C120: =IFERROR(IF(INDIRECT("'game1 ("&$AD120&")'!$a$2")="R",Season_Summary!C120,""),"") ->  | D120: =IFERROR(IF(INDIRECT("'game1 ("&$AD120&")'!$a$2")="R",Season_Summary!D120,""),"") ->  | E120: =IFERROR(IF(INDIRECT("'game1 ("&$AD120&")'!$a$2")="R",Season_Summary!E120,""),"") ->  | F120: =IFERROR(IF(INDIRECT("'game1 ("&$AD120&")'!$a$2")="R",Season_Summary!F120,""),"") ->  | G120: =IFERROR(IF(INDIRECT("'game1 ("&$AD120&")'!$a$2")="R",Season_Summary!G120,""),"") ->  | H120: =IFERROR(IF(INDIRECT("'game1 ("&$AD120&")'!$a$2")="R",Season_Summary!H120,""),"") ->  | I120: =IFERROR(IF(INDIRECT("'game1 ("&$AD120&")'!$a$2")="R",Season_Summary!I120,""),"") ->  | J120: =IFERROR(IF(INDIRECT("'game1 ("&$AD120&")'!$a$2")="R",Season_Summary!J120,""),"") ->  | K120: =IFERROR(IF(INDIRECT("'game1 ("&$AD120&")'!$a$2")="R",Season_Summary!K120,""),"") ->  | L120: =IFERROR(IF(INDIRECT("'game1 ("&$AD120&")'!$a$2")="R",Season_Summary!L120,""),"") ->  | M120: =IFERROR(IF(INDIRECT("'game1 ("&$AD120&")'!$a$2")="R",Season_Summary!M120,""),"") ->  | N120: =IFERROR(IF(INDIRECT("'game1 ("&$AD120&")'!$a$2")="R",Season_Summary!N120,""),"") ->  | O120: =IFERROR(IF(INDIRECT("'game1 ("&$AD120&")'!$a$2")="R",Season_Summary!O120,""),"") ->  | P120: =IFERROR(IF(INDIRECT("'game1 ("&$AD120&")'!$a$2")="R",Season_Summary!P120,""),"") ->  | Q120: =IFERROR(IF(INDIRECT("'game1 ("&$AD120&")'!$a$2")="R",Season_Summary!Q120,""),"") ->  | R120: =IFERROR(IF(INDIRECT("'game1 ("&$AD120&")'!$a$2")="R",Season_Summary!R120,""),"") ->  | S120: =IFERROR(IF(INDIRECT("'game1 ("&$AD120&")'!$a$2")="R",Season_Summary!S120,""),"") ->  | T120: =IFERROR(IF(INDIRECT("'game1 ("&$AD120&")'!$a$2")="R",Season_Summary!T120,""),"") ->  | U120: =IFERROR(IF(INDIRECT("'game1 ("&$AD120&")'!$a$2")="R",Season_Summary!U120,""),"") ->  | V120: =IFERROR(IF(INDIRECT("'game1 ("&$AD120&")'!$a$2")="R",Season_Summary!V120,""),"") ->  | W120: =IFERROR(IF(INDIRECT("'game1 ("&$AD120&")'!$a$2")="R",Season_Summary!W120,""),"") ->  | X120: =IFERROR(IF(INDIRECT("'game1 ("&$AD120&")'!$a$2")="R",Season_Summary!X120,""),"") ->  | Y120: =IFERROR(IF(INDIRECT("'game1 ("&$AD120&")'!$a$2")="R",Season_Summary!Y120,""),"") ->  | Z120: =IFERROR(IF(INDIRECT("'game1 ("&$AD120&")'!$a$2")="R",Season_Summary!Z120,""),"") ->  | AA120: =IFERROR(IF(INDIRECT("'game1 ("&$AD120&")'!$a$2")="R",Season_Summary!AA120,""),"") ->  | AB120: =IFERROR(IF(INDIRECT("'game1 ("&$AD120&")'!$a$2")="R",Season_Summary!AB120,""),"") ->  | AC120: =IFERROR(IF(INDIRECT("'game1 ("&$AD120&")'!$a$2")="R",Season_Summary!AC120,""),"") ->  | AD120: 9
A121: =IFERROR(IF(INDIRECT("'game1 ("&$AD121&")'!$a$2")="R",Season_Summary!A121,""),"") ->  | B121: =IFERROR(IF(INDIRECT("'game1 ("&$AD121&")'!$a$2")="R",Season_Summary!B121,""),"") ->  | C121: =IFERROR(IF(INDIRECT("'game1 ("&$AD121&")'!$a$2")="R",Season_Summary!C121,""),"") ->  | D121: =IFERROR(IF(INDIRECT("'game1 ("&$AD121&")'!$a$2")="R",Season_Summary!D121,""),"") ->  | E121: =IFERROR(IF(INDIRECT("'game1 ("&$AD121&")'!$a$2")="R",Season_Summary!E121,""),"") ->  | F121: =IFERROR(IF(INDIRECT("'game1 ("&$AD121&")'!$a$2")="R",Season_Summary!F121,""),"") ->  | G121: =IFERROR(IF(INDIRECT("'game1 ("&$AD121&")'!$a$2")="R",Season_Summary!G121,""),"") ->  | H121: =IFERROR(IF(INDIRECT("'game1 ("&$AD121&")'!$a$2")="R",Season_Summary!H121,""),"") ->  | I121: =IFERROR(IF(INDIRECT("'game1 ("&$AD121&")'!$a$2")="R",Season_Summary!I121,""),"") ->  | J121: =IFERROR(IF(INDIRECT("'game1 ("&$AD121&")'!$a$2")="R",Season_Summary!J121,""),"") ->  | K121: =IFERROR(IF(INDIRECT("'game1 ("&$AD121&")'!$a$2")="R",Season_Summary!K121,""),"") ->  | L121: =IFERROR(IF(INDIRECT("'game1 ("&$AD121&")'!$a$2")="R",Season_Summary!L121,""),"") ->  | M121: =IFERROR(IF(INDIRECT("'game1 ("&$AD121&")'!$a$2")="R",Season_Summary!M121,""),"") ->  | N121: =IFERROR(IF(INDIRECT("'game1 ("&$AD121&")'!$a$2")="R",Season_Summary!N121,""),"") ->  | O121: =IFERROR(IF(INDIRECT("'game1 ("&$AD121&")'!$a$2")="R",Season_Summary!O121,""),"") ->  | P121: =IFERROR(IF(INDIRECT("'game1 ("&$AD121&")'!$a$2")="R",Season_Summary!P121,""),"") ->  | Q121: =IFERROR(IF(INDIRECT("'game1 ("&$AD121&")'!$a$2")="R",Season_Summary!Q121,""),"") ->  | R121: =IFERROR(IF(INDIRECT("'game1 ("&$AD121&")'!$a$2")="R",Season_Summary!R121,""),"") ->  | S121: =IFERROR(IF(INDIRECT("'game1 ("&$AD121&")'!$a$2")="R",Season_Summary!S121,""),"") ->  | T121: =IFERROR(IF(INDIRECT("'game1 ("&$AD121&")'!$a$2")="R",Season_Summary!T121,""),"") ->  | U121: =IFERROR(IF(INDIRECT("'game1 ("&$AD121&")'!$a$2")="R",Season_Summary!U121,""),"") ->  | V121: =IFERROR(IF(INDIRECT("'game1 ("&$AD121&")'!$a$2")="R",Season_Summary!V121,""),"") ->  | W121: =IFERROR(IF(INDIRECT("'game1 ("&$AD121&")'!$a$2")="R",Season_Summary!W121,""),"") ->  | X121: =IFERROR(IF(INDIRECT("'game1 ("&$AD121&")'!$a$2")="R",Season_Summary!X121,""),"") ->  | Y121: =IFERROR(IF(INDIRECT("'game1 ("&$AD121&")'!$a$2")="R",Season_Summary!Y121,""),"") ->  | Z121: =IFERROR(IF(INDIRECT("'game1 ("&$AD121&")'!$a$2")="R",Season_Summary!Z121,""),"") ->  | AA121: =IFERROR(IF(INDIRECT("'game1 ("&$AD121&")'!$a$2")="R",Season_Summary!AA121,""),"") ->  | AB121: =IFERROR(IF(INDIRECT("'game1 ("&$AD121&")'!$a$2")="R",Season_Summary!AB121,""),"") ->  | AC121: =IFERROR(IF(INDIRECT("'game1 ("&$AD121&")'!$a$2")="R",Season_Summary!AC121,""),"") ->  | AD121: 10
A122: =IFERROR(IF(INDIRECT("'game1 ("&$AD122&")'!$a$2")="R",Season_Summary!A122,""),"") ->  | B122: =IFERROR(IF(INDIRECT("'game1 ("&$AD122&")'!$a$2")="R",Season_Summary!B122,""),"") ->  | C122: =IFERROR(IF(INDIRECT("'game1 ("&$AD122&")'!$a$2")="R",Season_Summary!C122,""),"") ->  | D122: =IFERROR(IF(INDIRECT("'game1 ("&$AD122&")'!$a$2")="R",Season_Summary!D122,""),"") ->  | E122: =IFERROR(IF(INDIRECT("'game1 ("&$AD122&")'!$a$2")="R",Season_Summary!E122,""),"") ->  | F122: =IFERROR(IF(INDIRECT("'game1 ("&$AD122&")'!$a$2")="R",Season_Summary!F122,""),"") ->  | G122: =IFERROR(IF(INDIRECT("'game1 ("&$AD122&")'!$a$2")="R",Season_Summary!G122,""),"") ->  | H122: =IFERROR(IF(INDIRECT("'game1 ("&$AD122&")'!$a$2")="R",Season_Summary!H122,""),"") ->  | I122: =IFERROR(IF(INDIRECT("'game1 ("&$AD122&")'!$a$2")="R",Season_Summary!I122,""),"") ->  | J122: =IFERROR(IF(INDIRECT("'game1 ("&$AD122&")'!$a$2")="R",Season_Summary!J122,""),"") ->  | K122: =IFERROR(IF(INDIRECT("'game1 ("&$AD122&")'!$a$2")="R",Season_Summary!K122,""),"") ->  | L122: =IFERROR(IF(INDIRECT("'game1 ("&$AD122&")'!$a$2")="R",Season_Summary!L122,""),"") ->  | M122: =IFERROR(IF(INDIRECT("'game1 ("&$AD122&")'!$a$2")="R",Season_Summary!M122,""),"") ->  | N122: =IFERROR(IF(INDIRECT("'game1 ("&$AD122&")'!$a$2")="R",Season_Summary!N122,""),"") ->  | O122: =IFERROR(IF(INDIRECT("'game1 ("&$AD122&")'!$a$2")="R",Season_Summary!O122,""),"") ->  | P122: =IFERROR(IF(INDIRECT("'game1 ("&$AD122&")'!$a$2")="R",Season_Summary!P122,""),"") ->  | Q122: =IFERROR(IF(INDIRECT("'game1 ("&$AD122&")'!$a$2")="R",Season_Summary!Q122,""),"") ->  | R122: =IFERROR(IF(INDIRECT("'game1 ("&$AD122&")'!$a$2")="R",Season_Summary!R122,""),"") ->  | S122: =IFERROR(IF(INDIRECT("'game1 ("&$AD122&")'!$a$2")="R",Season_Summary!S122,""),"") ->  | T122: =IFERROR(IF(INDIRECT("'game1 ("&$AD122&")'!$a$2")="R",Season_Summary!T122,""),"") ->  | U122: =IFERROR(IF(INDIRECT("'game1 ("&$AD122&")'!$a$2")="R",Season_Summary!U122,""),"") ->  | V122: =IFERROR(IF(INDIRECT("'game1 ("&$AD122&")'!$a$2")="R",Season_Summary!V122,""),"") ->  | W122: =IFERROR(IF(INDIRECT("'game1 ("&$AD122&")'!$a$2")="R",Season_Summary!W122,""),"") ->  | X122: =IFERROR(IF(INDIRECT("'game1 ("&$AD122&")'!$a$2")="R",Season_Summary!X122,""),"") ->  | Y122: =IFERROR(IF(INDIRECT("'game1 ("&$AD122&")'!$a$2")="R",Season_Summary!Y122,""),"") ->  | Z122: =IFERROR(IF(INDIRECT("'game1 ("&$AD122&")'!$a$2")="R",Season_Summary!Z122,""),"") ->  | AA122: =IFERROR(IF(INDIRECT("'game1 ("&$AD122&")'!$a$2")="R",Season_Summary!AA122,""),"") ->  | AB122: =IFERROR(IF(INDIRECT("'game1 ("&$AD122&")'!$a$2")="R",Season_Summary!AB122,""),"") ->  | AC122: =IFERROR(IF(INDIRECT("'game1 ("&$AD122&")'!$a$2")="R",Season_Summary!AC122,""),"") ->  | AD122: 10
A123: =IFERROR(IF(INDIRECT("'game1 ("&$AD123&")'!$a$2")="R",Season_Summary!A123,""),"") -> Moorcroft: 1/18/18 ** | B123: =IFERROR(IF(INDIRECT("'game1 ("&$AD123&")'!$a$2")="R",Season_Summary!B123,""),"") -> 8 | C123: =IFERROR(IF(INDIRECT("'game1 ("&$AD123&")'!$a$2")="R",Season_Summary!C123,""),"") -> 19 | D123: =IFERROR(IF(INDIRECT("'game1 ("&$AD123&")'!$a$2")="R",Season_Summary!D123,""),"") -> 42% | E123: =IFERROR(IF(INDIRECT("'game1 ("&$AD123&")'!$a$2")="R",Season_Summary!E123,""),"") -> 22 | F123: =IFERROR(IF(INDIRECT("'game1 ("&$AD123&")'!$a$2")="R",Season_Summary!F123,""),"") -> 42 | G123: =IFERROR(IF(INDIRECT("'game1 ("&$AD123&")'!$a$2")="R",Season_Summary!G123,""),"") -> 52% | H123: =IFERROR(IF(INDIRECT("'game1 ("&$AD123&")'!$a$2")="R",Season_Summary!H123,""),"") -> 6 | I123: =IFERROR(IF(INDIRECT("'game1 ("&$AD123&")'!$a$2")="R",Season_Summary!I123,""),"") -> 12 | J123: =IFERROR(IF(INDIRECT("'game1 ("&$AD123&")'!$a$2")="R",Season_Summary!J123,""),"") -> 50% | K123: =IFERROR(IF(INDIRECT("'game1 ("&$AD123&")'!$a$2")="R",Season_Summary!K123,""),"") -> 49% | L123: =IFERROR(IF(INDIRECT("'game1 ("&$AD123&")'!$a$2")="R",Season_Summary!L123,""),"") -> 14 | M123: =IFERROR(IF(INDIRECT("'game1 ("&$AD123&")'!$a$2")="R",Season_Summary!M123,""),"") -> 29 | N123: =IFERROR(IF(INDIRECT("'game1 ("&$AD123&")'!$a$2")="R",Season_Summary!N123,""),"") -> 43 | O123: =IFERROR(IF(INDIRECT("'game1 ("&$AD123&")'!$a$2")="R",Season_Summary!O123,""),"") -> 24 | P123: =IFERROR(IF(INDIRECT("'game1 ("&$AD123&")'!$a$2")="R",Season_Summary!P123,""),"") -> 13 | Q123: =IFERROR(IF(INDIRECT("'game1 ("&$AD123&")'!$a$2")="R",Season_Summary!Q123,""),"") -> 0 | R123: =IFERROR(IF(INDIRECT("'game1 ("&$AD123&")'!$a$2")="R",Season_Summary!R123,""),"") -> 14 | S123: =IFERROR(IF(INDIRECT("'game1 ("&$AD123&")'!$a$2")="R",Season_Summary!S123,""),"") -> 11 | T123: =IFERROR(IF(INDIRECT("'game1 ("&$AD123&")'!$a$2")="R",Season_Summary!T123,""),"") -> 18 - J Caylor, 12 | U123: =IFERROR(IF(INDIRECT("'game1 ("&$AD123&")'!$a$2")="R",Season_Summary!U123,""),"") -> 0 | V123: =IFERROR(IF(INDIRECT("'game1 ("&$AD123&")'!$a$2")="R",Season_Summary!V123,""),"") -> 0 | W123: =IFERROR(IF(INDIRECT("'game1 ("&$AD123&")'!$a$2")="R",Season_Summary!W123,""),"") -> 10 - J Caylor, 12 | X123: =IFERROR(IF(INDIRECT("'game1 ("&$AD123&")'!$a$2")="R",Season_Summary!X123,""),"") -> 0 | Y123: =IFERROR(IF(INDIRECT("'game1 ("&$AD123&")'!$a$2")="R",Season_Summary!Y123,""),"") -> 0 | Z123: =IFERROR(IF(INDIRECT("'game1 ("&$AD123&")'!$a$2")="R",Season_Summary!Z123,""),"") -> 7 - J Claycomb, 10 | AA123: =IFERROR(IF(INDIRECT("'game1 ("&$AD123&")'!$a$2")="R",Season_Summary!AA123,""),"") -> 0 | AB123: =IFERROR(IF(INDIRECT("'game1 ("&$AD123&")'!$a$2")="R",Season_Summary!AB123,""),"") -> 0 | AC123: =IFERROR(IF(INDIRECT("'game1 ("&$AD123&")'!$a$2")="R",Season_Summary!AC123,""),"") -> 0 | AD123: 11
A124: =IFERROR(IF(INDIRECT("'game1 ("&$AD124&")'!$a$2")="R",Season_Summary!A124,""),"") -> 74 - 38 | B124: =IFERROR(IF(INDIRECT("'game1 ("&$AD124&")'!$a$2")="R",Season_Summary!B124,""),"") -> 5 | C124: =IFERROR(IF(INDIRECT("'game1 ("&$AD124&")'!$a$2")="R",Season_Summary!C124,""),"") -> 23 | D124: =IFERROR(IF(INDIRECT("'game1 ("&$AD124&")'!$a$2")="R",Season_Summary!D124,""),"") -> 22% | E124: =IFERROR(IF(INDIRECT("'game1 ("&$AD124&")'!$a$2")="R",Season_Summary!E124,""),"") -> 10 | F124: =IFERROR(IF(INDIRECT("'game1 ("&$AD124&")'!$a$2")="R",Season_Summary!F124,""),"") -> 28 | G124: =IFERROR(IF(INDIRECT("'game1 ("&$AD124&")'!$a$2")="R",Season_Summary!G124,""),"") -> 36% | H124: =IFERROR(IF(INDIRECT("'game1 ("&$AD124&")'!$a$2")="R",Season_Summary!H124,""),"") -> 3 | I124: =IFERROR(IF(INDIRECT("'game1 ("&$AD124&")'!$a$2")="R",Season_Summary!I124,""),"") -> 6 | J124: =IFERROR(IF(INDIRECT("'game1 ("&$AD124&")'!$a$2")="R",Season_Summary!J124,""),"") -> 50% | K124: =IFERROR(IF(INDIRECT("'game1 ("&$AD124&")'!$a$2")="R",Season_Summary!K124,""),"") -> 29% | L124: =IFERROR(IF(INDIRECT("'game1 ("&$AD124&")'!$a$2")="R",Season_Summary!L124,""),"") -> 10 | M124: =IFERROR(IF(INDIRECT("'game1 ("&$AD124&")'!$a$2")="R",Season_Summary!M124,""),"") -> 19 | N124: =IFERROR(IF(INDIRECT("'game1 ("&$AD124&")'!$a$2")="R",Season_Summary!N124,""),"") -> 29 | O124: =IFERROR(IF(INDIRECT("'game1 ("&$AD124&")'!$a$2")="R",Season_Summary!O124,""),"") -> 9 | P124: =IFERROR(IF(INDIRECT("'game1 ("&$AD124&")'!$a$2")="R",Season_Summary!P124,""),"") -> 4 | Q124: =IFERROR(IF(INDIRECT("'game1 ("&$AD124&")'!$a$2")="R",Season_Summary!Q124,""),"") -> 0 | R124: =IFERROR(IF(INDIRECT("'game1 ("&$AD124&")'!$a$2")="R",Season_Summary!R124,""),"") -> 23 | S124: =IFERROR(IF(INDIRECT("'game1 ("&$AD124&")'!$a$2")="R",Season_Summary!S124,""),"") -> 12 | T124: =IFERROR(IF(INDIRECT("'game1 ("&$AD124&")'!$a$2")="R",Season_Summary!T124,""),"") -> 0 | U124: =IFERROR(IF(INDIRECT("'game1 ("&$AD124&")'!$a$2")="R",Season_Summary!U124,""),"") -> 0 | V124: =IFERROR(IF(INDIRECT("'game1 ("&$AD124&")'!$a$2")="R",Season_Summary!V124,""),"") -> 0 | W124: =IFERROR(IF(INDIRECT("'game1 ("&$AD124&")'!$a$2")="R",Season_Summary!W124,""),"") -> 0 | X124: =IFERROR(IF(INDIRECT("'game1 ("&$AD124&")'!$a$2")="R",Season_Summary!X124,""),"") -> 0 | Y124: =IFERROR(IF(INDIRECT("'game1 ("&$AD124&")'!$a$2")="R",Season_Summary!Y124,""),"") -> 0 | Z124: =IFERROR(IF(INDIRECT("'game1 ("&$AD124&")'!$a$2")="R",Season_Summary!Z124,""),"") -> 0 | AA124: =IFERROR(IF(INDIRECT("'game1 ("&$AD124&")'!$a$2")="R",Season_Summary!AA124,""),"") -> 0 | AB124: =IFERROR(IF(INDIRECT("'game1 ("&$AD124&")'!$a$2")="R",Season_Summary!AB124,""),"") -> 0 | AC124: =IFERROR(IF(INDIRECT("'game1 ("&$AD124&")'!$a$2")="R",Season_Summary!AC124,""),"") -> 0 | AD124: 11
A125: =IFERROR(IF(INDIRECT("'game1 ("&$AD125&")'!$a$2")="R",Season_Summary!A125,""),"") -> Wright: 1/20/18 ** | B125: =IFERROR(IF(INDIRECT("'game1 ("&$AD125&")'!$a$2")="R",Season_Summary!B125,""),"") -> 6 | C125: =IFERROR(IF(INDIRECT("'game1 ("&$AD125&")'!$a$2")="R",Season_Summary!C125,""),"") -> 28 | D125: =IFERROR(IF(INDIRECT("'game1 ("&$AD125&")'!$a$2")="R",Season_Summary!D125,""),"") -> 21% | E125: =IFERROR(IF(INDIRECT("'game1 ("&$AD125&")'!$a$2")="R",Season_Summary!E125,""),"") -> 10 | F125: =IFERROR(IF(INDIRECT("'game1 ("&$AD125&")'!$a$2")="R",Season_Summary!F125,""),"") -> 27 | G125: =IFERROR(IF(INDIRECT("'game1 ("&$AD125&")'!$a$2")="R",Season_Summary!G125,""),"") -> 37% | H125: =IFERROR(IF(INDIRECT("'game1 ("&$AD125&")'!$a$2")="R",Season_Summary!H125,""),"") -> 13 | I125: =IFERROR(IF(INDIRECT("'game1 ("&$AD125&")'!$a$2")="R",Season_Summary!I125,""),"") -> 17 | J125: =IFERROR(IF(INDIRECT("'game1 ("&$AD125&")'!$a$2")="R",Season_Summary!J125,""),"") -> 76% | K125: =IFERROR(IF(INDIRECT("'game1 ("&$AD125&")'!$a$2")="R",Season_Summary!K125,""),"") -> 29% | L125: =IFERROR(IF(INDIRECT("'game1 ("&$AD125&")'!$a$2")="R",Season_Summary!L125,""),"") -> 18 | M125: =IFERROR(IF(INDIRECT("'game1 ("&$AD125&")'!$a$2")="R",Season_Summary!M125,""),"") -> 17 | N125: =IFERROR(IF(INDIRECT("'game1 ("&$AD125&")'!$a$2")="R",Season_Summary!N125,""),"") -> 35 | O125: =IFERROR(IF(INDIRECT("'game1 ("&$AD125&")'!$a$2")="R",Season_Summary!O125,""),"") -> 12 | P125: =IFERROR(IF(INDIRECT("'game1 ("&$AD125&")'!$a$2")="R",Season_Summary!P125,""),"") -> 9 | Q125: =IFERROR(IF(INDIRECT("'game1 ("&$AD125&")'!$a$2")="R",Season_Summary!Q125,""),"") -> 1 | R125: =IFERROR(IF(INDIRECT("'game1 ("&$AD125&")'!$a$2")="R",Season_Summary!R125,""),"") -> 21 | S125: =IFERROR(IF(INDIRECT("'game1 ("&$AD125&")'!$a$2")="R",Season_Summary!S125,""),"") -> 20 | T125: =IFERROR(IF(INDIRECT("'game1 ("&$AD125&")'!$a$2")="R",Season_Summary!T125,""),"") -> 18 - D Barritt, 20 | U125: =IFERROR(IF(INDIRECT("'game1 ("&$AD125&")'!$a$2")="R",Season_Summary!U125,""),"") -> 0 | V125: =IFERROR(IF(INDIRECT("'game1 ("&$AD125&")'!$a$2")="R",Season_Summary!V125,""),"") -> 0 | W125: =IFERROR(IF(INDIRECT("'game1 ("&$AD125&")'!$a$2")="R",Season_Summary!W125,""),"") -> 10 - P Watt, 24 | X125: =IFERROR(IF(INDIRECT("'game1 ("&$AD125&")'!$a$2")="R",Season_Summary!X125,""),"") -> 0 | Y125: =IFERROR(IF(INDIRECT("'game1 ("&$AD125&")'!$a$2")="R",Season_Summary!Y125,""),"") -> 0 | Z125: =IFERROR(IF(INDIRECT("'game1 ("&$AD125&")'!$a$2")="R",Season_Summary!Z125,""),"") -> 3 - J Claycomb, 10 | AA125: =IFERROR(IF(INDIRECT("'game1 ("&$AD125&")'!$a$2")="R",Season_Summary!AA125,""),"") -> 0 | AB125: =IFERROR(IF(INDIRECT("'game1 ("&$AD125&")'!$a$2")="R",Season_Summary!AB125,""),"") -> 0 | AC125: =IFERROR(IF(INDIRECT("'game1 ("&$AD125&")'!$a$2")="R",Season_Summary!AC125,""),"") -> 0 | AD125: 12
A126: =IFERROR(IF(INDIRECT("'game1 ("&$AD126&")'!$a$2")="R",Season_Summary!A126,""),"") -> 51 - 66 | B126: =IFERROR(IF(INDIRECT("'game1 ("&$AD126&")'!$a$2")="R",Season_Summary!B126,""),"") -> 1 | C126: =IFERROR(IF(INDIRECT("'game1 ("&$AD126&")'!$a$2")="R",Season_Summary!C126,""),"") -> 6 | D126: =IFERROR(IF(INDIRECT("'game1 ("&$AD126&")'!$a$2")="R",Season_Summary!D126,""),"") -> 17% | E126: =IFERROR(IF(INDIRECT("'game1 ("&$AD126&")'!$a$2")="R",Season_Summary!E126,""),"") -> 26 | F126: =IFERROR(IF(INDIRECT("'game1 ("&$AD126&")'!$a$2")="R",Season_Summary!F126,""),"") -> 42 | G126: =IFERROR(IF(INDIRECT("'game1 ("&$AD126&")'!$a$2")="R",Season_Summary!G126,""),"") -> 62% | H126: =IFERROR(IF(INDIRECT("'game1 ("&$AD126&")'!$a$2")="R",Season_Summary!H126,""),"") -> 11 | I126: =IFERROR(IF(INDIRECT("'game1 ("&$AD126&")'!$a$2")="R",Season_Summary!I126,""),"") -> 23 | J126: =IFERROR(IF(INDIRECT("'game1 ("&$AD126&")'!$a$2")="R",Season_Summary!J126,""),"") -> 48% | K126: =IFERROR(IF(INDIRECT("'game1 ("&$AD126&")'!$a$2")="R",Season_Summary!K126,""),"") -> 56% | L126: =IFERROR(IF(INDIRECT("'game1 ("&$AD126&")'!$a$2")="R",Season_Summary!L126,""),"") -> 10 | M126: =IFERROR(IF(INDIRECT("'game1 ("&$AD126&")'!$a$2")="R",Season_Summary!M126,""),"") -> 24 | N126: =IFERROR(IF(INDIRECT("'game1 ("&$AD126&")'!$a$2")="R",Season_Summary!N126,""),"") -> 34 | O126: =IFERROR(IF(INDIRECT("'game1 ("&$AD126&")'!$a$2")="R",Season_Summary!O126,""),"") -> 13 | P126: =IFERROR(IF(INDIRECT("'game1 ("&$AD126&")'!$a$2")="R",Season_Summary!P126,""),"") -> 11 | Q126: =IFERROR(IF(INDIRECT("'game1 ("&$AD126&")'!$a$2")="R",Season_Summary!Q126,""),"") -> 3 | R126: =IFERROR(IF(INDIRECT("'game1 ("&$AD126&")'!$a$2")="R",Season_Summary!R126,""),"") -> 19 | S126: =IFERROR(IF(INDIRECT("'game1 ("&$AD126&")'!$a$2")="R",Season_Summary!S126,""),"") -> 17 | T126: =IFERROR(IF(INDIRECT("'game1 ("&$AD126&")'!$a$2")="R",Season_Summary!T126,""),"") -> 0 | U126: =IFERROR(IF(INDIRECT("'game1 ("&$AD126&")'!$a$2")="R",Season_Summary!U126,""),"") -> 0 | V126: =IFERROR(IF(INDIRECT("'game1 ("&$AD126&")'!$a$2")="R",Season_Summary!V126,""),"") -> 0 | W126: =IFERROR(IF(INDIRECT("'game1 ("&$AD126&")'!$a$2")="R",Season_Summary!W126,""),"") -> 0 | X126: =IFERROR(IF(INDIRECT("'game1 ("&$AD126&")'!$a$2")="R",Season_Summary!X126,""),"") -> 0 | Y126: =IFERROR(IF(INDIRECT("'game1 ("&$AD126&")'!$a$2")="R",Season_Summary!Y126,""),"") -> 0 | Z126: =IFERROR(IF(INDIRECT("'game1 ("&$AD126&")'!$a$2")="R",Season_Summary!Z126,""),"") -> 0 | AA126: =IFERROR(IF(INDIRECT("'game1 ("&$AD126&")'!$a$2")="R",Season_Summary!AA126,""),"") -> 0 | AB126: =IFERROR(IF(INDIRECT("'game1 ("&$AD126&")'!$a$2")="R",Season_Summary!AB126,""),"") -> 0 | AC126: =IFERROR(IF(INDIRECT("'game1 ("&$AD126&")'!$a$2")="R",Season_Summary!AC126,""),"") -> 0 | AD126: 12
A127: =IFERROR(IF(INDIRECT("'game1 ("&$AD127&")'!$a$2")="R",Season_Summary!A127,""),"") -> Sundance: 1/25/18 ** | B127: =IFERROR(IF(INDIRECT("'game1 ("&$AD127&")'!$a$2")="R",Season_Summary!B127,""),"") -> 10 | C127: =IFERROR(IF(INDIRECT("'game1 ("&$AD127&")'!$a$2")="R",Season_Summary!C127,""),"") -> 29 | D127: =IFERROR(IF(INDIRECT("'game1 ("&$AD127&")'!$a$2")="R",Season_Summary!D127,""),"") -> 34% | E127: =IFERROR(IF(INDIRECT("'game1 ("&$AD127&")'!$a$2")="R",Season_Summary!E127,""),"") -> 18 | F127: =IFERROR(IF(INDIRECT("'game1 ("&$AD127&")'!$a$2")="R",Season_Summary!F127,""),"") -> 30 | G127: =IFERROR(IF(INDIRECT("'game1 ("&$AD127&")'!$a$2")="R",Season_Summary!G127,""),"") -> 60% | H127: =IFERROR(IF(INDIRECT("'game1 ("&$AD127&")'!$a$2")="R",Season_Summary!H127,""),"") -> 10 | I127: =IFERROR(IF(INDIRECT("'game1 ("&$AD127&")'!$a$2")="R",Season_Summary!I127,""),"") -> 13 | J127: =IFERROR(IF(INDIRECT("'game1 ("&$AD127&")'!$a$2")="R",Season_Summary!J127,""),"") -> 77% | K127: =IFERROR(IF(INDIRECT("'game1 ("&$AD127&")'!$a$2")="R",Season_Summary!K127,""),"") -> 47% | L127: =IFERROR(IF(INDIRECT("'game1 ("&$AD127&")'!$a$2")="R",Season_Summary!L127,""),"") -> 8 | M127: =IFERROR(IF(INDIRECT("'game1 ("&$AD127&")'!$a$2")="R",Season_Summary!M127,""),"") -> 25 | N127: =IFERROR(IF(INDIRECT("'game1 ("&$AD127&")'!$a$2")="R",Season_Summary!N127,""),"") -> 33 | O127: =IFERROR(IF(INDIRECT("'game1 ("&$AD127&")'!$a$2")="R",Season_Summary!O127,""),"") -> 21 | P127: =IFERROR(IF(INDIRECT("'game1 ("&$AD127&")'!$a$2")="R",Season_Summary!P127,""),"") -> 16 | Q127: =IFERROR(IF(INDIRECT("'game1 ("&$AD127&")'!$a$2")="R",Season_Summary!Q127,""),"") -> 0 | R127: =IFERROR(IF(INDIRECT("'game1 ("&$AD127&")'!$a$2")="R",Season_Summary!R127,""),"") -> 14 | S127: =IFERROR(IF(INDIRECT("'game1 ("&$AD127&")'!$a$2")="R",Season_Summary!S127,""),"") -> 22 | T127: =IFERROR(IF(INDIRECT("'game1 ("&$AD127&")'!$a$2")="R",Season_Summary!T127,""),"") -> 29 - P Watt, 24 | U127: =IFERROR(IF(INDIRECT("'game1 ("&$AD127&")'!$a$2")="R",Season_Summary!U127,""),"") -> 0 | V127: =IFERROR(IF(INDIRECT("'game1 ("&$AD127&")'!$a$2")="R",Season_Summary!V127,""),"") -> 0 | W127: =IFERROR(IF(INDIRECT("'game1 ("&$AD127&")'!$a$2")="R",Season_Summary!W127,""),"") -> 7 - C Louderback, 23 | X127: =IFERROR(IF(INDIRECT("'game1 ("&$AD127&")'!$a$2")="R",Season_Summary!X127,""),"") -> 0 | Y127: =IFERROR(IF(INDIRECT("'game1 ("&$AD127&")'!$a$2")="R",Season_Summary!Y127,""),"") -> 0 | Z127: =IFERROR(IF(INDIRECT("'game1 ("&$AD127&")'!$a$2")="R",Season_Summary!Z127,""),"") -> 5 - C Louderback, 23 | AA127: =IFERROR(IF(INDIRECT("'game1 ("&$AD127&")'!$a$2")="R",Season_Summary!AA127,""),"") -> 0 | AB127: =IFERROR(IF(INDIRECT("'game1 ("&$AD127&")'!$a$2")="R",Season_Summary!AB127,""),"") -> 0 | AC127: =IFERROR(IF(INDIRECT("'game1 ("&$AD127&")'!$a$2")="R",Season_Summary!AC127,""),"") -> 0 | AD127: 13
A128: =IFERROR(IF(INDIRECT("'game1 ("&$AD128&")'!$a$2")="R",Season_Summary!A128,""),"") -> 76 - 47 | B128: =IFERROR(IF(INDIRECT("'game1 ("&$AD128&")'!$a$2")="R",Season_Summary!B128,""),"") -> 6 | C128: =IFERROR(IF(INDIRECT("'game1 ("&$AD128&")'!$a$2")="R",Season_Summary!C128,""),"") -> 18 | D128: =IFERROR(IF(INDIRECT("'game1 ("&$AD128&")'!$a$2")="R",Season_Summary!D128,""),"") -> 33% | E128: =IFERROR(IF(INDIRECT("'game1 ("&$AD128&")'!$a$2")="R",Season_Summary!E128,""),"") -> 9 | F128: =IFERROR(IF(INDIRECT("'game1 ("&$AD128&")'!$a$2")="R",Season_Summary!F128,""),"") -> 23 | G128: =IFERROR(IF(INDIRECT("'game1 ("&$AD128&")'!$a$2")="R",Season_Summary!G128,""),"") -> 39% | H128: =IFERROR(IF(INDIRECT("'game1 ("&$AD128&")'!$a$2")="R",Season_Summary!H128,""),"") -> 11 | I128: =IFERROR(IF(INDIRECT("'game1 ("&$AD128&")'!$a$2")="R",Season_Summary!I128,""),"") -> 19 | J128: =IFERROR(IF(INDIRECT("'game1 ("&$AD128&")'!$a$2")="R",Season_Summary!J128,""),"") -> 58% | K128: =IFERROR(IF(INDIRECT("'game1 ("&$AD128&")'!$a$2")="R",Season_Summary!K128,""),"") -> 37% | L128: =IFERROR(IF(INDIRECT("'game1 ("&$AD128&")'!$a$2")="R",Season_Summary!L128,""),"") -> 5 | M128: =IFERROR(IF(INDIRECT("'game1 ("&$AD128&")'!$a$2")="R",Season_Summary!M128,""),"") -> 24 | N128: =IFERROR(IF(INDIRECT("'game1 ("&$AD128&")'!$a$2")="R",Season_Summary!N128,""),"") -> 29 | O128: =IFERROR(IF(INDIRECT("'game1 ("&$AD128&")'!$a$2")="R",Season_Summary!O128,""),"") -> 9 | P128: =IFERROR(IF(INDIRECT("'game1 ("&$AD128&")'!$a$2")="R",Season_Summary!P128,""),"") -> 3 | Q128: =IFERROR(IF(INDIRECT("'game1 ("&$AD128&")'!$a$2")="R",Season_Summary!Q128,""),"") -> 0 | R128: =IFERROR(IF(INDIRECT("'game1 ("&$AD128&")'!$a$2")="R",Season_Summary!R128,""),"") -> 26 | S128: =IFERROR(IF(INDIRECT("'game1 ("&$AD128&")'!$a$2")="R",Season_Summary!S128,""),"") -> 13 | T128: =IFERROR(IF(INDIRECT("'game1 ("&$AD128&")'!$a$2")="R",Season_Summary!T128,""),"") -> 0 | U128: =IFERROR(IF(INDIRECT("'game1 ("&$AD128&")'!$a$2")="R",Season_Summary!U128,""),"") -> 0 | V128: =IFERROR(IF(INDIRECT("'game1 ("&$AD128&")'!$a$2")="R",Season_Summary!V128,""),"") -> 0 | W128: =IFERROR(IF(INDIRECT("'game1 ("&$AD128&")'!$a$2")="R",Season_Summary!W128,""),"") -> 0 | X128: =IFERROR(IF(INDIRECT("'game1 ("&$AD128&")'!$a$2")="R",Season_Summary!X128,""),"") -> 0 | Y128: =IFERROR(IF(INDIRECT("'game1 ("&$AD128&")'!$a$2")="R",Season_Summary!Y128,""),"") -> 0 | Z128: =IFERROR(IF(INDIRECT("'game1 ("&$AD128&")'!$a$2")="R",Season_Summary!Z128,""),"") -> 0 | AA128: =IFERROR(IF(INDIRECT("'game1 ("&$AD128&")'!$a$2")="R",Season_Summary!AA128,""),"") -> 0 | AB128: =IFERROR(IF(INDIRECT("'game1 ("&$AD128&")'!$a$2")="R",Season_Summary!AB128,""),"") -> 0 | AC128: =IFERROR(IF(INDIRECT("'game1 ("&$AD128&")'!$a$2")="R",Season_Summary!AC128,""),"") -> 0 | AD128: 13
A129: =IFERROR(IF(INDIRECT("'game1 ("&$AD129&")'!$a$2")="R",Season_Summary!A129,""),"") -> Big Horn: 1/27/18 ** | B129: =IFERROR(IF(INDIRECT("'game1 ("&$AD129&")'!$a$2")="R",Season_Summary!B129,""),"") -> 11 | C129: =IFERROR(IF(INDIRECT("'game1 ("&$AD129&")'!$a$2")="R",Season_Summary!C129,""),"") -> 24 | D129: =IFERROR(IF(INDIRECT("'game1 ("&$AD129&")'!$a$2")="R",Season_Summary!D129,""),"") -> 46% | E129: =IFERROR(IF(INDIRECT("'game1 ("&$AD129&")'!$a$2")="R",Season_Summary!E129,""),"") -> 14 | F129: =IFERROR(IF(INDIRECT("'game1 ("&$AD129&")'!$a$2")="R",Season_Summary!F129,""),"") -> 37 | G129: =IFERROR(IF(INDIRECT("'game1 ("&$AD129&")'!$a$2")="R",Season_Summary!G129,""),"") -> 38% | H129: =IFERROR(IF(INDIRECT("'game1 ("&$AD129&")'!$a$2")="R",Season_Summary!H129,""),"") -> 4 | I129: =IFERROR(IF(INDIRECT("'game1 ("&$AD129&")'!$a$2")="R",Season_Summary!I129,""),"") -> 10 | J129: =IFERROR(IF(INDIRECT("'game1 ("&$AD129&")'!$a$2")="R",Season_Summary!J129,""),"") -> 40% | K129: =IFERROR(IF(INDIRECT("'game1 ("&$AD129&")'!$a$2")="R",Season_Summary!K129,""),"") -> 41% | L129: =IFERROR(IF(INDIRECT("'game1 ("&$AD129&")'!$a$2")="R",Season_Summary!L129,""),"") -> 15 | M129: =IFERROR(IF(INDIRECT("'game1 ("&$AD129&")'!$a$2")="R",Season_Summary!M129,""),"") -> 26 | N129: =IFERROR(IF(INDIRECT("'game1 ("&$AD129&")'!$a$2")="R",Season_Summary!N129,""),"") -> 41 | O129: =IFERROR(IF(INDIRECT("'game1 ("&$AD129&")'!$a$2")="R",Season_Summary!O129,""),"") -> 20 | P129: =IFERROR(IF(INDIRECT("'game1 ("&$AD129&")'!$a$2")="R",Season_Summary!P129,""),"") -> 8 | Q129: =IFERROR(IF(INDIRECT("'game1 ("&$AD129&")'!$a$2")="R",Season_Summary!Q129,""),"") -> 3 | R129: =IFERROR(IF(INDIRECT("'game1 ("&$AD129&")'!$a$2")="R",Season_Summary!R129,""),"") -> 19 | S129: =IFERROR(IF(INDIRECT("'game1 ("&$AD129&")'!$a$2")="R",Season_Summary!S129,""),"") -> 9 | T129: =IFERROR(IF(INDIRECT("'game1 ("&$AD129&")'!$a$2")="R",Season_Summary!T129,""),"") -> 23 - C Louderback, 23 | U129: =IFERROR(IF(INDIRECT("'game1 ("&$AD129&")'!$a$2")="R",Season_Summary!U129,""),"") -> 0 | V129: =IFERROR(IF(INDIRECT("'game1 ("&$AD129&")'!$a$2")="R",Season_Summary!V129,""),"") -> 0 | W129: =IFERROR(IF(INDIRECT("'game1 ("&$AD129&")'!$a$2")="R",Season_Summary!W129,""),"") -> 13 - C Louderback, 23 | X129: =IFERROR(IF(INDIRECT("'game1 ("&$AD129&")'!$a$2")="R",Season_Summary!X129,""),"") -> 0 | Y129: =IFERROR(IF(INDIRECT("'game1 ("&$AD129&")'!$a$2")="R",Season_Summary!Y129,""),"") -> 0 | Z129: =IFERROR(IF(INDIRECT("'game1 ("&$AD129&")'!$a$2")="R",Season_Summary!Z129,""),"") -> 7 - D Butts, 14 | AA129: =IFERROR(IF(INDIRECT("'game1 ("&$AD129&")'!$a$2")="R",Season_Summary!AA129,""),"") -> 0 | AB129: =IFERROR(IF(INDIRECT("'game1 ("&$AD129&")'!$a$2")="R",Season_Summary!AB129,""),"") -> 0 | AC129: =IFERROR(IF(INDIRECT("'game1 ("&$AD129&")'!$a$2")="R",Season_Summary!AC129,""),"") -> 0 | AD129: 14
A130: =IFERROR(IF(INDIRECT("'game1 ("&$AD130&")'!$a$2")="R",Season_Summary!A130,""),"") -> 65 - 66 | B130: =IFERROR(IF(INDIRECT("'game1 ("&$AD130&")'!$a$2")="R",Season_Summary!B130,""),"") -> 7 | C130: =IFERROR(IF(INDIRECT("'game1 ("&$AD130&")'!$a$2")="R",Season_Summary!C130,""),"") -> 18 | D130: =IFERROR(IF(INDIRECT("'game1 ("&$AD130&")'!$a$2")="R",Season_Summary!D130,""),"") -> 39% | E130: =IFERROR(IF(INDIRECT("'game1 ("&$AD130&")'!$a$2")="R",Season_Summary!E130,""),"") -> 20 | F130: =IFERROR(IF(INDIRECT("'game1 ("&$AD130&")'!$a$2")="R",Season_Summary!F130,""),"") -> 55 | G130: =IFERROR(IF(INDIRECT("'game1 ("&$AD130&")'!$a$2")="R",Season_Summary!G130,""),"") -> 36% | H130: =IFERROR(IF(INDIRECT("'game1 ("&$AD130&")'!$a$2")="R",Season_Summary!H130,""),"") -> 5 | I130: =IFERROR(IF(INDIRECT("'game1 ("&$AD130&")'!$a$2")="R",Season_Summary!I130,""),"") -> 7 | J130: =IFERROR(IF(INDIRECT("'game1 ("&$AD130&")'!$a$2")="R",Season_Summary!J130,""),"") -> 71% | K130: =IFERROR(IF(INDIRECT("'game1 ("&$AD130&")'!$a$2")="R",Season_Summary!K130,""),"") -> 37% | L130: =IFERROR(IF(INDIRECT("'game1 ("&$AD130&")'!$a$2")="R",Season_Summary!L130,""),"") -> 20 | M130: =IFERROR(IF(INDIRECT("'game1 ("&$AD130&")'!$a$2")="R",Season_Summary!M130,""),"") -> 23 | N130: =IFERROR(IF(INDIRECT("'game1 ("&$AD130&")'!$a$2")="R",Season_Summary!N130,""),"") -> 43 | O130: =IFERROR(IF(INDIRECT("'game1 ("&$AD130&")'!$a$2")="R",Season_Summary!O130,""),"") -> 13 | P130: =IFERROR(IF(INDIRECT("'game1 ("&$AD130&")'!$a$2")="R",Season_Summary!P130,""),"") -> 12 | Q130: =IFERROR(IF(INDIRECT("'game1 ("&$AD130&")'!$a$2")="R",Season_Summary!Q130,""),"") -> 5 | R130: =IFERROR(IF(INDIRECT("'game1 ("&$AD130&")'!$a$2")="R",Season_Summary!R130,""),"") -> 13 | S130: =IFERROR(IF(INDIRECT("'game1 ("&$AD130&")'!$a$2")="R",Season_Summary!S130,""),"") -> 10 | T130: =IFERROR(IF(INDIRECT("'game1 ("&$AD130&")'!$a$2")="R",Season_Summary!T130,""),"") -> 0 | U130: =IFERROR(IF(INDIRECT("'game1 ("&$AD130&")'!$a$2")="R",Season_Summary!U130,""),"") -> 0 | V130: =IFERROR(IF(INDIRECT("'game1 ("&$AD130&")'!$a$2")="R",Season_Summary!V130,""),"") -> 0 | W130: =IFERROR(IF(INDIRECT("'game1 ("&$AD130&")'!$a$2")="R",Season_Summary!W130,""),"") -> 0 | X130: =IFERROR(IF(INDIRECT("'game1 ("&$AD130&")'!$a$2")="R",Season_Summary!X130,""),"") -> 0 | Y130: =IFERROR(IF(INDIRECT("'game1 ("&$AD130&")'!$a$2")="R",Season_Summary!Y130,""),"") -> 0 | Z130: =IFERROR(IF(INDIRECT("'game1 ("&$AD130&")'!$a$2")="R",Season_Summary!Z130,""),"") -> 0 | AA130: =IFERROR(IF(INDIRECT("'game1 ("&$AD130&")'!$a$2")="R",Season_Summary!AA130,""),"") -> 0 | AB130: =IFERROR(IF(INDIRECT("'game1 ("&$AD130&")'!$a$2")="R",Season_Summary!AB130,""),"") -> 0 | AC130: =IFERROR(IF(INDIRECT("'game1 ("&$AD130&")'!$a$2")="R",Season_Summary!AC130,""),"") -> 0 | AD130: 14
A131: =IFERROR(IF(INDIRECT("'game1 ("&$AD131&")'!$a$2")="R",Season_Summary!A131,""),"") -> Moorcroft: 2/1/18 ** | B131: =IFERROR(IF(INDIRECT("'game1 ("&$AD131&")'!$a$2")="R",Season_Summary!B131,""),"") -> 1 | C131: =IFERROR(IF(INDIRECT("'game1 ("&$AD131&")'!$a$2")="R",Season_Summary!C131,""),"") -> 17 | D131: =IFERROR(IF(INDIRECT("'game1 ("&$AD131&")'!$a$2")="R",Season_Summary!D131,""),"") -> 6% | E131: =IFERROR(IF(INDIRECT("'game1 ("&$AD131&")'!$a$2")="R",Season_Summary!E131,""),"") -> 27 | F131: =IFERROR(IF(INDIRECT("'game1 ("&$AD131&")'!$a$2")="R",Season_Summary!F131,""),"") -> 43 | G131: =IFERROR(IF(INDIRECT("'game1 ("&$AD131&")'!$a$2")="R",Season_Summary!G131,""),"") -> 63% | H131: =IFERROR(IF(INDIRECT("'game1 ("&$AD131&")'!$a$2")="R",Season_Summary!H131,""),"") -> 7 | I131: =IFERROR(IF(INDIRECT("'game1 ("&$AD131&")'!$a$2")="R",Season_Summary!I131,""),"") -> 11 | J131: =IFERROR(IF(INDIRECT("'game1 ("&$AD131&")'!$a$2")="R",Season_Summary!J131,""),"") -> 64% | K131: =IFERROR(IF(INDIRECT("'game1 ("&$AD131&")'!$a$2")="R",Season_Summary!K131,""),"") -> 47% | L131: =IFERROR(IF(INDIRECT("'game1 ("&$AD131&")'!$a$2")="R",Season_Summary!L131,""),"") -> 14 | M131: =IFERROR(IF(INDIRECT("'game1 ("&$AD131&")'!$a$2")="R",Season_Summary!M131,""),"") -> 25 | N131: =IFERROR(IF(INDIRECT("'game1 ("&$AD131&")'!$a$2")="R",Season_Summary!N131,""),"") -> 39 | O131: =IFERROR(IF(INDIRECT("'game1 ("&$AD131&")'!$a$2")="R",Season_Summary!O131,""),"") -> 19 | P131: =IFERROR(IF(INDIRECT("'game1 ("&$AD131&")'!$a$2")="R",Season_Summary!P131,""),"") -> 13 | Q131: =IFERROR(IF(INDIRECT("'game1 ("&$AD131&")'!$a$2")="R",Season_Summary!Q131,""),"") -> 5 | R131: =IFERROR(IF(INDIRECT("'game1 ("&$AD131&")'!$a$2")="R",Season_Summary!R131,""),"") -> 11 | S131: =IFERROR(IF(INDIRECT("'game1 ("&$AD131&")'!$a$2")="R",Season_Summary!S131,""),"") -> 9 | T131: =IFERROR(IF(INDIRECT("'game1 ("&$AD131&")'!$a$2")="R",Season_Summary!T131,""),"") -> 27 - C Louderback, 23 | U131: =IFERROR(IF(INDIRECT("'game1 ("&$AD131&")'!$a$2")="R",Season_Summary!U131,""),"") -> 0 | V131: =IFERROR(IF(INDIRECT("'game1 ("&$AD131&")'!$a$2")="R",Season_Summary!V131,""),"") -> 0 | W131: =IFERROR(IF(INDIRECT("'game1 ("&$AD131&")'!$a$2")="R",Season_Summary!W131,""),"") -> 9 - P Watt, 24 | X131: =IFERROR(IF(INDIRECT("'game1 ("&$AD131&")'!$a$2")="R",Season_Summary!X131,""),"") -> 0 | Y131: =IFERROR(IF(INDIRECT("'game1 ("&$AD131&")'!$a$2")="R",Season_Summary!Y131,""),"") -> 0 | Z131: =IFERROR(IF(INDIRECT("'game1 ("&$AD131&")'!$a$2")="R",Season_Summary!Z131,""),"") -> 7 - D Barritt, 20 | AA131: =IFERROR(IF(INDIRECT("'game1 ("&$AD131&")'!$a$2")="R",Season_Summary!AA131,""),"") -> 0 | AB131: =IFERROR(IF(INDIRECT("'game1 ("&$AD131&")'!$a$2")="R",Season_Summary!AB131,""),"") -> 0 | AC131: =IFERROR(IF(INDIRECT("'game1 ("&$AD131&")'!$a$2")="R",Season_Summary!AC131,""),"") -> 0 | AD131: 15
A132: =IFERROR(IF(INDIRECT("'game1 ("&$AD132&")'!$a$2")="R",Season_Summary!A132,""),"") -> 64 - 41 | B132: =IFERROR(IF(INDIRECT("'game1 ("&$AD132&")'!$a$2")="R",Season_Summary!B132,""),"") -> 5 | C132: =IFERROR(IF(INDIRECT("'game1 ("&$AD132&")'!$a$2")="R",Season_Summary!C132,""),"") -> 23 | D132: =IFERROR(IF(INDIRECT("'game1 ("&$AD132&")'!$a$2")="R",Season_Summary!D132,""),"") -> 22% | E132: =IFERROR(IF(INDIRECT("'game1 ("&$AD132&")'!$a$2")="R",Season_Summary!E132,""),"") -> 12 | F132: =IFERROR(IF(INDIRECT("'game1 ("&$AD132&")'!$a$2")="R",Season_Summary!F132,""),"") -> 27 | G132: =IFERROR(IF(INDIRECT("'game1 ("&$AD132&")'!$a$2")="R",Season_Summary!G132,""),"") -> 44% | H132: =IFERROR(IF(INDIRECT("'game1 ("&$AD132&")'!$a$2")="R",Season_Summary!H132,""),"") -> 2 | I132: =IFERROR(IF(INDIRECT("'game1 ("&$AD132&")'!$a$2")="R",Season_Summary!I132,""),"") -> 7 | J132: =IFERROR(IF(INDIRECT("'game1 ("&$AD132&")'!$a$2")="R",Season_Summary!J132,""),"") -> 29% | K132: =IFERROR(IF(INDIRECT("'game1 ("&$AD132&")'!$a$2")="R",Season_Summary!K132,""),"") -> 34% | L132: =IFERROR(IF(INDIRECT("'game1 ("&$AD132&")'!$a$2")="R",Season_Summary!L132,""),"") -> 9 | M132: =IFERROR(IF(INDIRECT("'game1 ("&$AD132&")'!$a$2")="R",Season_Summary!M132,""),"") -> 20 | N132: =IFERROR(IF(INDIRECT("'game1 ("&$AD132&")'!$a$2")="R",Season_Summary!N132,""),"") -> 29 | O132: =IFERROR(IF(INDIRECT("'game1 ("&$AD132&")'!$a$2")="R",Season_Summary!O132,""),"") -> 7 | P132: =IFERROR(IF(INDIRECT("'game1 ("&$AD132&")'!$a$2")="R",Season_Summary!P132,""),"") -> 4 | Q132: =IFERROR(IF(INDIRECT("'game1 ("&$AD132&")'!$a$2")="R",Season_Summary!Q132,""),"") -> 0 | R132: =IFERROR(IF(INDIRECT("'game1 ("&$AD132&")'!$a$2")="R",Season_Summary!R132,""),"") -> 20 | S132: =IFERROR(IF(INDIRECT("'game1 ("&$AD132&")'!$a$2")="R",Season_Summary!S132,""),"") -> 9 | T132: =IFERROR(IF(INDIRECT("'game1 ("&$AD132&")'!$a$2")="R",Season_Summary!T132,""),"") -> 0 | U132: =IFERROR(IF(INDIRECT("'game1 ("&$AD132&")'!$a$2")="R",Season_Summary!U132,""),"") -> 0 | V132: =IFERROR(IF(INDIRECT("'game1 ("&$AD132&")'!$a$2")="R",Season_Summary!V132,""),"") -> 0 | W132: =IFERROR(IF(INDIRECT("'game1 ("&$AD132&")'!$a$2")="R",Season_Summary!W132,""),"") -> 0 | X132: =IFERROR(IF(INDIRECT("'game1 ("&$AD132&")'!$a$2")="R",Season_Summary!X132,""),"") -> 0 | Y132: =IFERROR(IF(INDIRECT("'game1 ("&$AD132&")'!$a$2")="R",Season_Summary!Y132,""),"") -> 0 | Z132: =IFERROR(IF(INDIRECT("'game1 ("&$AD132&")'!$a$2")="R",Season_Summary!Z132,""),"") -> 0 | AA132: =IFERROR(IF(INDIRECT("'game1 ("&$AD132&")'!$a$2")="R",Season_Summary!AA132,""),"") -> 0 | AB132: =IFERROR(IF(INDIRECT("'game1 ("&$AD132&")'!$a$2")="R",Season_Summary!AB132,""),"") -> 0 | AC132: =IFERROR(IF(INDIRECT("'game1 ("&$AD132&")'!$a$2")="R",Season_Summary!AC132,""),"") -> 0 | AD132: 15
A133: =IFERROR(IF(INDIRECT("'game1 ("&$AD133&")'!$a$2")="R",Season_Summary!A133,""),"") -> Tongue River: 2/2/18 ** | B133: =IFERROR(IF(INDIRECT("'game1 ("&$AD133&")'!$a$2")="R",Season_Summary!B133,""),"") -> 8 | C133: =IFERROR(IF(INDIRECT("'game1 ("&$AD133&")'!$a$2")="R",Season_Summary!C133,""),"") -> 24 | D133: =IFERROR(IF(INDIRECT("'game1 ("&$AD133&")'!$a$2")="R",Season_Summary!D133,""),"") -> 33% | E133: =IFERROR(IF(INDIRECT("'game1 ("&$AD133&")'!$a$2")="R",Season_Summary!E133,""),"") -> 27 | F133: =IFERROR(IF(INDIRECT("'game1 ("&$AD133&")'!$a$2")="R",Season_Summary!F133,""),"") -> 38 | G133: =IFERROR(IF(INDIRECT("'game1 ("&$AD133&")'!$a$2")="R",Season_Summary!G133,""),"") -> 71% | H133: =IFERROR(IF(INDIRECT("'game1 ("&$AD133&")'!$a$2")="R",Season_Summary!H133,""),"") -> 5 | I133: =IFERROR(IF(INDIRECT("'game1 ("&$AD133&")'!$a$2")="R",Season_Summary!I133,""),"") -> 12 | J133: =IFERROR(IF(INDIRECT("'game1 ("&$AD133&")'!$a$2")="R",Season_Summary!J133,""),"") -> 42% | K133: =IFERROR(IF(INDIRECT("'game1 ("&$AD133&")'!$a$2")="R",Season_Summary!K133,""),"") -> 56% | L133: =IFERROR(IF(INDIRECT("'game1 ("&$AD133&")'!$a$2")="R",Season_Summary!L133,""),"") -> 12 | M133: =IFERROR(IF(INDIRECT("'game1 ("&$AD133&")'!$a$2")="R",Season_Summary!M133,""),"") -> 18 | N133: =IFERROR(IF(INDIRECT("'game1 ("&$AD133&")'!$a$2")="R",Season_Summary!N133,""),"") -> 30 | O133: =IFERROR(IF(INDIRECT("'game1 ("&$AD133&")'!$a$2")="R",Season_Summary!O133,""),"") -> 28 | P133: =IFERROR(IF(INDIRECT("'game1 ("&$AD133&")'!$a$2")="R",Season_Summary!P133,""),"") -> 13 | Q133: =IFERROR(IF(INDIRECT("'game1 ("&$AD133&")'!$a$2")="R",Season_Summary!Q133,""),"") -> 1 | R133: =IFERROR(IF(INDIRECT("'game1 ("&$AD133&")'!$a$2")="R",Season_Summary!R133,""),"") -> 14 | S133: =IFERROR(IF(INDIRECT("'game1 ("&$AD133&")'!$a$2")="R",Season_Summary!S133,""),"") -> 10 | T133: =IFERROR(IF(INDIRECT("'game1 ("&$AD133&")'!$a$2")="R",Season_Summary!T133,""),"") -> 25 - C Louderback, 23 | U133: =IFERROR(IF(INDIRECT("'game1 ("&$AD133&")'!$a$2")="R",Season_Summary!U133,""),"") -> 0 | V133: =IFERROR(IF(INDIRECT("'game1 ("&$AD133&")'!$a$2")="R",Season_Summary!V133,""),"") -> 0 | W133: =IFERROR(IF(INDIRECT("'game1 ("&$AD133&")'!$a$2")="R",Season_Summary!W133,""),"") -> 8 - C Louderback, 23 | X133: =IFERROR(IF(INDIRECT("'game1 ("&$AD133&")'!$a$2")="R",Season_Summary!X133,""),"") -> 0 | Y133: =IFERROR(IF(INDIRECT("'game1 ("&$AD133&")'!$a$2")="R",Season_Summary!Y133,""),"") -> 0 | Z133: =IFERROR(IF(INDIRECT("'game1 ("&$AD133&")'!$a$2")="R",Season_Summary!Z133,""),"") -> 7 - D Butts, 14 | AA133: =IFERROR(IF(INDIRECT("'game1 ("&$AD133&")'!$a$2")="R",Season_Summary!AA133,""),"") -> 0 | AB133: =IFERROR(IF(INDIRECT("'game1 ("&$AD133&")'!$a$2")="R",Season_Summary!AB133,""),"") -> 0 | AC133: =IFERROR(IF(INDIRECT("'game1 ("&$AD133&")'!$a$2")="R",Season_Summary!AC133,""),"") -> 0 | AD133: 16
A134: =IFERROR(IF(INDIRECT("'game1 ("&$AD134&")'!$a$2")="R",Season_Summary!A134,""),"") -> 83 - 65 | B134: =IFERROR(IF(INDIRECT("'game1 ("&$AD134&")'!$a$2")="R",Season_Summary!B134,""),"") -> 6 | C134: =IFERROR(IF(INDIRECT("'game1 ("&$AD134&")'!$a$2")="R",Season_Summary!C134,""),"") -> 16 | D134: =IFERROR(IF(INDIRECT("'game1 ("&$AD134&")'!$a$2")="R",Season_Summary!D134,""),"") -> 38% | E134: =IFERROR(IF(INDIRECT("'game1 ("&$AD134&")'!$a$2")="R",Season_Summary!E134,""),"") -> 19 | F134: =IFERROR(IF(INDIRECT("'game1 ("&$AD134&")'!$a$2")="R",Season_Summary!F134,""),"") -> 42 | G134: =IFERROR(IF(INDIRECT("'game1 ("&$AD134&")'!$a$2")="R",Season_Summary!G134,""),"") -> 45% | H134: =IFERROR(IF(INDIRECT("'game1 ("&$AD134&")'!$a$2")="R",Season_Summary!H134,""),"") -> 9 | I134: =IFERROR(IF(INDIRECT("'game1 ("&$AD134&")'!$a$2")="R",Season_Summary!I134,""),"") -> 12 | J134: =IFERROR(IF(INDIRECT("'game1 ("&$AD134&")'!$a$2")="R",Season_Summary!J134,""),"") -> 75% | K134: =IFERROR(IF(INDIRECT("'game1 ("&$AD134&")'!$a$2")="R",Season_Summary!K134,""),"") -> 43% | L134: =IFERROR(IF(INDIRECT("'game1 ("&$AD134&")'!$a$2")="R",Season_Summary!L134,""),"") -> 14 | M134: =IFERROR(IF(INDIRECT("'game1 ("&$AD134&")'!$a$2")="R",Season_Summary!M134,""),"") -> 20 | N134: =IFERROR(IF(INDIRECT("'game1 ("&$AD134&")'!$a$2")="R",Season_Summary!N134,""),"") -> 34 | O134: =IFERROR(IF(INDIRECT("'game1 ("&$AD134&")'!$a$2")="R",Season_Summary!O134,""),"") -> 15 | P134: =IFERROR(IF(INDIRECT("'game1 ("&$AD134&")'!$a$2")="R",Season_Summary!P134,""),"") -> 5 | Q134: =IFERROR(IF(INDIRECT("'game1 ("&$AD134&")'!$a$2")="R",Season_Summary!Q134,""),"") -> 1 | R134: =IFERROR(IF(INDIRECT("'game1 ("&$AD134&")'!$a$2")="R",Season_Summary!R134,""),"") -> 23 | S134: =IFERROR(IF(INDIRECT("'game1 ("&$AD134&")'!$a$2")="R",Season_Summary!S134,""),"") -> 12 | T134: =IFERROR(IF(INDIRECT("'game1 ("&$AD134&")'!$a$2")="R",Season_Summary!T134,""),"") -> 0 | U134: =IFERROR(IF(INDIRECT("'game1 ("&$AD134&")'!$a$2")="R",Season_Summary!U134,""),"") -> 0 | V134: =IFERROR(IF(INDIRECT("'game1 ("&$AD134&")'!$a$2")="R",Season_Summary!V134,""),"") -> 0 | W134: =IFERROR(IF(INDIRECT("'game1 ("&$AD134&")'!$a$2")="R",Season_Summary!W134,""),"") -> 0 | X134: =IFERROR(IF(INDIRECT("'game1 ("&$AD134&")'!$a$2")="R",Season_Summary!X134,""),"") -> 0 | Y134: =IFERROR(IF(INDIRECT("'game1 ("&$AD134&")'!$a$2")="R",Season_Summary!Y134,""),"") -> 0 | Z134: =IFERROR(IF(INDIRECT("'game1 ("&$AD134&")'!$a$2")="R",Season_Summary!Z134,""),"") -> 0 | AA134: =IFERROR(IF(INDIRECT("'game1 ("&$AD134&")'!$a$2")="R",Season_Summary!AA134,""),"") -> 0 | AB134: =IFERROR(IF(INDIRECT("'game1 ("&$AD134&")'!$a$2")="R",Season_Summary!AB134,""),"") -> 0 | AC134: =IFERROR(IF(INDIRECT("'game1 ("&$AD134&")'!$a$2")="R",Season_Summary!AC134,""),"") -> 0 | AD134: 16
A135: =IFERROR(IF(INDIRECT("'game1 ("&$AD135&")'!$a$2")="R",Season_Summary!A135,""),"") -> Sundance: 2/6/18 ** | B135: =IFERROR(IF(INDIRECT("'game1 ("&$AD135&")'!$a$2")="R",Season_Summary!B135,""),"") -> 6 | C135: =IFERROR(IF(INDIRECT("'game1 ("&$AD135&")'!$a$2")="R",Season_Summary!C135,""),"") -> 25 | D135: =IFERROR(IF(INDIRECT("'game1 ("&$AD135&")'!$a$2")="R",Season_Summary!D135,""),"") -> 24% | E135: =IFERROR(IF(INDIRECT("'game1 ("&$AD135&")'!$a$2")="R",Season_Summary!E135,""),"") -> 23 | F135: =IFERROR(IF(INDIRECT("'game1 ("&$AD135&")'!$a$2")="R",Season_Summary!F135,""),"") -> 42 | G135: =IFERROR(IF(INDIRECT("'game1 ("&$AD135&")'!$a$2")="R",Season_Summary!G135,""),"") -> 55% | H135: =IFERROR(IF(INDIRECT("'game1 ("&$AD135&")'!$a$2")="R",Season_Summary!H135,""),"") -> 5 | I135: =IFERROR(IF(INDIRECT("'game1 ("&$AD135&")'!$a$2")="R",Season_Summary!I135,""),"") -> 11 | J135: =IFERROR(IF(INDIRECT("'game1 ("&$AD135&")'!$a$2")="R",Season_Summary!J135,""),"") -> 45% | K135: =IFERROR(IF(INDIRECT("'game1 ("&$AD135&")'!$a$2")="R",Season_Summary!K135,""),"") -> 43% | L135: =IFERROR(IF(INDIRECT("'game1 ("&$AD135&")'!$a$2")="R",Season_Summary!L135,""),"") -> 20 | M135: =IFERROR(IF(INDIRECT("'game1 ("&$AD135&")'!$a$2")="R",Season_Summary!M135,""),"") -> 24 | N135: =IFERROR(IF(INDIRECT("'game1 ("&$AD135&")'!$a$2")="R",Season_Summary!N135,""),"") -> 44 | O135: =IFERROR(IF(INDIRECT("'game1 ("&$AD135&")'!$a$2")="R",Season_Summary!O135,""),"") -> 16 | P135: =IFERROR(IF(INDIRECT("'game1 ("&$AD135&")'!$a$2")="R",Season_Summary!P135,""),"") -> 8 | Q135: =IFERROR(IF(INDIRECT("'game1 ("&$AD135&")'!$a$2")="R",Season_Summary!Q135,""),"") -> 0 | R135: =IFERROR(IF(INDIRECT("'game1 ("&$AD135&")'!$a$2")="R",Season_Summary!R135,""),"") -> 4 | S135: =IFERROR(IF(INDIRECT("'game1 ("&$AD135&")'!$a$2")="R",Season_Summary!S135,""),"") -> 14 | T135: =IFERROR(IF(INDIRECT("'game1 ("&$AD135&")'!$a$2")="R",Season_Summary!T135,""),"") -> 21 - C Louderback, 23 | U135: =IFERROR(IF(INDIRECT("'game1 ("&$AD135&")'!$a$2")="R",Season_Summary!U135,""),"") -> 0 | V135: =IFERROR(IF(INDIRECT("'game1 ("&$AD135&")'!$a$2")="R",Season_Summary!V135,""),"") -> 0 | W135: =IFERROR(IF(INDIRECT("'game1 ("&$AD135&")'!$a$2")="R",Season_Summary!W135,""),"") -> 11 - P Watt, 24 | X135: =IFERROR(IF(INDIRECT("'game1 ("&$AD135&")'!$a$2")="R",Season_Summary!X135,""),"") -> 0 | Y135: =IFERROR(IF(INDIRECT("'game1 ("&$AD135&")'!$a$2")="R",Season_Summary!Y135,""),"") -> 0 | Z135: =IFERROR(IF(INDIRECT("'game1 ("&$AD135&")'!$a$2")="R",Season_Summary!Z135,""),"") -> 5 - C Louderback, 23 | AA135: =IFERROR(IF(INDIRECT("'game1 ("&$AD135&")'!$a$2")="R",Season_Summary!AA135,""),"") -> 0 | AB135: =IFERROR(IF(INDIRECT("'game1 ("&$AD135&")'!$a$2")="R",Season_Summary!AB135,""),"") -> 0 | AC135: =IFERROR(IF(INDIRECT("'game1 ("&$AD135&")'!$a$2")="R",Season_Summary!AC135,""),"") -> 0 | AD135: 17
A136: =IFERROR(IF(INDIRECT("'game1 ("&$AD136&")'!$a$2")="R",Season_Summary!A136,""),"") -> 69 - 49 | B136: =IFERROR(IF(INDIRECT("'game1 ("&$AD136&")'!$a$2")="R",Season_Summary!B136,""),"") -> 6 | C136: =IFERROR(IF(INDIRECT("'game1 ("&$AD136&")'!$a$2")="R",Season_Summary!C136,""),"") -> 14 | D136: =IFERROR(IF(INDIRECT("'game1 ("&$AD136&")'!$a$2")="R",Season_Summary!D136,""),"") -> 43% | E136: =IFERROR(IF(INDIRECT("'game1 ("&$AD136&")'!$a$2")="R",Season_Summary!E136,""),"") -> 14 | F136: =IFERROR(IF(INDIRECT("'game1 ("&$AD136&")'!$a$2")="R",Season_Summary!F136,""),"") -> 33 | G136: =IFERROR(IF(INDIRECT("'game1 ("&$AD136&")'!$a$2")="R",Season_Summary!G136,""),"") -> 42% | H136: =IFERROR(IF(INDIRECT("'game1 ("&$AD136&")'!$a$2")="R",Season_Summary!H136,""),"") -> 3 | I136: =IFERROR(IF(INDIRECT("'game1 ("&$AD136&")'!$a$2")="R",Season_Summary!I136,""),"") -> 7 | J136: =IFERROR(IF(INDIRECT("'game1 ("&$AD136&")'!$a$2")="R",Season_Summary!J136,""),"") -> 43% | K136: =IFERROR(IF(INDIRECT("'game1 ("&$AD136&")'!$a$2")="R",Season_Summary!K136,""),"") -> 43% | L136: =IFERROR(IF(INDIRECT("'game1 ("&$AD136&")'!$a$2")="R",Season_Summary!L136,""),"") -> 6 | M136: =IFERROR(IF(INDIRECT("'game1 ("&$AD136&")'!$a$2")="R",Season_Summary!M136,""),"") -> 19 | N136: =IFERROR(IF(INDIRECT("'game1 ("&$AD136&")'!$a$2")="R",Season_Summary!N136,""),"") -> 25 | O136: =IFERROR(IF(INDIRECT("'game1 ("&$AD136&")'!$a$2")="R",Season_Summary!O136,""),"") -> 10 | P136: =IFERROR(IF(INDIRECT("'game1 ("&$AD136&")'!$a$2")="R",Season_Summary!P136,""),"") -> 3 | Q136: =IFERROR(IF(INDIRECT("'game1 ("&$AD136&")'!$a$2")="R",Season_Summary!Q136,""),"") -> 0 | R136: =IFERROR(IF(INDIRECT("'game1 ("&$AD136&")'!$a$2")="R",Season_Summary!R136,""),"") -> 11 | S136: =IFERROR(IF(INDIRECT("'game1 ("&$AD136&")'!$a$2")="R",Season_Summary!S136,""),"") -> 9 | T136: =IFERROR(IF(INDIRECT("'game1 ("&$AD136&")'!$a$2")="R",Season_Summary!T136,""),"") -> 0 | U136: =IFERROR(IF(INDIRECT("'game1 ("&$AD136&")'!$a$2")="R",Season_Summary!U136,""),"") -> 0 | V136: =IFERROR(IF(INDIRECT("'game1 ("&$AD136&")'!$a$2")="R",Season_Summary!V136,""),"") -> 0 | W136: =IFERROR(IF(INDIRECT("'game1 ("&$AD136&")'!$a$2")="R",Season_Summary!W136,""),"") -> 0 | X136: =IFERROR(IF(INDIRECT("'game1 ("&$AD136&")'!$a$2")="R",Season_Summary!X136,""),"") -> 0 | Y136: =IFERROR(IF(INDIRECT("'game1 ("&$AD136&")'!$a$2")="R",Season_Summary!Y136,""),"") -> 0 | Z136: =IFERROR(IF(INDIRECT("'game1 ("&$AD136&")'!$a$2")="R",Season_Summary!Z136,""),"") -> 0 | AA136: =IFERROR(IF(INDIRECT("'game1 ("&$AD136&")'!$a$2")="R",Season_Summary!AA136,""),"") -> 0 | AB136: =IFERROR(IF(INDIRECT("'game1 ("&$AD136&")'!$a$2")="R",Season_Summary!AB136,""),"") -> 0 | AC136: =IFERROR(IF(INDIRECT("'game1 ("&$AD136&")'!$a$2")="R",Season_Summary!AC136,""),"") -> 0 | AD136: 17
A137: =IFERROR(IF(INDIRECT("'game1 ("&$AD137&")'!$a$2")="R",Season_Summary!A137,""),"") -> Wright: 2/8/18 ** | B137: =IFERROR(IF(INDIRECT("'game1 ("&$AD137&")'!$a$2")="R",Season_Summary!B137,""),"") -> 6 | C137: =IFERROR(IF(INDIRECT("'game1 ("&$AD137&")'!$a$2")="R",Season_Summary!C137,""),"") -> 25 | D137: =IFERROR(IF(INDIRECT("'game1 ("&$AD137&")'!$a$2")="R",Season_Summary!D137,""),"") -> 24% | E137: =IFERROR(IF(INDIRECT("'game1 ("&$AD137&")'!$a$2")="R",Season_Summary!E137,""),"") -> 11 | F137: =IFERROR(IF(INDIRECT("'game1 ("&$AD137&")'!$a$2")="R",Season_Summary!F137,""),"") -> 33 | G137: =IFERROR(IF(INDIRECT("'game1 ("&$AD137&")'!$a$2")="R",Season_Summary!G137,""),"") -> 33% | H137: =IFERROR(IF(INDIRECT("'game1 ("&$AD137&")'!$a$2")="R",Season_Summary!H137,""),"") -> 20 | I137: =IFERROR(IF(INDIRECT("'game1 ("&$AD137&")'!$a$2")="R",Season_Summary!I137,""),"") -> 29 | J137: =IFERROR(IF(INDIRECT("'game1 ("&$AD137&")'!$a$2")="R",Season_Summary!J137,""),"") -> 69% | K137: =IFERROR(IF(INDIRECT("'game1 ("&$AD137&")'!$a$2")="R",Season_Summary!K137,""),"") -> 29% | L137: =IFERROR(IF(INDIRECT("'game1 ("&$AD137&")'!$a$2")="R",Season_Summary!L137,""),"") -> 20 | M137: =IFERROR(IF(INDIRECT("'game1 ("&$AD137&")'!$a$2")="R",Season_Summary!M137,""),"") -> 16 | N137: =IFERROR(IF(INDIRECT("'game1 ("&$AD137&")'!$a$2")="R",Season_Summary!N137,""),"") -> 36 | O137: =IFERROR(IF(INDIRECT("'game1 ("&$AD137&")'!$a$2")="R",Season_Summary!O137,""),"") -> 9 | P137: =IFERROR(IF(INDIRECT("'game1 ("&$AD137&")'!$a$2")="R",Season_Summary!P137,""),"") -> 12 | Q137: =IFERROR(IF(INDIRECT("'game1 ("&$AD137&")'!$a$2")="R",Season_Summary!Q137,""),"") -> 3 | R137: =IFERROR(IF(INDIRECT("'game1 ("&$AD137&")'!$a$2")="R",Season_Summary!R137,""),"") -> 20 | S137: =IFERROR(IF(INDIRECT("'game1 ("&$AD137&")'!$a$2")="R",Season_Summary!S137,""),"") -> 22 | T137: =IFERROR(IF(INDIRECT("'game1 ("&$AD137&")'!$a$2")="R",Season_Summary!T137,""),"") -> 23 - P Watt, 24 | U137: =IFERROR(IF(INDIRECT("'game1 ("&$AD137&")'!$a$2")="R",Season_Summary!U137,""),"") -> 0 | V137: =IFERROR(IF(INDIRECT("'game1 ("&$AD137&")'!$a$2")="R",Season_Summary!V137,""),"") -> 0 | W137: =IFERROR(IF(INDIRECT("'game1 ("&$AD137&")'!$a$2")="R",Season_Summary!W137,""),"") -> 11 - P Watt, 24 | X137: =IFERROR(IF(INDIRECT("'game1 ("&$AD137&")'!$a$2")="R",Season_Summary!X137,""),"") -> 0 | Y137: =IFERROR(IF(INDIRECT("'game1 ("&$AD137&")'!$a$2")="R",Season_Summary!Y137,""),"") -> 0 | Z137: =IFERROR(IF(INDIRECT("'game1 ("&$AD137&")'!$a$2")="R",Season_Summary!Z137,""),"") -> 3 - P Watt, 24 | AA137: =IFERROR(IF(INDIRECT("'game1 ("&$AD137&")'!$a$2")="R",Season_Summary!AA137,""),"") -> 0 | AB137: =IFERROR(IF(INDIRECT("'game1 ("&$AD137&")'!$a$2")="R",Season_Summary!AB137,""),"") -> 0 | AC137: =IFERROR(IF(INDIRECT("'game1 ("&$AD137&")'!$a$2")="R",Season_Summary!AC137,""),"") -> 0 | AD137: 18
A138: =IFERROR(IF(INDIRECT("'game1 ("&$AD138&")'!$a$2")="R",Season_Summary!A138,""),"") -> 60 - 67 | B138: =IFERROR(IF(INDIRECT("'game1 ("&$AD138&")'!$a$2")="R",Season_Summary!B138,""),"") -> 5 | C138: =IFERROR(IF(INDIRECT("'game1 ("&$AD138&")'!$a$2")="R",Season_Summary!C138,""),"") -> 8 | D138: =IFERROR(IF(INDIRECT("'game1 ("&$AD138&")'!$a$2")="R",Season_Summary!D138,""),"") -> 63% | E138: =IFERROR(IF(INDIRECT("'game1 ("&$AD138&")'!$a$2")="R",Season_Summary!E138,""),"") -> 20 | F138: =IFERROR(IF(INDIRECT("'game1 ("&$AD138&")'!$a$2")="R",Season_Summary!F138,""),"") -> 37 | G138: =IFERROR(IF(INDIRECT("'game1 ("&$AD138&")'!$a$2")="R",Season_Summary!G138,""),"") -> 54% | H138: =IFERROR(IF(INDIRECT("'game1 ("&$AD138&")'!$a$2")="R",Season_Summary!H138,""),"") -> 12 | I138: =IFERROR(IF(INDIRECT("'game1 ("&$AD138&")'!$a$2")="R",Season_Summary!I138,""),"") -> 27 | J138: =IFERROR(IF(INDIRECT("'game1 ("&$AD138&")'!$a$2")="R",Season_Summary!J138,""),"") -> 44% | K138: =IFERROR(IF(INDIRECT("'game1 ("&$AD138&")'!$a$2")="R",Season_Summary!K138,""),"") -> 56% | L138: =IFERROR(IF(INDIRECT("'game1 ("&$AD138&")'!$a$2")="R",Season_Summary!L138,""),"") -> 9 | M138: =IFERROR(IF(INDIRECT("'game1 ("&$AD138&")'!$a$2")="R",Season_Summary!M138,""),"") -> 25 | N138: =IFERROR(IF(INDIRECT("'game1 ("&$AD138&")'!$a$2")="R",Season_Summary!N138,""),"") -> 34 | O138: =IFERROR(IF(INDIRECT("'game1 ("&$AD138&")'!$a$2")="R",Season_Summary!O138,""),"") -> 6 | P138: =IFERROR(IF(INDIRECT("'game1 ("&$AD138&")'!$a$2")="R",Season_Summary!P138,""),"") -> 9 | Q138: =IFERROR(IF(INDIRECT("'game1 ("&$AD138&")'!$a$2")="R",Season_Summary!Q138,""),"") -> 1 | R138: =IFERROR(IF(INDIRECT("'game1 ("&$AD138&")'!$a$2")="R",Season_Summary!R138,""),"") -> 25 | S138: =IFERROR(IF(INDIRECT("'game1 ("&$AD138&")'!$a$2")="R",Season_Summary!S138,""),"") -> 23 | T138: =IFERROR(IF(INDIRECT("'game1 ("&$AD138&")'!$a$2")="R",Season_Summary!T138,""),"") -> 0 | U138: =IFERROR(IF(INDIRECT("'game1 ("&$AD138&")'!$a$2")="R",Season_Summary!U138,""),"") -> 0 | V138: =IFERROR(IF(INDIRECT("'game1 ("&$AD138&")'!$a$2")="R",Season_Summary!V138,""),"") -> 0 | W138: =IFERROR(IF(INDIRECT("'game1 ("&$AD138&")'!$a$2")="R",Season_Summary!W138,""),"") -> 0 | X138: =IFERROR(IF(INDIRECT("'game1 ("&$AD138&")'!$a$2")="R",Season_Summary!X138,""),"") -> 0 | Y138: =IFERROR(IF(INDIRECT("'game1 ("&$AD138&")'!$a$2")="R",Season_Summary!Y138,""),"") -> 0 | Z138: =IFERROR(IF(INDIRECT("'game1 ("&$AD138&")'!$a$2")="R",Season_Summary!Z138,""),"") -> 0 | AA138: =IFERROR(IF(INDIRECT("'game1 ("&$AD138&")'!$a$2")="R",Season_Summary!AA138,""),"") -> 0 | AB138: =IFERROR(IF(INDIRECT("'game1 ("&$AD138&")'!$a$2")="R",Season_Summary!AB138,""),"") -> 0 | AC138: =IFERROR(IF(INDIRECT("'game1 ("&$AD138&")'!$a$2")="R",Season_Summary!AC138,""),"") -> 0 | AD138: 18
A139: =IFERROR(IF(INDIRECT("'game1 ("&$AD139&")'!$a$2")="R",Season_Summary!A139,""),"") ->  | B139: =IFERROR(IF(INDIRECT("'game1 ("&$AD139&")'!$a$2")="R",Season_Summary!B139,""),"") ->  | C139: =IFERROR(IF(INDIRECT("'game1 ("&$AD139&")'!$a$2")="R",Season_Summary!C139,""),"") ->  | D139: =IFERROR(IF(INDIRECT("'game1 ("&$AD139&")'!$a$2")="R",Season_Summary!D139,""),"") ->  | E139: =IFERROR(IF(INDIRECT("'game1 ("&$AD139&")'!$a$2")="R",Season_Summary!E139,""),"") ->  | F139: =IFERROR(IF(INDIRECT("'game1 ("&$AD139&")'!$a$2")="R",Season_Summary!F139,""),"") ->  | G139: =IFERROR(IF(INDIRECT("'game1 ("&$AD139&")'!$a$2")="R",Season_Summary!G139,""),"") ->  | H139: =IFERROR(IF(INDIRECT("'game1 ("&$AD139&")'!$a$2")="R",Season_Summary!H139,""),"") ->  | I139: =IFERROR(IF(INDIRECT("'game1 ("&$AD139&")'!$a$2")="R",Season_Summary!I139,""),"") ->  | J139: =IFERROR(IF(INDIRECT("'game1 ("&$AD139&")'!$a$2")="R",Season_Summary!J139,""),"") ->  | K139: =IFERROR(IF(INDIRECT("'game1 ("&$AD139&")'!$a$2")="R",Season_Summary!K139,""),"") ->  | L139: =IFERROR(IF(INDIRECT("'game1 ("&$AD139&")'!$a$2")="R",Season_Summary!L139,""),"") ->  | M139: =IFERROR(IF(INDIRECT("'game1 ("&$AD139&")'!$a$2")="R",Season_Summary!M139,""),"") ->  | N139: =IFERROR(IF(INDIRECT("'game1 ("&$AD139&")'!$a$2")="R",Season_Summary!N139,""),"") ->  | O139: =IFERROR(IF(INDIRECT("'game1 ("&$AD139&")'!$a$2")="R",Season_Summary!O139,""),"") ->  | P139: =IFERROR(IF(INDIRECT("'game1 ("&$AD139&")'!$a$2")="R",Season_Summary!P139,""),"") ->  | Q139: =IFERROR(IF(INDIRECT("'game1 ("&$AD139&")'!$a$2")="R",Season_Summary!Q139,""),"") ->  | R139: =IFERROR(IF(INDIRECT("'game1 ("&$AD139&")'!$a$2")="R",Season_Summary!R139,""),"") ->  | S139: =IFERROR(IF(INDIRECT("'game1 ("&$AD139&")'!$a$2")="R",Season_Summary!S139,""),"") ->  | T139: =IFERROR(IF(INDIRECT("'game1 ("&$AD139&")'!$a$2")="R",Season_Summary!T139,""),"") ->  | U139: =IFERROR(IF(INDIRECT("'game1 ("&$AD139&")'!$a$2")="R",Season_Summary!U139,""),"") ->  | V139: =IFERROR(IF(INDIRECT("'game1 ("&$AD139&")'!$a$2")="R",Season_Summary!V139,""),"") ->  | W139: =IFERROR(IF(INDIRECT("'game1 ("&$AD139&")'!$a$2")="R",Season_Summary!W139,""),"") ->  | X139: =IFERROR(IF(INDIRECT("'game1 ("&$AD139&")'!$a$2")="R",Season_Summary!X139,""),"") ->  | Y139: =IFERROR(IF(INDIRECT("'game1 ("&$AD139&")'!$a$2")="R",Season_Summary!Y139,""),"") ->  | Z139: =IFERROR(IF(INDIRECT("'game1 ("&$AD139&")'!$a$2")="R",Season_Summary!Z139,""),"") ->  | AA139: =IFERROR(IF(INDIRECT("'game1 ("&$AD139&")'!$a$2")="R",Season_Summary!AA139,""),"") ->  | AB139: =IFERROR(IF(INDIRECT("'game1 ("&$AD139&")'!$a$2")="R",Season_Summary!AB139,""),"") ->  | AC139: =IFERROR(IF(INDIRECT("'game1 ("&$AD139&")'!$a$2")="R",Season_Summary!AC139,""),"") ->  | AD139: 19
A140: =IFERROR(IF(INDIRECT("'game1 ("&$AD140&")'!$a$2")="R",Season_Summary!A140,""),"") ->  | B140: =IFERROR(IF(INDIRECT("'game1 ("&$AD140&")'!$a$2")="R",Season_Summary!B140,""),"") ->  | C140: =IFERROR(IF(INDIRECT("'game1 ("&$AD140&")'!$a$2")="R",Season_Summary!C140,""),"") ->  | D140: =IFERROR(IF(INDIRECT("'game1 ("&$AD140&")'!$a$2")="R",Season_Summary!D140,""),"") ->  | E140: =IFERROR(IF(INDIRECT("'game1 ("&$AD140&")'!$a$2")="R",Season_Summary!E140,""),"") ->  | F140: =IFERROR(IF(INDIRECT("'game1 ("&$AD140&")'!$a$2")="R",Season_Summary!F140,""),"") ->  | G140: =IFERROR(IF(INDIRECT("'game1 ("&$AD140&")'!$a$2")="R",Season_Summary!G140,""),"") ->  | H140: =IFERROR(IF(INDIRECT("'game1 ("&$AD140&")'!$a$2")="R",Season_Summary!H140,""),"") ->  | I140: =IFERROR(IF(INDIRECT("'game1 ("&$AD140&")'!$a$2")="R",Season_Summary!I140,""),"") ->  | J140: =IFERROR(IF(INDIRECT("'game1 ("&$AD140&")'!$a$2")="R",Season_Summary!J140,""),"") ->  | K140: =IFERROR(IF(INDIRECT("'game1 ("&$AD140&")'!$a$2")="R",Season_Summary!K140,""),"") ->  | L140: =IFERROR(IF(INDIRECT("'game1 ("&$AD140&")'!$a$2")="R",Season_Summary!L140,""),"") ->  | M140: =IFERROR(IF(INDIRECT("'game1 ("&$AD140&")'!$a$2")="R",Season_Summary!M140,""),"") ->  | N140: =IFERROR(IF(INDIRECT("'game1 ("&$AD140&")'!$a$2")="R",Season_Summary!N140,""),"") ->  | O140: =IFERROR(IF(INDIRECT("'game1 ("&$AD140&")'!$a$2")="R",Season_Summary!O140,""),"") ->  | P140: =IFERROR(IF(INDIRECT("'game1 ("&$AD140&")'!$a$2")="R",Season_Summary!P140,""),"") ->  | Q140: =IFERROR(IF(INDIRECT("'game1 ("&$AD140&")'!$a$2")="R",Season_Summary!Q140,""),"") ->  | R140: =IFERROR(IF(INDIRECT("'game1 ("&$AD140&")'!$a$2")="R",Season_Summary!R140,""),"") ->  | S140: =IFERROR(IF(INDIRECT("'game1 ("&$AD140&")'!$a$2")="R",Season_Summary!S140,""),"") ->  | T140: =IFERROR(IF(INDIRECT("'game1 ("&$AD140&")'!$a$2")="R",Season_Summary!T140,""),"") ->  | U140: =IFERROR(IF(INDIRECT("'game1 ("&$AD140&")'!$a$2")="R",Season_Summary!U140,""),"") ->  | V140: =IFERROR(IF(INDIRECT("'game1 ("&$AD140&")'!$a$2")="R",Season_Summary!V140,""),"") ->  | W140: =IFERROR(IF(INDIRECT("'game1 ("&$AD140&")'!$a$2")="R",Season_Summary!W140,""),"") ->  | X140: =IFERROR(IF(INDIRECT("'game1 ("&$AD140&")'!$a$2")="R",Season_Summary!X140,""),"") ->  | Y140: =IFERROR(IF(INDIRECT("'game1 ("&$AD140&")'!$a$2")="R",Season_Summary!Y140,""),"") ->  | Z140: =IFERROR(IF(INDIRECT("'game1 ("&$AD140&")'!$a$2")="R",Season_Summary!Z140,""),"") ->  | AA140: =IFERROR(IF(INDIRECT("'game1 ("&$AD140&")'!$a$2")="R",Season_Summary!AA140,""),"") ->  | AB140: =IFERROR(IF(INDIRECT("'game1 ("&$AD140&")'!$a$2")="R",Season_Summary!AB140,""),"") ->  | AC140: =IFERROR(IF(INDIRECT("'game1 ("&$AD140&")'!$a$2")="R",Season_Summary!AC140,""),"") ->  | AD140: 19
A141: =IFERROR(IF(INDIRECT("'game1 ("&$AD141&")'!$a$2")="R",Season_Summary!A141,""),"") -> Big Horn: 2/16/18 ** | B141: =IFERROR(IF(INDIRECT("'game1 ("&$AD141&")'!$a$2")="R",Season_Summary!B141,""),"") -> 4 | C141: =IFERROR(IF(INDIRECT("'game1 ("&$AD141&")'!$a$2")="R",Season_Summary!C141,""),"") -> 13 | D141: =IFERROR(IF(INDIRECT("'game1 ("&$AD141&")'!$a$2")="R",Season_Summary!D141,""),"") -> 31% | E141: =IFERROR(IF(INDIRECT("'game1 ("&$AD141&")'!$a$2")="R",Season_Summary!E141,""),"") -> 15 | F141: =IFERROR(IF(INDIRECT("'game1 ("&$AD141&")'!$a$2")="R",Season_Summary!F141,""),"") -> 29 | G141: =IFERROR(IF(INDIRECT("'game1 ("&$AD141&")'!$a$2")="R",Season_Summary!G141,""),"") -> 52% | H141: =IFERROR(IF(INDIRECT("'game1 ("&$AD141&")'!$a$2")="R",Season_Summary!H141,""),"") -> 13 | I141: =IFERROR(IF(INDIRECT("'game1 ("&$AD141&")'!$a$2")="R",Season_Summary!I141,""),"") -> 18 | J141: =IFERROR(IF(INDIRECT("'game1 ("&$AD141&")'!$a$2")="R",Season_Summary!J141,""),"") -> 72% | K141: =IFERROR(IF(INDIRECT("'game1 ("&$AD141&")'!$a$2")="R",Season_Summary!K141,""),"") -> 45% | L141: =IFERROR(IF(INDIRECT("'game1 ("&$AD141&")'!$a$2")="R",Season_Summary!L141,""),"") -> 9 | M141: =IFERROR(IF(INDIRECT("'game1 ("&$AD141&")'!$a$2")="R",Season_Summary!M141,""),"") -> 23 | N141: =IFERROR(IF(INDIRECT("'game1 ("&$AD141&")'!$a$2")="R",Season_Summary!N141,""),"") -> 32 | O141: =IFERROR(IF(INDIRECT("'game1 ("&$AD141&")'!$a$2")="R",Season_Summary!O141,""),"") -> 13 | P141: =IFERROR(IF(INDIRECT("'game1 ("&$AD141&")'!$a$2")="R",Season_Summary!P141,""),"") -> 2 | Q141: =IFERROR(IF(INDIRECT("'game1 ("&$AD141&")'!$a$2")="R",Season_Summary!Q141,""),"") -> 1 | R141: =IFERROR(IF(INDIRECT("'game1 ("&$AD141&")'!$a$2")="R",Season_Summary!R141,""),"") -> 14 | S141: =IFERROR(IF(INDIRECT("'game1 ("&$AD141&")'!$a$2")="R",Season_Summary!S141,""),"") -> 9 | T141: =IFERROR(IF(INDIRECT("'game1 ("&$AD141&")'!$a$2")="R",Season_Summary!T141,""),"") -> 17 - C Louderback, 23 | U141: =IFERROR(IF(INDIRECT("'game1 ("&$AD141&")'!$a$2")="R",Season_Summary!U141,""),"") -> 0 | V141: =IFERROR(IF(INDIRECT("'game1 ("&$AD141&")'!$a$2")="R",Season_Summary!V141,""),"") -> 0 | W141: =IFERROR(IF(INDIRECT("'game1 ("&$AD141&")'!$a$2")="R",Season_Summary!W141,""),"") -> 8 - P Watt, 24: C Louderback, 23 | X141: =IFERROR(IF(INDIRECT("'game1 ("&$AD141&")'!$a$2")="R",Season_Summary!X141,""),"") -> 0 | Y141: =IFERROR(IF(INDIRECT("'game1 ("&$AD141&")'!$a$2")="R",Season_Summary!Y141,""),"") -> 0 | Z141: =IFERROR(IF(INDIRECT("'game1 ("&$AD141&")'!$a$2")="R",Season_Summary!Z141,""),"") -> 4 - D Barritt, 20: B Bruce, 22 | AA141: =IFERROR(IF(INDIRECT("'game1 ("&$AD141&")'!$a$2")="R",Season_Summary!AA141,""),"") -> 0 | AB141: =IFERROR(IF(INDIRECT("'game1 ("&$AD141&")'!$a$2")="R",Season_Summary!AB141,""),"") -> 0 | AC141: =IFERROR(IF(INDIRECT("'game1 ("&$AD141&")'!$a$2")="R",Season_Summary!AC141,""),"") -> 0 | AD141: 20
A142: =IFERROR(IF(INDIRECT("'game1 ("&$AD142&")'!$a$2")="R",Season_Summary!A142,""),"") -> 55 - 52 | B142: =IFERROR(IF(INDIRECT("'game1 ("&$AD142&")'!$a$2")="R",Season_Summary!B142,""),"") -> 4 | C142: =IFERROR(IF(INDIRECT("'game1 ("&$AD142&")'!$a$2")="R",Season_Summary!C142,""),"") -> 16 | D142: =IFERROR(IF(INDIRECT("'game1 ("&$AD142&")'!$a$2")="R",Season_Summary!D142,""),"") -> 25% | E142: =IFERROR(IF(INDIRECT("'game1 ("&$AD142&")'!$a$2")="R",Season_Summary!E142,""),"") -> 18 | F142: =IFERROR(IF(INDIRECT("'game1 ("&$AD142&")'!$a$2")="R",Season_Summary!F142,""),"") -> 41 | G142: =IFERROR(IF(INDIRECT("'game1 ("&$AD142&")'!$a$2")="R",Season_Summary!G142,""),"") -> 44% | H142: =IFERROR(IF(INDIRECT("'game1 ("&$AD142&")'!$a$2")="R",Season_Summary!H142,""),"") -> 4 | I142: =IFERROR(IF(INDIRECT("'game1 ("&$AD142&")'!$a$2")="R",Season_Summary!I142,""),"") -> 6 | J142: =IFERROR(IF(INDIRECT("'game1 ("&$AD142&")'!$a$2")="R",Season_Summary!J142,""),"") -> 67% | K142: =IFERROR(IF(INDIRECT("'game1 ("&$AD142&")'!$a$2")="R",Season_Summary!K142,""),"") -> 39% | L142: =IFERROR(IF(INDIRECT("'game1 ("&$AD142&")'!$a$2")="R",Season_Summary!L142,""),"") -> 10 | M142: =IFERROR(IF(INDIRECT("'game1 ("&$AD142&")'!$a$2")="R",Season_Summary!M142,""),"") -> 17 | N142: =IFERROR(IF(INDIRECT("'game1 ("&$AD142&")'!$a$2")="R",Season_Summary!N142,""),"") -> 27 | O142: =IFERROR(IF(INDIRECT("'game1 ("&$AD142&")'!$a$2")="R",Season_Summary!O142,""),"") -> 2 | P142: =IFERROR(IF(INDIRECT("'game1 ("&$AD142&")'!$a$2")="R",Season_Summary!P142,""),"") -> 6 | Q142: =IFERROR(IF(INDIRECT("'game1 ("&$AD142&")'!$a$2")="R",Season_Summary!Q142,""),"") -> 2 | R142: =IFERROR(IF(INDIRECT("'game1 ("&$AD142&")'!$a$2")="R",Season_Summary!R142,""),"") -> 9 | S142: =IFERROR(IF(INDIRECT("'game1 ("&$AD142&")'!$a$2")="R",Season_Summary!S142,""),"") -> 17 | T142: =IFERROR(IF(INDIRECT("'game1 ("&$AD142&")'!$a$2")="R",Season_Summary!T142,""),"") -> 0 | U142: =IFERROR(IF(INDIRECT("'game1 ("&$AD142&")'!$a$2")="R",Season_Summary!U142,""),"") -> 0 | V142: =IFERROR(IF(INDIRECT("'game1 ("&$AD142&")'!$a$2")="R",Season_Summary!V142,""),"") -> 0 | W142: =IFERROR(IF(INDIRECT("'game1 ("&$AD142&")'!$a$2")="R",Season_Summary!W142,""),"") -> 0 | X142: =IFERROR(IF(INDIRECT("'game1 ("&$AD142&")'!$a$2")="R",Season_Summary!X142,""),"") -> 0 | Y142: =IFERROR(IF(INDIRECT("'game1 ("&$AD142&")'!$a$2")="R",Season_Summary!Y142,""),"") -> 0 | Z142: =IFERROR(IF(INDIRECT("'game1 ("&$AD142&")'!$a$2")="R",Season_Summary!Z142,""),"") -> 0 | AA142: =IFERROR(IF(INDIRECT("'game1 ("&$AD142&")'!$a$2")="R",Season_Summary!AA142,""),"") -> 0 | AB142: =IFERROR(IF(INDIRECT("'game1 ("&$AD142&")'!$a$2")="R",Season_Summary!AB142,""),"") -> 0 | AC142: =IFERROR(IF(INDIRECT("'game1 ("&$AD142&")'!$a$2")="R",Season_Summary!AC142,""),"") -> 0 | AD142: 20
A143: =IFERROR(IF(INDIRECT("'game1 ("&$AD143&")'!$a$2")="R",Season_Summary!A143,""),"") -> Tongue River: 2/17/18 ** | B143: =IFERROR(IF(INDIRECT("'game1 ("&$AD143&")'!$a$2")="R",Season_Summary!B143,""),"") -> 6 | C143: =IFERROR(IF(INDIRECT("'game1 ("&$AD143&")'!$a$2")="R",Season_Summary!C143,""),"") -> 24 | D143: =IFERROR(IF(INDIRECT("'game1 ("&$AD143&")'!$a$2")="R",Season_Summary!D143,""),"") -> 25% | E143: =IFERROR(IF(INDIRECT("'game1 ("&$AD143&")'!$a$2")="R",Season_Summary!E143,""),"") -> 27 | F143: =IFERROR(IF(INDIRECT("'game1 ("&$AD143&")'!$a$2")="R",Season_Summary!F143,""),"") -> 45 | G143: =IFERROR(IF(INDIRECT("'game1 ("&$AD143&")'!$a$2")="R",Season_Summary!G143,""),"") -> 60% | H143: =IFERROR(IF(INDIRECT("'game1 ("&$AD143&")'!$a$2")="R",Season_Summary!H143,""),"") -> 9 | I143: =IFERROR(IF(INDIRECT("'game1 ("&$AD143&")'!$a$2")="R",Season_Summary!I143,""),"") -> 16 | J143: =IFERROR(IF(INDIRECT("'game1 ("&$AD143&")'!$a$2")="R",Season_Summary!J143,""),"") -> 56% | K143: =IFERROR(IF(INDIRECT("'game1 ("&$AD143&")'!$a$2")="R",Season_Summary!K143,""),"") -> 48% | L143: =IFERROR(IF(INDIRECT("'game1 ("&$AD143&")'!$a$2")="R",Season_Summary!L143,""),"") -> 15 | M143: =IFERROR(IF(INDIRECT("'game1 ("&$AD143&")'!$a$2")="R",Season_Summary!M143,""),"") -> 30 | N143: =IFERROR(IF(INDIRECT("'game1 ("&$AD143&")'!$a$2")="R",Season_Summary!N143,""),"") -> 45 | O143: =IFERROR(IF(INDIRECT("'game1 ("&$AD143&")'!$a$2")="R",Season_Summary!O143,""),"") -> 24 | P143: =IFERROR(IF(INDIRECT("'game1 ("&$AD143&")'!$a$2")="R",Season_Summary!P143,""),"") -> 8 | Q143: =IFERROR(IF(INDIRECT("'game1 ("&$AD143&")'!$a$2")="R",Season_Summary!Q143,""),"") -> 0 | R143: =IFERROR(IF(INDIRECT("'game1 ("&$AD143&")'!$a$2")="R",Season_Summary!R143,""),"") -> 7 | S143: =IFERROR(IF(INDIRECT("'game1 ("&$AD143&")'!$a$2")="R",Season_Summary!S143,""),"") -> 15 | T143: =IFERROR(IF(INDIRECT("'game1 ("&$AD143&")'!$a$2")="R",Season_Summary!T143,""),"") -> 24 - P Watt, 24 | U143: =IFERROR(IF(INDIRECT("'game1 ("&$AD143&")'!$a$2")="R",Season_Summary!U143,""),"") -> 0 | V143: =IFERROR(IF(INDIRECT("'game1 ("&$AD143&")'!$a$2")="R",Season_Summary!V143,""),"") -> 0 | W143: =IFERROR(IF(INDIRECT("'game1 ("&$AD143&")'!$a$2")="R",Season_Summary!W143,""),"") -> 17 - P Watt, 24 | X143: =IFERROR(IF(INDIRECT("'game1 ("&$AD143&")'!$a$2")="R",Season_Summary!X143,""),"") -> 0 | Y143: =IFERROR(IF(INDIRECT("'game1 ("&$AD143&")'!$a$2")="R",Season_Summary!Y143,""),"") -> 0 | Z143: =IFERROR(IF(INDIRECT("'game1 ("&$AD143&")'!$a$2")="R",Season_Summary!Z143,""),"") -> 7 - D Butts, 14 | AA143: =IFERROR(IF(INDIRECT("'game1 ("&$AD143&")'!$a$2")="R",Season_Summary!AA143,""),"") -> 0 | AB143: =IFERROR(IF(INDIRECT("'game1 ("&$AD143&")'!$a$2")="R",Season_Summary!AB143,""),"") -> 0 | AC143: =IFERROR(IF(INDIRECT("'game1 ("&$AD143&")'!$a$2")="R",Season_Summary!AC143,""),"") -> 0 | AD143: 21
A144: =IFERROR(IF(INDIRECT("'game1 ("&$AD144&")'!$a$2")="R",Season_Summary!A144,""),"") -> 81 - 57 | B144: =IFERROR(IF(INDIRECT("'game1 ("&$AD144&")'!$a$2")="R",Season_Summary!B144,""),"") -> 7 | C144: =IFERROR(IF(INDIRECT("'game1 ("&$AD144&")'!$a$2")="R",Season_Summary!C144,""),"") -> 20 | D144: =IFERROR(IF(INDIRECT("'game1 ("&$AD144&")'!$a$2")="R",Season_Summary!D144,""),"") -> 35% | E144: =IFERROR(IF(INDIRECT("'game1 ("&$AD144&")'!$a$2")="R",Season_Summary!E144,""),"") -> 13 | F144: =IFERROR(IF(INDIRECT("'game1 ("&$AD144&")'!$a$2")="R",Season_Summary!F144,""),"") -> 37 | G144: =IFERROR(IF(INDIRECT("'game1 ("&$AD144&")'!$a$2")="R",Season_Summary!G144,""),"") -> 35% | H144: =IFERROR(IF(INDIRECT("'game1 ("&$AD144&")'!$a$2")="R",Season_Summary!H144,""),"") -> 10 | I144: =IFERROR(IF(INDIRECT("'game1 ("&$AD144&")'!$a$2")="R",Season_Summary!I144,""),"") -> 17 | J144: =IFERROR(IF(INDIRECT("'game1 ("&$AD144&")'!$a$2")="R",Season_Summary!J144,""),"") -> 59% | K144: =IFERROR(IF(INDIRECT("'game1 ("&$AD144&")'!$a$2")="R",Season_Summary!K144,""),"") -> 35% | L144: =IFERROR(IF(INDIRECT("'game1 ("&$AD144&")'!$a$2")="R",Season_Summary!L144,""),"") -> 8 | M144: =IFERROR(IF(INDIRECT("'game1 ("&$AD144&")'!$a$2")="R",Season_Summary!M144,""),"") -> 24 | N144: =IFERROR(IF(INDIRECT("'game1 ("&$AD144&")'!$a$2")="R",Season_Summary!N144,""),"") -> 32 | O144: =IFERROR(IF(INDIRECT("'game1 ("&$AD144&")'!$a$2")="R",Season_Summary!O144,""),"") -> 13 | P144: =IFERROR(IF(INDIRECT("'game1 ("&$AD144&")'!$a$2")="R",Season_Summary!P144,""),"") -> 3 | Q144: =IFERROR(IF(INDIRECT("'game1 ("&$AD144&")'!$a$2")="R",Season_Summary!Q144,""),"") -> 1 | R144: =IFERROR(IF(INDIRECT("'game1 ("&$AD144&")'!$a$2")="R",Season_Summary!R144,""),"") -> 12 | S144: =IFERROR(IF(INDIRECT("'game1 ("&$AD144&")'!$a$2")="R",Season_Summary!S144,""),"") -> 14 | T144: =IFERROR(IF(INDIRECT("'game1 ("&$AD144&")'!$a$2")="R",Season_Summary!T144,""),"") -> 0 | U144: =IFERROR(IF(INDIRECT("'game1 ("&$AD144&")'!$a$2")="R",Season_Summary!U144,""),"") -> 0 | V144: =IFERROR(IF(INDIRECT("'game1 ("&$AD144&")'!$a$2")="R",Season_Summary!V144,""),"") -> 0 | W144: =IFERROR(IF(INDIRECT("'game1 ("&$AD144&")'!$a$2")="R",Season_Summary!W144,""),"") -> 0 | X144: =IFERROR(IF(INDIRECT("'game1 ("&$AD144&")'!$a$2")="R",Season_Summary!X144,""),"") -> 0 | Y144: =IFERROR(IF(INDIRECT("'game1 ("&$AD144&")'!$a$2")="R",Season_Summary!Y144,""),"") -> 0 | Z144: =IFERROR(IF(INDIRECT("'game1 ("&$AD144&")'!$a$2")="R",Season_Summary!Z144,""),"") -> 0 | AA144: =IFERROR(IF(INDIRECT("'game1 ("&$AD144&")'!$a$2")="R",Season_Summary!AA144,""),"") -> 0 | AB144: =IFERROR(IF(INDIRECT("'game1 ("&$AD144&")'!$a$2")="R",Season_Summary!AB144,""),"") -> 0 | AC144: =IFERROR(IF(INDIRECT("'game1 ("&$AD144&")'!$a$2")="R",Season_Summary!AC144,""),"") -> 0 | AD144: 21
A145: =IFERROR(IF(INDIRECT("'game1 ("&$AD145&")'!$a$2")="R",Season_Summary!A145,""),"") ->  | B145: =IFERROR(IF(INDIRECT("'game1 ("&$AD145&")'!$a$2")="R",Season_Summary!B145,""),"") ->  | C145: =IFERROR(IF(INDIRECT("'game1 ("&$AD145&")'!$a$2")="R",Season_Summary!C145,""),"") ->  | D145: =IFERROR(IF(INDIRECT("'game1 ("&$AD145&")'!$a$2")="R",Season_Summary!D145,""),"") ->  | E145: =IFERROR(IF(INDIRECT("'game1 ("&$AD145&")'!$a$2")="R",Season_Summary!E145,""),"") ->  | F145: =IFERROR(IF(INDIRECT("'game1 ("&$AD145&")'!$a$2")="R",Season_Summary!F145,""),"") ->  | G145: =IFERROR(IF(INDIRECT("'game1 ("&$AD145&")'!$a$2")="R",Season_Summary!G145,""),"") ->  | H145: =IFERROR(IF(INDIRECT("'game1 ("&$AD145&")'!$a$2")="R",Season_Summary!H145,""),"") ->  | I145: =IFERROR(IF(INDIRECT("'game1 ("&$AD145&")'!$a$2")="R",Season_Summary!I145,""),"") ->  | J145: =IFERROR(IF(INDIRECT("'game1 ("&$AD145&")'!$a$2")="R",Season_Summary!J145,""),"") ->  | K145: =IFERROR(IF(INDIRECT("'game1 ("&$AD145&")'!$a$2")="R",Season_Summary!K145,""),"") ->  | L145: =IFERROR(IF(INDIRECT("'game1 ("&$AD145&")'!$a$2")="R",Season_Summary!L145,""),"") ->  | M145: =IFERROR(IF(INDIRECT("'game1 ("&$AD145&")'!$a$2")="R",Season_Summary!M145,""),"") ->  | N145: =IFERROR(IF(INDIRECT("'game1 ("&$AD145&")'!$a$2")="R",Season_Summary!N145,""),"") ->  | O145: =IFERROR(IF(INDIRECT("'game1 ("&$AD145&")'!$a$2")="R",Season_Summary!O145,""),"") ->  | P145: =IFERROR(IF(INDIRECT("'game1 ("&$AD145&")'!$a$2")="R",Season_Summary!P145,""),"") ->  | Q145: =IFERROR(IF(INDIRECT("'game1 ("&$AD145&")'!$a$2")="R",Season_Summary!Q145,""),"") ->  | R145: =IFERROR(IF(INDIRECT("'game1 ("&$AD145&")'!$a$2")="R",Season_Summary!R145,""),"") ->  | S145: =IFERROR(IF(INDIRECT("'game1 ("&$AD145&")'!$a$2")="R",Season_Summary!S145,""),"") ->  | T145: =IFERROR(IF(INDIRECT("'game1 ("&$AD145&")'!$a$2")="R",Season_Summary!T145,""),"") ->  | U145: =IFERROR(IF(INDIRECT("'game1 ("&$AD145&")'!$a$2")="R",Season_Summary!U145,""),"") ->  | V145: =IFERROR(IF(INDIRECT("'game1 ("&$AD145&")'!$a$2")="R",Season_Summary!V145,""),"") ->  | W145: =IFERROR(IF(INDIRECT("'game1 ("&$AD145&")'!$a$2")="R",Season_Summary!W145,""),"") ->  | X145: =IFERROR(IF(INDIRECT("'game1 ("&$AD145&")'!$a$2")="R",Season_Summary!X145,""),"") ->  | Y145: =IFERROR(IF(INDIRECT("'game1 ("&$AD145&")'!$a$2")="R",Season_Summary!Y145,""),"") ->  | Z145: =IFERROR(IF(INDIRECT("'game1 ("&$AD145&")'!$a$2")="R",Season_Summary!Z145,""),"") ->  | AA145: =IFERROR(IF(INDIRECT("'game1 ("&$AD145&")'!$a$2")="R",Season_Summary!AA145,""),"") ->  | AB145: =IFERROR(IF(INDIRECT("'game1 ("&$AD145&")'!$a$2")="R",Season_Summary!AB145,""),"") ->  | AC145: =IFERROR(IF(INDIRECT("'game1 ("&$AD145&")'!$a$2")="R",Season_Summary!AC145,""),"") ->  | AD145: 22
A146: =IFERROR(IF(INDIRECT("'game1 ("&$AD146&")'!$a$2")="R",Season_Summary!A146,""),"") ->  | B146: =IFERROR(IF(INDIRECT("'game1 ("&$AD146&")'!$a$2")="R",Season_Summary!B146,""),"") ->  | C146: =IFERROR(IF(INDIRECT("'game1 ("&$AD146&")'!$a$2")="R",Season_Summary!C146,""),"") ->  | D146: =IFERROR(IF(INDIRECT("'game1 ("&$AD146&")'!$a$2")="R",Season_Summary!D146,""),"") ->  | E146: =IFERROR(IF(INDIRECT("'game1 ("&$AD146&")'!$a$2")="R",Season_Summary!E146,""),"") ->  | F146: =IFERROR(IF(INDIRECT("'game1 ("&$AD146&")'!$a$2")="R",Season_Summary!F146,""),"") ->  | G146: =IFERROR(IF(INDIRECT("'game1 ("&$AD146&")'!$a$2")="R",Season_Summary!G146,""),"") ->  | H146: =IFERROR(IF(INDIRECT("'game1 ("&$AD146&")'!$a$2")="R",Season_Summary!H146,""),"") ->  | I146: =IFERROR(IF(INDIRECT("'game1 ("&$AD146&")'!$a$2")="R",Season_Summary!I146,""),"") ->  | J146: =IFERROR(IF(INDIRECT("'game1 ("&$AD146&")'!$a$2")="R",Season_Summary!J146,""),"") ->  | K146: =IFERROR(IF(INDIRECT("'game1 ("&$AD146&")'!$a$2")="R",Season_Summary!K146,""),"") ->  | L146: =IFERROR(IF(INDIRECT("'game1 ("&$AD146&")'!$a$2")="R",Season_Summary!L146,""),"") ->  | M146: =IFERROR(IF(INDIRECT("'game1 ("&$AD146&")'!$a$2")="R",Season_Summary!M146,""),"") ->  | N146: =IFERROR(IF(INDIRECT("'game1 ("&$AD146&")'!$a$2")="R",Season_Summary!N146,""),"") ->  | O146: =IFERROR(IF(INDIRECT("'game1 ("&$AD146&")'!$a$2")="R",Season_Summary!O146,""),"") ->  | P146: =IFERROR(IF(INDIRECT("'game1 ("&$AD146&")'!$a$2")="R",Season_Summary!P146,""),"") ->  | Q146: =IFERROR(IF(INDIRECT("'game1 ("&$AD146&")'!$a$2")="R",Season_Summary!Q146,""),"") ->  | R146: =IFERROR(IF(INDIRECT("'game1 ("&$AD146&")'!$a$2")="R",Season_Summary!R146,""),"") ->  | S146: =IFERROR(IF(INDIRECT("'game1 ("&$AD146&")'!$a$2")="R",Season_Summary!S146,""),"") ->  | T146: =IFERROR(IF(INDIRECT("'game1 ("&$AD146&")'!$a$2")="R",Season_Summary!T146,""),"") ->  | U146: =IFERROR(IF(INDIRECT("'game1 ("&$AD146&")'!$a$2")="R",Season_Summary!U146,""),"") ->  | V146: =IFERROR(IF(INDIRECT("'game1 ("&$AD146&")'!$a$2")="R",Season_Summary!V146,""),"") ->  | W146: =IFERROR(IF(INDIRECT("'game1 ("&$AD146&")'!$a$2")="R",Season_Summary!W146,""),"") ->  | X146: =IFERROR(IF(INDIRECT("'game1 ("&$AD146&")'!$a$2")="R",Season_Summary!X146,""),"") ->  | Y146: =IFERROR(IF(INDIRECT("'game1 ("&$AD146&")'!$a$2")="R",Season_Summary!Y146,""),"") ->  | Z146: =IFERROR(IF(INDIRECT("'game1 ("&$AD146&")'!$a$2")="R",Season_Summary!Z146,""),"") ->  | AA146: =IFERROR(IF(INDIRECT("'game1 ("&$AD146&")'!$a$2")="R",Season_Summary!AA146,""),"") ->  | AB146: =IFERROR(IF(INDIRECT("'game1 ("&$AD146&")'!$a$2")="R",Season_Summary!AB146,""),"") ->  | AC146: =IFERROR(IF(INDIRECT("'game1 ("&$AD146&")'!$a$2")="R",Season_Summary!AC146,""),"") ->  | AD146: 22
A147: =IFERROR(IF(INDIRECT("'game1 ("&$AD147&")'!$a$2")="R",Season_Summary!A147,""),"") ->  | B147: =IFERROR(IF(INDIRECT("'game1 ("&$AD147&")'!$a$2")="R",Season_Summary!B147,""),"") ->  | C147: =IFERROR(IF(INDIRECT("'game1 ("&$AD147&")'!$a$2")="R",Season_Summary!C147,""),"") ->  | D147: =IFERROR(IF(INDIRECT("'game1 ("&$AD147&")'!$a$2")="R",Season_Summary!D147,""),"") ->  | E147: =IFERROR(IF(INDIRECT("'game1 ("&$AD147&")'!$a$2")="R",Season_Summary!E147,""),"") ->  | F147: =IFERROR(IF(INDIRECT("'game1 ("&$AD147&")'!$a$2")="R",Season_Summary!F147,""),"") ->  | G147: =IFERROR(IF(INDIRECT("'game1 ("&$AD147&")'!$a$2")="R",Season_Summary!G147,""),"") ->  | H147: =IFERROR(IF(INDIRECT("'game1 ("&$AD147&")'!$a$2")="R",Season_Summary!H147,""),"") ->  | I147: =IFERROR(IF(INDIRECT("'game1 ("&$AD147&")'!$a$2")="R",Season_Summary!I147,""),"") ->  | J147: =IFERROR(IF(INDIRECT("'game1 ("&$AD147&")'!$a$2")="R",Season_Summary!J147,""),"") ->  | K147: =IFERROR(IF(INDIRECT("'game1 ("&$AD147&")'!$a$2")="R",Season_Summary!K147,""),"") ->  | L147: =IFERROR(IF(INDIRECT("'game1 ("&$AD147&")'!$a$2")="R",Season_Summary!L147,""),"") ->  | M147: =IFERROR(IF(INDIRECT("'game1 ("&$AD147&")'!$a$2")="R",Season_Summary!M147,""),"") ->  | N147: =IFERROR(IF(INDIRECT("'game1 ("&$AD147&")'!$a$2")="R",Season_Summary!N147,""),"") ->  | O147: =IFERROR(IF(INDIRECT("'game1 ("&$AD147&")'!$a$2")="R",Season_Summary!O147,""),"") ->  | P147: =IFERROR(IF(INDIRECT("'game1 ("&$AD147&")'!$a$2")="R",Season_Summary!P147,""),"") ->  | Q147: =IFERROR(IF(INDIRECT("'game1 ("&$AD147&")'!$a$2")="R",Season_Summary!Q147,""),"") ->  | R147: =IFERROR(IF(INDIRECT("'game1 ("&$AD147&")'!$a$2")="R",Season_Summary!R147,""),"") ->  | S147: =IFERROR(IF(INDIRECT("'game1 ("&$AD147&")'!$a$2")="R",Season_Summary!S147,""),"") ->  | T147: =IFERROR(IF(INDIRECT("'game1 ("&$AD147&")'!$a$2")="R",Season_Summary!T147,""),"") ->  | U147: =IFERROR(IF(INDIRECT("'game1 ("&$AD147&")'!$a$2")="R",Season_Summary!U147,""),"") ->  | V147: =IFERROR(IF(INDIRECT("'game1 ("&$AD147&")'!$a$2")="R",Season_Summary!V147,""),"") ->  | W147: =IFERROR(IF(INDIRECT("'game1 ("&$AD147&")'!$a$2")="R",Season_Summary!W147,""),"") ->  | X147: =IFERROR(IF(INDIRECT("'game1 ("&$AD147&")'!$a$2")="R",Season_Summary!X147,""),"") ->  | Y147: =IFERROR(IF(INDIRECT("'game1 ("&$AD147&")'!$a$2")="R",Season_Summary!Y147,""),"") ->  | Z147: =IFERROR(IF(INDIRECT("'game1 ("&$AD147&")'!$a$2")="R",Season_Summary!Z147,""),"") ->  | AA147: =IFERROR(IF(INDIRECT("'game1 ("&$AD147&")'!$a$2")="R",Season_Summary!AA147,""),"") ->  | AB147: =IFERROR(IF(INDIRECT("'game1 ("&$AD147&")'!$a$2")="R",Season_Summary!AB147,""),"") ->  | AC147: =IFERROR(IF(INDIRECT("'game1 ("&$AD147&")'!$a$2")="R",Season_Summary!AC147,""),"") ->  | AD147: 23
A148: =IFERROR(IF(INDIRECT("'game1 ("&$AD148&")'!$a$2")="R",Season_Summary!A148,""),"") ->  | B148: =IFERROR(IF(INDIRECT("'game1 ("&$AD148&")'!$a$2")="R",Season_Summary!B148,""),"") ->  | C148: =IFERROR(IF(INDIRECT("'game1 ("&$AD148&")'!$a$2")="R",Season_Summary!C148,""),"") ->  | D148: =IFERROR(IF(INDIRECT("'game1 ("&$AD148&")'!$a$2")="R",Season_Summary!D148,""),"") ->  | E148: =IFERROR(IF(INDIRECT("'game1 ("&$AD148&")'!$a$2")="R",Season_Summary!E148,""),"") ->  | F148: =IFERROR(IF(INDIRECT("'game1 ("&$AD148&")'!$a$2")="R",Season_Summary!F148,""),"") ->  | G148: =IFERROR(IF(INDIRECT("'game1 ("&$AD148&")'!$a$2")="R",Season_Summary!G148,""),"") ->  | H148: =IFERROR(IF(INDIRECT("'game1 ("&$AD148&")'!$a$2")="R",Season_Summary!H148,""),"") ->  | I148: =IFERROR(IF(INDIRECT("'game1 ("&$AD148&")'!$a$2")="R",Season_Summary!I148,""),"") ->  | J148: =IFERROR(IF(INDIRECT("'game1 ("&$AD148&")'!$a$2")="R",Season_Summary!J148,""),"") ->  | K148: =IFERROR(IF(INDIRECT("'game1 ("&$AD148&")'!$a$2")="R",Season_Summary!K148,""),"") ->  | L148: =IFERROR(IF(INDIRECT("'game1 ("&$AD148&")'!$a$2")="R",Season_Summary!L148,""),"") ->  | M148: =IFERROR(IF(INDIRECT("'game1 ("&$AD148&")'!$a$2")="R",Season_Summary!M148,""),"") ->  | N148: =IFERROR(IF(INDIRECT("'game1 ("&$AD148&")'!$a$2")="R",Season_Summary!N148,""),"") ->  | O148: =IFERROR(IF(INDIRECT("'game1 ("&$AD148&")'!$a$2")="R",Season_Summary!O148,""),"") ->  | P148: =IFERROR(IF(INDIRECT("'game1 ("&$AD148&")'!$a$2")="R",Season_Summary!P148,""),"") ->  | Q148: =IFERROR(IF(INDIRECT("'game1 ("&$AD148&")'!$a$2")="R",Season_Summary!Q148,""),"") ->  | R148: =IFERROR(IF(INDIRECT("'game1 ("&$AD148&")'!$a$2")="R",Season_Summary!R148,""),"") ->  | S148: =IFERROR(IF(INDIRECT("'game1 ("&$AD148&")'!$a$2")="R",Season_Summary!S148,""),"") ->  | T148: =IFERROR(IF(INDIRECT("'game1 ("&$AD148&")'!$a$2")="R",Season_Summary!T148,""),"") ->  | U148: =IFERROR(IF(INDIRECT("'game1 ("&$AD148&")'!$a$2")="R",Season_Summary!U148,""),"") ->  | V148: =IFERROR(IF(INDIRECT("'game1 ("&$AD148&")'!$a$2")="R",Season_Summary!V148,""),"") ->  | W148: =IFERROR(IF(INDIRECT("'game1 ("&$AD148&")'!$a$2")="R",Season_Summary!W148,""),"") ->  | X148: =IFERROR(IF(INDIRECT("'game1 ("&$AD148&")'!$a$2")="R",Season_Summary!X148,""),"") ->  | Y148: =IFERROR(IF(INDIRECT("'game1 ("&$AD148&")'!$a$2")="R",Season_Summary!Y148,""),"") ->  | Z148: =IFERROR(IF(INDIRECT("'game1 ("&$AD148&")'!$a$2")="R",Season_Summary!Z148,""),"") ->  | AA148: =IFERROR(IF(INDIRECT("'game1 ("&$AD148&")'!$a$2")="R",Season_Summary!AA148,""),"") ->  | AB148: =IFERROR(IF(INDIRECT("'game1 ("&$AD148&")'!$a$2")="R",Season_Summary!AB148,""),"") ->  | AC148: =IFERROR(IF(INDIRECT("'game1 ("&$AD148&")'!$a$2")="R",Season_Summary!AC148,""),"") ->  | AD148: 23
A149: =IFERROR(IF(INDIRECT("'game1 ("&$AD149&")'!$a$2")="R",Season_Summary!A149,""),"") ->  | B149: =IFERROR(IF(INDIRECT("'game1 ("&$AD149&")'!$a$2")="R",Season_Summary!B149,""),"") ->  | C149: =IFERROR(IF(INDIRECT("'game1 ("&$AD149&")'!$a$2")="R",Season_Summary!C149,""),"") ->  | D149: =IFERROR(IF(INDIRECT("'game1 ("&$AD149&")'!$a$2")="R",Season_Summary!D149,""),"") ->  | E149: =IFERROR(IF(INDIRECT("'game1 ("&$AD149&")'!$a$2")="R",Season_Summary!E149,""),"") ->  | F149: =IFERROR(IF(INDIRECT("'game1 ("&$AD149&")'!$a$2")="R",Season_Summary!F149,""),"") ->  | G149: =IFERROR(IF(INDIRECT("'game1 ("&$AD149&")'!$a$2")="R",Season_Summary!G149,""),"") ->  | H149: =IFERROR(IF(INDIRECT("'game1 ("&$AD149&")'!$a$2")="R",Season_Summary!H149,""),"") ->  | I149: =IFERROR(IF(INDIRECT("'game1 ("&$AD149&")'!$a$2")="R",Season_Summary!I149,""),"") ->  | J149: =IFERROR(IF(INDIRECT("'game1 ("&$AD149&")'!$a$2")="R",Season_Summary!J149,""),"") ->  | K149: =IFERROR(IF(INDIRECT("'game1 ("&$AD149&")'!$a$2")="R",Season_Summary!K149,""),"") ->  | L149: =IFERROR(IF(INDIRECT("'game1 ("&$AD149&")'!$a$2")="R",Season_Summary!L149,""),"") ->  | M149: =IFERROR(IF(INDIRECT("'game1 ("&$AD149&")'!$a$2")="R",Season_Summary!M149,""),"") ->  | N149: =IFERROR(IF(INDIRECT("'game1 ("&$AD149&")'!$a$2")="R",Season_Summary!N149,""),"") ->  | O149: =IFERROR(IF(INDIRECT("'game1 ("&$AD149&")'!$a$2")="R",Season_Summary!O149,""),"") ->  | P149: =IFERROR(IF(INDIRECT("'game1 ("&$AD149&")'!$a$2")="R",Season_Summary!P149,""),"") ->  | Q149: =IFERROR(IF(INDIRECT("'game1 ("&$AD149&")'!$a$2")="R",Season_Summary!Q149,""),"") ->  | R149: =IFERROR(IF(INDIRECT("'game1 ("&$AD149&")'!$a$2")="R",Season_Summary!R149,""),"") ->  | S149: =IFERROR(IF(INDIRECT("'game1 ("&$AD149&")'!$a$2")="R",Season_Summary!S149,""),"") ->  | T149: =IFERROR(IF(INDIRECT("'game1 ("&$AD149&")'!$a$2")="R",Season_Summary!T149,""),"") ->  | U149: =IFERROR(IF(INDIRECT("'game1 ("&$AD149&")'!$a$2")="R",Season_Summary!U149,""),"") ->  | V149: =IFERROR(IF(INDIRECT("'game1 ("&$AD149&")'!$a$2")="R",Season_Summary!V149,""),"") ->  | W149: =IFERROR(IF(INDIRECT("'game1 ("&$AD149&")'!$a$2")="R",Season_Summary!W149,""),"") ->  | X149: =IFERROR(IF(INDIRECT("'game1 ("&$AD149&")'!$a$2")="R",Season_Summary!X149,""),"") ->  | Y149: =IFERROR(IF(INDIRECT("'game1 ("&$AD149&")'!$a$2")="R",Season_Summary!Y149,""),"") ->  | Z149: =IFERROR(IF(INDIRECT("'game1 ("&$AD149&")'!$a$2")="R",Season_Summary!Z149,""),"") ->  | AA149: =IFERROR(IF(INDIRECT("'game1 ("&$AD149&")'!$a$2")="R",Season_Summary!AA149,""),"") ->  | AB149: =IFERROR(IF(INDIRECT("'game1 ("&$AD149&")'!$a$2")="R",Season_Summary!AB149,""),"") ->  | AC149: =IFERROR(IF(INDIRECT("'game1 ("&$AD149&")'!$a$2")="R",Season_Summary!AC149,""),"") ->  | AD149: 24
A150: =IFERROR(IF(INDIRECT("'game1 ("&$AD150&")'!$a$2")="R",Season_Summary!A150,""),"") ->  | B150: =IFERROR(IF(INDIRECT("'game1 ("&$AD150&")'!$a$2")="R",Season_Summary!B150,""),"") ->  | C150: =IFERROR(IF(INDIRECT("'game1 ("&$AD150&")'!$a$2")="R",Season_Summary!C150,""),"") ->  | D150: =IFERROR(IF(INDIRECT("'game1 ("&$AD150&")'!$a$2")="R",Season_Summary!D150,""),"") ->  | E150: =IFERROR(IF(INDIRECT("'game1 ("&$AD150&")'!$a$2")="R",Season_Summary!E150,""),"") ->  | F150: =IFERROR(IF(INDIRECT("'game1 ("&$AD150&")'!$a$2")="R",Season_Summary!F150,""),"") ->  | G150: =IFERROR(IF(INDIRECT("'game1 ("&$AD150&")'!$a$2")="R",Season_Summary!G150,""),"") ->  | H150: =IFERROR(IF(INDIRECT("'game1 ("&$AD150&")'!$a$2")="R",Season_Summary!H150,""),"") ->  | I150: =IFERROR(IF(INDIRECT("'game1 ("&$AD150&")'!$a$2")="R",Season_Summary!I150,""),"") ->  | J150: =IFERROR(IF(INDIRECT("'game1 ("&$AD150&")'!$a$2")="R",Season_Summary!J150,""),"") ->  | K150: =IFERROR(IF(INDIRECT("'game1 ("&$AD150&")'!$a$2")="R",Season_Summary!K150,""),"") ->  | L150: =IFERROR(IF(INDIRECT("'game1 ("&$AD150&")'!$a$2")="R",Season_Summary!L150,""),"") ->  | M150: =IFERROR(IF(INDIRECT("'game1 ("&$AD150&")'!$a$2")="R",Season_Summary!M150,""),"") ->  | N150: =IFERROR(IF(INDIRECT("'game1 ("&$AD150&")'!$a$2")="R",Season_Summary!N150,""),"") ->  | O150: =IFERROR(IF(INDIRECT("'game1 ("&$AD150&")'!$a$2")="R",Season_Summary!O150,""),"") ->  | P150: =IFERROR(IF(INDIRECT("'game1 ("&$AD150&")'!$a$2")="R",Season_Summary!P150,""),"") ->  | Q150: =IFERROR(IF(INDIRECT("'game1 ("&$AD150&")'!$a$2")="R",Season_Summary!Q150,""),"") ->  | R150: =IFERROR(IF(INDIRECT("'game1 ("&$AD150&")'!$a$2")="R",Season_Summary!R150,""),"") ->  | S150: =IFERROR(IF(INDIRECT("'game1 ("&$AD150&")'!$a$2")="R",Season_Summary!S150,""),"") ->  | T150: =IFERROR(IF(INDIRECT("'game1 ("&$AD150&")'!$a$2")="R",Season_Summary!T150,""),"") ->  | U150: =IFERROR(IF(INDIRECT("'game1 ("&$AD150&")'!$a$2")="R",Season_Summary!U150,""),"") ->  | V150: =IFERROR(IF(INDIRECT("'game1 ("&$AD150&")'!$a$2")="R",Season_Summary!V150,""),"") ->  | W150: =IFERROR(IF(INDIRECT("'game1 ("&$AD150&")'!$a$2")="R",Season_Summary!W150,""),"") ->  | X150: =IFERROR(IF(INDIRECT("'game1 ("&$AD150&")'!$a$2")="R",Season_Summary!X150,""),"") ->  | Y150: =IFERROR(IF(INDIRECT("'game1 ("&$AD150&")'!$a$2")="R",Season_Summary!Y150,""),"") ->  | Z150: =IFERROR(IF(INDIRECT("'game1 ("&$AD150&")'!$a$2")="R",Season_Summary!Z150,""),"") ->  | AA150: =IFERROR(IF(INDIRECT("'game1 ("&$AD150&")'!$a$2")="R",Season_Summary!AA150,""),"") ->  | AB150: =IFERROR(IF(INDIRECT("'game1 ("&$AD150&")'!$a$2")="R",Season_Summary!AB150,""),"") ->  | AC150: =IFERROR(IF(INDIRECT("'game1 ("&$AD150&")'!$a$2")="R",Season_Summary!AC150,""),"") ->  | AD150: 24
A151: =IFERROR(IF(INDIRECT("'game1 ("&$AD151&")'!$a$2")="R",Season_Summary!A151,""),"") ->  | B151: =IFERROR(IF(INDIRECT("'game1 ("&$AD151&")'!$a$2")="R",Season_Summary!B151,""),"") ->  | C151: =IFERROR(IF(INDIRECT("'game1 ("&$AD151&")'!$a$2")="R",Season_Summary!C151,""),"") ->  | D151: =IFERROR(IF(INDIRECT("'game1 ("&$AD151&")'!$a$2")="R",Season_Summary!D151,""),"") ->  | E151: =IFERROR(IF(INDIRECT("'game1 ("&$AD151&")'!$a$2")="R",Season_Summary!E151,""),"") ->  | F151: =IFERROR(IF(INDIRECT("'game1 ("&$AD151&")'!$a$2")="R",Season_Summary!F151,""),"") ->  | G151: =IFERROR(IF(INDIRECT("'game1 ("&$AD151&")'!$a$2")="R",Season_Summary!G151,""),"") ->  | H151: =IFERROR(IF(INDIRECT("'game1 ("&$AD151&")'!$a$2")="R",Season_Summary!H151,""),"") ->  | I151: =IFERROR(IF(INDIRECT("'game1 ("&$AD151&")'!$a$2")="R",Season_Summary!I151,""),"") ->  | J151: =IFERROR(IF(INDIRECT("'game1 ("&$AD151&")'!$a$2")="R",Season_Summary!J151,""),"") ->  | K151: =IFERROR(IF(INDIRECT("'game1 ("&$AD151&")'!$a$2")="R",Season_Summary!K151,""),"") ->  | L151: =IFERROR(IF(INDIRECT("'game1 ("&$AD151&")'!$a$2")="R",Season_Summary!L151,""),"") ->  | M151: =IFERROR(IF(INDIRECT("'game1 ("&$AD151&")'!$a$2")="R",Season_Summary!M151,""),"") ->  | N151: =IFERROR(IF(INDIRECT("'game1 ("&$AD151&")'!$a$2")="R",Season_Summary!N151,""),"") ->  | O151: =IFERROR(IF(INDIRECT("'game1 ("&$AD151&")'!$a$2")="R",Season_Summary!O151,""),"") ->  | P151: =IFERROR(IF(INDIRECT("'game1 ("&$AD151&")'!$a$2")="R",Season_Summary!P151,""),"") ->  | Q151: =IFERROR(IF(INDIRECT("'game1 ("&$AD151&")'!$a$2")="R",Season_Summary!Q151,""),"") ->  | R151: =IFERROR(IF(INDIRECT("'game1 ("&$AD151&")'!$a$2")="R",Season_Summary!R151,""),"") ->  | S151: =IFERROR(IF(INDIRECT("'game1 ("&$AD151&")'!$a$2")="R",Season_Summary!S151,""),"") ->  | T151: =IFERROR(IF(INDIRECT("'game1 ("&$AD151&")'!$a$2")="R",Season_Summary!T151,""),"") ->  | U151: =IFERROR(IF(INDIRECT("'game1 ("&$AD151&")'!$a$2")="R",Season_Summary!U151,""),"") ->  | V151: =IFERROR(IF(INDIRECT("'game1 ("&$AD151&")'!$a$2")="R",Season_Summary!V151,""),"") ->  | W151: =IFERROR(IF(INDIRECT("'game1 ("&$AD151&")'!$a$2")="R",Season_Summary!W151,""),"") ->  | X151: =IFERROR(IF(INDIRECT("'game1 ("&$AD151&")'!$a$2")="R",Season_Summary!X151,""),"") ->  | Y151: =IFERROR(IF(INDIRECT("'game1 ("&$AD151&")'!$a$2")="R",Season_Summary!Y151,""),"") ->  | Z151: =IFERROR(IF(INDIRECT("'game1 ("&$AD151&")'!$a$2")="R",Season_Summary!Z151,""),"") ->  | AA151: =IFERROR(IF(INDIRECT("'game1 ("&$AD151&")'!$a$2")="R",Season_Summary!AA151,""),"") ->  | AB151: =IFERROR(IF(INDIRECT("'game1 ("&$AD151&")'!$a$2")="R",Season_Summary!AB151,""),"") ->  | AC151: =IFERROR(IF(INDIRECT("'game1 ("&$AD151&")'!$a$2")="R",Season_Summary!AC151,""),"") ->  | AD151: 25
A152: =IFERROR(IF(INDIRECT("'game1 ("&$AD152&")'!$a$2")="R",Season_Summary!A152,""),"") ->  | B152: =IFERROR(IF(INDIRECT("'game1 ("&$AD152&")'!$a$2")="R",Season_Summary!B152,""),"") ->  | C152: =IFERROR(IF(INDIRECT("'game1 ("&$AD152&")'!$a$2")="R",Season_Summary!C152,""),"") ->  | D152: =IFERROR(IF(INDIRECT("'game1 ("&$AD152&")'!$a$2")="R",Season_Summary!D152,""),"") ->  | E152: =IFERROR(IF(INDIRECT("'game1 ("&$AD152&")'!$a$2")="R",Season_Summary!E152,""),"") ->  | F152: =IFERROR(IF(INDIRECT("'game1 ("&$AD152&")'!$a$2")="R",Season_Summary!F152,""),"") ->  | G152: =IFERROR(IF(INDIRECT("'game1 ("&$AD152&")'!$a$2")="R",Season_Summary!G152,""),"") ->  | H152: =IFERROR(IF(INDIRECT("'game1 ("&$AD152&")'!$a$2")="R",Season_Summary!H152,""),"") ->  | I152: =IFERROR(IF(INDIRECT("'game1 ("&$AD152&")'!$a$2")="R",Season_Summary!I152,""),"") ->  | J152: =IFERROR(IF(INDIRECT("'game1 ("&$AD152&")'!$a$2")="R",Season_Summary!J152,""),"") ->  | K152: =IFERROR(IF(INDIRECT("'game1 ("&$AD152&")'!$a$2")="R",Season_Summary!K152,""),"") ->  | L152: =IFERROR(IF(INDIRECT("'game1 ("&$AD152&")'!$a$2")="R",Season_Summary!L152,""),"") ->  | M152: =IFERROR(IF(INDIRECT("'game1 ("&$AD152&")'!$a$2")="R",Season_Summary!M152,""),"") ->  | N152: =IFERROR(IF(INDIRECT("'game1 ("&$AD152&")'!$a$2")="R",Season_Summary!N152,""),"") ->  | O152: =IFERROR(IF(INDIRECT("'game1 ("&$AD152&")'!$a$2")="R",Season_Summary!O152,""),"") ->  | P152: =IFERROR(IF(INDIRECT("'game1 ("&$AD152&")'!$a$2")="R",Season_Summary!P152,""),"") ->  | Q152: =IFERROR(IF(INDIRECT("'game1 ("&$AD152&")'!$a$2")="R",Season_Summary!Q152,""),"") ->  | R152: =IFERROR(IF(INDIRECT("'game1 ("&$AD152&")'!$a$2")="R",Season_Summary!R152,""),"") ->  | S152: =IFERROR(IF(INDIRECT("'game1 ("&$AD152&")'!$a$2")="R",Season_Summary!S152,""),"") ->  | T152: =IFERROR(IF(INDIRECT("'game1 ("&$AD152&")'!$a$2")="R",Season_Summary!T152,""),"") ->  | U152: =IFERROR(IF(INDIRECT("'game1 ("&$AD152&")'!$a$2")="R",Season_Summary!U152,""),"") ->  | V152: =IFERROR(IF(INDIRECT("'game1 ("&$AD152&")'!$a$2")="R",Season_Summary!V152,""),"") ->  | W152: =IFERROR(IF(INDIRECT("'game1 ("&$AD152&")'!$a$2")="R",Season_Summary!W152,""),"") ->  | X152: =IFERROR(IF(INDIRECT("'game1 ("&$AD152&")'!$a$2")="R",Season_Summary!X152,""),"") ->  | Y152: =IFERROR(IF(INDIRECT("'game1 ("&$AD152&")'!$a$2")="R",Season_Summary!Y152,""),"") ->  | Z152: =IFERROR(IF(INDIRECT("'game1 ("&$AD152&")'!$a$2")="R",Season_Summary!Z152,""),"") ->  | AA152: =IFERROR(IF(INDIRECT("'game1 ("&$AD152&")'!$a$2")="R",Season_Summary!AA152,""),"") ->  | AB152: =IFERROR(IF(INDIRECT("'game1 ("&$AD152&")'!$a$2")="R",Season_Summary!AB152,""),"") ->  | AC152: =IFERROR(IF(INDIRECT("'game1 ("&$AD152&")'!$a$2")="R",Season_Summary!AC152,""),"") ->  | AD152: 25
A153: =IFERROR(IF(INDIRECT("'game1 ("&$AD153&")'!$a$2")="R",Season_Summary!A153,""),"") ->  | B153: =IFERROR(IF(INDIRECT("'game1 ("&$AD153&")'!$a$2")="R",Season_Summary!B153,""),"") ->  | C153: =IFERROR(IF(INDIRECT("'game1 ("&$AD153&")'!$a$2")="R",Season_Summary!C153,""),"") ->  | D153: =IFERROR(IF(INDIRECT("'game1 ("&$AD153&")'!$a$2")="R",Season_Summary!D153,""),"") ->  | E153: =IFERROR(IF(INDIRECT("'game1 ("&$AD153&")'!$a$2")="R",Season_Summary!E153,""),"") ->  | F153: =IFERROR(IF(INDIRECT("'game1 ("&$AD153&")'!$a$2")="R",Season_Summary!F153,""),"") ->  | G153: =IFERROR(IF(INDIRECT("'game1 ("&$AD153&")'!$a$2")="R",Season_Summary!G153,""),"") ->  | H153: =IFERROR(IF(INDIRECT("'game1 ("&$AD153&")'!$a$2")="R",Season_Summary!H153,""),"") ->  | I153: =IFERROR(IF(INDIRECT("'game1 ("&$AD153&")'!$a$2")="R",Season_Summary!I153,""),"") ->  | J153: =IFERROR(IF(INDIRECT("'game1 ("&$AD153&")'!$a$2")="R",Season_Summary!J153,""),"") ->  | K153: =IFERROR(IF(INDIRECT("'game1 ("&$AD153&")'!$a$2")="R",Season_Summary!K153,""),"") ->  | L153: =IFERROR(IF(INDIRECT("'game1 ("&$AD153&")'!$a$2")="R",Season_Summary!L153,""),"") ->  | M153: =IFERROR(IF(INDIRECT("'game1 ("&$AD153&")'!$a$2")="R",Season_Summary!M153,""),"") ->  | N153: =IFERROR(IF(INDIRECT("'game1 ("&$AD153&")'!$a$2")="R",Season_Summary!N153,""),"") ->  | O153: =IFERROR(IF(INDIRECT("'game1 ("&$AD153&")'!$a$2")="R",Season_Summary!O153,""),"") ->  | P153: =IFERROR(IF(INDIRECT("'game1 ("&$AD153&")'!$a$2")="R",Season_Summary!P153,""),"") ->  | Q153: =IFERROR(IF(INDIRECT("'game1 ("&$AD153&")'!$a$2")="R",Season_Summary!Q153,""),"") ->  | R153: =IFERROR(IF(INDIRECT("'game1 ("&$AD153&")'!$a$2")="R",Season_Summary!R153,""),"") ->  | S153: =IFERROR(IF(INDIRECT("'game1 ("&$AD153&")'!$a$2")="R",Season_Summary!S153,""),"") ->  | T153: =IFERROR(IF(INDIRECT("'game1 ("&$AD153&")'!$a$2")="R",Season_Summary!T153,""),"") ->  | U153: =IFERROR(IF(INDIRECT("'game1 ("&$AD153&")'!$a$2")="R",Season_Summary!U153,""),"") ->  | V153: =IFERROR(IF(INDIRECT("'game1 ("&$AD153&")'!$a$2")="R",Season_Summary!V153,""),"") ->  | W153: =IFERROR(IF(INDIRECT("'game1 ("&$AD153&")'!$a$2")="R",Season_Summary!W153,""),"") ->  | X153: =IFERROR(IF(INDIRECT("'game1 ("&$AD153&")'!$a$2")="R",Season_Summary!X153,""),"") ->  | Y153: =IFERROR(IF(INDIRECT("'game1 ("&$AD153&")'!$a$2")="R",Season_Summary!Y153,""),"") ->  | Z153: =IFERROR(IF(INDIRECT("'game1 ("&$AD153&")'!$a$2")="R",Season_Summary!Z153,""),"") ->  | AA153: =IFERROR(IF(INDIRECT("'game1 ("&$AD153&")'!$a$2")="R",Season_Summary!AA153,""),"") ->  | AB153: =IFERROR(IF(INDIRECT("'game1 ("&$AD153&")'!$a$2")="R",Season_Summary!AB153,""),"") ->  | AC153: =IFERROR(IF(INDIRECT("'game1 ("&$AD153&")'!$a$2")="R",Season_Summary!AC153,""),"") ->  | AD153: 26
A154: =IFERROR(IF(INDIRECT("'game1 ("&$AD154&")'!$a$2")="R",Season_Summary!A154,""),"") ->  | B154: =IFERROR(IF(INDIRECT("'game1 ("&$AD154&")'!$a$2")="R",Season_Summary!B154,""),"") ->  | C154: =IFERROR(IF(INDIRECT("'game1 ("&$AD154&")'!$a$2")="R",Season_Summary!C154,""),"") ->  | D154: =IFERROR(IF(INDIRECT("'game1 ("&$AD154&")'!$a$2")="R",Season_Summary!D154,""),"") ->  | E154: =IFERROR(IF(INDIRECT("'game1 ("&$AD154&")'!$a$2")="R",Season_Summary!E154,""),"") ->  | F154: =IFERROR(IF(INDIRECT("'game1 ("&$AD154&")'!$a$2")="R",Season_Summary!F154,""),"") ->  | G154: =IFERROR(IF(INDIRECT("'game1 ("&$AD154&")'!$a$2")="R",Season_Summary!G154,""),"") ->  | H154: =IFERROR(IF(INDIRECT("'game1 ("&$AD154&")'!$a$2")="R",Season_Summary!H154,""),"") ->  | I154: =IFERROR(IF(INDIRECT("'game1 ("&$AD154&")'!$a$2")="R",Season_Summary!I154,""),"") ->  | J154: =IFERROR(IF(INDIRECT("'game1 ("&$AD154&")'!$a$2")="R",Season_Summary!J154,""),"") ->  | K154: =IFERROR(IF(INDIRECT("'game1 ("&$AD154&")'!$a$2")="R",Season_Summary!K154,""),"") ->  | L154: =IFERROR(IF(INDIRECT("'game1 ("&$AD154&")'!$a$2")="R",Season_Summary!L154,""),"") ->  | M154: =IFERROR(IF(INDIRECT("'game1 ("&$AD154&")'!$a$2")="R",Season_Summary!M154,""),"") ->  | N154: =IFERROR(IF(INDIRECT("'game1 ("&$AD154&")'!$a$2")="R",Season_Summary!N154,""),"") ->  | O154: =IFERROR(IF(INDIRECT("'game1 ("&$AD154&")'!$a$2")="R",Season_Summary!O154,""),"") ->  | P154: =IFERROR(IF(INDIRECT("'game1 ("&$AD154&")'!$a$2")="R",Season_Summary!P154,""),"") ->  | Q154: =IFERROR(IF(INDIRECT("'game1 ("&$AD154&")'!$a$2")="R",Season_Summary!Q154,""),"") ->  | R154: =IFERROR(IF(INDIRECT("'game1 ("&$AD154&")'!$a$2")="R",Season_Summary!R154,""),"") ->  | S154: =IFERROR(IF(INDIRECT("'game1 ("&$AD154&")'!$a$2")="R",Season_Summary!S154,""),"") ->  | T154: =IFERROR(IF(INDIRECT("'game1 ("&$AD154&")'!$a$2")="R",Season_Summary!T154,""),"") ->  | U154: =IFERROR(IF(INDIRECT("'game1 ("&$AD154&")'!$a$2")="R",Season_Summary!U154,""),"") ->  | V154: =IFERROR(IF(INDIRECT("'game1 ("&$AD154&")'!$a$2")="R",Season_Summary!V154,""),"") ->  | W154: =IFERROR(IF(INDIRECT("'game1 ("&$AD154&")'!$a$2")="R",Season_Summary!W154,""),"") ->  | X154: =IFERROR(IF(INDIRECT("'game1 ("&$AD154&")'!$a$2")="R",Season_Summary!X154,""),"") ->  | Y154: =IFERROR(IF(INDIRECT("'game1 ("&$AD154&")'!$a$2")="R",Season_Summary!Y154,""),"") ->  | Z154: =IFERROR(IF(INDIRECT("'game1 ("&$AD154&")'!$a$2")="R",Season_Summary!Z154,""),"") ->  | AA154: =IFERROR(IF(INDIRECT("'game1 ("&$AD154&")'!$a$2")="R",Season_Summary!AA154,""),"") ->  | AB154: =IFERROR(IF(INDIRECT("'game1 ("&$AD154&")'!$a$2")="R",Season_Summary!AB154,""),"") ->  | AC154: =IFERROR(IF(INDIRECT("'game1 ("&$AD154&")'!$a$2")="R",Season_Summary!AC154,""),"") ->  | AD154: 26
A155: =IFERROR(IF(INDIRECT("'game1 ("&$AD155&")'!$a$2")="R",Season_Summary!A155,""),"") ->  | B155: =IFERROR(IF(INDIRECT("'game1 ("&$AD155&")'!$a$2")="R",Season_Summary!B155,""),"") ->  | C155: =IFERROR(IF(INDIRECT("'game1 ("&$AD155&")'!$a$2")="R",Season_Summary!C155,""),"") ->  | D155: =IFERROR(IF(INDIRECT("'game1 ("&$AD155&")'!$a$2")="R",Season_Summary!D155,""),"") ->  | E155: =IFERROR(IF(INDIRECT("'game1 ("&$AD155&")'!$a$2")="R",Season_Summary!E155,""),"") ->  | F155: =IFERROR(IF(INDIRECT("'game1 ("&$AD155&")'!$a$2")="R",Season_Summary!F155,""),"") ->  | G155: =IFERROR(IF(INDIRECT("'game1 ("&$AD155&")'!$a$2")="R",Season_Summary!G155,""),"") ->  | H155: =IFERROR(IF(INDIRECT("'game1 ("&$AD155&")'!$a$2")="R",Season_Summary!H155,""),"") ->  | I155: =IFERROR(IF(INDIRECT("'game1 ("&$AD155&")'!$a$2")="R",Season_Summary!I155,""),"") ->  | J155: =IFERROR(IF(INDIRECT("'game1 ("&$AD155&")'!$a$2")="R",Season_Summary!J155,""),"") ->  | K155: =IFERROR(IF(INDIRECT("'game1 ("&$AD155&")'!$a$2")="R",Season_Summary!K155,""),"") ->  | L155: =IFERROR(IF(INDIRECT("'game1 ("&$AD155&")'!$a$2")="R",Season_Summary!L155,""),"") ->  | M155: =IFERROR(IF(INDIRECT("'game1 ("&$AD155&")'!$a$2")="R",Season_Summary!M155,""),"") ->  | N155: =IFERROR(IF(INDIRECT("'game1 ("&$AD155&")'!$a$2")="R",Season_Summary!N155,""),"") ->  | O155: =IFERROR(IF(INDIRECT("'game1 ("&$AD155&")'!$a$2")="R",Season_Summary!O155,""),"") ->  | P155: =IFERROR(IF(INDIRECT("'game1 ("&$AD155&")'!$a$2")="R",Season_Summary!P155,""),"") ->  | Q155: =IFERROR(IF(INDIRECT("'game1 ("&$AD155&")'!$a$2")="R",Season_Summary!Q155,""),"") ->  | R155: =IFERROR(IF(INDIRECT("'game1 ("&$AD155&")'!$a$2")="R",Season_Summary!R155,""),"") ->  | S155: =IFERROR(IF(INDIRECT("'game1 ("&$AD155&")'!$a$2")="R",Season_Summary!S155,""),"") ->  | T155: =IFERROR(IF(INDIRECT("'game1 ("&$AD155&")'!$a$2")="R",Season_Summary!T155,""),"") ->  | U155: =IFERROR(IF(INDIRECT("'game1 ("&$AD155&")'!$a$2")="R",Season_Summary!U155,""),"") ->  | V155: =IFERROR(IF(INDIRECT("'game1 ("&$AD155&")'!$a$2")="R",Season_Summary!V155,""),"") ->  | W155: =IFERROR(IF(INDIRECT("'game1 ("&$AD155&")'!$a$2")="R",Season_Summary!W155,""),"") ->  | X155: =IFERROR(IF(INDIRECT("'game1 ("&$AD155&")'!$a$2")="R",Season_Summary!X155,""),"") ->  | Y155: =IFERROR(IF(INDIRECT("'game1 ("&$AD155&")'!$a$2")="R",Season_Summary!Y155,""),"") ->  | Z155: =IFERROR(IF(INDIRECT("'game1 ("&$AD155&")'!$a$2")="R",Season_Summary!Z155,""),"") ->  | AA155: =IFERROR(IF(INDIRECT("'game1 ("&$AD155&")'!$a$2")="R",Season_Summary!AA155,""),"") ->  | AB155: =IFERROR(IF(INDIRECT("'game1 ("&$AD155&")'!$a$2")="R",Season_Summary!AB155,""),"") ->  | AC155: =IFERROR(IF(INDIRECT("'game1 ("&$AD155&")'!$a$2")="R",Season_Summary!AC155,""),"") ->  | AD155: 27
A156: =IFERROR(IF(INDIRECT("'game1 ("&$AD156&")'!$a$2")="R",Season_Summary!A156,""),"") ->  | B156: =IFERROR(IF(INDIRECT("'game1 ("&$AD156&")'!$a$2")="R",Season_Summary!B156,""),"") ->  | C156: =IFERROR(IF(INDIRECT("'game1 ("&$AD156&")'!$a$2")="R",Season_Summary!C156,""),"") ->  | D156: =IFERROR(IF(INDIRECT("'game1 ("&$AD156&")'!$a$2")="R",Season_Summary!D156,""),"") ->  | E156: =IFERROR(IF(INDIRECT("'game1 ("&$AD156&")'!$a$2")="R",Season_Summary!E156,""),"") ->  | F156: =IFERROR(IF(INDIRECT("'game1 ("&$AD156&")'!$a$2")="R",Season_Summary!F156,""),"") ->  | G156: =IFERROR(IF(INDIRECT("'game1 ("&$AD156&")'!$a$2")="R",Season_Summary!G156,""),"") ->  | H156: =IFERROR(IF(INDIRECT("'game1 ("&$AD156&")'!$a$2")="R",Season_Summary!H156,""),"") ->  | I156: =IFERROR(IF(INDIRECT("'game1 ("&$AD156&")'!$a$2")="R",Season_Summary!I156,""),"") ->  | J156: =IFERROR(IF(INDIRECT("'game1 ("&$AD156&")'!$a$2")="R",Season_Summary!J156,""),"") ->  | K156: =IFERROR(IF(INDIRECT("'game1 ("&$AD156&")'!$a$2")="R",Season_Summary!K156,""),"") ->  | L156: =IFERROR(IF(INDIRECT("'game1 ("&$AD156&")'!$a$2")="R",Season_Summary!L156,""),"") ->  | M156: =IFERROR(IF(INDIRECT("'game1 ("&$AD156&")'!$a$2")="R",Season_Summary!M156,""),"") ->  | N156: =IFERROR(IF(INDIRECT("'game1 ("&$AD156&")'!$a$2")="R",Season_Summary!N156,""),"") ->  | O156: =IFERROR(IF(INDIRECT("'game1 ("&$AD156&")'!$a$2")="R",Season_Summary!O156,""),"") ->  | P156: =IFERROR(IF(INDIRECT("'game1 ("&$AD156&")'!$a$2")="R",Season_Summary!P156,""),"") ->  | Q156: =IFERROR(IF(INDIRECT("'game1 ("&$AD156&")'!$a$2")="R",Season_Summary!Q156,""),"") ->  | R156: =IFERROR(IF(INDIRECT("'game1 ("&$AD156&")'!$a$2")="R",Season_Summary!R156,""),"") ->  | S156: =IFERROR(IF(INDIRECT("'game1 ("&$AD156&")'!$a$2")="R",Season_Summary!S156,""),"") ->  | T156: =IFERROR(IF(INDIRECT("'game1 ("&$AD156&")'!$a$2")="R",Season_Summary!T156,""),"") ->  | U156: =IFERROR(IF(INDIRECT("'game1 ("&$AD156&")'!$a$2")="R",Season_Summary!U156,""),"") ->  | V156: =IFERROR(IF(INDIRECT("'game1 ("&$AD156&")'!$a$2")="R",Season_Summary!V156,""),"") ->  | W156: =IFERROR(IF(INDIRECT("'game1 ("&$AD156&")'!$a$2")="R",Season_Summary!W156,""),"") ->  | X156: =IFERROR(IF(INDIRECT("'game1 ("&$AD156&")'!$a$2")="R",Season_Summary!X156,""),"") ->  | Y156: =IFERROR(IF(INDIRECT("'game1 ("&$AD156&")'!$a$2")="R",Season_Summary!Y156,""),"") ->  | Z156: =IFERROR(IF(INDIRECT("'game1 ("&$AD156&")'!$a$2")="R",Season_Summary!Z156,""),"") ->  | AA156: =IFERROR(IF(INDIRECT("'game1 ("&$AD156&")'!$a$2")="R",Season_Summary!AA156,""),"") ->  | AB156: =IFERROR(IF(INDIRECT("'game1 ("&$AD156&")'!$a$2")="R",Season_Summary!AB156,""),"") ->  | AC156: =IFERROR(IF(INDIRECT("'game1 ("&$AD156&")'!$a$2")="R",Season_Summary!AC156,""),"") ->  | AD156: 27
A157: =IFERROR(IF(INDIRECT("'game1 ("&$AD157&")'!$a$2")="R",Season_Summary!A157,""),"") ->  | B157: =IFERROR(IF(INDIRECT("'game1 ("&$AD157&")'!$a$2")="R",Season_Summary!B157,""),"") ->  | C157: =IFERROR(IF(INDIRECT("'game1 ("&$AD157&")'!$a$2")="R",Season_Summary!C157,""),"") ->  | D157: =IFERROR(IF(INDIRECT("'game1 ("&$AD157&")'!$a$2")="R",Season_Summary!D157,""),"") ->  | E157: =IFERROR(IF(INDIRECT("'game1 ("&$AD157&")'!$a$2")="R",Season_Summary!E157,""),"") ->  | F157: =IFERROR(IF(INDIRECT("'game1 ("&$AD157&")'!$a$2")="R",Season_Summary!F157,""),"") ->  | G157: =IFERROR(IF(INDIRECT("'game1 ("&$AD157&")'!$a$2")="R",Season_Summary!G157,""),"") ->  | H157: =IFERROR(IF(INDIRECT("'game1 ("&$AD157&")'!$a$2")="R",Season_Summary!H157,""),"") ->  | I157: =IFERROR(IF(INDIRECT("'game1 ("&$AD157&")'!$a$2")="R",Season_Summary!I157,""),"") ->  | J157: =IFERROR(IF(INDIRECT("'game1 ("&$AD157&")'!$a$2")="R",Season_Summary!J157,""),"") ->  | K157: =IFERROR(IF(INDIRECT("'game1 ("&$AD157&")'!$a$2")="R",Season_Summary!K157,""),"") ->  | L157: =IFERROR(IF(INDIRECT("'game1 ("&$AD157&")'!$a$2")="R",Season_Summary!L157,""),"") ->  | M157: =IFERROR(IF(INDIRECT("'game1 ("&$AD157&")'!$a$2")="R",Season_Summary!M157,""),"") ->  | N157: =IFERROR(IF(INDIRECT("'game1 ("&$AD157&")'!$a$2")="R",Season_Summary!N157,""),"") ->  | O157: =IFERROR(IF(INDIRECT("'game1 ("&$AD157&")'!$a$2")="R",Season_Summary!O157,""),"") ->  | P157: =IFERROR(IF(INDIRECT("'game1 ("&$AD157&")'!$a$2")="R",Season_Summary!P157,""),"") ->  | Q157: =IFERROR(IF(INDIRECT("'game1 ("&$AD157&")'!$a$2")="R",Season_Summary!Q157,""),"") ->  | R157: =IFERROR(IF(INDIRECT("'game1 ("&$AD157&")'!$a$2")="R",Season_Summary!R157,""),"") ->  | S157: =IFERROR(IF(INDIRECT("'game1 ("&$AD157&")'!$a$2")="R",Season_Summary!S157,""),"") ->  | T157: =IFERROR(IF(INDIRECT("'game1 ("&$AD157&")'!$a$2")="R",Season_Summary!T157,""),"") ->  | U157: =IFERROR(IF(INDIRECT("'game1 ("&$AD157&")'!$a$2")="R",Season_Summary!U157,""),"") ->  | V157: =IFERROR(IF(INDIRECT("'game1 ("&$AD157&")'!$a$2")="R",Season_Summary!V157,""),"") ->  | W157: =IFERROR(IF(INDIRECT("'game1 ("&$AD157&")'!$a$2")="R",Season_Summary!W157,""),"") ->  | X157: =IFERROR(IF(INDIRECT("'game1 ("&$AD157&")'!$a$2")="R",Season_Summary!X157,""),"") ->  | Y157: =IFERROR(IF(INDIRECT("'game1 ("&$AD157&")'!$a$2")="R",Season_Summary!Y157,""),"") ->  | Z157: =IFERROR(IF(INDIRECT("'game1 ("&$AD157&")'!$a$2")="R",Season_Summary!Z157,""),"") ->  | AA157: =IFERROR(IF(INDIRECT("'game1 ("&$AD157&")'!$a$2")="R",Season_Summary!AA157,""),"") ->  | AB157: =IFERROR(IF(INDIRECT("'game1 ("&$AD157&")'!$a$2")="R",Season_Summary!AB157,""),"") ->  | AC157: =IFERROR(IF(INDIRECT("'game1 ("&$AD157&")'!$a$2")="R",Season_Summary!AC157,""),"") ->  | AD157: 28
A158: =IFERROR(IF(INDIRECT("'game1 ("&$AD158&")'!$a$2")="R",Season_Summary!A158,""),"") ->  | B158: =IFERROR(IF(INDIRECT("'game1 ("&$AD158&")'!$a$2")="R",Season_Summary!B158,""),"") ->  | C158: =IFERROR(IF(INDIRECT("'game1 ("&$AD158&")'!$a$2")="R",Season_Summary!C158,""),"") ->  | D158: =IFERROR(IF(INDIRECT("'game1 ("&$AD158&")'!$a$2")="R",Season_Summary!D158,""),"") ->  | E158: =IFERROR(IF(INDIRECT("'game1 ("&$AD158&")'!$a$2")="R",Season_Summary!E158,""),"") ->  | F158: =IFERROR(IF(INDIRECT("'game1 ("&$AD158&")'!$a$2")="R",Season_Summary!F158,""),"") ->  | G158: =IFERROR(IF(INDIRECT("'game1 ("&$AD158&")'!$a$2")="R",Season_Summary!G158,""),"") ->  | H158: =IFERROR(IF(INDIRECT("'game1 ("&$AD158&")'!$a$2")="R",Season_Summary!H158,""),"") ->  | I158: =IFERROR(IF(INDIRECT("'game1 ("&$AD158&")'!$a$2")="R",Season_Summary!I158,""),"") ->  | J158: =IFERROR(IF(INDIRECT("'game1 ("&$AD158&")'!$a$2")="R",Season_Summary!J158,""),"") ->  | K158: =IFERROR(IF(INDIRECT("'game1 ("&$AD158&")'!$a$2")="R",Season_Summary!K158,""),"") ->  | L158: =IFERROR(IF(INDIRECT("'game1 ("&$AD158&")'!$a$2")="R",Season_Summary!L158,""),"") ->  | M158: =IFERROR(IF(INDIRECT("'game1 ("&$AD158&")'!$a$2")="R",Season_Summary!M158,""),"") ->  | N158: =IFERROR(IF(INDIRECT("'game1 ("&$AD158&")'!$a$2")="R",Season_Summary!N158,""),"") ->  | O158: =IFERROR(IF(INDIRECT("'game1 ("&$AD158&")'!$a$2")="R",Season_Summary!O158,""),"") ->  | P158: =IFERROR(IF(INDIRECT("'game1 ("&$AD158&")'!$a$2")="R",Season_Summary!P158,""),"") ->  | Q158: =IFERROR(IF(INDIRECT("'game1 ("&$AD158&")'!$a$2")="R",Season_Summary!Q158,""),"") ->  | R158: =IFERROR(IF(INDIRECT("'game1 ("&$AD158&")'!$a$2")="R",Season_Summary!R158,""),"") ->  | S158: =IFERROR(IF(INDIRECT("'game1 ("&$AD158&")'!$a$2")="R",Season_Summary!S158,""),"") ->  | T158: =IFERROR(IF(INDIRECT("'game1 ("&$AD158&")'!$a$2")="R",Season_Summary!T158,""),"") ->  | U158: =IFERROR(IF(INDIRECT("'game1 ("&$AD158&")'!$a$2")="R",Season_Summary!U158,""),"") ->  | V158: =IFERROR(IF(INDIRECT("'game1 ("&$AD158&")'!$a$2")="R",Season_Summary!V158,""),"") ->  | W158: =IFERROR(IF(INDIRECT("'game1 ("&$AD158&")'!$a$2")="R",Season_Summary!W158,""),"") ->  | X158: =IFERROR(IF(INDIRECT("'game1 ("&$AD158&")'!$a$2")="R",Season_Summary!X158,""),"") ->  | Y158: =IFERROR(IF(INDIRECT("'game1 ("&$AD158&")'!$a$2")="R",Season_Summary!Y158,""),"") ->  | Z158: =IFERROR(IF(INDIRECT("'game1 ("&$AD158&")'!$a$2")="R",Season_Summary!Z158,""),"") ->  | AA158: =IFERROR(IF(INDIRECT("'game1 ("&$AD158&")'!$a$2")="R",Season_Summary!AA158,""),"") ->  | AB158: =IFERROR(IF(INDIRECT("'game1 ("&$AD158&")'!$a$2")="R",Season_Summary!AB158,""),"") ->  | AC158: =IFERROR(IF(INDIRECT("'game1 ("&$AD158&")'!$a$2")="R",Season_Summary!AC158,""),"") ->  | AD158: 28
A159: =IFERROR(IF(INDIRECT("'game1 ("&$AD159&")'!$a$2")="R",Season_Summary!A159,""),"") ->  | B159: =IFERROR(IF(INDIRECT("'game1 ("&$AD159&")'!$a$2")="R",Season_Summary!B159,""),"") ->  | C159: =IFERROR(IF(INDIRECT("'game1 ("&$AD159&")'!$a$2")="R",Season_Summary!C159,""),"") ->  | D159: =IFERROR(IF(INDIRECT("'game1 ("&$AD159&")'!$a$2")="R",Season_Summary!D159,""),"") ->  | E159: =IFERROR(IF(INDIRECT("'game1 ("&$AD159&")'!$a$2")="R",Season_Summary!E159,""),"") ->  | F159: =IFERROR(IF(INDIRECT("'game1 ("&$AD159&")'!$a$2")="R",Season_Summary!F159,""),"") ->  | G159: =IFERROR(IF(INDIRECT("'game1 ("&$AD159&")'!$a$2")="R",Season_Summary!G159,""),"") ->  | H159: =IFERROR(IF(INDIRECT("'game1 ("&$AD159&")'!$a$2")="R",Season_Summary!H159,""),"") ->  | I159: =IFERROR(IF(INDIRECT("'game1 ("&$AD159&")'!$a$2")="R",Season_Summary!I159,""),"") ->  | J159: =IFERROR(IF(INDIRECT("'game1 ("&$AD159&")'!$a$2")="R",Season_Summary!J159,""),"") ->  | K159: =IFERROR(IF(INDIRECT("'game1 ("&$AD159&")'!$a$2")="R",Season_Summary!K159,""),"") ->  | L159: =IFERROR(IF(INDIRECT("'game1 ("&$AD159&")'!$a$2")="R",Season_Summary!L159,""),"") ->  | M159: =IFERROR(IF(INDIRECT("'game1 ("&$AD159&")'!$a$2")="R",Season_Summary!M159,""),"") ->  | N159: =IFERROR(IF(INDIRECT("'game1 ("&$AD159&")'!$a$2")="R",Season_Summary!N159,""),"") ->  | O159: =IFERROR(IF(INDIRECT("'game1 ("&$AD159&")'!$a$2")="R",Season_Summary!O159,""),"") ->  | P159: =IFERROR(IF(INDIRECT("'game1 ("&$AD159&")'!$a$2")="R",Season_Summary!P159,""),"") ->  | Q159: =IFERROR(IF(INDIRECT("'game1 ("&$AD159&")'!$a$2")="R",Season_Summary!Q159,""),"") ->  | R159: =IFERROR(IF(INDIRECT("'game1 ("&$AD159&")'!$a$2")="R",Season_Summary!R159,""),"") ->  | S159: =IFERROR(IF(INDIRECT("'game1 ("&$AD159&")'!$a$2")="R",Season_Summary!S159,""),"") ->  | T159: =IFERROR(IF(INDIRECT("'game1 ("&$AD159&")'!$a$2")="R",Season_Summary!T159,""),"") ->  | U159: =IFERROR(IF(INDIRECT("'game1 ("&$AD159&")'!$a$2")="R",Season_Summary!U159,""),"") ->  | V159: =IFERROR(IF(INDIRECT("'game1 ("&$AD159&")'!$a$2")="R",Season_Summary!V159,""),"") ->  | W159: =IFERROR(IF(INDIRECT("'game1 ("&$AD159&")'!$a$2")="R",Season_Summary!W159,""),"") ->  | X159: =IFERROR(IF(INDIRECT("'game1 ("&$AD159&")'!$a$2")="R",Season_Summary!X159,""),"") ->  | Y159: =IFERROR(IF(INDIRECT("'game1 ("&$AD159&")'!$a$2")="R",Season_Summary!Y159,""),"") ->  | Z159: =IFERROR(IF(INDIRECT("'game1 ("&$AD159&")'!$a$2")="R",Season_Summary!Z159,""),"") ->  | AA159: =IFERROR(IF(INDIRECT("'game1 ("&$AD159&")'!$a$2")="R",Season_Summary!AA159,""),"") ->  | AB159: =IFERROR(IF(INDIRECT("'game1 ("&$AD159&")'!$a$2")="R",Season_Summary!AB159,""),"") ->  | AC159: =IFERROR(IF(INDIRECT("'game1 ("&$AD159&")'!$a$2")="R",Season_Summary!AC159,""),"") ->  | AD159: 29
A160: =IFERROR(IF(INDIRECT("'game1 ("&$AD160&")'!$a$2")="R",Season_Summary!A160,""),"") ->  | B160: =IFERROR(IF(INDIRECT("'game1 ("&$AD160&")'!$a$2")="R",Season_Summary!B160,""),"") ->  | C160: =IFERROR(IF(INDIRECT("'game1 ("&$AD160&")'!$a$2")="R",Season_Summary!C160,""),"") ->  | D160: =IFERROR(IF(INDIRECT("'game1 ("&$AD160&")'!$a$2")="R",Season_Summary!D160,""),"") ->  | E160: =IFERROR(IF(INDIRECT("'game1 ("&$AD160&")'!$a$2")="R",Season_Summary!E160,""),"") ->  | F160: =IFERROR(IF(INDIRECT("'game1 ("&$AD160&")'!$a$2")="R",Season_Summary!F160,""),"") ->  | G160: =IFERROR(IF(INDIRECT("'game1 ("&$AD160&")'!$a$2")="R",Season_Summary!G160,""),"") ->  | H160: =IFERROR(IF(INDIRECT("'game1 ("&$AD160&")'!$a$2")="R",Season_Summary!H160,""),"") ->  | I160: =IFERROR(IF(INDIRECT("'game1 ("&$AD160&")'!$a$2")="R",Season_Summary!I160,""),"") ->  | J160: =IFERROR(IF(INDIRECT("'game1 ("&$AD160&")'!$a$2")="R",Season_Summary!J160,""),"") ->  | K160: =IFERROR(IF(INDIRECT("'game1 ("&$AD160&")'!$a$2")="R",Season_Summary!K160,""),"") ->  | L160: =IFERROR(IF(INDIRECT("'game1 ("&$AD160&")'!$a$2")="R",Season_Summary!L160,""),"") ->  | M160: =IFERROR(IF(INDIRECT("'game1 ("&$AD160&")'!$a$2")="R",Season_Summary!M160,""),"") ->  | N160: =IFERROR(IF(INDIRECT("'game1 ("&$AD160&")'!$a$2")="R",Season_Summary!N160,""),"") ->  | O160: =IFERROR(IF(INDIRECT("'game1 ("&$AD160&")'!$a$2")="R",Season_Summary!O160,""),"") ->  | P160: =IFERROR(IF(INDIRECT("'game1 ("&$AD160&")'!$a$2")="R",Season_Summary!P160,""),"") ->  | Q160: =IFERROR(IF(INDIRECT("'game1 ("&$AD160&")'!$a$2")="R",Season_Summary!Q160,""),"") ->  | R160: =IFERROR(IF(INDIRECT("'game1 ("&$AD160&")'!$a$2")="R",Season_Summary!R160,""),"") ->  | S160: =IFERROR(IF(INDIRECT("'game1 ("&$AD160&")'!$a$2")="R",Season_Summary!S160,""),"") ->  | T160: =IFERROR(IF(INDIRECT("'game1 ("&$AD160&")'!$a$2")="R",Season_Summary!T160,""),"") ->  | U160: =IFERROR(IF(INDIRECT("'game1 ("&$AD160&")'!$a$2")="R",Season_Summary!U160,""),"") ->  | V160: =IFERROR(IF(INDIRECT("'game1 ("&$AD160&")'!$a$2")="R",Season_Summary!V160,""),"") ->  | W160: =IFERROR(IF(INDIRECT("'game1 ("&$AD160&")'!$a$2")="R",Season_Summary!W160,""),"") ->  | X160: =IFERROR(IF(INDIRECT("'game1 ("&$AD160&")'!$a$2")="R",Season_Summary!X160,""),"") ->  | Y160: =IFERROR(IF(INDIRECT("'game1 ("&$AD160&")'!$a$2")="R",Season_Summary!Y160,""),"") ->  | Z160: =IFERROR(IF(INDIRECT("'game1 ("&$AD160&")'!$a$2")="R",Season_Summary!Z160,""),"") ->  | AA160: =IFERROR(IF(INDIRECT("'game1 ("&$AD160&")'!$a$2")="R",Season_Summary!AA160,""),"") ->  | AB160: =IFERROR(IF(INDIRECT("'game1 ("&$AD160&")'!$a$2")="R",Season_Summary!AB160,""),"") ->  | AC160: =IFERROR(IF(INDIRECT("'game1 ("&$AD160&")'!$a$2")="R",Season_Summary!AC160,""),"") ->  | AD160: 29
A161: =IFERROR(IF(INDIRECT("'game1 ("&$AD161&")'!$a$2")="R",Season_Summary!A161,""),"") ->  | B161: =IFERROR(IF(INDIRECT("'game1 ("&$AD161&")'!$a$2")="R",Season_Summary!B161,""),"") ->  | C161: =IFERROR(IF(INDIRECT("'game1 ("&$AD161&")'!$a$2")="R",Season_Summary!C161,""),"") ->  | D161: =IFERROR(IF(INDIRECT("'game1 ("&$AD161&")'!$a$2")="R",Season_Summary!D161,""),"") ->  | E161: =IFERROR(IF(INDIRECT("'game1 ("&$AD161&")'!$a$2")="R",Season_Summary!E161,""),"") ->  | F161: =IFERROR(IF(INDIRECT("'game1 ("&$AD161&")'!$a$2")="R",Season_Summary!F161,""),"") ->  | G161: =IFERROR(IF(INDIRECT("'game1 ("&$AD161&")'!$a$2")="R",Season_Summary!G161,""),"") ->  | H161: =IFERROR(IF(INDIRECT("'game1 ("&$AD161&")'!$a$2")="R",Season_Summary!H161,""),"") ->  | I161: =IFERROR(IF(INDIRECT("'game1 ("&$AD161&")'!$a$2")="R",Season_Summary!I161,""),"") ->  | J161: =IFERROR(IF(INDIRECT("'game1 ("&$AD161&")'!$a$2")="R",Season_Summary!J161,""),"") ->  | K161: =IFERROR(IF(INDIRECT("'game1 ("&$AD161&")'!$a$2")="R",Season_Summary!K161,""),"") ->  | L161: =IFERROR(IF(INDIRECT("'game1 ("&$AD161&")'!$a$2")="R",Season_Summary!L161,""),"") ->  | M161: =IFERROR(IF(INDIRECT("'game1 ("&$AD161&")'!$a$2")="R",Season_Summary!M161,""),"") ->  | N161: =IFERROR(IF(INDIRECT("'game1 ("&$AD161&")'!$a$2")="R",Season_Summary!N161,""),"") ->  | O161: =IFERROR(IF(INDIRECT("'game1 ("&$AD161&")'!$a$2")="R",Season_Summary!O161,""),"") ->  | P161: =IFERROR(IF(INDIRECT("'game1 ("&$AD161&")'!$a$2")="R",Season_Summary!P161,""),"") ->  | Q161: =IFERROR(IF(INDIRECT("'game1 ("&$AD161&")'!$a$2")="R",Season_Summary!Q161,""),"") ->  | R161: =IFERROR(IF(INDIRECT("'game1 ("&$AD161&")'!$a$2")="R",Season_Summary!R161,""),"") ->  | S161: =IFERROR(IF(INDIRECT("'game1 ("&$AD161&")'!$a$2")="R",Season_Summary!S161,""),"") ->  | T161: =IFERROR(IF(INDIRECT("'game1 ("&$AD161&")'!$a$2")="R",Season_Summary!T161,""),"") ->  | U161: =IFERROR(IF(INDIRECT("'game1 ("&$AD161&")'!$a$2")="R",Season_Summary!U161,""),"") ->  | V161: =IFERROR(IF(INDIRECT("'game1 ("&$AD161&")'!$a$2")="R",Season_Summary!V161,""),"") ->  | W161: =IFERROR(IF(INDIRECT("'game1 ("&$AD161&")'!$a$2")="R",Season_Summary!W161,""),"") ->  | X161: =IFERROR(IF(INDIRECT("'game1 ("&$AD161&")'!$a$2")="R",Season_Summary!X161,""),"") ->  | Y161: =IFERROR(IF(INDIRECT("'game1 ("&$AD161&")'!$a$2")="R",Season_Summary!Y161,""),"") ->  | Z161: =IFERROR(IF(INDIRECT("'game1 ("&$AD161&")'!$a$2")="R",Season_Summary!Z161,""),"") ->  | AA161: =IFERROR(IF(INDIRECT("'game1 ("&$AD161&")'!$a$2")="R",Season_Summary!AA161,""),"") ->  | AB161: =IFERROR(IF(INDIRECT("'game1 ("&$AD161&")'!$a$2")="R",Season_Summary!AB161,""),"") ->  | AC161: =IFERROR(IF(INDIRECT("'game1 ("&$AD161&")'!$a$2")="R",Season_Summary!AC161,""),"") ->  | AD161: 30
A162: =IFERROR(IF(INDIRECT("'game1 ("&$AD162&")'!$a$2")="R",Season_Summary!A162,""),"") ->  | B162: =IFERROR(IF(INDIRECT("'game1 ("&$AD162&")'!$a$2")="R",Season_Summary!B162,""),"") ->  | C162: =IFERROR(IF(INDIRECT("'game1 ("&$AD162&")'!$a$2")="R",Season_Summary!C162,""),"") ->  | D162: =IFERROR(IF(INDIRECT("'game1 ("&$AD162&")'!$a$2")="R",Season_Summary!D162,""),"") ->  | E162: =IFERROR(IF(INDIRECT("'game1 ("&$AD162&")'!$a$2")="R",Season_Summary!E162,""),"") ->  | F162: =IFERROR(IF(INDIRECT("'game1 ("&$AD162&")'!$a$2")="R",Season_Summary!F162,""),"") ->  | G162: =IFERROR(IF(INDIRECT("'game1 ("&$AD162&")'!$a$2")="R",Season_Summary!G162,""),"") ->  | H162: =IFERROR(IF(INDIRECT("'game1 ("&$AD162&")'!$a$2")="R",Season_Summary!H162,""),"") ->  | I162: =IFERROR(IF(INDIRECT("'game1 ("&$AD162&")'!$a$2")="R",Season_Summary!I162,""),"") ->  | J162: =IFERROR(IF(INDIRECT("'game1 ("&$AD162&")'!$a$2")="R",Season_Summary!J162,""),"") ->  | K162: =IFERROR(IF(INDIRECT("'game1 ("&$AD162&")'!$a$2")="R",Season_Summary!K162,""),"") ->  | L162: =IFERROR(IF(INDIRECT("'game1 ("&$AD162&")'!$a$2")="R",Season_Summary!L162,""),"") ->  | M162: =IFERROR(IF(INDIRECT("'game1 ("&$AD162&")'!$a$2")="R",Season_Summary!M162,""),"") ->  | N162: =IFERROR(IF(INDIRECT("'game1 ("&$AD162&")'!$a$2")="R",Season_Summary!N162,""),"") ->  | O162: =IFERROR(IF(INDIRECT("'game1 ("&$AD162&")'!$a$2")="R",Season_Summary!O162,""),"") ->  | P162: =IFERROR(IF(INDIRECT("'game1 ("&$AD162&")'!$a$2")="R",Season_Summary!P162,""),"") ->  | Q162: =IFERROR(IF(INDIRECT("'game1 ("&$AD162&")'!$a$2")="R",Season_Summary!Q162,""),"") ->  | R162: =IFERROR(IF(INDIRECT("'game1 ("&$AD162&")'!$a$2")="R",Season_Summary!R162,""),"") ->  | S162: =IFERROR(IF(INDIRECT("'game1 ("&$AD162&")'!$a$2")="R",Season_Summary!S162,""),"") ->  | T162: =IFERROR(IF(INDIRECT("'game1 ("&$AD162&")'!$a$2")="R",Season_Summary!T162,""),"") ->  | U162: =IFERROR(IF(INDIRECT("'game1 ("&$AD162&")'!$a$2")="R",Season_Summary!U162,""),"") ->  | V162: =IFERROR(IF(INDIRECT("'game1 ("&$AD162&")'!$a$2")="R",Season_Summary!V162,""),"") ->  | W162: =IFERROR(IF(INDIRECT("'game1 ("&$AD162&")'!$a$2")="R",Season_Summary!W162,""),"") ->  | X162: =IFERROR(IF(INDIRECT("'game1 ("&$AD162&")'!$a$2")="R",Season_Summary!X162,""),"") ->  | Y162: =IFERROR(IF(INDIRECT("'game1 ("&$AD162&")'!$a$2")="R",Season_Summary!Y162,""),"") ->  | Z162: =IFERROR(IF(INDIRECT("'game1 ("&$AD162&")'!$a$2")="R",Season_Summary!Z162,""),"") ->  | AA162: =IFERROR(IF(INDIRECT("'game1 ("&$AD162&")'!$a$2")="R",Season_Summary!AA162,""),"") ->  | AB162: =IFERROR(IF(INDIRECT("'game1 ("&$AD162&")'!$a$2")="R",Season_Summary!AB162,""),"") ->  | AC162: =IFERROR(IF(INDIRECT("'game1 ("&$AD162&")'!$a$2")="R",Season_Summary!AC162,""),"") ->  | AD162: 30
A163: =IFERROR(IF(INDIRECT("'game1 ("&$AD163&")'!$a$2")="R",Season_Summary!A163,""),"") ->  | B163: =IFERROR(IF(INDIRECT("'game1 ("&$AD163&")'!$a$2")="R",Season_Summary!B163,""),"") ->  | C163: =IFERROR(IF(INDIRECT("'game1 ("&$AD163&")'!$a$2")="R",Season_Summary!C163,""),"") ->  | D163: =IFERROR(IF(INDIRECT("'game1 ("&$AD163&")'!$a$2")="R",Season_Summary!D163,""),"") ->  | E163: =IFERROR(IF(INDIRECT("'game1 ("&$AD163&")'!$a$2")="R",Season_Summary!E163,""),"") ->  | F163: =IFERROR(IF(INDIRECT("'game1 ("&$AD163&")'!$a$2")="R",Season_Summary!F163,""),"") ->  | G163: =IFERROR(IF(INDIRECT("'game1 ("&$AD163&")'!$a$2")="R",Season_Summary!G163,""),"") ->  | H163: =IFERROR(IF(INDIRECT("'game1 ("&$AD163&")'!$a$2")="R",Season_Summary!H163,""),"") ->  | I163: =IFERROR(IF(INDIRECT("'game1 ("&$AD163&")'!$a$2")="R",Season_Summary!I163,""),"") ->  | J163: =IFERROR(IF(INDIRECT("'game1 ("&$AD163&")'!$a$2")="R",Season_Summary!J163,""),"") ->  | K163: =IFERROR(IF(INDIRECT("'game1 ("&$AD163&")'!$a$2")="R",Season_Summary!K163,""),"") ->  | L163: =IFERROR(IF(INDIRECT("'game1 ("&$AD163&")'!$a$2")="R",Season_Summary!L163,""),"") ->  | M163: =IFERROR(IF(INDIRECT("'game1 ("&$AD163&")'!$a$2")="R",Season_Summary!M163,""),"") ->  | N163: =IFERROR(IF(INDIRECT("'game1 ("&$AD163&")'!$a$2")="R",Season_Summary!N163,""),"") ->  | O163: =IFERROR(IF(INDIRECT("'game1 ("&$AD163&")'!$a$2")="R",Season_Summary!O163,""),"") ->  | P163: =IFERROR(IF(INDIRECT("'game1 ("&$AD163&")'!$a$2")="R",Season_Summary!P163,""),"") ->  | Q163: =IFERROR(IF(INDIRECT("'game1 ("&$AD163&")'!$a$2")="R",Season_Summary!Q163,""),"") ->  | R163: =IFERROR(IF(INDIRECT("'game1 ("&$AD163&")'!$a$2")="R",Season_Summary!R163,""),"") ->  | S163: =IFERROR(IF(INDIRECT("'game1 ("&$AD163&")'!$a$2")="R",Season_Summary!S163,""),"") ->  | T163: =IFERROR(IF(INDIRECT("'game1 ("&$AD163&")'!$a$2")="R",Season_Summary!T163,""),"") ->  | U163: =IFERROR(IF(INDIRECT("'game1 ("&$AD163&")'!$a$2")="R",Season_Summary!U163,""),"") ->  | V163: =IFERROR(IF(INDIRECT("'game1 ("&$AD163&")'!$a$2")="R",Season_Summary!V163,""),"") ->  | W163: =IFERROR(IF(INDIRECT("'game1 ("&$AD163&")'!$a$2")="R",Season_Summary!W163,""),"") ->  | X163: =IFERROR(IF(INDIRECT("'game1 ("&$AD163&")'!$a$2")="R",Season_Summary!X163,""),"") ->  | Y163: =IFERROR(IF(INDIRECT("'game1 ("&$AD163&")'!$a$2")="R",Season_Summary!Y163,""),"") ->  | Z163: =IFERROR(IF(INDIRECT("'game1 ("&$AD163&")'!$a$2")="R",Season_Summary!Z163,""),"") ->  | AA163: =IFERROR(IF(INDIRECT("'game1 ("&$AD163&")'!$a$2")="R",Season_Summary!AA163,""),"") ->  | AB163: =IFERROR(IF(INDIRECT("'game1 ("&$AD163&")'!$a$2")="R",Season_Summary!AB163,""),"") ->  | AC163: =IFERROR(IF(INDIRECT("'game1 ("&$AD163&")'!$a$2")="R",Season_Summary!AC163,""),"") ->  | AD163: 31
A164: =IFERROR(IF(INDIRECT("'game1 ("&$AD164&")'!$a$2")="R",Season_Summary!A164,""),"") ->  | B164: =IFERROR(IF(INDIRECT("'game1 ("&$AD164&")'!$a$2")="R",Season_Summary!B164,""),"") ->  | C164: =IFERROR(IF(INDIRECT("'game1 ("&$AD164&")'!$a$2")="R",Season_Summary!C164,""),"") ->  | D164: =IFERROR(IF(INDIRECT("'game1 ("&$AD164&")'!$a$2")="R",Season_Summary!D164,""),"") ->  | E164: =IFERROR(IF(INDIRECT("'game1 ("&$AD164&")'!$a$2")="R",Season_Summary!E164,""),"") ->  | F164: =IFERROR(IF(INDIRECT("'game1 ("&$AD164&")'!$a$2")="R",Season_Summary!F164,""),"") ->  | G164: =IFERROR(IF(INDIRECT("'game1 ("&$AD164&")'!$a$2")="R",Season_Summary!G164,""),"") ->  | H164: =IFERROR(IF(INDIRECT("'game1 ("&$AD164&")'!$a$2")="R",Season_Summary!H164,""),"") ->  | I164: =IFERROR(IF(INDIRECT("'game1 ("&$AD164&")'!$a$2")="R",Season_Summary!I164,""),"") ->  | J164: =IFERROR(IF(INDIRECT("'game1 ("&$AD164&")'!$a$2")="R",Season_Summary!J164,""),"") ->  | K164: =IFERROR(IF(INDIRECT("'game1 ("&$AD164&")'!$a$2")="R",Season_Summary!K164,""),"") ->  | L164: =IFERROR(IF(INDIRECT("'game1 ("&$AD164&")'!$a$2")="R",Season_Summary!L164,""),"") ->  | M164: =IFERROR(IF(INDIRECT("'game1 ("&$AD164&")'!$a$2")="R",Season_Summary!M164,""),"") ->  | N164: =IFERROR(IF(INDIRECT("'game1 ("&$AD164&")'!$a$2")="R",Season_Summary!N164,""),"") ->  | O164: =IFERROR(IF(INDIRECT("'game1 ("&$AD164&")'!$a$2")="R",Season_Summary!O164,""),"") ->  | P164: =IFERROR(IF(INDIRECT("'game1 ("&$AD164&")'!$a$2")="R",Season_Summary!P164,""),"") ->  | Q164: =IFERROR(IF(INDIRECT("'game1 ("&$AD164&")'!$a$2")="R",Season_Summary!Q164,""),"") ->  | R164: =IFERROR(IF(INDIRECT("'game1 ("&$AD164&")'!$a$2")="R",Season_Summary!R164,""),"") ->  | S164: =IFERROR(IF(INDIRECT("'game1 ("&$AD164&")'!$a$2")="R",Season_Summary!S164,""),"") ->  | T164: =IFERROR(IF(INDIRECT("'game1 ("&$AD164&")'!$a$2")="R",Season_Summary!T164,""),"") ->  | U164: =IFERROR(IF(INDIRECT("'game1 ("&$AD164&")'!$a$2")="R",Season_Summary!U164,""),"") ->  | V164: =IFERROR(IF(INDIRECT("'game1 ("&$AD164&")'!$a$2")="R",Season_Summary!V164,""),"") ->  | W164: =IFERROR(IF(INDIRECT("'game1 ("&$AD164&")'!$a$2")="R",Season_Summary!W164,""),"") ->  | X164: =IFERROR(IF(INDIRECT("'game1 ("&$AD164&")'!$a$2")="R",Season_Summary!X164,""),"") ->  | Y164: =IFERROR(IF(INDIRECT("'game1 ("&$AD164&")'!$a$2")="R",Season_Summary!Y164,""),"") ->  | Z164: =IFERROR(IF(INDIRECT("'game1 ("&$AD164&")'!$a$2")="R",Season_Summary!Z164,""),"") ->  | AA164: =IFERROR(IF(INDIRECT("'game1 ("&$AD164&")'!$a$2")="R",Season_Summary!AA164,""),"") ->  | AB164: =IFERROR(IF(INDIRECT("'game1 ("&$AD164&")'!$a$2")="R",Season_Summary!AB164,""),"") ->  | AC164: =IFERROR(IF(INDIRECT("'game1 ("&$AD164&")'!$a$2")="R",Season_Summary!AC164,""),"") ->  | AD164: 31
A165: =IFERROR(IF(INDIRECT("'game1 ("&$AD165&")'!$a$2")="R",Season_Summary!A165,""),"") ->  | B165: =IFERROR(IF(INDIRECT("'game1 ("&$AD165&")'!$a$2")="R",Season_Summary!B165,""),"") ->  | C165: =IFERROR(IF(INDIRECT("'game1 ("&$AD165&")'!$a$2")="R",Season_Summary!C165,""),"") ->  | D165: =IFERROR(IF(INDIRECT("'game1 ("&$AD165&")'!$a$2")="R",Season_Summary!D165,""),"") ->  | E165: =IFERROR(IF(INDIRECT("'game1 ("&$AD165&")'!$a$2")="R",Season_Summary!E165,""),"") ->  | F165: =IFERROR(IF(INDIRECT("'game1 ("&$AD165&")'!$a$2")="R",Season_Summary!F165,""),"") ->  | G165: =IFERROR(IF(INDIRECT("'game1 ("&$AD165&")'!$a$2")="R",Season_Summary!G165,""),"") ->  | H165: =IFERROR(IF(INDIRECT("'game1 ("&$AD165&")'!$a$2")="R",Season_Summary!H165,""),"") ->  | I165: =IFERROR(IF(INDIRECT("'game1 ("&$AD165&")'!$a$2")="R",Season_Summary!I165,""),"") ->  | J165: =IFERROR(IF(INDIRECT("'game1 ("&$AD165&")'!$a$2")="R",Season_Summary!J165,""),"") ->  | K165: =IFERROR(IF(INDIRECT("'game1 ("&$AD165&")'!$a$2")="R",Season_Summary!K165,""),"") ->  | L165: =IFERROR(IF(INDIRECT("'game1 ("&$AD165&")'!$a$2")="R",Season_Summary!L165,""),"") ->  | M165: =IFERROR(IF(INDIRECT("'game1 ("&$AD165&")'!$a$2")="R",Season_Summary!M165,""),"") ->  | N165: =IFERROR(IF(INDIRECT("'game1 ("&$AD165&")'!$a$2")="R",Season_Summary!N165,""),"") ->  | O165: =IFERROR(IF(INDIRECT("'game1 ("&$AD165&")'!$a$2")="R",Season_Summary!O165,""),"") ->  | P165: =IFERROR(IF(INDIRECT("'game1 ("&$AD165&")'!$a$2")="R",Season_Summary!P165,""),"") ->  | Q165: =IFERROR(IF(INDIRECT("'game1 ("&$AD165&")'!$a$2")="R",Season_Summary!Q165,""),"") ->  | R165: =IFERROR(IF(INDIRECT("'game1 ("&$AD165&")'!$a$2")="R",Season_Summary!R165,""),"") ->  | S165: =IFERROR(IF(INDIRECT("'game1 ("&$AD165&")'!$a$2")="R",Season_Summary!S165,""),"") ->  | T165: =IFERROR(IF(INDIRECT("'game1 ("&$AD165&")'!$a$2")="R",Season_Summary!T165,""),"") ->  | U165: =IFERROR(IF(INDIRECT("'game1 ("&$AD165&")'!$a$2")="R",Season_Summary!U165,""),"") ->  | V165: =IFERROR(IF(INDIRECT("'game1 ("&$AD165&")'!$a$2")="R",Season_Summary!V165,""),"") ->  | W165: =IFERROR(IF(INDIRECT("'game1 ("&$AD165&")'!$a$2")="R",Season_Summary!W165,""),"") ->  | X165: =IFERROR(IF(INDIRECT("'game1 ("&$AD165&")'!$a$2")="R",Season_Summary!X165,""),"") ->  | Y165: =IFERROR(IF(INDIRECT("'game1 ("&$AD165&")'!$a$2")="R",Season_Summary!Y165,""),"") ->  | Z165: =IFERROR(IF(INDIRECT("'game1 ("&$AD165&")'!$a$2")="R",Season_Summary!Z165,""),"") ->  | AA165: =IFERROR(IF(INDIRECT("'game1 ("&$AD165&")'!$a$2")="R",Season_Summary!AA165,""),"") ->  | AB165: =IFERROR(IF(INDIRECT("'game1 ("&$AD165&")'!$a$2")="R",Season_Summary!AB165,""),"") ->  | AC165: =IFERROR(IF(INDIRECT("'game1 ("&$AD165&")'!$a$2")="R",Season_Summary!AC165,""),"") ->  | AD165: 32
A166: =IFERROR(IF(INDIRECT("'game1 ("&$AD166&")'!$a$2")="R",Season_Summary!A166,""),"") ->  | B166: =IFERROR(IF(INDIRECT("'game1 ("&$AD166&")'!$a$2")="R",Season_Summary!B166,""),"") ->  | C166: =IFERROR(IF(INDIRECT("'game1 ("&$AD166&")'!$a$2")="R",Season_Summary!C166,""),"") ->  | D166: =IFERROR(IF(INDIRECT("'game1 ("&$AD166&")'!$a$2")="R",Season_Summary!D166,""),"") ->  | E166: =IFERROR(IF(INDIRECT("'game1 ("&$AD166&")'!$a$2")="R",Season_Summary!E166,""),"") ->  | F166: =IFERROR(IF(INDIRECT("'game1 ("&$AD166&")'!$a$2")="R",Season_Summary!F166,""),"") ->  | G166: =IFERROR(IF(INDIRECT("'game1 ("&$AD166&")'!$a$2")="R",Season_Summary!G166,""),"") ->  | H166: =IFERROR(IF(INDIRECT("'game1 ("&$AD166&")'!$a$2")="R",Season_Summary!H166,""),"") ->  | I166: =IFERROR(IF(INDIRECT("'game1 ("&$AD166&")'!$a$2")="R",Season_Summary!I166,""),"") ->  | J166: =IFERROR(IF(INDIRECT("'game1 ("&$AD166&")'!$a$2")="R",Season_Summary!J166,""),"") ->  | K166: =IFERROR(IF(INDIRECT("'game1 ("&$AD166&")'!$a$2")="R",Season_Summary!K166,""),"") ->  | L166: =IFERROR(IF(INDIRECT("'game1 ("&$AD166&")'!$a$2")="R",Season_Summary!L166,""),"") ->  | M166: =IFERROR(IF(INDIRECT("'game1 ("&$AD166&")'!$a$2")="R",Season_Summary!M166,""),"") ->  | N166: =IFERROR(IF(INDIRECT("'game1 ("&$AD166&")'!$a$2")="R",Season_Summary!N166,""),"") ->  | O166: =IFERROR(IF(INDIRECT("'game1 ("&$AD166&")'!$a$2")="R",Season_Summary!O166,""),"") ->  | P166: =IFERROR(IF(INDIRECT("'game1 ("&$AD166&")'!$a$2")="R",Season_Summary!P166,""),"") ->  | Q166: =IFERROR(IF(INDIRECT("'game1 ("&$AD166&")'!$a$2")="R",Season_Summary!Q166,""),"") ->  | R166: =IFERROR(IF(INDIRECT("'game1 ("&$AD166&")'!$a$2")="R",Season_Summary!R166,""),"") ->  | S166: =IFERROR(IF(INDIRECT("'game1 ("&$AD166&")'!$a$2")="R",Season_Summary!S166,""),"") ->  | T166: =IFERROR(IF(INDIRECT("'game1 ("&$AD166&")'!$a$2")="R",Season_Summary!T166,""),"") ->  | U166: =IFERROR(IF(INDIRECT("'game1 ("&$AD166&")'!$a$2")="R",Season_Summary!U166,""),"") ->  | V166: =IFERROR(IF(INDIRECT("'game1 ("&$AD166&")'!$a$2")="R",Season_Summary!V166,""),"") ->  | W166: =IFERROR(IF(INDIRECT("'game1 ("&$AD166&")'!$a$2")="R",Season_Summary!W166,""),"") ->  | X166: =IFERROR(IF(INDIRECT("'game1 ("&$AD166&")'!$a$2")="R",Season_Summary!X166,""),"") ->  | Y166: =IFERROR(IF(INDIRECT("'game1 ("&$AD166&")'!$a$2")="R",Season_Summary!Y166,""),"") ->  | Z166: =IFERROR(IF(INDIRECT("'game1 ("&$AD166&")'!$a$2")="R",Season_Summary!Z166,""),"") ->  | AA166: =IFERROR(IF(INDIRECT("'game1 ("&$AD166&")'!$a$2")="R",Season_Summary!AA166,""),"") ->  | AB166: =IFERROR(IF(INDIRECT("'game1 ("&$AD166&")'!$a$2")="R",Season_Summary!AB166,""),"") ->  | AC166: =IFERROR(IF(INDIRECT("'game1 ("&$AD166&")'!$a$2")="R",Season_Summary!AC166,""),"") ->  | AD166: 32
A167: =IFERROR(IF(INDIRECT("'game1 ("&$AD167&")'!$a$2")="R",Season_Summary!A167,""),"") ->  | B167: =IFERROR(IF(INDIRECT("'game1 ("&$AD167&")'!$a$2")="R",Season_Summary!B167,""),"") ->  | C167: =IFERROR(IF(INDIRECT("'game1 ("&$AD167&")'!$a$2")="R",Season_Summary!C167,""),"") ->  | D167: =IFERROR(IF(INDIRECT("'game1 ("&$AD167&")'!$a$2")="R",Season_Summary!D167,""),"") ->  | E167: =IFERROR(IF(INDIRECT("'game1 ("&$AD167&")'!$a$2")="R",Season_Summary!E167,""),"") ->  | F167: =IFERROR(IF(INDIRECT("'game1 ("&$AD167&")'!$a$2")="R",Season_Summary!F167,""),"") ->  | G167: =IFERROR(IF(INDIRECT("'game1 ("&$AD167&")'!$a$2")="R",Season_Summary!G167,""),"") ->  | H167: =IFERROR(IF(INDIRECT("'game1 ("&$AD167&")'!$a$2")="R",Season_Summary!H167,""),"") ->  | I167: =IFERROR(IF(INDIRECT("'game1 ("&$AD167&")'!$a$2")="R",Season_Summary!I167,""),"") ->  | J167: =IFERROR(IF(INDIRECT("'game1 ("&$AD167&")'!$a$2")="R",Season_Summary!J167,""),"") ->  | K167: =IFERROR(IF(INDIRECT("'game1 ("&$AD167&")'!$a$2")="R",Season_Summary!K167,""),"") ->  | L167: =IFERROR(IF(INDIRECT("'game1 ("&$AD167&")'!$a$2")="R",Season_Summary!L167,""),"") ->  | M167: =IFERROR(IF(INDIRECT("'game1 ("&$AD167&")'!$a$2")="R",Season_Summary!M167,""),"") ->  | N167: =IFERROR(IF(INDIRECT("'game1 ("&$AD167&")'!$a$2")="R",Season_Summary!N167,""),"") ->  | O167: =IFERROR(IF(INDIRECT("'game1 ("&$AD167&")'!$a$2")="R",Season_Summary!O167,""),"") ->  | P167: =IFERROR(IF(INDIRECT("'game1 ("&$AD167&")'!$a$2")="R",Season_Summary!P167,""),"") ->  | Q167: =IFERROR(IF(INDIRECT("'game1 ("&$AD167&")'!$a$2")="R",Season_Summary!Q167,""),"") ->  | R167: =IFERROR(IF(INDIRECT("'game1 ("&$AD167&")'!$a$2")="R",Season_Summary!R167,""),"") ->  | S167: =IFERROR(IF(INDIRECT("'game1 ("&$AD167&")'!$a$2")="R",Season_Summary!S167,""),"") ->  | T167: =IFERROR(IF(INDIRECT("'game1 ("&$AD167&")'!$a$2")="R",Season_Summary!T167,""),"") ->  | U167: =IFERROR(IF(INDIRECT("'game1 ("&$AD167&")'!$a$2")="R",Season_Summary!U167,""),"") ->  | V167: =IFERROR(IF(INDIRECT("'game1 ("&$AD167&")'!$a$2")="R",Season_Summary!V167,""),"") ->  | W167: =IFERROR(IF(INDIRECT("'game1 ("&$AD167&")'!$a$2")="R",Season_Summary!W167,""),"") ->  | X167: =IFERROR(IF(INDIRECT("'game1 ("&$AD167&")'!$a$2")="R",Season_Summary!X167,""),"") ->  | Y167: =IFERROR(IF(INDIRECT("'game1 ("&$AD167&")'!$a$2")="R",Season_Summary!Y167,""),"") ->  | Z167: =IFERROR(IF(INDIRECT("'game1 ("&$AD167&")'!$a$2")="R",Season_Summary!Z167,""),"") ->  | AA167: =IFERROR(IF(INDIRECT("'game1 ("&$AD167&")'!$a$2")="R",Season_Summary!AA167,""),"") ->  | AB167: =IFERROR(IF(INDIRECT("'game1 ("&$AD167&")'!$a$2")="R",Season_Summary!AB167,""),"") ->  | AC167: =IFERROR(IF(INDIRECT("'game1 ("&$AD167&")'!$a$2")="R",Season_Summary!AC167,""),"") ->  | AD167: 33
A168: =IFERROR(IF(INDIRECT("'game1 ("&$AD168&")'!$a$2")="R",Season_Summary!A168,""),"") ->  | B168: =IFERROR(IF(INDIRECT("'game1 ("&$AD168&")'!$a$2")="R",Season_Summary!B168,""),"") ->  | C168: =IFERROR(IF(INDIRECT("'game1 ("&$AD168&")'!$a$2")="R",Season_Summary!C168,""),"") ->  | D168: =IFERROR(IF(INDIRECT("'game1 ("&$AD168&")'!$a$2")="R",Season_Summary!D168,""),"") ->  | E168: =IFERROR(IF(INDIRECT("'game1 ("&$AD168&")'!$a$2")="R",Season_Summary!E168,""),"") ->  | F168: =IFERROR(IF(INDIRECT("'game1 ("&$AD168&")'!$a$2")="R",Season_Summary!F168,""),"") ->  | G168: =IFERROR(IF(INDIRECT("'game1 ("&$AD168&")'!$a$2")="R",Season_Summary!G168,""),"") ->  | H168: =IFERROR(IF(INDIRECT("'game1 ("&$AD168&")'!$a$2")="R",Season_Summary!H168,""),"") ->  | I168: =IFERROR(IF(INDIRECT("'game1 ("&$AD168&")'!$a$2")="R",Season_Summary!I168,""),"") ->  | J168: =IFERROR(IF(INDIRECT("'game1 ("&$AD168&")'!$a$2")="R",Season_Summary!J168,""),"") ->  | K168: =IFERROR(IF(INDIRECT("'game1 ("&$AD168&")'!$a$2")="R",Season_Summary!K168,""),"") ->  | L168: =IFERROR(IF(INDIRECT("'game1 ("&$AD168&")'!$a$2")="R",Season_Summary!L168,""),"") ->  | M168: =IFERROR(IF(INDIRECT("'game1 ("&$AD168&")'!$a$2")="R",Season_Summary!M168,""),"") ->  | N168: =IFERROR(IF(INDIRECT("'game1 ("&$AD168&")'!$a$2")="R",Season_Summary!N168,""),"") ->  | O168: =IFERROR(IF(INDIRECT("'game1 ("&$AD168&")'!$a$2")="R",Season_Summary!O168,""),"") ->  | P168: =IFERROR(IF(INDIRECT("'game1 ("&$AD168&")'!$a$2")="R",Season_Summary!P168,""),"") ->  | Q168: =IFERROR(IF(INDIRECT("'game1 ("&$AD168&")'!$a$2")="R",Season_Summary!Q168,""),"") ->  | R168: =IFERROR(IF(INDIRECT("'game1 ("&$AD168&")'!$a$2")="R",Season_Summary!R168,""),"") ->  | S168: =IFERROR(IF(INDIRECT("'game1 ("&$AD168&")'!$a$2")="R",Season_Summary!S168,""),"") ->  | T168: =IFERROR(IF(INDIRECT("'game1 ("&$AD168&")'!$a$2")="R",Season_Summary!T168,""),"") ->  | U168: =IFERROR(IF(INDIRECT("'game1 ("&$AD168&")'!$a$2")="R",Season_Summary!U168,""),"") ->  | V168: =IFERROR(IF(INDIRECT("'game1 ("&$AD168&")'!$a$2")="R",Season_Summary!V168,""),"") ->  | W168: =IFERROR(IF(INDIRECT("'game1 ("&$AD168&")'!$a$2")="R",Season_Summary!W168,""),"") ->  | X168: =IFERROR(IF(INDIRECT("'game1 ("&$AD168&")'!$a$2")="R",Season_Summary!X168,""),"") ->  | Y168: =IFERROR(IF(INDIRECT("'game1 ("&$AD168&")'!$a$2")="R",Season_Summary!Y168,""),"") ->  | Z168: =IFERROR(IF(INDIRECT("'game1 ("&$AD168&")'!$a$2")="R",Season_Summary!Z168,""),"") ->  | AA168: =IFERROR(IF(INDIRECT("'game1 ("&$AD168&")'!$a$2")="R",Season_Summary!AA168,""),"") ->  | AB168: =IFERROR(IF(INDIRECT("'game1 ("&$AD168&")'!$a$2")="R",Season_Summary!AB168,""),"") ->  | AC168: =IFERROR(IF(INDIRECT("'game1 ("&$AD168&")'!$a$2")="R",Season_Summary!AC168,""),"") ->  | AD168: 33
A169: =IFERROR(IF(INDIRECT("'game1 ("&$AD169&")'!$a$2")="R",Season_Summary!A169,""),"") ->  | B169: =IFERROR(IF(INDIRECT("'game1 ("&$AD169&")'!$a$2")="R",Season_Summary!B169,""),"") ->  | C169: =IFERROR(IF(INDIRECT("'game1 ("&$AD169&")'!$a$2")="R",Season_Summary!C169,""),"") ->  | D169: =IFERROR(IF(INDIRECT("'game1 ("&$AD169&")'!$a$2")="R",Season_Summary!D169,""),"") ->  | E169: =IFERROR(IF(INDIRECT("'game1 ("&$AD169&")'!$a$2")="R",Season_Summary!E169,""),"") ->  | F169: =IFERROR(IF(INDIRECT("'game1 ("&$AD169&")'!$a$2")="R",Season_Summary!F169,""),"") ->  | G169: =IFERROR(IF(INDIRECT("'game1 ("&$AD169&")'!$a$2")="R",Season_Summary!G169,""),"") ->  | H169: =IFERROR(IF(INDIRECT("'game1 ("&$AD169&")'!$a$2")="R",Season_Summary!H169,""),"") ->  | I169: =IFERROR(IF(INDIRECT("'game1 ("&$AD169&")'!$a$2")="R",Season_Summary!I169,""),"") ->  | J169: =IFERROR(IF(INDIRECT("'game1 ("&$AD169&")'!$a$2")="R",Season_Summary!J169,""),"") ->  | K169: =IFERROR(IF(INDIRECT("'game1 ("&$AD169&")'!$a$2")="R",Season_Summary!K169,""),"") ->  | L169: =IFERROR(IF(INDIRECT("'game1 ("&$AD169&")'!$a$2")="R",Season_Summary!L169,""),"") ->  | M169: =IFERROR(IF(INDIRECT("'game1 ("&$AD169&")'!$a$2")="R",Season_Summary!M169,""),"") ->  | N169: =IFERROR(IF(INDIRECT("'game1 ("&$AD169&")'!$a$2")="R",Season_Summary!N169,""),"") ->  | O169: =IFERROR(IF(INDIRECT("'game1 ("&$AD169&")'!$a$2")="R",Season_Summary!O169,""),"") ->  | P169: =IFERROR(IF(INDIRECT("'game1 ("&$AD169&")'!$a$2")="R",Season_Summary!P169,""),"") ->  | Q169: =IFERROR(IF(INDIRECT("'game1 ("&$AD169&")'!$a$2")="R",Season_Summary!Q169,""),"") ->  | R169: =IFERROR(IF(INDIRECT("'game1 ("&$AD169&")'!$a$2")="R",Season_Summary!R169,""),"") ->  | S169: =IFERROR(IF(INDIRECT("'game1 ("&$AD169&")'!$a$2")="R",Season_Summary!S169,""),"") ->  | T169: =IFERROR(IF(INDIRECT("'game1 ("&$AD169&")'!$a$2")="R",Season_Summary!T169,""),"") ->  | U169: =IFERROR(IF(INDIRECT("'game1 ("&$AD169&")'!$a$2")="R",Season_Summary!U169,""),"") ->  | V169: =IFERROR(IF(INDIRECT("'game1 ("&$AD169&")'!$a$2")="R",Season_Summary!V169,""),"") ->  | W169: =IFERROR(IF(INDIRECT("'game1 ("&$AD169&")'!$a$2")="R",Season_Summary!W169,""),"") ->  | X169: =IFERROR(IF(INDIRECT("'game1 ("&$AD169&")'!$a$2")="R",Season_Summary!X169,""),"") ->  | Y169: =IFERROR(IF(INDIRECT("'game1 ("&$AD169&")'!$a$2")="R",Season_Summary!Y169,""),"") ->  | Z169: =IFERROR(IF(INDIRECT("'game1 ("&$AD169&")'!$a$2")="R",Season_Summary!Z169,""),"") ->  | AA169: =IFERROR(IF(INDIRECT("'game1 ("&$AD169&")'!$a$2")="R",Season_Summary!AA169,""),"") ->  | AB169: =IFERROR(IF(INDIRECT("'game1 ("&$AD169&")'!$a$2")="R",Season_Summary!AB169,""),"") ->  | AC169: =IFERROR(IF(INDIRECT("'game1 ("&$AD169&")'!$a$2")="R",Season_Summary!AC169,""),"") ->  | AD169: 34
A170: =IFERROR(IF(INDIRECT("'game1 ("&$AD170&")'!$a$2")="R",Season_Summary!A170,""),"") ->  | B170: =IFERROR(IF(INDIRECT("'game1 ("&$AD170&")'!$a$2")="R",Season_Summary!B170,""),"") ->  | C170: =IFERROR(IF(INDIRECT("'game1 ("&$AD170&")'!$a$2")="R",Season_Summary!C170,""),"") ->  | D170: =IFERROR(IF(INDIRECT("'game1 ("&$AD170&")'!$a$2")="R",Season_Summary!D170,""),"") ->  | E170: =IFERROR(IF(INDIRECT("'game1 ("&$AD170&")'!$a$2")="R",Season_Summary!E170,""),"") ->  | F170: =IFERROR(IF(INDIRECT("'game1 ("&$AD170&")'!$a$2")="R",Season_Summary!F170,""),"") ->  | G170: =IFERROR(IF(INDIRECT("'game1 ("&$AD170&")'!$a$2")="R",Season_Summary!G170,""),"") ->  | H170: =IFERROR(IF(INDIRECT("'game1 ("&$AD170&")'!$a$2")="R",Season_Summary!H170,""),"") ->  | I170: =IFERROR(IF(INDIRECT("'game1 ("&$AD170&")'!$a$2")="R",Season_Summary!I170,""),"") ->  | J170: =IFERROR(IF(INDIRECT("'game1 ("&$AD170&")'!$a$2")="R",Season_Summary!J170,""),"") ->  | K170: =IFERROR(IF(INDIRECT("'game1 ("&$AD170&")'!$a$2")="R",Season_Summary!K170,""),"") ->  | L170: =IFERROR(IF(INDIRECT("'game1 ("&$AD170&")'!$a$2")="R",Season_Summary!L170,""),"") ->  | M170: =IFERROR(IF(INDIRECT("'game1 ("&$AD170&")'!$a$2")="R",Season_Summary!M170,""),"") ->  | N170: =IFERROR(IF(INDIRECT("'game1 ("&$AD170&")'!$a$2")="R",Season_Summary!N170,""),"") ->  | O170: =IFERROR(IF(INDIRECT("'game1 ("&$AD170&")'!$a$2")="R",Season_Summary!O170,""),"") ->  | P170: =IFERROR(IF(INDIRECT("'game1 ("&$AD170&")'!$a$2")="R",Season_Summary!P170,""),"") ->  | Q170: =IFERROR(IF(INDIRECT("'game1 ("&$AD170&")'!$a$2")="R",Season_Summary!Q170,""),"") ->  | R170: =IFERROR(IF(INDIRECT("'game1 ("&$AD170&")'!$a$2")="R",Season_Summary!R170,""),"") ->  | S170: =IFERROR(IF(INDIRECT("'game1 ("&$AD170&")'!$a$2")="R",Season_Summary!S170,""),"") ->  | T170: =IFERROR(IF(INDIRECT("'game1 ("&$AD170&")'!$a$2")="R",Season_Summary!T170,""),"") ->  | U170: =IFERROR(IF(INDIRECT("'game1 ("&$AD170&")'!$a$2")="R",Season_Summary!U170,""),"") ->  | V170: =IFERROR(IF(INDIRECT("'game1 ("&$AD170&")'!$a$2")="R",Season_Summary!V170,""),"") ->  | W170: =IFERROR(IF(INDIRECT("'game1 ("&$AD170&")'!$a$2")="R",Season_Summary!W170,""),"") ->  | X170: =IFERROR(IF(INDIRECT("'game1 ("&$AD170&")'!$a$2")="R",Season_Summary!X170,""),"") ->  | Y170: =IFERROR(IF(INDIRECT("'game1 ("&$AD170&")'!$a$2")="R",Season_Summary!Y170,""),"") ->  | Z170: =IFERROR(IF(INDIRECT("'game1 ("&$AD170&")'!$a$2")="R",Season_Summary!Z170,""),"") ->  | AA170: =IFERROR(IF(INDIRECT("'game1 ("&$AD170&")'!$a$2")="R",Season_Summary!AA170,""),"") ->  | AB170: =IFERROR(IF(INDIRECT("'game1 ("&$AD170&")'!$a$2")="R",Season_Summary!AB170,""),"") ->  | AC170: =IFERROR(IF(INDIRECT("'game1 ("&$AD170&")'!$a$2")="R",Season_Summary!AC170,""),"") ->  | AD170: =AD168+1 -> 34
A171: =IFERROR(IF(INDIRECT("'game1 ("&$AD171&")'!$a$2")="R",Season_Summary!A171,""),"") ->  | B171: =IFERROR(IF(INDIRECT("'game1 ("&$AD171&")'!$a$2")="R",Season_Summary!B171,""),"") ->  | C171: =IFERROR(IF(INDIRECT("'game1 ("&$AD171&")'!$a$2")="R",Season_Summary!C171,""),"") ->  | D171: =IFERROR(IF(INDIRECT("'game1 ("&$AD171&")'!$a$2")="R",Season_Summary!D171,""),"") ->  | E171: =IFERROR(IF(INDIRECT("'game1 ("&$AD171&")'!$a$2")="R",Season_Summary!E171,""),"") ->  | F171: =IFERROR(IF(INDIRECT("'game1 ("&$AD171&")'!$a$2")="R",Season_Summary!F171,""),"") ->  | G171: =IFERROR(IF(INDIRECT("'game1 ("&$AD171&")'!$a$2")="R",Season_Summary!G171,""),"") ->  | H171: =IFERROR(IF(INDIRECT("'game1 ("&$AD171&")'!$a$2")="R",Season_Summary!H171,""),"") ->  | I171: =IFERROR(IF(INDIRECT("'game1 ("&$AD171&")'!$a$2")="R",Season_Summary!I171,""),"") ->  | J171: =IFERROR(IF(INDIRECT("'game1 ("&$AD171&")'!$a$2")="R",Season_Summary!J171,""),"") ->  | K171: =IFERROR(IF(INDIRECT("'game1 ("&$AD171&")'!$a$2")="R",Season_Summary!K171,""),"") ->  | L171: =IFERROR(IF(INDIRECT("'game1 ("&$AD171&")'!$a$2")="R",Season_Summary!L171,""),"") ->  | M171: =IFERROR(IF(INDIRECT("'game1 ("&$AD171&")'!$a$2")="R",Season_Summary!M171,""),"") ->  | N171: =IFERROR(IF(INDIRECT("'game1 ("&$AD171&")'!$a$2")="R",Season_Summary!N171,""),"") ->  | O171: =IFERROR(IF(INDIRECT("'game1 ("&$AD171&")'!$a$2")="R",Season_Summary!O171,""),"") ->  | P171: =IFERROR(IF(INDIRECT("'game1 ("&$AD171&")'!$a$2")="R",Season_Summary!P171,""),"") ->  | Q171: =IFERROR(IF(INDIRECT("'game1 ("&$AD171&")'!$a$2")="R",Season_Summary!Q171,""),"") ->  | R171: =IFERROR(IF(INDIRECT("'game1 ("&$AD171&")'!$a$2")="R",Season_Summary!R171,""),"") ->  | S171: =IFERROR(IF(INDIRECT("'game1 ("&$AD171&")'!$a$2")="R",Season_Summary!S171,""),"") ->  | T171: =IFERROR(IF(INDIRECT("'game1 ("&$AD171&")'!$a$2")="R",Season_Summary!T171,""),"") ->  | U171: =IFERROR(IF(INDIRECT("'game1 ("&$AD171&")'!$a$2")="R",Season_Summary!U171,""),"") ->  | V171: =IFERROR(IF(INDIRECT("'game1 ("&$AD171&")'!$a$2")="R",Season_Summary!V171,""),"") ->  | W171: =IFERROR(IF(INDIRECT("'game1 ("&$AD171&")'!$a$2")="R",Season_Summary!W171,""),"") ->  | X171: =IFERROR(IF(INDIRECT("'game1 ("&$AD171&")'!$a$2")="R",Season_Summary!X171,""),"") ->  | Y171: =IFERROR(IF(INDIRECT("'game1 ("&$AD171&")'!$a$2")="R",Season_Summary!Y171,""),"") ->  | Z171: =IFERROR(IF(INDIRECT("'game1 ("&$AD171&")'!$a$2")="R",Season_Summary!Z171,""),"") ->  | AA171: =IFERROR(IF(INDIRECT("'game1 ("&$AD171&")'!$a$2")="R",Season_Summary!AA171,""),"") ->  | AB171: =IFERROR(IF(INDIRECT("'game1 ("&$AD171&")'!$a$2")="R",Season_Summary!AB171,""),"") ->  | AC171: =IFERROR(IF(INDIRECT("'game1 ("&$AD171&")'!$a$2")="R",Season_Summary!AC171,""),"") ->  | AD171: 35
A172: =IFERROR(IF(INDIRECT("'game1 ("&$AD172&")'!$a$2")="R",Season_Summary!A172,""),"") ->  | B172: =IFERROR(IF(INDIRECT("'game1 ("&$AD172&")'!$a$2")="R",Season_Summary!B172,""),"") ->  | C172: =IFERROR(IF(INDIRECT("'game1 ("&$AD172&")'!$a$2")="R",Season_Summary!C172,""),"") ->  | D172: =IFERROR(IF(INDIRECT("'game1 ("&$AD172&")'!$a$2")="R",Season_Summary!D172,""),"") ->  | E172: =IFERROR(IF(INDIRECT("'game1 ("&$AD172&")'!$a$2")="R",Season_Summary!E172,""),"") ->  | F172: =IFERROR(IF(INDIRECT("'game1 ("&$AD172&")'!$a$2")="R",Season_Summary!F172,""),"") ->  | G172: =IFERROR(IF(INDIRECT("'game1 ("&$AD172&")'!$a$2")="R",Season_Summary!G172,""),"") ->  | H172: =IFERROR(IF(INDIRECT("'game1 ("&$AD172&")'!$a$2")="R",Season_Summary!H172,""),"") ->  | I172: =IFERROR(IF(INDIRECT("'game1 ("&$AD172&")'!$a$2")="R",Season_Summary!I172,""),"") ->  | J172: =IFERROR(IF(INDIRECT("'game1 ("&$AD172&")'!$a$2")="R",Season_Summary!J172,""),"") ->  | K172: =IFERROR(IF(INDIRECT("'game1 ("&$AD172&")'!$a$2")="R",Season_Summary!K172,""),"") ->  | L172: =IFERROR(IF(INDIRECT("'game1 ("&$AD172&")'!$a$2")="R",Season_Summary!L172,""),"") ->  | M172: =IFERROR(IF(INDIRECT("'game1 ("&$AD172&")'!$a$2")="R",Season_Summary!M172,""),"") ->  | N172: =IFERROR(IF(INDIRECT("'game1 ("&$AD172&")'!$a$2")="R",Season_Summary!N172,""),"") ->  | O172: =IFERROR(IF(INDIRECT("'game1 ("&$AD172&")'!$a$2")="R",Season_Summary!O172,""),"") ->  | P172: =IFERROR(IF(INDIRECT("'game1 ("&$AD172&")'!$a$2")="R",Season_Summary!P172,""),"") ->  | Q172: =IFERROR(IF(INDIRECT("'game1 ("&$AD172&")'!$a$2")="R",Season_Summary!Q172,""),"") ->  | R172: =IFERROR(IF(INDIRECT("'game1 ("&$AD172&")'!$a$2")="R",Season_Summary!R172,""),"") ->  | S172: =IFERROR(IF(INDIRECT("'game1 ("&$AD172&")'!$a$2")="R",Season_Summary!S172,""),"") ->  | T172: =IFERROR(IF(INDIRECT("'game1 ("&$AD172&")'!$a$2")="R",Season_Summary!T172,""),"") ->  | U172: =IFERROR(IF(INDIRECT("'game1 ("&$AD172&")'!$a$2")="R",Season_Summary!U172,""),"") ->  | V172: =IFERROR(IF(INDIRECT("'game1 ("&$AD172&")'!$a$2")="R",Season_Summary!V172,""),"") ->  | W172: =IFERROR(IF(INDIRECT("'game1 ("&$AD172&")'!$a$2")="R",Season_Summary!W172,""),"") ->  | X172: =IFERROR(IF(INDIRECT("'game1 ("&$AD172&")'!$a$2")="R",Season_Summary!X172,""),"") ->  | Y172: =IFERROR(IF(INDIRECT("'game1 ("&$AD172&")'!$a$2")="R",Season_Summary!Y172,""),"") ->  | Z172: =IFERROR(IF(INDIRECT("'game1 ("&$AD172&")'!$a$2")="R",Season_Summary!Z172,""),"") ->  | AA172: =IFERROR(IF(INDIRECT("'game1 ("&$AD172&")'!$a$2")="R",Season_Summary!AA172,""),"") ->  | AB172: =IFERROR(IF(INDIRECT("'game1 ("&$AD172&")'!$a$2")="R",Season_Summary!AB172,""),"") ->  | AC172: =IFERROR(IF(INDIRECT("'game1 ("&$AD172&")'!$a$2")="R",Season_Summary!AC172,""),"") ->  | AD172: 35
A173: =IFERROR(IF(INDIRECT("'game1 ("&$AD173&")'!$a$2")="R",Season_Summary!A173,""),"") ->  | B173: =IFERROR(IF(INDIRECT("'game1 ("&$AD173&")'!$a$2")="R",Season_Summary!B173,""),"") ->  | C173: =IFERROR(IF(INDIRECT("'game1 ("&$AD173&")'!$a$2")="R",Season_Summary!C173,""),"") ->  | D173: =IFERROR(IF(INDIRECT("'game1 ("&$AD173&")'!$a$2")="R",Season_Summary!D173,""),"") ->  | E173: =IFERROR(IF(INDIRECT("'game1 ("&$AD173&")'!$a$2")="R",Season_Summary!E173,""),"") ->  | F173: =IFERROR(IF(INDIRECT("'game1 ("&$AD173&")'!$a$2")="R",Season_Summary!F173,""),"") ->  | G173: =IFERROR(IF(INDIRECT("'game1 ("&$AD173&")'!$a$2")="R",Season_Summary!G173,""),"") ->  | H173: =IFERROR(IF(INDIRECT("'game1 ("&$AD173&")'!$a$2")="R",Season_Summary!H173,""),"") ->  | I173: =IFERROR(IF(INDIRECT("'game1 ("&$AD173&")'!$a$2")="R",Season_Summary!I173,""),"") ->  | J173: =IFERROR(IF(INDIRECT("'game1 ("&$AD173&")'!$a$2")="R",Season_Summary!J173,""),"") ->  | K173: =IFERROR(IF(INDIRECT("'game1 ("&$AD173&")'!$a$2")="R",Season_Summary!K173,""),"") ->  | L173: =IFERROR(IF(INDIRECT("'game1 ("&$AD173&")'!$a$2")="R",Season_Summary!L173,""),"") ->  | M173: =IFERROR(IF(INDIRECT("'game1 ("&$AD173&")'!$a$2")="R",Season_Summary!M173,""),"") ->  | N173: =IFERROR(IF(INDIRECT("'game1 ("&$AD173&")'!$a$2")="R",Season_Summary!N173,""),"") ->  | O173: =IFERROR(IF(INDIRECT("'game1 ("&$AD173&")'!$a$2")="R",Season_Summary!O173,""),"") ->  | P173: =IFERROR(IF(INDIRECT("'game1 ("&$AD173&")'!$a$2")="R",Season_Summary!P173,""),"") ->  | Q173: =IFERROR(IF(INDIRECT("'game1 ("&$AD173&")'!$a$2")="R",Season_Summary!Q173,""),"") ->  | R173: =IFERROR(IF(INDIRECT("'game1 ("&$AD173&")'!$a$2")="R",Season_Summary!R173,""),"") ->  | S173: =IFERROR(IF(INDIRECT("'game1 ("&$AD173&")'!$a$2")="R",Season_Summary!S173,""),"") ->  | T173: =IFERROR(IF(INDIRECT("'game1 ("&$AD173&")'!$a$2")="R",Season_Summary!T173,""),"") ->  | U173: =IFERROR(IF(INDIRECT("'game1 ("&$AD173&")'!$a$2")="R",Season_Summary!U173,""),"") ->  | V173: =IFERROR(IF(INDIRECT("'game1 ("&$AD173&")'!$a$2")="R",Season_Summary!V173,""),"") ->  | W173: =IFERROR(IF(INDIRECT("'game1 ("&$AD173&")'!$a$2")="R",Season_Summary!W173,""),"") ->  | X173: =IFERROR(IF(INDIRECT("'game1 ("&$AD173&")'!$a$2")="R",Season_Summary!X173,""),"") ->  | Y173: =IFERROR(IF(INDIRECT("'game1 ("&$AD173&")'!$a$2")="R",Season_Summary!Y173,""),"") ->  | Z173: =IFERROR(IF(INDIRECT("'game1 ("&$AD173&")'!$a$2")="R",Season_Summary!Z173,""),"") ->  | AA173: =IFERROR(IF(INDIRECT("'game1 ("&$AD173&")'!$a$2")="R",Season_Summary!AA173,""),"") ->  | AB173: =IFERROR(IF(INDIRECT("'game1 ("&$AD173&")'!$a$2")="R",Season_Summary!AB173,""),"") ->  | AC173: =IFERROR(IF(INDIRECT("'game1 ("&$AD173&")'!$a$2")="R",Season_Summary!AC173,""),"") ->  | AD173: 36
A174: =IFERROR(IF(INDIRECT("'game1 ("&$AD174&")'!$a$2")="R",Season_Summary!A174,""),"") ->  | B174: =IFERROR(IF(INDIRECT("'game1 ("&$AD174&")'!$a$2")="R",Season_Summary!B174,""),"") ->  | C174: =IFERROR(IF(INDIRECT("'game1 ("&$AD174&")'!$a$2")="R",Season_Summary!C174,""),"") ->  | D174: =IFERROR(IF(INDIRECT("'game1 ("&$AD174&")'!$a$2")="R",Season_Summary!D174,""),"") ->  | E174: =IFERROR(IF(INDIRECT("'game1 ("&$AD174&")'!$a$2")="R",Season_Summary!E174,""),"") ->  | F174: =IFERROR(IF(INDIRECT("'game1 ("&$AD174&")'!$a$2")="R",Season_Summary!F174,""),"") ->  | G174: =IFERROR(IF(INDIRECT("'game1 ("&$AD174&")'!$a$2")="R",Season_Summary!G174,""),"") ->  | H174: =IFERROR(IF(INDIRECT("'game1 ("&$AD174&")'!$a$2")="R",Season_Summary!H174,""),"") ->  | I174: =IFERROR(IF(INDIRECT("'game1 ("&$AD174&")'!$a$2")="R",Season_Summary!I174,""),"") ->  | J174: =IFERROR(IF(INDIRECT("'game1 ("&$AD174&")'!$a$2")="R",Season_Summary!J174,""),"") ->  | K174: =IFERROR(IF(INDIRECT("'game1 ("&$AD174&")'!$a$2")="R",Season_Summary!K174,""),"") ->  | L174: =IFERROR(IF(INDIRECT("'game1 ("&$AD174&")'!$a$2")="R",Season_Summary!L174,""),"") ->  | M174: =IFERROR(IF(INDIRECT("'game1 ("&$AD174&")'!$a$2")="R",Season_Summary!M174,""),"") ->  | N174: =IFERROR(IF(INDIRECT("'game1 ("&$AD174&")'!$a$2")="R",Season_Summary!N174,""),"") ->  | O174: =IFERROR(IF(INDIRECT("'game1 ("&$AD174&")'!$a$2")="R",Season_Summary!O174,""),"") ->  | P174: =IFERROR(IF(INDIRECT("'game1 ("&$AD174&")'!$a$2")="R",Season_Summary!P174,""),"") ->  | Q174: =IFERROR(IF(INDIRECT("'game1 ("&$AD174&")'!$a$2")="R",Season_Summary!Q174,""),"") ->  | R174: =IFERROR(IF(INDIRECT("'game1 ("&$AD174&")'!$a$2")="R",Season_Summary!R174,""),"") ->  | S174: =IFERROR(IF(INDIRECT("'game1 ("&$AD174&")'!$a$2")="R",Season_Summary!S174,""),"") ->  | T174: =IFERROR(IF(INDIRECT("'game1 ("&$AD174&")'!$a$2")="R",Season_Summary!T174,""),"") ->  | U174: =IFERROR(IF(INDIRECT("'game1 ("&$AD174&")'!$a$2")="R",Season_Summary!U174,""),"") ->  | V174: =IFERROR(IF(INDIRECT("'game1 ("&$AD174&")'!$a$2")="R",Season_Summary!V174,""),"") ->  | W174: =IFERROR(IF(INDIRECT("'game1 ("&$AD174&")'!$a$2")="R",Season_Summary!W174,""),"") ->  | X174: =IFERROR(IF(INDIRECT("'game1 ("&$AD174&")'!$a$2")="R",Season_Summary!X174,""),"") ->  | Y174: =IFERROR(IF(INDIRECT("'game1 ("&$AD174&")'!$a$2")="R",Season_Summary!Y174,""),"") ->  | Z174: =IFERROR(IF(INDIRECT("'game1 ("&$AD174&")'!$a$2")="R",Season_Summary!Z174,""),"") ->  | AA174: =IFERROR(IF(INDIRECT("'game1 ("&$AD174&")'!$a$2")="R",Season_Summary!AA174,""),"") ->  | AB174: =IFERROR(IF(INDIRECT("'game1 ("&$AD174&")'!$a$2")="R",Season_Summary!AB174,""),"") ->  | AC174: =IFERROR(IF(INDIRECT("'game1 ("&$AD174&")'!$a$2")="R",Season_Summary!AC174,""),"") ->  | AD174: 36
A175: =IFERROR(IF(INDIRECT("'game1 ("&$AD175&")'!$a$2")="R",Season_Summary!A175,""),"") ->  | B175: =IFERROR(IF(INDIRECT("'game1 ("&$AD175&")'!$a$2")="R",Season_Summary!B175,""),"") ->  | C175: =IFERROR(IF(INDIRECT("'game1 ("&$AD175&")'!$a$2")="R",Season_Summary!C175,""),"") ->  | D175: =IFERROR(IF(INDIRECT("'game1 ("&$AD175&")'!$a$2")="R",Season_Summary!D175,""),"") ->  | E175: =IFERROR(IF(INDIRECT("'game1 ("&$AD175&")'!$a$2")="R",Season_Summary!E175,""),"") ->  | F175: =IFERROR(IF(INDIRECT("'game1 ("&$AD175&")'!$a$2")="R",Season_Summary!F175,""),"") ->  | G175: =IFERROR(IF(INDIRECT("'game1 ("&$AD175&")'!$a$2")="R",Season_Summary!G175,""),"") ->  | H175: =IFERROR(IF(INDIRECT("'game1 ("&$AD175&")'!$a$2")="R",Season_Summary!H175,""),"") ->  | I175: =IFERROR(IF(INDIRECT("'game1 ("&$AD175&")'!$a$2")="R",Season_Summary!I175,""),"") ->  | J175: =IFERROR(IF(INDIRECT("'game1 ("&$AD175&")'!$a$2")="R",Season_Summary!J175,""),"") ->  | K175: =IFERROR(IF(INDIRECT("'game1 ("&$AD175&")'!$a$2")="R",Season_Summary!K175,""),"") ->  | L175: =IFERROR(IF(INDIRECT("'game1 ("&$AD175&")'!$a$2")="R",Season_Summary!L175,""),"") ->  | M175: =IFERROR(IF(INDIRECT("'game1 ("&$AD175&")'!$a$2")="R",Season_Summary!M175,""),"") ->  | N175: =IFERROR(IF(INDIRECT("'game1 ("&$AD175&")'!$a$2")="R",Season_Summary!N175,""),"") ->  | O175: =IFERROR(IF(INDIRECT("'game1 ("&$AD175&")'!$a$2")="R",Season_Summary!O175,""),"") ->  | P175: =IFERROR(IF(INDIRECT("'game1 ("&$AD175&")'!$a$2")="R",Season_Summary!P175,""),"") ->  | Q175: =IFERROR(IF(INDIRECT("'game1 ("&$AD175&")'!$a$2")="R",Season_Summary!Q175,""),"") ->  | R175: =IFERROR(IF(INDIRECT("'game1 ("&$AD175&")'!$a$2")="R",Season_Summary!R175,""),"") ->  | S175: =IFERROR(IF(INDIRECT("'game1 ("&$AD175&")'!$a$2")="R",Season_Summary!S175,""),"") ->  | T175: =IFERROR(IF(INDIRECT("'game1 ("&$AD175&")'!$a$2")="R",Season_Summary!T175,""),"") ->  | U175: =IFERROR(IF(INDIRECT("'game1 ("&$AD175&")'!$a$2")="R",Season_Summary!U175,""),"") ->  | V175: =IFERROR(IF(INDIRECT("'game1 ("&$AD175&")'!$a$2")="R",Season_Summary!V175,""),"") ->  | W175: =IFERROR(IF(INDIRECT("'game1 ("&$AD175&")'!$a$2")="R",Season_Summary!W175,""),"") ->  | X175: =IFERROR(IF(INDIRECT("'game1 ("&$AD175&")'!$a$2")="R",Season_Summary!X175,""),"") ->  | Y175: =IFERROR(IF(INDIRECT("'game1 ("&$AD175&")'!$a$2")="R",Season_Summary!Y175,""),"") ->  | Z175: =IFERROR(IF(INDIRECT("'game1 ("&$AD175&")'!$a$2")="R",Season_Summary!Z175,""),"") ->  | AA175: =IFERROR(IF(INDIRECT("'game1 ("&$AD175&")'!$a$2")="R",Season_Summary!AA175,""),"") ->  | AB175: =IFERROR(IF(INDIRECT("'game1 ("&$AD175&")'!$a$2")="R",Season_Summary!AB175,""),"") ->  | AC175: =IFERROR(IF(INDIRECT("'game1 ("&$AD175&")'!$a$2")="R",Season_Summary!AC175,""),"") ->  | AD175: 37
A176: =IFERROR(IF(INDIRECT("'game1 ("&$AD176&")'!$a$2")="R",Season_Summary!A176,""),"") ->  | B176: =IFERROR(IF(INDIRECT("'game1 ("&$AD176&")'!$a$2")="R",Season_Summary!B176,""),"") ->  | C176: =IFERROR(IF(INDIRECT("'game1 ("&$AD176&")'!$a$2")="R",Season_Summary!C176,""),"") ->  | D176: =IFERROR(IF(INDIRECT("'game1 ("&$AD176&")'!$a$2")="R",Season_Summary!D176,""),"") ->  | E176: =IFERROR(IF(INDIRECT("'game1 ("&$AD176&")'!$a$2")="R",Season_Summary!E176,""),"") ->  | F176: =IFERROR(IF(INDIRECT("'game1 ("&$AD176&")'!$a$2")="R",Season_Summary!F176,""),"") ->  | G176: =IFERROR(IF(INDIRECT("'game1 ("&$AD176&")'!$a$2")="R",Season_Summary!G176,""),"") ->  | H176: =IFERROR(IF(INDIRECT("'game1 ("&$AD176&")'!$a$2")="R",Season_Summary!H176,""),"") ->  | I176: =IFERROR(IF(INDIRECT("'game1 ("&$AD176&")'!$a$2")="R",Season_Summary!I176,""),"") ->  | J176: =IFERROR(IF(INDIRECT("'game1 ("&$AD176&")'!$a$2")="R",Season_Summary!J176,""),"") ->  | K176: =IFERROR(IF(INDIRECT("'game1 ("&$AD176&")'!$a$2")="R",Season_Summary!K176,""),"") ->  | L176: =IFERROR(IF(INDIRECT("'game1 ("&$AD176&")'!$a$2")="R",Season_Summary!L176,""),"") ->  | M176: =IFERROR(IF(INDIRECT("'game1 ("&$AD176&")'!$a$2")="R",Season_Summary!M176,""),"") ->  | N176: =IFERROR(IF(INDIRECT("'game1 ("&$AD176&")'!$a$2")="R",Season_Summary!N176,""),"") ->  | O176: =IFERROR(IF(INDIRECT("'game1 ("&$AD176&")'!$a$2")="R",Season_Summary!O176,""),"") ->  | P176: =IFERROR(IF(INDIRECT("'game1 ("&$AD176&")'!$a$2")="R",Season_Summary!P176,""),"") ->  | Q176: =IFERROR(IF(INDIRECT("'game1 ("&$AD176&")'!$a$2")="R",Season_Summary!Q176,""),"") ->  | R176: =IFERROR(IF(INDIRECT("'game1 ("&$AD176&")'!$a$2")="R",Season_Summary!R176,""),"") ->  | S176: =IFERROR(IF(INDIRECT("'game1 ("&$AD176&")'!$a$2")="R",Season_Summary!S176,""),"") ->  | T176: =IFERROR(IF(INDIRECT("'game1 ("&$AD176&")'!$a$2")="R",Season_Summary!T176,""),"") ->  | U176: =IFERROR(IF(INDIRECT("'game1 ("&$AD176&")'!$a$2")="R",Season_Summary!U176,""),"") ->  | V176: =IFERROR(IF(INDIRECT("'game1 ("&$AD176&")'!$a$2")="R",Season_Summary!V176,""),"") ->  | W176: =IFERROR(IF(INDIRECT("'game1 ("&$AD176&")'!$a$2")="R",Season_Summary!W176,""),"") ->  | X176: =IFERROR(IF(INDIRECT("'game1 ("&$AD176&")'!$a$2")="R",Season_Summary!X176,""),"") ->  | Y176: =IFERROR(IF(INDIRECT("'game1 ("&$AD176&")'!$a$2")="R",Season_Summary!Y176,""),"") ->  | Z176: =IFERROR(IF(INDIRECT("'game1 ("&$AD176&")'!$a$2")="R",Season_Summary!Z176,""),"") ->  | AA176: =IFERROR(IF(INDIRECT("'game1 ("&$AD176&")'!$a$2")="R",Season_Summary!AA176,""),"") ->  | AB176: =IFERROR(IF(INDIRECT("'game1 ("&$AD176&")'!$a$2")="R",Season_Summary!AB176,""),"") ->  | AC176: =IFERROR(IF(INDIRECT("'game1 ("&$AD176&")'!$a$2")="R",Season_Summary!AC176,""),"") ->  | AD176: 37
A177: =IFERROR(IF(INDIRECT("'game1 ("&$AD177&")'!$a$2")="R",Season_Summary!A177,""),"") ->  | B177: =IFERROR(IF(INDIRECT("'game1 ("&$AD177&")'!$a$2")="R",Season_Summary!B177,""),"") ->  | C177: =IFERROR(IF(INDIRECT("'game1 ("&$AD177&")'!$a$2")="R",Season_Summary!C177,""),"") ->  | D177: =IFERROR(IF(INDIRECT("'game1 ("&$AD177&")'!$a$2")="R",Season_Summary!D177,""),"") ->  | E177: =IFERROR(IF(INDIRECT("'game1 ("&$AD177&")'!$a$2")="R",Season_Summary!E177,""),"") ->  | F177: =IFERROR(IF(INDIRECT("'game1 ("&$AD177&")'!$a$2")="R",Season_Summary!F177,""),"") ->  | G177: =IFERROR(IF(INDIRECT("'game1 ("&$AD177&")'!$a$2")="R",Season_Summary!G177,""),"") ->  | H177: =IFERROR(IF(INDIRECT("'game1 ("&$AD177&")'!$a$2")="R",Season_Summary!H177,""),"") ->  | I177: =IFERROR(IF(INDIRECT("'game1 ("&$AD177&")'!$a$2")="R",Season_Summary!I177,""),"") ->  | J177: =IFERROR(IF(INDIRECT("'game1 ("&$AD177&")'!$a$2")="R",Season_Summary!J177,""),"") ->  | K177: =IFERROR(IF(INDIRECT("'game1 ("&$AD177&")'!$a$2")="R",Season_Summary!K177,""),"") ->  | L177: =IFERROR(IF(INDIRECT("'game1 ("&$AD177&")'!$a$2")="R",Season_Summary!L177,""),"") ->  | M177: =IFERROR(IF(INDIRECT("'game1 ("&$AD177&")'!$a$2")="R",Season_Summary!M177,""),"") ->  | N177: =IFERROR(IF(INDIRECT("'game1 ("&$AD177&")'!$a$2")="R",Season_Summary!N177,""),"") ->  | O177: =IFERROR(IF(INDIRECT("'game1 ("&$AD177&")'!$a$2")="R",Season_Summary!O177,""),"") ->  | P177: =IFERROR(IF(INDIRECT("'game1 ("&$AD177&")'!$a$2")="R",Season_Summary!P177,""),"") ->  | Q177: =IFERROR(IF(INDIRECT("'game1 ("&$AD177&")'!$a$2")="R",Season_Summary!Q177,""),"") ->  | R177: =IFERROR(IF(INDIRECT("'game1 ("&$AD177&")'!$a$2")="R",Season_Summary!R177,""),"") ->  | S177: =IFERROR(IF(INDIRECT("'game1 ("&$AD177&")'!$a$2")="R",Season_Summary!S177,""),"") ->  | T177: =IFERROR(IF(INDIRECT("'game1 ("&$AD177&")'!$a$2")="R",Season_Summary!T177,""),"") ->  | U177: =IFERROR(IF(INDIRECT("'game1 ("&$AD177&")'!$a$2")="R",Season_Summary!U177,""),"") ->  | V177: =IFERROR(IF(INDIRECT("'game1 ("&$AD177&")'!$a$2")="R",Season_Summary!V177,""),"") ->  | W177: =IFERROR(IF(INDIRECT("'game1 ("&$AD177&")'!$a$2")="R",Season_Summary!W177,""),"") ->  | X177: =IFERROR(IF(INDIRECT("'game1 ("&$AD177&")'!$a$2")="R",Season_Summary!X177,""),"") ->  | Y177: =IFERROR(IF(INDIRECT("'game1 ("&$AD177&")'!$a$2")="R",Season_Summary!Y177,""),"") ->  | Z177: =IFERROR(IF(INDIRECT("'game1 ("&$AD177&")'!$a$2")="R",Season_Summary!Z177,""),"") ->  | AA177: =IFERROR(IF(INDIRECT("'game1 ("&$AD177&")'!$a$2")="R",Season_Summary!AA177,""),"") ->  | AB177: =IFERROR(IF(INDIRECT("'game1 ("&$AD177&")'!$a$2")="R",Season_Summary!AB177,""),"") ->  | AC177: =IFERROR(IF(INDIRECT("'game1 ("&$AD177&")'!$a$2")="R",Season_Summary!AC177,""),"") ->  | AD177: 38
A178: =IFERROR(IF(INDIRECT("'game1 ("&$AD178&")'!$a$2")="R",Season_Summary!A178,""),"") ->  | B178: =IFERROR(IF(INDIRECT("'game1 ("&$AD178&")'!$a$2")="R",Season_Summary!B178,""),"") ->  | C178: =IFERROR(IF(INDIRECT("'game1 ("&$AD178&")'!$a$2")="R",Season_Summary!C178,""),"") ->  | D178: =IFERROR(IF(INDIRECT("'game1 ("&$AD178&")'!$a$2")="R",Season_Summary!D178,""),"") ->  | E178: =IFERROR(IF(INDIRECT("'game1 ("&$AD178&")'!$a$2")="R",Season_Summary!E178,""),"") ->  | F178: =IFERROR(IF(INDIRECT("'game1 ("&$AD178&")'!$a$2")="R",Season_Summary!F178,""),"") ->  | G178: =IFERROR(IF(INDIRECT("'game1 ("&$AD178&")'!$a$2")="R",Season_Summary!G178,""),"") ->  | H178: =IFERROR(IF(INDIRECT("'game1 ("&$AD178&")'!$a$2")="R",Season_Summary!H178,""),"") ->  | I178: =IFERROR(IF(INDIRECT("'game1 ("&$AD178&")'!$a$2")="R",Season_Summary!I178,""),"") ->  | J178: =IFERROR(IF(INDIRECT("'game1 ("&$AD178&")'!$a$2")="R",Season_Summary!J178,""),"") ->  | K178: =IFERROR(IF(INDIRECT("'game1 ("&$AD178&")'!$a$2")="R",Season_Summary!K178,""),"") ->  | L178: =IFERROR(IF(INDIRECT("'game1 ("&$AD178&")'!$a$2")="R",Season_Summary!L178,""),"") ->  | M178: =IFERROR(IF(INDIRECT("'game1 ("&$AD178&")'!$a$2")="R",Season_Summary!M178,""),"") ->  | N178: =IFERROR(IF(INDIRECT("'game1 ("&$AD178&")'!$a$2")="R",Season_Summary!N178,""),"") ->  | O178: =IFERROR(IF(INDIRECT("'game1 ("&$AD178&")'!$a$2")="R",Season_Summary!O178,""),"") ->  | P178: =IFERROR(IF(INDIRECT("'game1 ("&$AD178&")'!$a$2")="R",Season_Summary!P178,""),"") ->  | Q178: =IFERROR(IF(INDIRECT("'game1 ("&$AD178&")'!$a$2")="R",Season_Summary!Q178,""),"") ->  | R178: =IFERROR(IF(INDIRECT("'game1 ("&$AD178&")'!$a$2")="R",Season_Summary!R178,""),"") ->  | S178: =IFERROR(IF(INDIRECT("'game1 ("&$AD178&")'!$a$2")="R",Season_Summary!S178,""),"") ->  | T178: =IFERROR(IF(INDIRECT("'game1 ("&$AD178&")'!$a$2")="R",Season_Summary!T178,""),"") ->  | U178: =IFERROR(IF(INDIRECT("'game1 ("&$AD178&")'!$a$2")="R",Season_Summary!U178,""),"") ->  | V178: =IFERROR(IF(INDIRECT("'game1 ("&$AD178&")'!$a$2")="R",Season_Summary!V178,""),"") ->  | W178: =IFERROR(IF(INDIRECT("'game1 ("&$AD178&")'!$a$2")="R",Season_Summary!W178,""),"") ->  | X178: =IFERROR(IF(INDIRECT("'game1 ("&$AD178&")'!$a$2")="R",Season_Summary!X178,""),"") ->  | Y178: =IFERROR(IF(INDIRECT("'game1 ("&$AD178&")'!$a$2")="R",Season_Summary!Y178,""),"") ->  | Z178: =IFERROR(IF(INDIRECT("'game1 ("&$AD178&")'!$a$2")="R",Season_Summary!Z178,""),"") ->  | AA178: =IFERROR(IF(INDIRECT("'game1 ("&$AD178&")'!$a$2")="R",Season_Summary!AA178,""),"") ->  | AB178: =IFERROR(IF(INDIRECT("'game1 ("&$AD178&")'!$a$2")="R",Season_Summary!AB178,""),"") ->  | AC178: =IFERROR(IF(INDIRECT("'game1 ("&$AD178&")'!$a$2")="R",Season_Summary!AC178,""),"") ->  | AD178: 38
A179: =IFERROR(IF(INDIRECT("'game1 ("&$AD179&")'!$a$2")="R",Season_Summary!A179,""),"") ->  | B179: =IFERROR(IF(INDIRECT("'game1 ("&$AD179&")'!$a$2")="R",Season_Summary!B179,""),"") ->  | C179: =IFERROR(IF(INDIRECT("'game1 ("&$AD179&")'!$a$2")="R",Season_Summary!C179,""),"") ->  | D179: =IFERROR(IF(INDIRECT("'game1 ("&$AD179&")'!$a$2")="R",Season_Summary!D179,""),"") ->  | E179: =IFERROR(IF(INDIRECT("'game1 ("&$AD179&")'!$a$2")="R",Season_Summary!E179,""),"") ->  | F179: =IFERROR(IF(INDIRECT("'game1 ("&$AD179&")'!$a$2")="R",Season_Summary!F179,""),"") ->  | G179: =IFERROR(IF(INDIRECT("'game1 ("&$AD179&")'!$a$2")="R",Season_Summary!G179,""),"") ->  | H179: =IFERROR(IF(INDIRECT("'game1 ("&$AD179&")'!$a$2")="R",Season_Summary!H179,""),"") ->  | I179: =IFERROR(IF(INDIRECT("'game1 ("&$AD179&")'!$a$2")="R",Season_Summary!I179,""),"") ->  | J179: =IFERROR(IF(INDIRECT("'game1 ("&$AD179&")'!$a$2")="R",Season_Summary!J179,""),"") ->  | K179: =IFERROR(IF(INDIRECT("'game1 ("&$AD179&")'!$a$2")="R",Season_Summary!K179,""),"") ->  | L179: =IFERROR(IF(INDIRECT("'game1 ("&$AD179&")'!$a$2")="R",Season_Summary!L179,""),"") ->  | M179: =IFERROR(IF(INDIRECT("'game1 ("&$AD179&")'!$a$2")="R",Season_Summary!M179,""),"") ->  | N179: =IFERROR(IF(INDIRECT("'game1 ("&$AD179&")'!$a$2")="R",Season_Summary!N179,""),"") ->  | O179: =IFERROR(IF(INDIRECT("'game1 ("&$AD179&")'!$a$2")="R",Season_Summary!O179,""),"") ->  | P179: =IFERROR(IF(INDIRECT("'game1 ("&$AD179&")'!$a$2")="R",Season_Summary!P179,""),"") ->  | Q179: =IFERROR(IF(INDIRECT("'game1 ("&$AD179&")'!$a$2")="R",Season_Summary!Q179,""),"") ->  | R179: =IFERROR(IF(INDIRECT("'game1 ("&$AD179&")'!$a$2")="R",Season_Summary!R179,""),"") ->  | S179: =IFERROR(IF(INDIRECT("'game1 ("&$AD179&")'!$a$2")="R",Season_Summary!S179,""),"") ->  | T179: =IFERROR(IF(INDIRECT("'game1 ("&$AD179&")'!$a$2")="R",Season_Summary!T179,""),"") ->  | U179: =IFERROR(IF(INDIRECT("'game1 ("&$AD179&")'!$a$2")="R",Season_Summary!U179,""),"") ->  | V179: =IFERROR(IF(INDIRECT("'game1 ("&$AD179&")'!$a$2")="R",Season_Summary!V179,""),"") ->  | W179: =IFERROR(IF(INDIRECT("'game1 ("&$AD179&")'!$a$2")="R",Season_Summary!W179,""),"") ->  | X179: =IFERROR(IF(INDIRECT("'game1 ("&$AD179&")'!$a$2")="R",Season_Summary!X179,""),"") ->  | Y179: =IFERROR(IF(INDIRECT("'game1 ("&$AD179&")'!$a$2")="R",Season_Summary!Y179,""),"") ->  | Z179: =IFERROR(IF(INDIRECT("'game1 ("&$AD179&")'!$a$2")="R",Season_Summary!Z179,""),"") ->  | AA179: =IFERROR(IF(INDIRECT("'game1 ("&$AD179&")'!$a$2")="R",Season_Summary!AA179,""),"") ->  | AB179: =IFERROR(IF(INDIRECT("'game1 ("&$AD179&")'!$a$2")="R",Season_Summary!AB179,""),"") ->  | AC179: =IFERROR(IF(INDIRECT("'game1 ("&$AD179&")'!$a$2")="R",Season_Summary!AC179,""),"") ->  | AD179: 39
A180: =IFERROR(IF(INDIRECT("'game1 ("&$AD180&")'!$a$2")="R",Season_Summary!A180,""),"") ->  | B180: =IFERROR(IF(INDIRECT("'game1 ("&$AD180&")'!$a$2")="R",Season_Summary!B180,""),"") ->  | C180: =IFERROR(IF(INDIRECT("'game1 ("&$AD180&")'!$a$2")="R",Season_Summary!C180,""),"") ->  | D180: =IFERROR(IF(INDIRECT("'game1 ("&$AD180&")'!$a$2")="R",Season_Summary!D180,""),"") ->  | E180: =IFERROR(IF(INDIRECT("'game1 ("&$AD180&")'!$a$2")="R",Season_Summary!E180,""),"") ->  | F180: =IFERROR(IF(INDIRECT("'game1 ("&$AD180&")'!$a$2")="R",Season_Summary!F180,""),"") ->  | G180: =IFERROR(IF(INDIRECT("'game1 ("&$AD180&")'!$a$2")="R",Season_Summary!G180,""),"") ->  | H180: =IFERROR(IF(INDIRECT("'game1 ("&$AD180&")'!$a$2")="R",Season_Summary!H180,""),"") ->  | I180: =IFERROR(IF(INDIRECT("'game1 ("&$AD180&")'!$a$2")="R",Season_Summary!I180,""),"") ->  | J180: =IFERROR(IF(INDIRECT("'game1 ("&$AD180&")'!$a$2")="R",Season_Summary!J180,""),"") ->  | K180: =IFERROR(IF(INDIRECT("'game1 ("&$AD180&")'!$a$2")="R",Season_Summary!K180,""),"") ->  | L180: =IFERROR(IF(INDIRECT("'game1 ("&$AD180&")'!$a$2")="R",Season_Summary!L180,""),"") ->  | M180: =IFERROR(IF(INDIRECT("'game1 ("&$AD180&")'!$a$2")="R",Season_Summary!M180,""),"") ->  | N180: =IFERROR(IF(INDIRECT("'game1 ("&$AD180&")'!$a$2")="R",Season_Summary!N180,""),"") ->  | O180: =IFERROR(IF(INDIRECT("'game1 ("&$AD180&")'!$a$2")="R",Season_Summary!O180,""),"") ->  | P180: =IFERROR(IF(INDIRECT("'game1 ("&$AD180&")'!$a$2")="R",Season_Summary!P180,""),"") ->  | Q180: =IFERROR(IF(INDIRECT("'game1 ("&$AD180&")'!$a$2")="R",Season_Summary!Q180,""),"") ->  | R180: =IFERROR(IF(INDIRECT("'game1 ("&$AD180&")'!$a$2")="R",Season_Summary!R180,""),"") ->  | S180: =IFERROR(IF(INDIRECT("'game1 ("&$AD180&")'!$a$2")="R",Season_Summary!S180,""),"") ->  | T180: =IFERROR(IF(INDIRECT("'game1 ("&$AD180&")'!$a$2")="R",Season_Summary!T180,""),"") ->  | U180: =IFERROR(IF(INDIRECT("'game1 ("&$AD180&")'!$a$2")="R",Season_Summary!U180,""),"") ->  | V180: =IFERROR(IF(INDIRECT("'game1 ("&$AD180&")'!$a$2")="R",Season_Summary!V180,""),"") ->  | W180: =IFERROR(IF(INDIRECT("'game1 ("&$AD180&")'!$a$2")="R",Season_Summary!W180,""),"") ->  | X180: =IFERROR(IF(INDIRECT("'game1 ("&$AD180&")'!$a$2")="R",Season_Summary!X180,""),"") ->  | Y180: =IFERROR(IF(INDIRECT("'game1 ("&$AD180&")'!$a$2")="R",Season_Summary!Y180,""),"") ->  | Z180: =IFERROR(IF(INDIRECT("'game1 ("&$AD180&")'!$a$2")="R",Season_Summary!Z180,""),"") ->  | AA180: =IFERROR(IF(INDIRECT("'game1 ("&$AD180&")'!$a$2")="R",Season_Summary!AA180,""),"") ->  | AB180: =IFERROR(IF(INDIRECT("'game1 ("&$AD180&")'!$a$2")="R",Season_Summary!AB180,""),"") ->  | AC180: =IFERROR(IF(INDIRECT("'game1 ("&$AD180&")'!$a$2")="R",Season_Summary!AC180,""),"") ->  | AD180: 39
A181: =IFERROR(IF(INDIRECT("'game1 ("&$AD181&")'!$a$2")="R",Season_Summary!A181,""),"") ->  | B181: =IFERROR(IF(INDIRECT("'game1 ("&$AD181&")'!$a$2")="R",Season_Summary!B181,""),"") ->  | C181: =IFERROR(IF(INDIRECT("'game1 ("&$AD181&")'!$a$2")="R",Season_Summary!C181,""),"") ->  | D181: =IFERROR(IF(INDIRECT("'game1 ("&$AD181&")'!$a$2")="R",Season_Summary!D181,""),"") ->  | E181: =IFERROR(IF(INDIRECT("'game1 ("&$AD181&")'!$a$2")="R",Season_Summary!E181,""),"") ->  | F181: =IFERROR(IF(INDIRECT("'game1 ("&$AD181&")'!$a$2")="R",Season_Summary!F181,""),"") ->  | G181: =IFERROR(IF(INDIRECT("'game1 ("&$AD181&")'!$a$2")="R",Season_Summary!G181,""),"") ->  | H181: =IFERROR(IF(INDIRECT("'game1 ("&$AD181&")'!$a$2")="R",Season_Summary!H181,""),"") ->  | I181: =IFERROR(IF(INDIRECT("'game1 ("&$AD181&")'!$a$2")="R",Season_Summary!I181,""),"") ->  | J181: =IFERROR(IF(INDIRECT("'game1 ("&$AD181&")'!$a$2")="R",Season_Summary!J181,""),"") ->  | K181: =IFERROR(IF(INDIRECT("'game1 ("&$AD181&")'!$a$2")="R",Season_Summary!K181,""),"") ->  | L181: =IFERROR(IF(INDIRECT("'game1 ("&$AD181&")'!$a$2")="R",Season_Summary!L181,""),"") ->  | M181: =IFERROR(IF(INDIRECT("'game1 ("&$AD181&")'!$a$2")="R",Season_Summary!M181,""),"") ->  | N181: =IFERROR(IF(INDIRECT("'game1 ("&$AD181&")'!$a$2")="R",Season_Summary!N181,""),"") ->  | O181: =IFERROR(IF(INDIRECT("'game1 ("&$AD181&")'!$a$2")="R",Season_Summary!O181,""),"") ->  | P181: =IFERROR(IF(INDIRECT("'game1 ("&$AD181&")'!$a$2")="R",Season_Summary!P181,""),"") ->  | Q181: =IFERROR(IF(INDIRECT("'game1 ("&$AD181&")'!$a$2")="R",Season_Summary!Q181,""),"") ->  | R181: =IFERROR(IF(INDIRECT("'game1 ("&$AD181&")'!$a$2")="R",Season_Summary!R181,""),"") ->  | S181: =IFERROR(IF(INDIRECT("'game1 ("&$AD181&")'!$a$2")="R",Season_Summary!S181,""),"") ->  | T181: =IFERROR(IF(INDIRECT("'game1 ("&$AD181&")'!$a$2")="R",Season_Summary!T181,""),"") ->  | U181: =IFERROR(IF(INDIRECT("'game1 ("&$AD181&")'!$a$2")="R",Season_Summary!U181,""),"") ->  | V181: =IFERROR(IF(INDIRECT("'game1 ("&$AD181&")'!$a$2")="R",Season_Summary!V181,""),"") ->  | W181: =IFERROR(IF(INDIRECT("'game1 ("&$AD181&")'!$a$2")="R",Season_Summary!W181,""),"") ->  | X181: =IFERROR(IF(INDIRECT("'game1 ("&$AD181&")'!$a$2")="R",Season_Summary!X181,""),"") ->  | Y181: =IFERROR(IF(INDIRECT("'game1 ("&$AD181&")'!$a$2")="R",Season_Summary!Y181,""),"") ->  | Z181: =IFERROR(IF(INDIRECT("'game1 ("&$AD181&")'!$a$2")="R",Season_Summary!Z181,""),"") ->  | AA181: =IFERROR(IF(INDIRECT("'game1 ("&$AD181&")'!$a$2")="R",Season_Summary!AA181,""),"") ->  | AB181: =IFERROR(IF(INDIRECT("'game1 ("&$AD181&")'!$a$2")="R",Season_Summary!AB181,""),"") ->  | AC181: =IFERROR(IF(INDIRECT("'game1 ("&$AD181&")'!$a$2")="R",Season_Summary!AC181,""),"") ->  | AD181: 40
A182: =IFERROR(IF(INDIRECT("'game1 ("&$AD182&")'!$a$2")="R",Season_Summary!A182,""),"") ->  | B182: =IFERROR(IF(INDIRECT("'game1 ("&$AD182&")'!$a$2")="R",Season_Summary!B182,""),"") ->  | C182: =IFERROR(IF(INDIRECT("'game1 ("&$AD182&")'!$a$2")="R",Season_Summary!C182,""),"") ->  | D182: =IFERROR(IF(INDIRECT("'game1 ("&$AD182&")'!$a$2")="R",Season_Summary!D182,""),"") ->  | E182: =IFERROR(IF(INDIRECT("'game1 ("&$AD182&")'!$a$2")="R",Season_Summary!E182,""),"") ->  | F182: =IFERROR(IF(INDIRECT("'game1 ("&$AD182&")'!$a$2")="R",Season_Summary!F182,""),"") ->  | G182: =IFERROR(IF(INDIRECT("'game1 ("&$AD182&")'!$a$2")="R",Season_Summary!G182,""),"") ->  | H182: =IFERROR(IF(INDIRECT("'game1 ("&$AD182&")'!$a$2")="R",Season_Summary!H182,""),"") ->  | I182: =IFERROR(IF(INDIRECT("'game1 ("&$AD182&")'!$a$2")="R",Season_Summary!I182,""),"") ->  | J182: =IFERROR(IF(INDIRECT("'game1 ("&$AD182&")'!$a$2")="R",Season_Summary!J182,""),"") ->  | K182: =IFERROR(IF(INDIRECT("'game1 ("&$AD182&")'!$a$2")="R",Season_Summary!K182,""),"") ->  | L182: =IFERROR(IF(INDIRECT("'game1 ("&$AD182&")'!$a$2")="R",Season_Summary!L182,""),"") ->  | M182: =IFERROR(IF(INDIRECT("'game1 ("&$AD182&")'!$a$2")="R",Season_Summary!M182,""),"") ->  | N182: =IFERROR(IF(INDIRECT("'game1 ("&$AD182&")'!$a$2")="R",Season_Summary!N182,""),"") ->  | O182: =IFERROR(IF(INDIRECT("'game1 ("&$AD182&")'!$a$2")="R",Season_Summary!O182,""),"") ->  | P182: =IFERROR(IF(INDIRECT("'game1 ("&$AD182&")'!$a$2")="R",Season_Summary!P182,""),"") ->  | Q182: =IFERROR(IF(INDIRECT("'game1 ("&$AD182&")'!$a$2")="R",Season_Summary!Q182,""),"") ->  | R182: =IFERROR(IF(INDIRECT("'game1 ("&$AD182&")'!$a$2")="R",Season_Summary!R182,""),"") ->  | S182: =IFERROR(IF(INDIRECT("'game1 ("&$AD182&")'!$a$2")="R",Season_Summary!S182,""),"") ->  | T182: =IFERROR(IF(INDIRECT("'game1 ("&$AD182&")'!$a$2")="R",Season_Summary!T182,""),"") ->  | U182: =IFERROR(IF(INDIRECT("'game1 ("&$AD182&")'!$a$2")="R",Season_Summary!U182,""),"") ->  | V182: =IFERROR(IF(INDIRECT("'game1 ("&$AD182&")'!$a$2")="R",Season_Summary!V182,""),"") ->  | W182: =IFERROR(IF(INDIRECT("'game1 ("&$AD182&")'!$a$2")="R",Season_Summary!W182,""),"") ->  | X182: =IFERROR(IF(INDIRECT("'game1 ("&$AD182&")'!$a$2")="R",Season_Summary!X182,""),"") ->  | Y182: =IFERROR(IF(INDIRECT("'game1 ("&$AD182&")'!$a$2")="R",Season_Summary!Y182,""),"") ->  | Z182: =IFERROR(IF(INDIRECT("'game1 ("&$AD182&")'!$a$2")="R",Season_Summary!Z182,""),"") ->  | AA182: =IFERROR(IF(INDIRECT("'game1 ("&$AD182&")'!$a$2")="R",Season_Summary!AA182,""),"") ->  | AB182: =IFERROR(IF(INDIRECT("'game1 ("&$AD182&")'!$a$2")="R",Season_Summary!AB182,""),"") ->  | AC182: =IFERROR(IF(INDIRECT("'game1 ("&$AD182&")'!$a$2")="R",Season_Summary!AC182,""),"") ->  | AD182: 40

Sheet Season_Summary
A1: =Roster!B1&" "&Roster!B2 -> Upton Bobcats | P1: =CONCATENATE(Roster!$D$1," ",Roster!$D$5) -> 2A BB | Q1: =Roster!$D$2 -> Northeast | S1: Overall Record | V1: =SUM('game1 (1):game1 (40)'!$G$4) & " - " & SUM('game1 (1):game1 (40)'!$I$4) -> 20 - 8 | X1: Conference Record | AB1: =SUM('game1 (1):game1 (40)'!$H$4) & " - " & SUM('game1 (1):game1 (40)'!$J$4) -> 7 - 3 | AE1: =COUNT('game1 (1):game1 (40)'!$G$4)+COUNT('game1 (1):game1 (40)'!$I$4) -> 28
R5: =COUNTA('game1 (1):game1 (40)'!$C$2) -> 28 | V5: =SUM('game1 (1):game1 (40)'!$G$4) -> 20 | W5: =SUM('game1 (1):game1 (40)'!$I$4) -> 8 | AB5: =SUM('game1 (1):game1 (40)'!$H$4) -> 7 | AC5: =SUM('game1 (1):game1 (40)'!$J$4) -> 3
A6: PLAYER,# | B6: GP | C6: 3FGM | D6: 3FGA | E6: 3FG % | F6: 2FGM | G6: 2FGA | H6: 2FG % | I6: FTM | J6: FTA | K6: FT % | L6: PTS | M6: OFF REB | N6: DEF REB | O6: REB | P6: AST | Q6: STL | R6: BLK | S6: TO'S | T6: FOUL | U6: PTS / GM | V6: O REB /GM | W6: D REB /GM | X6: REB / GM | Y6: AST / GM | Z6: STL / GM | AA6: BLK / GM | AB6: TO'S / GM | AC6: FOUL / GM | AD6: School | AE6: 3 FGA/Gm | AF6: FTA / GM | AG6: FG % | AH6: FGA / GM | AI6: Conf | AJ6: Team GP | AK6: Class | AU6: School | AV6: GP | AW6: 3FGM | AX6: 3FGA | AY6: 3FG % | AZ6: 2FGM | BA6: 2FGA | BB6: 2FG % | BC6: FTM | BD6: FTA | BE6: FT % | BF6: PTS | BG6: OFF REB | BH6: DEF REB | BI6: REB | BJ6: AST | BK6: STL | BL6: BLK | BM6: TO'S | BN6: FOUL | BO6: PTS / GM | BP6: O REB /GM | BQ6: D REB /GM | BR6: REB / GM | BS6: AST / GM | BT6: STL / GM | BU6: BLK / GM | BV6: TO'S / GM | BW6: FOUL / GM | BX6: Opp_GP | BY6: Opp_3FGM | BZ6: Opp_3FGA | CA6: Opp_3FG % | CB6: Opp_2FGM | CC6: Opp_2FGA | CD6: Opp_2FG % | CE6: Opp_FTM | CF6: Opp_FTA | CG6: Opp_FT % | CH6: Opp_PTS | CI6: Opp_OFF REB | CJ6: Opp_DEF REB | CK6: Opp_REB | CL6: Opp_AST | CM6: Opp_STL | CN6: Opp_BLK | CO6: Opp_TO'S | CP6: Opp_FOUL | CQ6: Opp_PTS / GM | CR6: Opp_O REB /GM | CS6: Opp_D REB /GM | CT6: Opp_REB / GM | CU6: Opp_AST / GM | CV6: Opp_STL / GM | CW6: Opp_BLK / GM | CX6: Opp_TO'S / GM | CY6: Opp_FOUL / GM | CZ6: Conference | DA6: Wins | DB6: Losses | DC6: Conf Wins | DD6: Conf Losses | DE6: Class
A7: =IF(OR(Roster!A7<>"",Roster!B7<>""),PROPER(Roster!B7)&", "&Roster!A7,"") -> Payton Watt, 24 | B7: =SUM('game1 (1):game1 (40)'!C7) -> 28 | C7: =(SUM('game1 (1):game1 (40)'!D7)) -> 65 | D7: =(SUM('game1 (1):game1 (40)'!E7)) -> 191 | E7: =IF(D7>0,C7/D7,"") -> 34% | F7: =(SUM('game1 (1):game1 (40)'!F7)) -> 139 | G7: =(SUM('game1 (1):game1 (40)'!G7)) -> 242 | H7: =IF(G7>0,F7/G7,"") -> 57% | I7: =(SUM('game1 (1):game1 (40)'!H7)) -> 58 | J7: =(SUM('game1 (1):game1 (40)'!I7)) -> 85 | K7: =IF(J7>0,I7/J7,"") -> 68% | L7: =(SUM('game1 (1):game1 (40)'!Q7)) -> 531 | M7: =(SUM('game1 (1):game1 (40)'!J7)) -> 57 | N7: =(SUM('game1 (1):game1 (40)'!K7)) -> 126 | O7: =(SUM('game1 (1):game1 (40)'!W7)) -> 183 | P7: =(SUM('game1 (1):game1 (40)'!L7)) -> 76 | Q7: =(SUM('game1 (1):game1 (40)'!M7)) -> 33 | R7: =(SUM('game1 (1):game1 (40)'!N7)) -> 11 | S7: =(SUM('game1 (1):game1 (40)'!O7)) -> 58 | T7: =(SUM('game1 (1):game1 (40)'!P7)) -> 53 | U7: =IF($B7>0,L7/$B7,"") -> 19.0 | V7: =IF($B7>0,M7/$B7,0) -> 2.0 | W7: =IF($B7>0,N7/$B7,0) -> 4.5 | X7: =IF($B7>0,O7/$B7,0) -> 6.5 | Y7: 2.7 | Z7: 1.2 | AA7: 0.4 | AB7: 2.1 | AC7: 1.9 | AD7: =Roster!$B$1 -> Upton | AE7: =IF($B7>0,$D7/$B7,0) -> 6.8 | AF7: =IF($B7>0,$J7/$B7,0) -> 3.0 | AG7: =IF($D7+$G7>0,($C7+$F7)/($D7+$G7),0) -> 47% | AH7: =IF($B7>0,($D7+$G7)/$B7,0) -> 15.5 | AI7: =Roster!$D$2 -> Northeast | AJ7: =$B$31 -> 28 | AK7: =$P$1 -> 2A BB | AU7: =Roster!$B$1 -> Upton | AV7: =B$31 -> 28 | AW7: =C$31 -> 185 | AX7: 587 | AY7: 32% | AZ7: 538 | BA7: 1013 | BB7: 53% | BC7: 293 | BD7: 478 | BE7: 61% | BF7: 1924 | BG7: 374 | BH7: 633 | BI7: 1007 | BJ7: 513 | BK7: 316 | BL7: 24 | BM7: 378 | BN7: 434 | BO7: 68.7 | BP7: 13.4 | BQ7: 22.6 | BR7: 36.0 | BS7: 18.3 | BT7: 11.3 | BU7: 0.9 | BV7: 13.5 | BW7: 15.5 | BX7: =B$32 -> 28 | BY7: =C$32 -> 121 | BZ7: 413 | CA7: 29% | CB7: 419 | CC7: 957 | CD7: 44% | CE7: 218 | CF7: 410 | CG7: 53% | CH7: 1419 | CI7: 262 | CJ7: 580 | CK7: 842 | CL7: 238 | CM7: 164 | CN7: 33 | CO7: 562 | CP7: 452 | CQ7: 50.7 | CR7: 9.4 | CS7: 20.7 | CT7: 30.1 | CU7: 8.5 | CV7: 5.9 | CW7: 1.6 | CX7: 20.1 | CY7: 16.1 | CZ7: =Roster!$D$2 -> Northeast | DA7: =$V$5 -> 20 | DB7: =$W$5 -> 8 | DC7: =$AB$5 -> 7 | DD7: =$AC$5 -> 3 | DE7: =$P$1 -> 2A BB
A8: =IF(OR(Roster!A8<>"",Roster!B8<>""),PROPER(Roster!B8)&", "&Roster!A8,"") -> Dillon Barritt, 20 | B8: =SUM('game1 (1):game1 (40)'!C8) -> 28 | C8: =(SUM('game1 (1):game1 (40)'!D8)) -> 66 | D8: =(SUM('game1 (1):game1 (40)'!E8)) -> 188 | E8: =IF(D8>0,C8/D8,"") -> 35% | F8: =(SUM('game1 (1):game1 (40)'!F8)) -> 38 | G8: =(SUM('game1 (1):game1 (40)'!G8)) -> 92 | H8: =IF(G8>0,F8/G8,"") -> 41% | I8: =(SUM('game1 (1):game1 (40)'!H8)) -> 30 | J8: =(SUM('game1 (1):game1 (40)'!I8)) -> 38 | K8: =IF(J8>0,I8/J8,"") -> 79% | L8: =(SUM('game1 (1):game1 (40)'!Q8)) -> 304 | M8: =(SUM('game1 (1):game1 (40)'!J8)) -> 25 | N8: =(SUM('game1 (1):game1 (40)'!K8)) -> 59 | O8: =(SUM('game1 (1):game1 (40)'!W8)) -> 84 | P8: =(SUM('game1 (1):game1 (40)'!L8)) -> 55 | Q8: =(SUM('game1 (1):game1 (40)'!M8)) -> 59 | R8: =(SUM('game1 (1):game1 (40)'!N8)) -> 1 | S8: =(SUM('game1 (1):game1 (40)'!O8)) -> 46 | T8: =(SUM('game1 (1):game1 (40)'!P8)) -> 56 | U8: =IF($B8>0,L8/$B8,"") -> 10.9 | V8: =IF($B8>0,M8/$B8,0) -> 0.9 | W8: 2.1 | X8: 3.0 | Y8: 2.0 | Z8: 2.1 | AA8: 0.0 | AB8: 1.6 | AC8: 2.0 | AD8: =Roster!$B$1 -> Upton | AE8: =IF($B8>0,$D8/$B8,0) -> 6.7 | AF8: =IF($B8>0,$J8/$B8,0) -> 1.4 | AG8: =IF($D8+$G8>0,($C8+$F8)/($D8+$G8),0) -> 37% | AH8: =IF($B8>0,($D8+$G8)/$B8,0) -> 10.0 | AI8: =Roster!$D$2 -> Northeast | AJ8: =$B$31 -> 28 | AK8: =$P$1 -> 2A BB
A9: =IF(OR(Roster!A9<>"",Roster!B9<>""),PROPER(Roster!B9)&", "&Roster!A9,"") -> Dawson Butts, 14 | B9: =SUM('game1 (1):game1 (40)'!C9) -> 28 | C9: =(SUM('game1 (1):game1 (40)'!D9)) -> 3 | D9: =(SUM('game1 (1):game1 (40)'!E9)) -> 15 | E9: 20% | F9: =(SUM('game1 (1):game1 (40)'!F9)) -> 47 | G9: =(SUM('game1 (1):game1 (40)'!G9)) -> 99 | H9: 47% | I9: =(SUM('game1 (1):game1 (40)'!H9)) -> 19 | J9: =(SUM('game1 (1):game1 (40)'!I9)) -> 59 | K9: 32% | L9: =(SUM('game1 (1):game1 (40)'!Q9)) -> 122 | M9: =(SUM('game1 (1):game1 (40)'!J9)) -> 56 | N9: =(SUM('game1 (1):game1 (40)'!K9)) -> 69 | O9: =(SUM('game1 (1):game1 (40)'!W9)) -> 125 | P9: =(SUM('game1 (1):game1 (40)'!L9)) -> 94 | Q9: =(SUM('game1 (1):game1 (40)'!M9)) -> 57 | R9: =(SUM('game1 (1):game1 (40)'!N9)) -> 3 | S9: =(SUM('game1 (1):game1 (40)'!O9)) -> 44 | T9: =(SUM('game1 (1):game1 (40)'!P9)) -> 50 | U9: 4.4 | V9: 2.0 | W9: 2.5 | X9: 4.5 | Y9: 3.4 | Z9: 2.0 | AA9: 0.1 | AB9: 1.6 | AC9: 1.8 | AD9: =Roster!$B$1 -> Upton | AE9: 0.5 | AF9: 2.1 | AG9: 44% | AH9: 4.1 | AI9: =Roster!$D$2 -> Northeast | AJ9: 28 | AK9: 2A BB
A10: =IF(OR(Roster!A10<>"",Roster!B10<>""),PROPER(Roster!B10)&", "&Roster!A10,"") -> Jayden Caylor, 12 | B10: =SUM('game1 (1):game1 (40)'!C10) -> 23 | C10: =(SUM('game1 (1):game1 (40)'!D10)) -> 8 | D10: =(SUM('game1 (1):game1 (40)'!E10)) -> 20 | E10: 40% | F10: =(SUM('game1 (1):game1 (40)'!F10)) -> 42 | G10: =(SUM('game1 (1):game1 (40)'!G10)) -> 78 | H10: 54% | I10: =(SUM('game1 (1):game1 (40)'!H10)) -> 30 | J10: =(SUM('game1 (1):game1 (40)'!I10)) -> 50 | K10: 60% | L10: =(SUM('game1 (1):game1 (40)'!Q10)) -> 138 | M10: =(SUM('game1 (1):game1 (40)'!J10)) -> 43 | N10: =(SUM('game1 (1):game1 (40)'!K10)) -> 66 | O10: =(SUM('game1 (1):game1 (40)'!W10)) -> 109 | P10: =(SUM('game1 (1):game1 (40)'!L10)) -> 58 | Q10: =(SUM('game1 (1):game1 (40)'!M10)) -> 54 | R10: =(SUM('game1 (1):game1 (40)'!N10)) -> 2 | S10: =(SUM('game1 (1):game1 (40)'!O10)) -> 46 | T10: =(SUM('game1 (1):game1 (40)'!P10)) -> 62 | U10: 6.0 | V10: 1.9 | W10: 2.9 | X10: 4.7 | Y10: 2.5 | Z10: 2.3 | AA10: 0.1 | AB10: 2.0 | AC10: 2.7 | AD10: =Roster!$B$1 -> Upton | AE10: 0.9 | AF10: 2.2 | AG10: 51% | AH10: 4.3 | AI10: =Roster!$D$2 -> Northeast | AJ10: 28 | AK10: 2A BB
A11: =IF(OR(Roster!A11<>"",Roster!B11<>""),PROPER(Roster!B11)&", "&Roster!A11,"") -> Clayton Louderback, 23 | B11: =SUM('game1 (1):game1 (40)'!C11) -> 23 | C11: =(SUM('game1 (1):game1 (40)'!D11)) -> 14 | D11: =(SUM('game1 (1):game1 (40)'!E11)) -> 52 | E11: 27% | F11: =(SUM('game1 (1):game1 (40)'!F11)) -> 138 | G11: =(SUM('game1 (1):game1 (40)'!G11)) -> 266 | H11: 52% | I11: =(SUM('game1 (1):game1 (40)'!H11)) -> 74 | J11: =(SUM('game1 (1):game1 (40)'!I11)) -> 119 | K11: 62% | L11: =(SUM('game1 (1):game1 (40)'!Q11)) -> 392 | M11: =(SUM('game1 (1):game1 (40)'!J11)) -> 74 | N11: =(SUM('game1 (1):game1 (40)'!K11)) -> 124 | O11: =(SUM('game1 (1):game1 (40)'!W11)) -> 198 | P11: =(SUM('game1 (1):game1 (40)'!L11)) -> 68 | Q11: =(SUM('game1 (1):game1 (40)'!M11)) -> 53 | R11: =(SUM('game1 (1):game1 (40)'!N11)) -> 5 | S11: =(SUM('game1 (1):game1 (40)'!O11)) -> 68 | T11: =(SUM('game1 (1):game1 (40)'!P11)) -> 59 | U11: 17.0 | V11: 3.2 | W11: 5.4 | X11: 8.6 | Y11: 3.0 | Z11: 2.3 | AA11: 0.2 | AB11: 3.0 | AC11: 2.6 | AD11: =Roster!$B$1 -> Upton | AE11: 2.3 | AF11: 5.2 | AG11: 48% | AH11: 13.8 | AI11: =Roster!$D$2 -> Northeast | AJ11: 28 | AK11: 2A BB
A12: =IF(OR(Roster!A12<>"",Roster!B12<>""),PROPER(Roster!B12)&", "&Roster!A12,"") -> Jess Claycomb, 10 | B12: =SUM('game1 (1):game1 (40)'!C12) -> 28 | C12: =(SUM('game1 (1):game1 (40)'!D12)) -> 16 | D12: =(SUM('game1 (1):game1 (40)'!E12)) -> 50 | E12: 32% | F12: =(SUM('game1 (1):game1 (40)'!F12)) -> 89 | G12: =(SUM('game1 (1):game1 (40)'!G12)) -> 134 | H12: 66% | I12: =(SUM('game1 (1):game1 (40)'!H12)) -> 50 | J12: =(SUM('game1 (1):game1 (40)'!I12)) -> 73 | K12: 68% | L12: =(SUM('game1 (1):game1 (40)'!Q12)) -> 276 | M12: =(SUM('game1 (1):game1 (40)'!J12)) -> 33 | N12: =(SUM('game1 (1):game1 (40)'!K12)) -> 54 | O12: =(SUM('game1 (1):game1 (40)'!W12)) -> 87 | P12: =(SUM('game1 (1):game1 (40)'!L12)) -> 60 | Q12: =(SUM('game1 (1):game1 (40)'!M12)) -> 31 | R12: =(SUM('game1 (1):game1 (40)'!N12)) -> 1 | S12: =(SUM('game1 (1):game1 (40)'!O12)) -> 30 | T12: =(SUM('game1 (1):game1 (40)'!P12)) -> 59 | U12: 9.9 | V12: 1.2 | W12: 1.9 | X12: 3.1 | Y12: 2.1 | Z12: 1.1 | AA12: 0.0 | AB12: 1.1 | AC12: 2.1 | AD12: =Roster!$B$1 -> Upton | AE12: 1.8 | AF12: 2.6 | AG12: 57% | AH12: 6.6 | AI12: =Roster!$D$2 -> Northeast | AJ12: 28 | AK12: 2A BB
A13: =IF(OR(Roster!A13<>"",Roster!B13<>""),PROPER(Roster!B13)&", "&Roster!A13,"") -> Maxx Cowger, 4 | B13: =SUM('game1 (1):game1 (40)'!C13) -> 4 | C13: =(SUM('game1 (1):game1 (40)'!D13)) -> 0 | D13: =(SUM('game1 (1):game1 (40)'!E13)) -> 0 | F13: =(SUM('game1 (1):game1 (40)'!F13)) -> 1 | G13: =(SUM('game1 (1):game1 (40)'!G13)) -> 2 | H13: 50% | I13: =(SUM('game1 (1):game1 (40)'!H13)) -> 5 | J13: =(SUM('game1 (1):game1 (40)'!I13)) -> 6 | K13: 83% | L13: =(SUM('game1 (1):game1 (40)'!Q13)) -> 7 | M13: =(SUM('game1 (1):game1 (40)'!J13)) -> 2 | N13: =(SUM('game1 (1):game1 (40)'!K13)) -> 1 | O13: =(SUM('game1 (1):game1 (40)'!W13)) -> 3 | P13: =(SUM('game1 (1):game1 (40)'!L13)) -> 1 | Q13: =(SUM('game1 (1):game1 (40)'!M13)) -> 1 | R13: =(SUM('game1 (1):game1 (40)'!N13)) -> 0 | S13: =(SUM('game1 (1):game1 (40)'!O13)) -> 3 | T13: =(SUM('game1 (1):game1 (40)'!P13)) -> 2 | U13: 1.8 | V13: 0.5 | W13: 0.3 | X13: 0.8 | Y13: 0.3 | Z13: 0.3 | AA13: 0.0 | AB13: 0.8 | AC13: 0.5 | AD13: =Roster!$B$1 -> Upton | AE13: 0.0 | AF13: 1.5 | AG13: 50% | AH13: 0.5 | AI13: =Roster!$D$2 -> Northeast | AJ13: 28 | AK13: 2A BB
A14: =IF(OR(Roster!A14<>"",Roster!B14<>""),PROPER(Roster!B14)&", "&Roster!A14,"") -> Brayden Bruce, 22 | B14: =SUM('game1 (1):game1 (40)'!C14) -> 28 | C14: =(SUM('game1 (1):game1 (40)'!D14)) -> 12 | D14: =(SUM('game1 (1):game1 (40)'!E14)) -> 40 | E14: 30% | F14: =(SUM('game1 (1):game1 (40)'!F14)) -> 19 | G14: =(SUM('game1 (1):game1 (40)'!G14)) -> 48 | H14: 40% | I14: =(SUM('game1 (1):game1 (40)'!H14)) -> 24 | J14: =(SUM('game1 (1):game1 (40)'!I14)) -> 37 | K14: 65% | L14: =(SUM('game1 (1):game1 (40)'!Q14)) -> 98 | M14: =(SUM('game1 (1):game1 (40)'!J14)) -> 24 | N14: =(SUM('game1 (1):game1 (40)'!K14)) -> 33 | O14: =(SUM('game1 (1):game1 (40)'!W14)) -> 57 | P14: =(SUM('game1 (1):game1 (40)'!L14)) -> 79 | Q14: =(SUM('game1 (1):game1 (40)'!M14)) -> 17 | R14: =(SUM('game1 (1):game1 (40)'!N14)) -> 0 | S14: =(SUM('game1 (1):game1 (40)'!O14)) -> 44 | T14: =(SUM('game1 (1):game1 (40)'!P14)) -> 36 | U14: 3.5 | V14: 0.9 | W14: 1.2 | X14: 2.0 | Y14: 2.8 | Z14: 0.6 | AA14: 0.0 | AB14: 1.6 | AC14: 1.3 | AD14: =Roster!$B$1 -> Upton | AE14: 1.4 | AF14: 1.3 | AG14: 35% | AH14: 3.1 | AI14: =Roster!$D$2 -> Northeast | AJ14: 28 | AK14: 2A BB
A15: =IF(OR(Roster!A15<>"",Roster!B15<>""),PROPER(Roster!B15)&", "&Roster!A15,"") -> Jo Bishop, 30 | B15: =SUM('game1 (1):game1 (40)'!C15) -> 18 | C15: =(SUM('game1 (1):game1 (40)'!D15)) -> 0 | D15: =(SUM('game1 (1):game1 (40)'!E15)) -> 2 | E15: 0% | F15: =(SUM('game1 (1):game1 (40)'!F15)) -> 6 | G15: =(SUM('game1 (1):game1 (40)'!G15)) -> 13 | H15: 46% | I15: =(SUM('game1 (1):game1 (40)'!H15)) -> 2 | J15: =(SUM('game1 (1):game1 (40)'!I15)) -> 3 | K15: 67% | L15: =(SUM('game1 (1):game1 (40)'!Q15)) -> 14 | M15: =(SUM('game1 (1):game1 (40)'!J15)) -> 10 | N15: =(SUM('game1 (1):game1 (40)'!K15)) -> 14 | O15: =(SUM('game1 (1):game1 (40)'!W15)) -> 24 | P15: =(SUM('game1 (1):game1 (40)'!L15)) -> 6 | Q15: =(SUM('game1 (1):game1 (40)'!M15)) -> 4 | R15: =(SUM('game1 (1):game1 (40)'!N15)) -> 0 | S15: =(SUM('game1 (1):game1 (40)'!O15)) -> 11 | T15: =(SUM('game1 (1):game1 (40)'!P15)) -> 12 | U15: 0.8 | V15: 0.6 | W15: 0.8 | X15: 1.3 | Y15: 0.3 | Z15: 0.2 | AA15: 0.0 | AB15: 0.6 | AC15: 0.7 | AD15: =Roster!$B$1 -> Upton | AE15: 0.1 | AF15: 0.2 | AG15: 40% | AH15: 0.8 | AI15: =Roster!$D$2 -> Northeast | AJ15: 28 | AK15: 2A BB
A16: =IF(OR(Roster!A16<>"",Roster!B16<>""),PROPER(Roster!B16)&", "&Roster!A16,"") -> Nolan Turner, 33 | B16: =SUM('game1 (1):game1 (40)'!C16) -> 19 | C16: =(SUM('game1 (1):game1 (40)'!D16)) -> 0 | D16: =(SUM('game1 (1):game1 (40)'!E16)) -> 2 | E16: 0% | F16: =(SUM('game1 (1):game1 (40)'!F16)) -> 6 | G16: =(SUM('game1 (1):game1 (40)'!G16)) -> 13 | H16: 46% | I16: =(SUM('game1 (1):game1 (40)'!H16)) -> 0 | J16: =(SUM('game1 (1):game1 (40)'!I16)) -> 3 | K16: 0% | L16: =(SUM('game1 (1):game1 (40)'!Q16)) -> 12 | M16: =(SUM('game1 (1):game1 (40)'!J16)) -> 8 | N16: =(SUM('game1 (1):game1 (40)'!K16)) -> 22 | O16: =(SUM('game1 (1):game1 (40)'!W16)) -> 30 | P16: =(SUM('game1 (1):game1 (40)'!L16)) -> 4 | Q16: =(SUM('game1 (1):game1 (40)'!M16)) -> 2 | R16: =(SUM('game1 (1):game1 (40)'!N16)) -> 1 | S16: =(SUM('game1 (1):game1 (40)'!O16)) -> 10 | T16: =(SUM('game1 (1):game1 (40)'!P16)) -> 23 | U16: 0.6 | V16: 0.4 | W16: 1.2 | X16: 1.6 | Y16: 0.2 | Z16: 0.1 | AA16: 0.1 | AB16: 0.5 | AC16: 1.2 | AD16: =Roster!$B$1 -> Upton | AE16: 0.1 | AF16: 0.2 | AG16: 40% | AH16: 0.8 | AI16: =Roster!$D$2 -> Northeast | AJ16: 28 | AK16: 2A BB
A17: =IF(OR(Roster!A17<>"",Roster!B17<>""),PROPER(Roster!B17)&", "&Roster!A17,"") -> Robert Crawford, 32 | B17: =SUM('game1 (1):game1 (40)'!C17) -> 16 | C17: =(SUM('game1 (1):game1 (40)'!D17)) -> 0 | D17: =(SUM('game1 (1):game1 (40)'!E17)) -> 3 | E17: 0% | F17: =(SUM('game1 (1):game1 (40)'!F17)) -> 10 | G17: =(SUM('game1 (1):game1 (40)'!G17)) -> 15 | H17: 67% | I17: =(SUM('game1 (1):game1 (40)'!H17)) -> 1 | J17: =(SUM('game1 (1):game1 (40)'!I17)) -> 4 | K17: 25% | L17: =(SUM('game1 (1):game1 (40)'!Q17)) -> 21 | M17: =(SUM('game1 (1):game1 (40)'!J17)) -> 5 | N17: =(SUM('game1 (1):game1 (40)'!K17)) -> 10 | O17: =(SUM('game1 (1):game1 (40)'!W17)) -> 15 | P17: =(SUM('game1 (1):game1 (40)'!L17)) -> 5 | Q17: =(SUM('game1 (1):game1 (40)'!M17)) -> 0 | R17: =(SUM('game1 (1):game1 (40)'!N17)) -> 0 | S17: =(SUM('game1 (1):game1 (40)'!O17)) -> 10 | T17: =(SUM('game1 (1):game1 (40)'!P17)) -> 14 | U17: 1.3 | V17: 0.3 | W17: 0.6 | X17: 0.9 | Y17: 0.3 | Z17: 0.0 | AA17: 0.0 | AB17: 0.6 | AC17: 0.9 | AD17: =Roster!$B$1 -> Upton | AE17: 0.2 | AF17: 0.3 | AG17: 56% | AH17: 1.1 | AI17: =Roster!$D$2 -> Northeast | AJ17: 28 | AK17: 2A BB
A18: =IF(OR(Roster!A18<>"",Roster!B18<>""),PROPER(Roster!B18)&", "&Roster!A18,"") -> Jace Bruce, 40 | B18: =SUM('game1 (1):game1 (40)'!C18) -> 16 | C18: =(SUM('game1 (1):game1 (40)'!D18)) -> 0 | D18: =(SUM('game1 (1):game1 (40)'!E18)) -> 17 | E18: 0% | F18: =(SUM('game1 (1):game1 (40)'!F18)) -> 1 | G18: =(SUM('game1 (1):game1 (40)'!G18)) -> 4 | H18: 25% | I18: =(SUM('game1 (1):game1 (40)'!H18)) -> 0 | J18: =(SUM('game1 (1):game1 (40)'!I18)) -> 1 | K18: 0% | L18: =(SUM('game1 (1):game1 (40)'!Q18)) -> 2 | M18: =(SUM('game1 (1):game1 (40)'!J18)) -> 3 | N18: =(SUM('game1 (1):game1 (40)'!K18)) -> 4 | O18: =(SUM('game1 (1):game1 (40)'!W18)) -> 7 | P18: =(SUM('game1 (1):game1 (40)'!L18)) -> 6 | Q18: =(SUM('game1 (1):game1 (40)'!M18)) -> 4 | R18: =(SUM('game1 (1):game1 (40)'!N18)) -> 0 | S18: =(SUM('game1 (1):game1 (40)'!O18)) -> 6 | T18: =(SUM('game1 (1):game1 (40)'!P18)) -> 8 | U18: 0.1 | V18: 0.2 | W18: 0.3 | X18: 0.4 | Y18: 0.4 | Z18: 0.3 | AA18: 0.0 | AB18: 0.4 | AC18: 0.5 | AD18: =Roster!$B$1 -> Upton | AE18: 1.1 | AF18: 0.1 | AG18: 5% | AH18: 1.3 | AI18: =Roster!$D$2 -> Northeast | AJ18: 28 | AK18: 2A BB
A19: =IF(OR(Roster!A19<>"",Roster!B19<>""),PROPER(Roster!B19)&", "&Roster!A19,"") -> Ethan Mills, 2 | B19: =SUM('game1 (1):game1 (40)'!C19) -> 7 | C19: =(SUM('game1 (1):game1 (40)'!D19)) -> 0 | D19: =(SUM('game1 (1):game1 (40)'!E19)) -> 2 | E19: 0% | F19: =(SUM('game1 (1):game1 (40)'!F19)) -> 1 | G19: =(SUM('game1 (1):game1 (40)'!G19)) -> 2 | H19: 50% | I19: =(SUM('game1 (1):game1 (40)'!H19)) -> 0 | J19: =(SUM('game1 (1):game1 (40)'!I19)) -> 0 | L19: =(SUM('game1 (1):game1 (40)'!Q19)) -> 2 | M19: =(SUM('game1 (1):game1 (40)'!J19)) -> 1 | N19: =(SUM('game1 (1):game1 (40)'!K19)) -> 0 | O19: =(SUM('game1 (1):game1 (40)'!W19)) -> 1 | P19: =(SUM('game1 (1):game1 (40)'!L19)) -> 0 | Q19: =(SUM('game1 (1):game1 (40)'!M19)) -> 0 | R19: =(SUM('game1 (1):game1 (40)'!N19)) -> 0 | S19: =(SUM('game1 (1):game1 (40)'!O19)) -> 2 | T19: =(SUM('game1 (1):game1 (40)'!P19)) -> 0 | U19: 0.3 | V19: 0.1 | W19: 0.0 | X19: 0.1 | Y19: 0.0 | Z19: 0.0 | AA19: 0.0 | AB19: 0.3 | AC19: 0.0 | AD19: =Roster!$B$1 -> Upton | AE19: 0.3 | AF19: 0.0 | AG19: 25% | AH19: 0.6 | AI19: =Roster!$D$2 -> Northeast | AJ19: 28 | AK19: 2A BB
